{"text_format":"1","workbook":"xlsx","n_sheets":10,"sheets":["部長","次長","課長","課長代理","主査","主任","係員","技労（総括主任）","技労（主任）","技労（係員）"],"not_rendered":{"charts":0,"images":0,"macros":1,"external_links":0,"defined_names":10,"comments":0,"pivot_tables":0},"unopened":[],"bounds":{"document_bytes":16777216,"sheet_cells":100000,"rows_first":2000,"rows_last":500,"rows_between":2000,"halvings":0,"cell_chars":16384,"cell_head_chars":4096},"cells_cut":0,"cells_raw":0,"read":"whole","date_system":"1900"}

{"sheet":"部長","index":0,"n_rows":122,"n_cols":45,"rows_kept":122,"cut":false,"hidden":false,"merged":[[44,20,46,21],[8,2,8,3],[8,4,8,14],[45,22,45,25],[45,26,45,27],[67,2,67,3],[67,4,67,14],[104,22,104,25],[104,26,104,27],[7,22,10,24],[7,25,10,27],[9,2,9,3],[9,4,9,14],[10,2,10,3],[10,4,10,14],[12,0,12,4],[12,5,12,9],[5,0,10,0],[5,1,5,14],[5,15,5,21],[5,22,5,24],[5,25,5,27],[7,1,10,1],[7,2,7,3],[2,19,2,27],[3,2,3,6],[3,7,3,9],[3,10,3,12],[3,13,3,14],[3,15,3,18],[0,9,1,18],[2,0,3,0],[2,1,3,1],[2,2,2,6],[2,7,2,9],[2,10,2,12],[2,13,2,14],[2,15,2,18],[3,19,3,22],[3,24,3,27],[7,4,7,14],[7,15,10,16],[7,17,10,21],[20,22,22,24],[20,25,22,27],[14,0,42,0],[14,1,14,14],[14,15,14,21],[14,22,14,24],[16,17,18,21],[16,22,18,24],[20,2,20,14],[20,15,22,16],[20,17,22,21],[17,1,18,2],[16,2,16,14],[16,15,18,16],[14,25,14,27],[16,25,18,27],[21,1,22,2],[21,3,21,8],[21,9,21,14],[22,3,22,8],[22,9,22,14],[24,2,24,14],[17,3,17,8],[17,9,17,14],[18,3,18,8],[18,9,18,14],[24,15,26,16],[24,17,26,21],[24,22,26,24],[24,25,26,27],[25,1,26,2],[25,3,25,8],[25,9,25,14],[26,3,26,8],[26,9,26,14],[28,2,28,14],[28,15,30,16],[28,17,30,21],[28,22,30,24],[28,25,30,27],[29,1,30,2],[29,3,29,8],[29,9,29,14],[30,3,30,8],[30,9,30,14],[32,2,32,14],[32,15,34,16],[32,17,34,21],[32,22,34,24],[32,25,34,27],[33,1,34,2],[33,3,33,8],[33,9,33,14],[34,3,34,8],[34,9,34,14],[41,9,41,14],[42,3,42,8],[42,9,42,14],[36,2,36,14],[36,15,38,16],[36,17,38,21],[36,22,38,24],[36,25,38,27],[37,1,38,2],[37,3,37,8],[37,9,37,14],[38,3,38,8],[38,9,38,14],[12,22,12,27],[49,0,49,13],[49,14,49,23],[49,24,49,27],[50,24,52,27],[51,0,52,3],[51,4,51,13],[51,14,51,23],[44,0,47,8],[44,10,47,18],[44,22,44,25],[44,26,44,27],[46,22,46,25],[46,26,46,27],[47,20,47,21],[47,22,47,25],[47,26,47,27],[40,2,40,14],[40,15,42,16],[40,17,42,21],[40,22,42,24],[40,25,42,27],[41,1,42,2],[41,3,41,8],[61,19,61,27],[62,2,62,6],[62,7,62,9],[62,10,62,12],[62,13,62,14],[62,15,62,18],[68,2,68,3],[68,4,68,14],[59,9,60,18],[61,2,61,6],[61,7,61,9],[61,10,61,12],[61,13,61,14],[69,2,69,3],[69,4,69,14],[64,0,69,0],[64,1,64,14],[66,1,69,1],[66,2,66,3],[66,4,66,14],[66,15,69,16],[61,15,61,18],[61,0,62,0],[61,1,62,1],[71,0,71,4],[71,5,71,9],[71,22,71,27],[73,0,101,0],[73,1,73,14],[75,2,75,14],[75,15,77,16],[73,15,73,24],[99,17,101,24],[76,1,77,2],[95,25,97,27],[91,25,93,27],[87,25,89,27],[83,25,85,27],[79,25,81,27],[76,3,76,8],[76,9,76,14],[77,3,77,8],[77,9,77,14],[75,17,77,24],[79,2,79,14],[79,15,81,16],[80,1,81,2],[80,3,80,8],[80,9,80,14],[81,3,81,8],[81,9,81,14],[79,17,81,24],[83,2,83,14],[83,15,85,16],[84,1,85,2],[84,3,84,8],[84,9,84,14],[85,3,85,8],[85,9,85,14],[83,17,85,24],[87,2,87,14],[87,15,89,16],[88,1,89,2],[88,3,88,8],[88,9,88,14],[89,3,89,8],[89,9,89,14],[87,17,89,24],[96,9,96,14],[97,3,97,8],[97,9,97,14],[95,17,97,24],[91,2,91,14],[91,15,93,16],[92,1,93,2],[92,3,92,8],[92,9,92,14],[93,3,93,8],[93,9,93,14],[119,20,120,20],[119,21,120,21],[119,0,120,0],[119,1,120,1],[119,2,120,2],[119,3,120,3],[119,4,120,4],[119,5,119,19],[52,4,52,6],[52,8,52,11],[52,14,52,16],[52,18,52,21],[111,3,111,6],[111,11,111,13],[91,17,93,24],[95,2,95,14],[95,15,97,16],[108,24,108,27],[109,24,111,27],[111,15,111,18],[103,0,106,8],[103,10,106,18],[103,20,105,21],[103,22,103,25],[108,8,108,23],[109,8,110,23],[105,26,105,27],[106,20,106,21],[64,15,64,24],[66,17,69,24],[75,25,77,27],[66,25,69,27],[108,0,108,7],[109,0,110,7],[103,26,103,27],[105,22,105,25],[106,22,106,25],[106,26,106,27],[99,2,99,14],[99,15,101,16],[100,1,101,2],[100,3,100,8],[100,9,100,14],[101,3,101,8],[101,9,101,14],[99,25,101,27],[96,1,97,2],[96,3,96,8],[113,0,115,0],[113,1,113,3],[113,4,113,8],[113,9,113,13],[113,14,113,18],[113,20,115,20],[54,20,56,20],[54,21,56,27],[54,14,54,18],[55,14,55,18],[56,14,56,18],[54,4,54,8],[55,4,55,8],[56,4,56,8],[54,9,54,13],[54,0,56,0],[54,1,54,3],[55,1,55,3],[56,1,56,3],[55,9,55,13],[56,9,56,13],[62,19,62,22],[62,24,62,27],[111,0,111,1],[113,21,115,27],[114,1,114,3],[114,4,114,8],[114,9,114,13],[114,14,114,18],[115,1,115,3],[115,4,115,8],[115,9,115,13],[115,14,115,18]]}
["令和",6,"年度",null,null,null,null,null,null,"勤務評価シート",null,null,null,null,null,null,null,null,null,null,null,null,null,null,null,null,null,"1"]
["事務・技術・専門　部長等"]
["基礎情報","被評価者","所属名",null,null,null,null,"補職級",null,null,"職種",null,null,"職員番号",null,"氏名",null,null,null,"評価期間",null,null,null,null,null,null,null,null,null,null,null,null,null,null,null,null,null,null,null,null,null,null,null,"部長級","一般事務"]
[null,null,null,null,null,null,null,"部長級",null,null,null,null,null,null,null,null,null,null,null,null,null,null,null,"～",null,null,null,null,null,null,null,null,null,null,null,null,null,null,null,null,null,null,null,null,"一般事務（府教委）"]
[null,null,null,null,null,null,null,null,null,null,null,null,null,null,null,null,null,null,null,null,null,null,null,null,null,null,null,null,null,null,null,null,null,null,null,null,null,null,null,null,null,null,null,null,"一般事務（司書）"]
["【業績】","評価基準・着眼点",null,null,null,null,null,null,null,null,null,null,null,null,null,"自己評価",null,null,null,null,null,null,"１次評価",null,null,"２次評価",null,null,null,null,null,null,null,null,null,null,null,null,null,null,null,null,null,null,"一般事務（体育）"]
[null,"【業績】",null,null,null,null,null,null,null,null,null,null,null,null,null,"（評価点）",null,"（コメント）",null,null,null,null,"（評価点）",null,null,"（評価点）",null,null,null,null,null,null,null,null,null,null,null,null,null,null,null,null,null,null,"一般技術"]
[null,"評価点","４（特に良好）",null,"職階からみて、期待された水準をはるかに上回る業績をあげた",null,null,null,null,null,null,null,null,null,null,null,null,null,null,null,null,null,null,null,null,null,null,null,null,null,null,null,null,null,null,null,null,null,null,null,null,null,null,null,"一般技術（電気）"]
[null,null,"３（良好）",null,"職階からみて、期待された以上の業績をあげた"]
[null,null,"２（標準）",null,"職階からみて、相応の業績である",null,null,null,null,null,null,null,null,null,null,null,null,null,null,null,null,null,null,null,null,null,null,null,null,null,null,null,null,null,null,null,null,null,null,null,null,null,null,null,"一般技術（土木）"]
[null,null,"１（要努力）",null,"職階からみて、期待された水準に達しておらず、努力が必要である",null,null,null,null,null,null,null,null,null,null,null,null,null,null,null,null,null,null,null,null,null,null,null,null,null,null,null,null,null,null,null,null,null,null,null,null,null,null,null,"一般技術（機械）"]
[null,null,null,null,null,null,null,null,null,null,null,null,null,null,null,null,null,null,null,null,null,null,null,null,null,null,null,null,null,null,null,null,null,null,null,null,null,null,null,null,null,null,null,null,"一般技術（建築）"]
["≪【業績】の評価項目数の取扱い≫\n　・次長級以上は評価点を４倍\n　・課長級は評価点を３倍　　",null,null,null,null,"\n・課長代理級は評価点を３倍\n・主査級は評価点を２倍",null,null,null,null,null,null,null,null,null,null,null,null,null,null,null,null,"【業績】\n　　評価点が４個あるものとして取扱い",null,null,null,null,null,null,null,null,null,null,null,null,null,null,null,null,null,null,null,null,null,"一般技術（化学）"]
[null,null,null,null,null,null,null,null,null,null,null,null,null,null,null,null,null,null,null,null,null,null,null,null,null,null,null,null,null,null,null,null,null,null,null,null,null,null,null,null,null,null,null,null,"保育教諭"]
["【能力】","評価項目及び行動・着眼点",null,null,null,null,null,null,null,null,null,null,null,null,null,"自己評価",null,null,null,null,null,null,"１次評価",null,null,"２次評価",null,null,null,null,null,null,null,null,null,null,null,null,null,null,null,null,null,null,"生活指導員"]
[null,"【市民視点・法令遵守】",null,null,null,null,null,null,null,null,null,null,null,null,null,"（評価点）",null,"（コメント）",null,null,null,null,"（評価点）",null,null,"（評価点）",null,null,null,null,null,null,null,null,null,null,null,null,null,null,null,null,null,null,"発達指導員"]
[null,null,"丁寧な応対を心掛けるなど、全体の奉仕者として、常に市民の立場や市民協働の視点に立つことができるとともに、法令等及び服務規律を順守して、公平かつ公正に業務を遂行することができる。",null,null,null,null,null,null,null,null,null,null,null,null,null,null,null,null,null,null,null,null,null,null,null,null,null,null,null,null,null,null,null,null,null,null,null,null,null,null,null,null,null,"学芸員"]
[null,"着眼点",null,"・接遇",null,null,null,null,null,"・法令順守",null,null,null,null,null,null,null,null,null,null,null,null,null,null,null,null,null,null,null,null,null,null,null,null,null,null,null,null,null,null,null,null,null,null,"栄養士"]
[null,null,null,"・公平・公正な姿勢",null,null,null,null,null,"・責任感",null,null,null,null,null,null,null,null,null,null,null,null,null,null,null,null,null,null,null,null,null,null,null,null,null,null,null,null,null,null,null,null,null,null,"診療放射線技師"]
[null,"【コミュニケーション】",null,null,null,null,null,null,null,null,null,null,null,null,null,"（評価点）",null,"（コメント）",null,null,null,null,"（評価点）",null,null,"（評価点）",null,null,null,null,null,null,null,null,null,null,null,null,null,null,null,null,null,null,"言語聴覚士"]
[null,null,"様々な相手と円滑かつ適切なコミュニケーションを取ることができる。",null,null,null,null,null,null,null,null,null,null,null,null,null,null,null,null,null,null,null,null,null,null,null,null,null,null,null,null,null,null,null,null,null,null,null,null,null,null,null,null,null,"理学療法士"]
[null,"着眼点",null,"・市民に対する傾聴と対話の姿勢",null,null,null,null,null,"・柔軟な姿勢と一貫した主張のバランス",null,null,null,null,null,null,null,null,null,null,null,null,null,null,null,null,null,null,null,null,null,null,null,null,null,null,null,null,null,null,null,null,null,null,"作業療法士"]
[null,null,null,"・誠実さ",null,null,null,null,null,"・職場でのコミュニケーション促進",null,null,null,null,null,null,null,null,null,null,null,null,null,null,null,null,null,null,null,null,null,null,null,null,null,null,null,null,null,null,null,null,null,null,"歯科衛生士"]
[null,"【課題の解決】",null,null,null,null,null,null,null,null,null,null,null,null,null,"（評価点）",null,"（コメント）",null,null,null,null,"（評価点）",null,null,"（評価点）",null,null,null,null,null,null,null,null,null,null,null,null,null,null,null,null,null,null,"保健師"]
[null,null,"部等の重要課題について、周囲の状況、将来の見通し及び市としての社会的責任を踏まえて、基本的な方針を示すことができる。",null,null,null,null,null,null,null,null,null,null,null,null,null,null,null,null,null,null,null,null,null,null,null,null,null,null,null,null,null,null,null,null,null,null,null,null,null,null,null,null,null,"看護師"]
[null,"着眼点",null,"・幅広い視野",null,null,null,null,null,"・状況の構造的把握",null,null,null,null,null,null,null,null,null,null,null,null,null,null,null,null,null,null,null,null,null,null,null,null,null,null,null,null,null,null,null,null,null,null,"精神保健福祉士"]
[null,null,null,"・創造力、想像力",null,null,null,null,null,"・挑戦する姿勢",null,null,null,null,null,null,null,null,null,null,null,null,null,null,null,null,null,null,null,null,null,null,null,null,null,null,null,null,null,null,null,null,null,null,"獣医師"]
[null,"【決断】",null,null,null,null,null,null,null,null,null,null,null,null,null,"（評価点）",null,"（コメント）",null,null,null,null,"（評価点）",null,null,"（評価点）",null,null,null,null,null,null,null,null,null,null,null,null,null,null,null,null,null,null,"薬剤師"]
[null,null,"部等の重要課題について、責任者として、豊富な知識、経験及び情報による総合的な判断に基づき、冷静かつ迅速に決断を行うことができる。",null,null,null,null,null,null,null,null,null,null,null,null,null,null,null,null,null,null,null,null,null,null,null,null,null,null,null,null,null,null,null,null,null,null,null,null,null,null,null,null,null,"管理栄養士"]
[null,"着眼点",null,"・知識、経験、情報収集",null,null,null,null,null,"・決断力"]
[null,null,null,"・リスク対応",null,null,null,null,null,"・適切かつスピード感ある対応"]
[null,"【説明・調整】",null,null,null,null,null,null,null,null,null,null,null,null,null,"（評価点）",null,"（コメント）",null,null,null,null,"（評価点）",null,null,"（評価点）"]
[null,null,"部等の重要課題について、説得力のある説明及び困難な調整を行うことにより、関係者との合意を形成することができる。"]
[null,"着眼点",null,"・論理的構成力",null,null,null,null,null,"・信頼関係の構築"]
[null,null,null,"・対人折衝力",null,null,null,null,null,"・ねばり強さ"]
[null,"【業務改善】",null,null,null,null,null,null,null,null,null,null,null,null,null,"（評価点）",null,"（コメント）",null,null,null,null,"（評価点）",null,null,"（評価点）"]
[null,null,"部等の業務について、率先して業務改善に取り組むことができる。"]
[null,"着眼点",null,"・優先順位を見極めた計画",null,null,null,null,null,"・効果的な選択と集中"]
[null,null,null,"・コスト意識",null,null,null,null,null,"・所属職員の長時間勤務の是正"]
[null,"【組織マネジメント・人材育成】",null,null,null,null,null,null,null,null,null,null,null,null,null,"（評価点）",null,"（コメント）",null,null,null,null,"（評価点）",null,null,"（評価点）"]
[null,null,"所属職員の士気を高め、組織を牽引することができるとともに、部下等の指導及び育成を行うことができる。"]
[null,"着眼点",null,"・情報共有、情報発信",null,null,null,null,null,"・部下育成力、統率力、牽引力"]
[null,null,null,"・適切な業務配分及び進捗管理",null,null,null,null,null,"・職員のワークライフバランスの視点"]
[]
["≪【能力】の評価点≫\n◆　「４（特に良好）」…求められる行動が確実にとられており、他の職員の模範となる職務遂行状況である。\n◆　「３（良好）」…求められる行動が確実にとられていた。\n◆　「２（標準）」…求められる行動が概ねとられていた。\n◆　「１（要努力）」…求められる行動がとられていることが少なく（全くなく）、改善に向け努力が必要である。",null,null,null,null,null,null,null,null,null,"≪総合評価区分と評価点との関係：基準≫\n◆　「良好」…原則、【業績】及び【能力】の評価項目の３分の２以上が「２（標準）」以上の場合に該当する。\n◆　「やや不良」…原則、【業績】及び【能力】の評価項目の３分の１超半数以下が「１（標準未満）」の場合に該当する。\n◆　「不良」…原則、【業績】及び【能力】の評価項目の半数超が「１（標準未満）」であるとともに、分限（降任・免職）処分を検討する必要があると判断する場合に該当する。",null,null,null,null,null,null,null,null,null,"【業績】及び\n【能力】の\n評価項目数の合計",null,"「4（特に良好）」\nの個数",null,null,null,{"$f":"IF(Z8=\"\",\"\",IF(Z17=\"\",\"\",IF(Z21=\"\",\"\",IF(Z25=\"\",\"\",IF(Z29=\"\",\"\",IF(Z33=\"\",\"\",IF(Z37=\"\",\"\",IF(Z41=\"\",\"\",COUNTIF(Z15:AB43,4)+IF(Z8=4,4,0)))))))))","v":""}]
[null,null,null,null,null,null,null,null,null,null,null,null,null,null,null,null,null,null,null,null,null,null,"「3（良好）」\nの個数",null,null,null,{"$f":"IF(Z8=\"\",\"\",IF(Z17=\"\",\"\",IF(Z21=\"\",\"\",IF(Z25=\"\",\"\",IF(Z29=\"\",\"\",IF(Z33=\"\",\"\",IF(Z37=\"\",\"\",IF(Z41=\"\",\"\",COUNTIF(Z17:AB43,3)+IF(Z8=3,4,0)))))))))","v":""}]
[null,null,null,null,null,null,null,null,null,null,null,null,null,null,null,null,null,null,null,null,null,null,"「２（標準）」\nの個数",null,null,null,{"$f":"IF(Z8=\"\",\"\",IF(Z17=\"\",\"\",IF(Z21=\"\",\"\",IF(Z25=\"\",\"\",IF(Z29=\"\",\"\",IF(Z33=\"\",\"\",IF(Z37=\"\",\"\",IF(Z41=\"\",\"\",COUNTIF(Z17:AB43,2)+IF(Z8=2,4,0)))))))))","v":""}]
[null,null,null,null,null,null,null,null,null,null,null,null,null,null,null,null,null,null,null,null,11,null,"「１（要努力）」\nの個数",null,null,null,{"$f":"IF(Z8=\"\",\"\",IF(Z17=\"\",\"\",IF(Z21=\"\",\"\",IF(Z25=\"\",\"\",IF(Z29=\"\",\"\",IF(Z33=\"\",\"\",IF(Z37=\"\",\"\",IF(Z41=\"\",\"\",COUNTIF(Z17:AB43,1)+IF(Z8=1,4,0)))))))))","v":""}]
[]
["１次評価者所見等",null,null,null,null,null,null,null,null,null,null,null,null,null,"２次評価者所見",null,null,null,null,null,null,null,null,null,"総合評価"]
["ピカッとポイント",null,null,null,"所見（「２」以外の評価点の項目に重点を置き記入すること。）",null,null,null,null,null,null,null,null,null,"所見（「２」以外の評価点の項目に重点を置き記入すること。）",null,null,null,null,null,null,null,null,null,{"$f":"IF(AA45=\"\",\"\",IF(AA46=\"\",\"\",IF(AA47=\"\",\"\",IF(AA48=\"\",\"\",IF(AA45+AA46+AA47>=8,\"良好\",IF(AND((AA45+AA46+AA47)>=6,(AA45+AA46+AA47)<=7),\"やや不良\",IF(AA45+AA46+AA47<=5,\"不良\")))))))","v":""}]
[]
[null,null,null,null,"１次評価者",null,null,"（",null,null,null,null,"）",null,"２次評価者",null,null,"（",null,null,null,null,"）","㊞　　　　"]
[]
["給与反映区分","総合評価",null,null,"良好",null,null,null,null,"やや不良",null,null,null,null,"不良",null,null,null,null,null,"備考欄"]
[null,"昇給号数",null,null,"４号",null,null,null,null,"２号",null,null,null,null,"昇給なし"]
[null,"勤勉手当支給割合",null,null,"吹田市期末手当及び\n勤勉手当の支給に関する\n規則で定める支給割合",null,null,null,null,"良好の１０％減として、\n同規則で定める支給割合",null,null,null,null,"良好の２０％減として、\n同規則で定める支給割合"]
[null,null,null,null,null,null,null,null,null,null,null,null,null,null,null,null,null,null,"※水道部は、吹田市水道部企業職員給与規程"]
[]
[{"$f":"A1","v":"令和"},{"$f":"B1","v":6},{"$f":"C1","v":"年度"},null,null,null,null,null,null,"勤務評価シート（開示用）",null,null,null,null,null,null,null,null,null,null,null,null,null,null,null,null,null,"1"]
[{"$f":"A2","v":"事務・技術・専門　部長等"}]
["基礎情報","被評価者","所属名",null,null,null,null,"補職級",null,null,"職種",null,null,"職員番号",null,"氏名",null,null,null,"評価期間"]
[null,null,{"$f":"+C4","v":0},null,null,null,null,{"$f":"+H4","v":"部長級"},null,null,{"$f":"+K4","v":0},null,null,{"$f":"+N4","v":0},null,{"$f":"+P4","v":0},null,null,null,{"$f":"T4","v":"00:00:00"},null,null,null,"～",{"$f":"Y4","v":"00:00:00"}]
[]
["【業績】","評価基準・着眼点",null,null,null,null,null,null,null,null,null,null,null,null,null,"自己評価",null,null,null,null,null,null,null,null,null,"最終評価"]
[null,"【業績】",null,null,null,null,null,null,null,null,null,null,null,null,null,"（評価点）",null,"（コメント）",null,null,null,null,null,null,null,"（評価点）"]
[null,"評価点","４（特に良好）",null,"職階からみて、期待された水準をはるかに上回る業績をあげた",null,null,null,null,null,null,null,null,null,null,{"$f":"+P8","v":0},null,{"$f":"+R8","v":0},null,null,null,null,null,null,null,{"$f":"+Z8","v":0}]
[null,null,"３（良好）",null,"職階からみて、期待された以上の業績をあげた"]
[null,null,"２（標準）",null,"職階からみて、相応の業績である"]
[null,null,"１（要努力）",null,"職階からみて、期待された水準に達しておらず、努力が必要である"]
[]
["≪【業績】の評価項目数の取扱い≫\n　・次長級以上は評価点を４倍\n　・課長級は評価点を３倍　　",null,null,null,null,"\n・課長代理級は評価点を３倍\n・主査級は評価点を２倍",null,null,null,null,null,null,null,null,null,null,null,null,null,null,null,null,"【業績】\n　　評価点が４個あるものとして取扱い"]
[]
["【能力】","評価項目及び行動・着眼点",null,null,null,null,null,null,null,null,null,null,null,null,null,"自己評価",null,null,null,null,null,null,null,null,null,"最終評価"]
[null,"【市民視点・倫理】",null,null,null,null,null,null,null,null,null,null,null,null,null,"（評価点）",null,"（コメント）",null,null,null,null,null,null,null,"（評価点）"]
[null,null,"丁寧な応対を心掛けるなど、全体の奉仕者として、常に市民の立場や市民協働の視点に立つことができるとともに、法令等及び服務規律を順守して、公平かつ公正に業務を遂行することができる。",null,null,null,null,null,null,null,null,null,null,null,null,{"$f":"+P17","v":0},null,{"$f":"+R17","v":0},null,null,null,null,null,null,null,{"$f":"+Z17","v":0}]
[null,"着眼点",null,"・接遇",null,null,null,null,null,"・法令順守"]
[null,null,null,"・公平・公正な姿勢",null,null,null,null,null,"・責任感"]
[null,"【コミュニケーション】",null,null,null,null,null,null,null,null,null,null,null,null,null,"（評価点）",null,"（コメント）",null,null,null,null,null,null,null,"（評価点）"]
[null,null,"様々な相手と円滑かつ適切なコミュニケーションを取ることができる。",null,null,null,null,null,null,null,null,null,null,null,null,{"$f":"+P21","v":0},null,{"$f":"+R21","v":0},null,null,null,null,null,null,null,{"$f":"+Z21","v":0}]
[null,"着眼点",null,"・市民に対する傾聴と対話の姿勢",null,null,null,null,null,"・柔軟な姿勢と一貫した主張のバランス"]
[null,null,null,"・誠実さ",null,null,null,null,null,"・職場でのコミュニケーション促進"]
[null,"【課題の解決】",null,null,null,null,null,null,null,null,null,null,null,null,null,"（評価点）",null,"（コメント）",null,null,null,null,null,null,null,"（評価点）"]
[null,null,"部等の重要課題について、周囲の状況、将来の見通し及び市としての社会的責任を踏まえて、基本的な方針を示すことができる。",null,null,null,null,null,null,null,null,null,null,null,null,{"$f":"+P25","v":0},null,{"$f":"+R25","v":0},null,null,null,null,null,null,null,{"$f":"+Z25","v":0}]
[null,"着眼点",null,"・幅広い視野",null,null,null,null,null,"・状況の構造的把握"]
[null,null,null,"・創造力、想像力",null,null,null,null,null,"・挑戦する姿勢"]
[null,"【決断】",null,null,null,null,null,null,null,null,null,null,null,null,null,"（評価点）",null,"（コメント）",null,null,null,null,null,null,null,"（評価点）"]
[null,null,"部等の重要課題について、責任者として、豊富な知識、経験及び情報による総合的な判断に基づき、冷静かつ迅速に決断を行うことができる。",null,null,null,null,null,null,null,null,null,null,null,null,{"$f":"+P29","v":0},null,{"$f":"+R29","v":0},null,null,null,null,null,null,null,{"$f":"+Z29","v":0}]
[null,"着眼点",null,"・知識、経験、情報収集",null,null,null,null,null,"・決断力"]
[null,null,null,"・リスク対応",null,null,null,null,null,"・適切かつスピード感ある対応"]
[null,"【説明・調整】",null,null,null,null,null,null,null,null,null,null,null,null,null,"（評価点）",null,"（コメント）",null,null,null,null,null,null,null,"（評価点）"]
[null,null,"部等の重要課題について、説得力のある説明及び困難な調整を行うことにより、関係者との合意を形成することができる。",null,null,null,null,null,null,null,null,null,null,null,null,{"$f":"+P33","v":0},null,{"$f":"+R33","v":0},null,null,null,null,null,null,null,{"$f":"+Z33","v":0}]
[null,"着眼点",null,"・論理的構成力",null,null,null,null,null,"・信頼関係の構築"]
[null,null,null,"・対人折衝力",null,null,null,null,null,"・ねばり強さ"]
[null,"【業務改善】",null,null,null,null,null,null,null,null,null,null,null,null,null,"（評価点）",null,"（コメント）",null,null,null,null,null,null,null,"（評価点）"]
[null,null,"部等の業務について、率先して業務改善に取り組むことができる。",null,null,null,null,null,null,null,null,null,null,null,null,{"$f":"+P37","v":0},null,{"$f":"+R37","v":0},null,null,null,null,null,null,null,{"$f":"+Z37","v":0}]
[null,"着眼点",null,"・優先順位を見極めた計画",null,null,null,null,null,"・効果的な選択と集中"]
[null,null,null,"・コスト意識",null,null,null,null,null,"・所属職員の長時間勤務の是正"]
[null,"【組織マネジメント・人材育成】",null,null,null,null,null,null,null,null,null,null,null,null,null,"（評価点）",null,"（コメント）",null,null,null,null,null,null,null,"（評価点）"]
[null,null,"所属職員の士気を高め、組織を牽引することができるとともに、部下等の指導及び育成を行うことができる。",null,null,null,null,null,null,null,null,null,null,null,null,{"$f":"+P41","v":0},null,{"$f":"+R41","v":0},null,null,null,null,null,null,null,{"$f":"+Z41","v":0}]
[null,"着眼点",null,"・情報共有、情報発信",null,null,null,null,null,"・部下育成力、統率力、牽引力"]
[null,null,null,"・適切な業務配分及び進捗管理",null,null,null,null,null,"・職員のワークライフバランスの視点"]
[]
["≪【能力】の評価点≫\n◆　「４（特に良好）」…求められる行動が確実にとられており、他の職員の模範となる職務遂行状況である。\n◆　「３（良好）」…求められる行動が確実にとられていた。\n◆　「２（標準）」…求められる行動が概ねとられていた。\n◆　「１（要努力）」…求められる行動がとられていることが少なく（全くなく）、改善に向け努力が必要である。",null,null,null,null,null,null,null,null,null,"≪総合評価区分と評価点との関係：基準≫\n◆　「良好」…原則、【業績】及び【能力】の評価項目の３分の２以上が「２（標準）」以上の場合に該当する。\n◆　「やや不良」…原則、【業績】及び【能力】の評価項目の３分の１超半数以下が「１（標準未満）」の場合に該当する。\n◆　「不良」…原則、【業績】及び【能力】の評価項目の半数超が「１（標準未満）」であるとともに、分限（降任・免職）処分を検討する必要があると判断する場合に該当する。",null,null,null,null,null,null,null,null,null,"【業績】及び\n【能力】の\n評価項目数の合計",null,"「4（特に良好）」\nの個数",null,null,null,{"$f":"+AA45","v":""}]
[null,null,null,null,null,null,null,null,null,null,null,null,null,null,null,null,null,null,null,null,null,null,"「3（良好）」\nの個数",null,null,null,{"$f":"+AA46","v":""}]
[null,null,null,null,null,null,null,null,null,null,null,null,null,null,null,null,null,null,null,null,null,null,"「２（標準）」\nの個数",null,null,null,{"$f":"+AA47","v":""}]
[null,null,null,null,null,null,null,null,null,null,null,null,null,null,null,null,null,null,null,null,11,null,"「１（要努力）」\nの個数",null,null,null,{"$f":"+AA48","v":""}]
[]
["ピカッとポイント",null,null,null,null,null,null,null,"２次評価者所見",null,null,null,null,null,null,null,null,null,null,null,null,null,null,null,"総合評価"]
[{"$f":"+A52","v":0},null,null,null,null,null,null,null,{"$f":"+O52","v":0},null,null,null,null,null,null,null,null,null,null,null,null,null,null,null,{"$f":"+Y51","v":""}]
[]
["１次評価者",null,"（",{"$f":"+I53","v":0},null,null,null,"）",null,null,null,"２次評価者",null,null,"（",{"$f":"+S53","v":0},null,null,null,"）"]
[]
["給与反映区分","総合評価",null,null,"良好",null,null,null,null,"やや不良",null,null,null,null,"不良",null,null,null,null,null,"備考欄",{"$f":"V55","v":0}]
[null,"昇給号数",null,null,"４号",null,null,null,null,"２号",null,null,null,null,"昇給なし"]
[null,"勤勉手当支給割合",null,null,"吹田市期末手当及び\n勤勉手当の支給に関する\n規則で定める支給割合",null,null,null,null,"良好の１０％減として、\n同規則で定める支給割合",null,null,null,null,"良好の２０％減として、\n同規則で定める支給割合"]
[null,null,null,null,null,null,null,null,null,null,null,null,null,null,null,null,null,null,"※水道部は、吹田市水道部企業職員給与規程"]
[]
[]
["職員番号","氏名","所属名","補職級","職種","評価項目",null,null,null,null,null,null,null,null,null,null,null,null,null,null,"総合評価","2次評価者"]
[null,null,null,null,null,"【業績】","【市民視点・法令遵守】","【コミュニケーション】","【課題の解決】","【決断】","【判断】","【課題対応】","【知識・技術・経験の活用】","【知識・技術の向上】","【説明・調整】","【説明】","【業務改善】","【業務遂行】","【組織マネジメント・人材育成】","【組織貢献・チームワーク】"]
[{"$f":"+N4","v":0},{"$f":"+P4","v":0},{"$f":"+C4","v":0},{"$f":"+H4","v":"部長級"},{"$f":"+K4","v":0},{"$f":"+Z8","v":0},{"$f":"+Z17","v":0},{"$f":"+Z21","v":0},{"$f":"+Z25","v":0},{"$f":"+Z29","v":0},null,null,null,null,{"$f":"+Z33","v":0},null,{"$f":"+Z37","v":0},null,{"$f":"+Z41","v":0},null,{"$f":"+Y51","v":""},{"$f":"+S53","v":0}]

{"sheet":"次長","index":1,"n_rows":178,"n_cols":45,"rows_kept":178,"cut":false,"hidden":false,"merged":[[45,22,45,25],[45,26,45,27],[67,2,67,3],[67,4,67,14],[104,22,104,25],[104,26,104,27],[2,19,2,27],[87,17,89,24],[91,17,93,24],[95,17,97,24],[99,17,101,24],[2,10,2,12],[64,15,64,24],[54,20,56,20],[55,1,55,3],[55,4,55,8],[55,9,55,13],[55,14,55,18],[54,1,54,3],[54,4,54,8],[54,9,54,13],[54,14,54,18],[66,17,69,24],[73,15,73,24],[75,17,77,24],[56,1,56,3],[56,4,56,8],[56,9,56,13],[56,14,56,18],[8,2,8,3],[0,9,1,18],[2,0,3,0],[2,1,3,1],[2,2,2,6],[2,7,2,9],[2,13,2,14],[2,15,2,18],[3,2,3,6],[3,7,3,9],[3,10,3,12],[3,13,3,14],[3,15,3,18],[3,19,3,22],[3,24,3,27],[5,0,10,0],[5,1,5,14],[5,15,5,21],[5,22,5,24],[5,25,5,27],[7,1,10,1],[8,4,8,14],[7,2,7,3],[7,4,7,14],[7,15,10,16],[7,17,10,21],[14,25,14,27],[16,2,16,14],[16,15,18,16],[7,22,10,24],[7,25,10,27],[9,2,9,3],[9,4,9,14],[10,2,10,3],[10,4,10,14],[12,0,12,4],[12,5,12,9],[14,0,42,0],[14,1,14,14],[21,3,21,8],[21,9,21,14],[22,3,22,8],[16,25,18,27],[17,1,18,2],[17,3,17,8],[17,9,17,14],[18,3,18,8],[18,9,18,14],[20,25,22,27],[21,1,22,2],[14,15,14,21],[14,22,14,24],[16,17,18,21],[16,22,18,24],[20,2,20,14],[20,15,22,16],[22,9,22,14],[24,22,26,24],[24,25,26,27],[25,1,26,2],[25,3,25,8],[25,9,25,14],[26,3,26,8],[26,9,26,14],[20,17,22,21],[20,22,22,24],[24,2,24,14],[24,15,26,16],[24,17,26,21],[28,15,30,16],[28,17,30,21],[28,22,30,24],[28,25,30,27],[29,1,30,2],[29,3,29,8],[29,9,29,14],[30,3,30,8],[30,9,30,14],[28,2,28,14],[32,2,32,14],[32,15,34,16],[32,17,34,21],[32,22,34,24],[32,25,34,27],[33,1,34,2],[33,3,33,8],[33,9,33,14],[34,3,34,8],[34,9,34,14],[41,3,41,8],[41,9,41,14],[42,3,42,8],[42,9,42,14],[36,2,36,14],[36,15,38,16],[36,17,38,21],[36,22,38,24],[36,25,38,27],[37,1,38,2],[37,3,37,8],[37,9,37,14],[38,3,38,8],[38,9,38,14],[12,22,12,27],[49,0,49,13],[49,14,49,23],[49,24,49,27],[50,24,52,27],[51,0,52,3],[51,4,51,13],[51,14,51,23],[44,0,47,8],[44,10,47,18],[44,20,46,21],[44,22,44,25],[44,26,44,27],[46,22,46,25],[46,26,46,27],[47,20,47,21],[47,22,47,25],[47,26,47,27],[40,2,40,14],[40,15,42,16],[40,17,42,21],[40,22,42,24],[40,25,42,27],[41,1,42,2],[61,0,62,0],[61,1,62,1],[61,2,61,6],[61,7,61,9],[61,10,61,12],[61,13,61,14],[54,21,56,27],[52,4,52,6],[52,8,52,11],[52,14,52,16],[52,18,52,21],[59,9,60,18],[54,0,56,0],[68,2,68,3],[68,4,68,14],[61,15,61,18],[61,19,61,27],[62,2,62,6],[62,7,62,9],[62,10,62,12],[62,13,62,14],[62,15,62,18],[62,19,62,22],[62,24,62,27],[75,25,77,27],[76,1,77,2],[76,3,76,8],[76,9,76,14],[77,3,77,8],[77,9,77,14],[69,2,69,3],[69,4,69,14],[71,0,71,4],[71,5,71,9],[71,22,71,27],[73,0,101,0],[73,1,73,14],[73,25,73,27],[75,2,75,14],[75,15,77,16],[64,0,69,0],[64,1,64,14],[64,25,64,27],[66,1,69,1],[66,2,66,3],[66,4,66,14],[66,15,69,16],[66,25,69,27],[79,2,79,14],[79,15,81,16],[79,25,81,27],[80,1,81,2],[80,3,80,8],[80,9,80,14],[81,3,81,8],[81,9,81,14],[79,17,81,24],[83,2,83,14],[83,15,85,16],[83,25,85,27],[84,1,85,2],[84,3,84,8],[84,9,84,14],[85,3,85,8],[85,9,85,14],[83,17,85,24],[91,2,91,14],[91,15,93,16],[91,25,93,27],[92,1,93,2],[92,3,92,8],[92,9,92,14],[93,3,93,8],[93,9,93,14],[87,2,87,14],[87,15,89,16],[87,25,89,27],[88,1,89,2],[88,3,88,8],[88,9,88,14],[89,3,89,8],[89,9,89,14],[99,2,99,14],[99,15,101,16],[99,25,101,27],[100,1,101,2],[100,3,100,8],[100,9,100,14],[101,3,101,8],[101,9,101,14],[95,2,95,14],[95,15,97,16],[95,25,97,27],[96,1,97,2],[96,3,96,8],[96,9,96,14],[97,3,97,8],[97,9,97,14],[103,0,106,8],[103,10,106,18],[103,20,105,21],[111,0,111,1],[111,3,111,6],[109,0,110,7],[108,8,108,23],[103,22,103,25],[103,26,103,27],[105,22,105,25],[105,26,105,27],[106,20,106,21],[106,22,106,25],[106,26,106,27],[111,8,111,10],[111,11,111,13],[111,15,111,18],[109,8,110,23],[108,0,108,7],[108,24,108,27],[109,24,111,27],[113,0,115,0],[113,1,113,3],[113,21,115,27],[114,1,114,3],[114,4,114,8],[114,9,114,13],[114,14,114,18],[115,1,115,3],[115,4,115,8],[115,9,115,13],[115,14,115,18],[113,4,113,8],[113,9,113,13],[113,14,113,18],[113,20,115,20],[119,0,120,0],[119,1,120,1],[119,2,120,2],[119,3,120,3],[119,4,120,4],[119,5,119,19],[119,20,120,20],[119,21,120,21]]}
["令和",6,"年度",null,null,null,null,null,null,"勤務評価シート",null,null,null,null,null,null,null,null,null,null,null,null,null,null,null,null,null,"2"]
["事務・技術・専門　次長等"]
["基礎情報","被評価者","所属名",null,null,null,null,"補職級",null,null,"職種",null,null,"職員番号",null,"氏名",null,null,null,"評価期間",null,null,null,null,null,null,null,null,null,null,null,null,null,null,null,null,null,null,null,null,null,null,"危機管理室","次長級","一般事務"]
[null,null,null,null,null,null,null,"次長級",null,null,null,null,null,null,null,null,null,null,null,null,null,null,null,"～",null,null,null,null,null,null,null,null,null,null,null,null,null,null,null,null,null,null,"秘書課",null,"一般事務（府教委）"]
[null,null,null,null,null,null,null,null,null,null,null,null,null,null,null,null,null,null,null,null,null,null,null,null,null,null,null,null,null,null,null,null,null,null,null,null,null,null,null,null,null,null,"広報課",null,"一般事務（司書）"]
["【業績】","評価基準・着眼点",null,null,null,null,null,null,null,null,null,null,null,null,null,"自己評価",null,null,null,null,null,null,"１次評価",null,null,"２次評価",null,null,null,null,null,null,null,null,null,null,null,null,null,null,null,null,"総務室",null,"一般事務（体育）"]
[null,"【業績】",null,null,null,null,null,null,null,null,null,null,null,null,null,"（評価点）",null,"（コメント）",null,null,null,null,"（評価点）",null,null,"（評価点）",null,null,null,null,null,null,null,null,null,null,null,null,null,null,null,null,"法制室",null,"一般技術"]
[null,"評価点","４（特に良好）",null,"職階からみて、期待された水準をはるかに上回る業績をあげた",null,null,null,null,null,null,null,null,null,null,null,null,null,null,null,null,null,null,null,null,null,null,null,null,null,null,null,null,null,null,null,null,null,null,null,null,null,"人事室",null,"一般技術（電気）"]
[null,null,"３（良好）",null,"職階からみて、期待された以上の業績をあげた"]
[null,null,"２（標準）",null,"職階からみて、相応の業績である",null,null,null,null,null,null,null,null,null,null,null,null,null,null,null,null,null,null,null,null,null,null,null,null,null,null,null,null,null,null,null,null,null,null,null,null,null,"契約検査室",null,"一般技術（土木）"]
[null,null,"１（要努力）",null,"職階からみて、期待された水準に達しておらず、努力が必要である",null,null,null,null,null,null,null,null,null,null,null,null,null,null,null,null,null,null,null,null,null,null,null,null,null,null,null,null,null,null,null,null,null,null,null,null,null,"企画財政室",null,"一般技術（機械）"]
[null,null,null,null,null,null,null,null,null,null,null,null,null,null,null,null,null,null,null,null,null,null,null,null,null,null,null,null,null,null,null,null,null,null,null,null,null,null,null,null,null,null,"情報政策室",null,"一般技術（建築）"]
["≪【業績】の評価項目数の取扱い≫\n　・次長級以上は評価点を４倍\n　・課長級は評価点を３倍　　",null,null,null,null,"\n・課長代理級は評価点を３倍\n・主査級は評価点を２倍",null,null,null,null,null,null,null,null,null,null,null,null,null,null,null,null,"【業績】\n　　評価点が４個あるものとして取扱い",null,null,null,null,null,null,null,null,null,null,null,null,null,null,null,null,null,null,null,"税制課",null,"一般技術（化学）"]
[null,null,null,null,null,null,null,null,null,null,null,null,null,null,null,null,null,null,null,null,null,null,null,null,null,null,null,null,null,null,null,null,null,null,null,null,null,null,null,null,null,null,"資産税課",null,"保育教諭"]
["【能力】","評価項目及び行動・着眼点",null,null,null,null,null,null,null,null,null,null,null,null,null,"自己評価",null,null,null,null,null,null,"１次評価",null,null,"２次評価",null,null,null,null,null,null,null,null,null,null,null,null,null,null,null,null,"市民税課",null,"生活指導員"]
[null,"【市民視点・法令遵守】",null,null,null,null,null,null,null,null,null,null,null,null,null,"（評価点）",null,"（コメント）",null,null,null,null,"（評価点）",null,null,"（評価点）",null,null,null,null,null,null,null,null,null,null,null,null,null,null,null,null,"納税課",null,"発達指導員"]
[null,null,"丁寧な応対を心掛けるなど、全体の奉仕者として、常に市民の立場や市民協働の視点に立つことができるとともに、法令等及び服務規律を順守して、公平かつ公正に業務を遂行することができる。",null,null,null,null,null,null,null,null,null,null,null,null,null,null,null,null,null,null,null,null,null,null,null,null,null,null,null,null,null,null,null,null,null,null,null,null,null,null,null,"債権管理課",null,"学芸員"]
[null,"着眼点",null,"・接遇",null,null,null,null,null,"・法令順守",null,null,null,null,null,null,null,null,null,null,null,null,null,null,null,null,null,null,null,null,null,null,null,null,null,null,null,null,null,null,null,null,"市民総務室",null,"栄養士"]
[null,null,null,"・公平・公正な姿勢",null,null,null,null,null,"・責任感",null,null,null,null,null,null,null,null,null,null,null,null,null,null,null,null,null,null,null,null,null,null,null,null,null,null,null,null,null,null,null,null,"市民課",null,"診療放射線技師"]
[null,"【コミュニケーション】",null,null,null,null,null,null,null,null,null,null,null,null,null,"（評価点）",null,"（コメント）",null,null,null,null,"（評価点）",null,null,"（評価点）",null,null,null,null,null,null,null,null,null,null,null,null,null,null,null,null,"山田出張所",null,"言語聴覚士"]
[null,null,"様々な相手と円滑かつ適切なコミュニケーションを取ることができる。",null,null,null,null,null,null,null,null,null,null,null,null,null,null,null,null,null,null,null,null,null,null,null,null,null,null,null,null,null,null,null,null,null,null,null,null,null,null,null,"千里丘出張所",null,"理学療法士"]
[null,"着眼点",null,"・市民に対する傾聴と対話の姿勢",null,null,null,null,null,"・柔軟な姿勢と一貫した主張のバランス",null,null,null,null,null,null,null,null,null,null,null,null,null,null,null,null,null,null,null,null,null,null,null,null,null,null,null,null,null,null,null,null,"千里出張所",null,"作業療法士"]
[null,null,null,"・誠実さ",null,null,null,null,null,"・職場でのコミュニケーション促進",null,null,null,null,null,null,null,null,null,null,null,null,null,null,null,null,null,null,null,null,null,null,null,null,null,null,null,null,null,null,null,null,"人権政策室",null,"歯科衛生士"]
[null,"【課題の解決】",null,null,null,null,null,null,null,null,null,null,null,null,null,"（評価点）",null,"（コメント）",null,null,null,null,"（評価点）",null,null,"（評価点）",null,null,null,null,null,null,null,null,null,null,null,null,null,null,null,null,"交流活動館",null,"保健師"]
[null,null,"担当分野の重要課題について、周囲の状況、将来の見通し及び市としての社会的責任を踏まえて、基本的な方針を示すことができる。",null,null,null,null,null,null,null,null,null,null,null,null,null,null,null,null,null,null,null,null,null,null,null,null,null,null,null,null,null,null,null,null,null,null,null,null,null,null,null,"男女共同参画センター",null,"看護師"]
[null,"着眼点",null,"・幅広い視野",null,null,null,null,null,"・状況の構造的把握",null,null,null,null,null,null,null,null,null,null,null,null,null,null,null,null,null,null,null,null,null,null,null,null,null,null,null,null,null,null,null,null,"市民自治推進室",null,"精神保健福祉士"]
[null,null,null,"・創造力、想像力",null,null,null,null,null,"・挑戦する姿勢",null,null,null,null,null,null,null,null,null,null,null,null,null,null,null,null,null,null,null,null,null,null,null,null,null,null,null,null,null,null,null,null,"地域経済振興室",null,"獣医師"]
[null,"【決断】",null,null,null,null,null,null,null,null,null,null,null,null,null,"（評価点）",null,"（コメント）",null,null,null,null,"（評価点）",null,null,"（評価点）",null,null,null,null,null,null,null,null,null,null,null,null,null,null,null,null,"シティプロモーション推進室",null,"薬剤師"]
[null,null,"担当分野の重要課題について、責任者として、豊富な知識、経験及び情報による総合的な判断に基づき、冷静かつ迅速に決断を行うことができる。",null,null,null,null,null,null,null,null,null,null,null,null,null,null,null,null,null,null,null,null,null,null,null,null,null,null,null,null,null,null,null,null,null,null,null,null,null,null,null,"文化スポーツ推進室",null,"管理栄養士"]
[null,"着眼点",null,"・知識、経験、情報収集",null,null,null,null,null,"・決断力",null,null,null,null,null,null,null,null,null,null,null,null,null,null,null,null,null,null,null,null,null,null,null,null,null,null,null,null,null,null,null,null,"子育て政策室"]
[null,null,null,"・リスク対応",null,null,null,null,null,"・適切かつスピード感ある対応",null,null,null,null,null,null,null,null,null,null,null,null,null,null,null,null,null,null,null,null,null,null,null,null,null,null,null,null,null,null,null,null,"子育て給付課"]
[null,"【説明・調整】",null,null,null,null,null,null,null,null,null,null,null,null,null,"（評価点）",null,"（コメント）",null,null,null,null,"（評価点）",null,null,"（評価点）",null,null,null,null,null,null,null,null,null,null,null,null,null,null,null,null,"家庭児童相談室"]
[null,null,"担当分野の重要課題について、説得力のある説明及び困難な調整を行うことにより、関係者との合意を形成することができる。",null,null,null,null,null,null,null,null,null,null,null,null,null,null,null,null,null,null,null,null,null,null,null,null,null,null,null,null,null,null,null,null,null,null,null,null,null,null,null,"のびのび子育てプラザ"]
[null,"着眼点",null,"・論理的構成力",null,null,null,null,null,"・信頼関係の構築",null,null,null,null,null,null,null,null,null,null,null,null,null,null,null,null,null,null,null,null,null,null,null,null,null,null,null,null,null,null,null,null,"保育幼稚園室"]
[null,null,null,"・対人折衝力",null,null,null,null,null,"・ねばり強さ",null,null,null,null,null,null,null,null,null,null,null,null,null,null,null,null,null,null,null,null,null,null,null,null,null,null,null,null,null,null,null,null,"山田保育園"]
[null,"【業務改善】",null,null,null,null,null,null,null,null,null,null,null,null,null,"（評価点）",null,"（コメント）",null,null,null,null,"（評価点）",null,null,"（評価点）",null,null,null,null,null,null,null,null,null,null,null,null,null,null,null,null,"いずみ保育園"]
[null,null,"担当分野の業務について、率先して業務改善に取り組むことができる。",null,null,null,null,null,null,null,null,null,null,null,null,null,null,null,null,null,null,null,null,null,null,null,null,null,null,null,null,null,null,null,null,null,null,null,null,null,null,null,"南千里保育園"]
[null,"着眼点",null,"・優先順位を見極めた計画",null,null,null,null,null,"・効果的な選択と集中",null,null,null,null,null,null,null,null,null,null,null,null,null,null,null,null,null,null,null,null,null,null,null,null,null,null,null,null,null,null,null,null,"ことぶき保育園"]
[null,null,null,"・コスト意識",null,null,null,null,null,"・所属職員の長時間勤務の是正",null,null,null,null,null,null,null,null,null,null,null,null,null,null,null,null,null,null,null,null,null,null,null,null,null,null,null,null,null,null,null,null,"岸部保育園"]
[null,"【組織マネジメント・人材育成】",null,null,null,null,null,null,null,null,null,null,null,null,null,"（評価点）",null,"（コメント）",null,null,null,null,"（評価点）",null,null,"（評価点）",null,null,null,null,null,null,null,null,null,null,null,null,null,null,null,null,"千里山保育園"]
[null,null,"所属職員を統率することができるとともに、部下等の指導及び育成を行うことができる。",null,null,null,null,null,null,null,null,null,null,null,null,null,null,null,null,null,null,null,null,null,null,null,null,null,null,null,null,null,null,null,null,null,null,null,null,null,null,null,"東保育園"]
[null,"着眼点",null,"・情報共有、情報発信",null,null,null,null,null,"・部下育成力、統率力、牽引力",null,null,null,null,null,null,null,null,null,null,null,null,null,null,null,null,null,null,null,null,null,null,null,null,null,null,null,null,null,null,null,null,"垂水保育園"]
[null,null,null,"・適切な業務配分及び進捗管理",null,null,null,null,null,"・職員のワークライフバランスの視点",null,null,null,null,null,null,null,null,null,null,null,null,null,null,null,null,null,null,null,null,null,null,null,null,null,null,null,null,null,null,null,null,"吹一保育園"]
[null,null,null,null,null,null,null,null,null,null,null,null,null,null,null,null,null,null,null,null,null,null,null,null,null,null,null,null,null,null,null,null,null,null,null,null,null,null,null,null,null,null,"吹六保育園"]
["≪【能力】の評価点≫\n◆　「４（特に良好）」…求められる行動が確実にとられており、他の職員の模範となる職務遂行状況である。\n◆　「３（良好）」…求められる行動が確実にとられていた。\n◆　「２（標準）」…求められる行動が概ねとられていた。\n◆　「１（要努力）」…求められる行動がとられていることが少なく（全くなく）、改善に向け努力が必要である。",null,null,null,null,null,null,null,null,null,"≪総合評価区分と評価点との関係：基準≫\n◆　「良好」…原則、【業績】及び【能力】の評価項目の３分の２以上が「２（標準）」以上の場合に該当する。\n◆　「やや不良」…原則、【業績】及び【能力】の評価項目の３分の１超半数以下が「１（標準未満）」の場合に該当する。\n◆　「不良」…原則、【業績】及び【能力】の評価項目の半数超が「１（標準未満）」であるとともに、分限（降任・免職）処分を検討する必要があると判断する場合に該当する。",null,null,null,null,null,null,null,null,null,"【業績】及び\n【能力】の\n評価項目数の合計",null,"「4（特に良好）」\nの個数",null,null,null,{"$f":"IF(Z8=\"\",\"\",IF(Z17=\"\",\"\",IF(Z21=\"\",\"\",IF(Z25=\"\",\"\",IF(Z29=\"\",\"\",IF(Z33=\"\",\"\",IF(Z37=\"\",\"\",IF(Z41=\"\",\"\",COUNTIF(Z17:AB43,4)+IF(Z8=4,4,0)))))))))","v":""},null,null,null,null,null,null,null,null,null,null,null,null,null,null,null,"片山保育園"]
[null,null,null,null,null,null,null,null,null,null,null,null,null,null,null,null,null,null,null,null,null,null,"「3（良好）」\nの個数",null,null,null,{"$f":"IF(Z8=\"\",\"\",IF(Z17=\"\",\"\",IF(Z21=\"\",\"\",IF(Z25=\"\",\"\",IF(Z29=\"\",\"\",IF(Z33=\"\",\"\",IF(Z37=\"\",\"\",IF(Z41=\"\",\"\",COUNTIF(Z17:AB43,3)+IF(Z8=3,4,0)))))))))","v":""}]
[null,null,null,null,null,null,null,null,null,null,null,null,null,null,null,null,null,null,null,null,null,null,"「２（標準）」\nの個数",null,null,null,{"$f":"IF(Z8=\"\",\"\",IF(Z17=\"\",\"\",IF(Z21=\"\",\"\",IF(Z25=\"\",\"\",IF(Z29=\"\",\"\",IF(Z33=\"\",\"\",IF(Z37=\"\",\"\",IF(Z41=\"\",\"\",COUNTIF(Z17:AB43,2)+IF(Z8=2,4,0)))))))))","v":""},null,null,null,null,null,null,null,null,null,null,null,null,null,null,null,"千三保育園"]
[null,null,null,null,null,null,null,null,null,null,null,null,null,null,null,null,null,null,null,null,11,null,"「１（要努力）」\nの個数",null,null,null,{"$f":"IF(Z8=\"\",\"\",IF(Z17=\"\",\"\",IF(Z21=\"\",\"\",IF(Z25=\"\",\"\",IF(Z29=\"\",\"\",IF(Z33=\"\",\"\",IF(Z37=\"\",\"\",IF(Z41=\"\",\"\",COUNTIF(Z17:AB43,1)+IF(Z8=1,4,0)))))))))","v":""},null,null,null,null,null,null,null,null,null,null,null,null,null,null,null,"山三保育園"]
[null,null,null,null,null,null,null,null,null,null,null,null,null,null,null,null,null,null,null,null,null,null,null,null,null,null,null,null,null,null,null,null,null,null,null,null,null,null,null,null,null,null,"はぎのきこども園"]
["１次評価者所見等",null,null,null,null,null,null,null,null,null,null,null,null,null,"２次評価者所見",null,null,null,null,null,null,null,null,null,"総合評価",null,null,null,null,null,null,null,null,null,null,null,null,null,null,null,null,null,"いずみ小規模園"]
["ピカッとポイント",null,null,null,"所見（「２」以外の評価点の項目に重点を置き記入すること。）",null,null,null,null,null,null,null,null,null,"所見（「２」以外の評価点の項目に重点を置き記入すること。）",null,null,null,null,null,null,null,null,null,{"$f":"IF(AA45=\"\",\"\",IF(AA46=\"\",\"\",IF(AA47=\"\",\"\",IF(AA48=\"\",\"\",IF(AA45+AA46+AA47>=8,\"良好\",IF(AND((AA45+AA46+AA47)>=6,(AA45+AA46+AA47)<=7),\"やや不良\",IF(AA45+AA46+AA47<=5,\"不良\")))))))","v":""},null,null,null,null,null,null,null,null,null,null,null,null,null,null,null,null,null,"こども発達支援センター"]
[null,null,null,null,null,null,null,null,null,null,null,null,null,null,null,null,null,null,null,null,null,null,null,null,null,null,null,null,null,null,null,null,null,null,null,null,null,null,null,null,null,null,"地域支援センター"]
[null,null,null,null,"１次評価者",null,null,"（",null,null,null,null,"）",null,"２次評価者",null,null,"（",null,null,null,null,"）","㊞　　　　",null,null,null,null,null,null,null,null,null,null,null,null,null,null,null,null,null,null,"杉の子学園"]
[null,null,null,null,null,null,null,null,null,null,null,null,null,null,null,null,null,null,null,null,null,null,null,null,null,null,null,null,null,null,null,null,null,null,null,null,null,null,null,null,null,null,"わかたけ園"]
["給与反映区分","総合評価",null,null,"良好",null,null,null,null,"やや不良",null,null,null,null,"不良",null,null,null,null,null,"備考欄",null,null,null,null,null,null,null,null,null,null,null,null,null,null,null,null,null,null,null,null,null,"福祉総務室"]
[null,"昇給号数",null,null,"４号",null,null,null,null,"２号",null,null,null,null,"昇給なし",null,null,null,null,null,null,null,null,null,null,null,null,null,null,null,null,null,null,null,null,null,null,null,null,null,null,null,"総合福祉会館"]
[null,"勤勉手当支給割合",null,null,"吹田市期末手当及び\n勤勉手当の支給に関する\n規則で定める支給割合",null,null,null,null,"良好の１０％減として、\n同規則で定める支給割合",null,null,null,null,"良好の２０％減として、\n同規則で定める支給割合",null,null,null,null,null,null,null,null,null,null,null,null,null,null,null,null,null,null,null,null,null,null,null,null,null,null,null,"生活福祉室"]
[null,null,null,null,null,null,null,null,null,null,null,null,null,null,null,null,null,null,"※水道部は、吹田市水道部企業職員給与規程",null,null,null,null,null,null,null,null,null,null,null,null,null,null,null,null,null,null,null,null,null,null,null,"福祉指導監査室"]
[null,null,null,null,null,null,null,null,null,null,null,null,null,null,null,null,null,null,null,null,null,null,null,null,null,null,null,null,null,null,null,null,null,null,null,null,null,null,null,null,null,null,"高齢福祉室"]
[{"$f":"A1","v":"令和"},{"$f":"B1","v":6},{"$f":"C1","v":"年度"},null,null,null,null,null,null,"勤務評価シート（開示用）",null,null,null,null,null,null,null,null,null,null,null,null,null,null,null,null,null,"2",null,null,null,null,null,null,null,null,null,null,null,null,null,null,"障がい福祉室"]
["事務・技術・専門　次長等",null,null,null,null,null,null,null,null,null,null,null,null,null,null,null,null,null,null,null,null,null,null,null,null,null,null,null,null,null,null,null,null,null,null,null,null,null,null,null,null,null,"健康まちづくり室"]
["基礎情報","被評価者","所属名",null,null,null,null,"補職級",null,null,"職種",null,null,"職員番号",null,"氏名",null,null,null,"評価期間",null,null,null,null,null,null,null,null,null,null,null,null,null,null,null,null,null,null,null,null,null,null,"病院総務室"]
[null,null,{"$f":"+C4","v":0},null,null,null,null,{"$f":"+H4","v":"次長級"},null,null,{"$f":"+K4","v":0},null,null,{"$f":"+N4","v":0},null,{"$f":"+P4","v":0},null,null,null,{"$f":"T4","v":"00:00:00"},null,null,null,"～",{"$f":"Y4","v":"00:00:00"},null,null,null,null,null,null,null,null,null,null,null,null,null,null,null,null,null,"医療事務室"]
[null,null,null,null,null,null,null,null,null,null,null,null,null,null,null,null,null,null,null,null,null,null,null,null,null,null,null,null,null,null,null,null,null,null,null,null,null,null,null,null,null,null,"成人保健課"]
["【業績】","評価基準・着眼点",null,null,null,null,null,null,null,null,null,null,null,null,null,"自己評価",null,null,null,null,null,null,null,null,null,"最終評価",null,null,null,null,null,null,null,null,null,null,null,null,null,null,null,null,"母子保健課"]
[null,"【業績】",null,null,null,null,null,null,null,null,null,null,null,null,null,"（評価点）",null,"（コメント）",null,null,null,null,null,null,null,"（評価点）",null,null,null,null,null,null,null,null,null,null,null,null,null,null,null,null,"（後期高齢）"]
[null,"評価点","４（特に良好）",null,"職階からみて、期待された水準をはるかに上回る業績をあげた",null,null,null,null,null,null,null,null,null,null,{"$f":"+P8","v":0},null,{"$f":"+R8","v":0},null,null,null,null,null,null,null,{"$f":"+Z8","v":0},null,null,null,null,null,null,null,null,null,null,null,null,null,null,null,null,"国民健康保険課"]
[null,null,"３（良好）",null,"職階からみて、期待された以上の業績をあげた"]
[null,null,"２（標準）",null,"職階からみて、相応の業績である",null,null,null,null,null,null,null,null,null,null,null,null,null,null,null,null,null,null,null,null,null,null,null,null,null,null,null,null,null,null,null,null,null,null,null,null,null,"保健医療総務室"]
[null,null,"１（要努力）",null,"職階からみて、期待された水準に達しておらず、努力が必要である",null,null,null,null,null,null,null,null,null,null,null,null,null,null,null,null,null,null,null,null,null,null,null,null,null,null,null,null,null,null,null,null,null,null,null,null,null,"衛生管理課"]
[null,null,null,null,null,null,null,null,null,null,null,null,null,null,null,null,null,null,null,null,null,null,null,null,null,null,null,null,null,null,null,null,null,null,null,null,null,null,null,null,null,null,"地域保健課"]
["≪【業績】の評価項目数の取扱い≫\n　・次長級以上は評価点を４倍\n　・課長級は評価点を３倍　　",null,null,null,null,"\n・課長代理級は評価点を３倍\n・主査級は評価点を２倍",null,null,null,null,null,null,null,null,null,null,null,null,null,null,null,null,"【業績】\n　　評価点が４個あるものとして取扱い",null,null,null,null,null,null,null,null,null,null,null,null,null,null,null,null,null,null,null,"環境政策室"]
[null,null,null,null,null,null,null,null,null,null,null,null,null,null,null,null,null,null,null,null,null,null,null,null,null,null,null,null,null,null,null,null,null,null,null,null,null,null,null,null,null,null,"環境保全指導課"]
["【能力】","評価項目及び行動・着眼点",null,null,null,null,null,null,null,null,null,null,null,null,null,"自己評価",null,null,null,null,null,null,null,null,null,"最終評価",null,null,null,null,null,null,null,null,null,null,null,null,null,null,null,null,"事業課"]
[null,"【市民視点・法令遵守】",null,null,null,null,null,null,null,null,null,null,null,null,null,"（評価点）",null,"（コメント）",null,null,null,null,null,null,null,"（評価点）",null,null,null,null,null,null,null,null,null,null,null,null,null,null,null,null,"資源循環エネルギーセンター"]
[null,null,"丁寧な応対を心掛けるなど、全体の奉仕者として、常に市民の立場や市民協働の視点に立つことができるとともに、法令等及び服務規律を順守して、公平かつ公正に業務を遂行することができる。",null,null,null,null,null,null,null,null,null,null,null,null,{"$f":"+P17","v":0},null,{"$f":"+R17","v":0},null,null,null,null,null,null,null,{"$f":"+Z17","v":0},null,null,null,null,null,null,null,null,null,null,null,null,null,null,null,null,"破砕選別工場"]
[null,"着眼点",null,"・接遇",null,null,null,null,null,"・法令順守",null,null,null,null,null,null,null,null,null,null,null,null,null,null,null,null,null,null,null,null,null,null,null,null,null,null,null,null,null,null,null,null,"都市計画室"]
[null,null,null,"・公平・公正な姿勢",null,null,null,null,null,"・責任感",null,null,null,null,null,null,null,null,null,null,null,null,null,null,null,null,null,null,null,null,null,null,null,null,null,null,null,null,null,null,null,null,"計画調整室"]
[null,"【コミュニケーション】",null,null,null,null,null,null,null,null,null,null,null,null,null,"（評価点）",null,"（コメント）",null,null,null,null,null,null,null,"（評価点）",null,null,null,null,null,null,null,null,null,null,null,null,null,null,null,null,"開発審査室"]
[null,null,"様々な相手と円滑かつ適切なコミュニケーションを取ることができる。",null,null,null,null,null,null,null,null,null,null,null,null,{"$f":"+P21","v":0},null,{"$f":"+R21","v":0},null,null,null,null,null,null,null,{"$f":"+Z21","v":0},null,null,null,null,null,null,null,null,null,null,null,null,null,null,null,null,"住宅政策室"]
[null,"着眼点",null,"・市民に対する傾聴と対話の姿勢",null,null,null,null,null,"・柔軟な姿勢と一貫した主張のバランス",null,null,null,null,null,null,null,null,null,null,null,null,null,null,null,null,null,null,null,null,null,null,null,null,null,null,null,null,null,null,null,null,"資産経営室"]
[null,null,null,"・誠実さ",null,null,null,null,null,"・職場でのコミュニケーション促進",null,null,null,null,null,null,null,null,null,null,null,null,null,null,null,null,null,null,null,null,null,null,null,null,null,null,null,null,null,null,null,null,"総務交通室"]
[null,"【課題の解決】",null,null,null,null,null,null,null,null,null,null,null,null,null,"（評価点）",null,"（コメント）",null,null,null,null,null,null,null,"（評価点）",null,null,null,null,null,null,null,null,null,null,null,null,null,null,null,null,"道路室"]
[null,null,"担当分野の重要課題について、周囲の状況、将来の見通し及び市としての社会的責任を踏まえて、基本的な方針を示すことができる。",null,null,null,null,null,null,null,null,null,null,null,null,{"$f":"+P25","v":0},null,{"$f":"+R25","v":0},null,null,null,null,null,null,null,{"$f":"+Z25","v":0},null,null,null,null,null,null,null,null,null,null,null,null,null,null,null,null,"公園みどり室"]
[null,"着眼点",null,"・幅広い視野",null,null,null,null,null,"・状況の構造的把握",null,null,null,null,null,null,null,null,null,null,null,null,null,null,null,null,null,null,null,null,null,null,null,null,null,null,null,null,null,null,null,null,"地域整備推進室"]
[null,null,null,"・創造力、想像力",null,null,null,null,null,"・挑戦する姿勢",null,null,null,null,null,null,null,null,null,null,null,null,null,null,null,null,null,null,null,null,null,null,null,null,null,null,null,null,null,null,null,null,"経営室"]
[null,"【決断】",null,null,null,null,null,null,null,null,null,null,null,null,null,"（評価点）",null,"（コメント）",null,null,null,null,null,null,null,"（評価点）",null,null,null,null,null,null,null,null,null,null,null,null,null,null,null,null,"管路保全室"]
[null,null,"担当分野の重要課題について、責任者として、豊富な知識、経験及び情報による総合的な判断に基づき、冷静かつ迅速に決断を行うことができる。",null,null,null,null,null,null,null,null,null,null,null,null,{"$f":"+P29","v":0},null,{"$f":"+R29","v":0},null,null,null,null,null,null,null,{"$f":"+Z29","v":0},null,null,null,null,null,null,null,null,null,null,null,null,null,null,null,null,"水再生室"]
[null,"着眼点",null,"・知識、経験、情報収集",null,null,null,null,null,"・決断力",null,null,null,null,null,null,null,null,null,null,null,null,null,null,null,null,null,null,null,null,null,null,null,null,null,null,null,null,null,null,null,null,"会計室"]
[null,null,null,"・リスク対応",null,null,null,null,null,"・適切かつスピード感ある対応",null,null,null,null,null,null,null,null,null,null,null,null,null,null,null,null,null,null,null,null,null,null,null,null,null,null,null,null,null,null,null,null,"消防本部"]
[null,"【説明・調整】",null,null,null,null,null,null,null,null,null,null,null,null,null,"（評価点）",null,"（コメント）",null,null,null,null,null,null,null,"（評価点）",null,null,null,null,null,null,null,null,null,null,null,null,null,null,null,null,"総務予防室"]
[null,null,"担当分野の重要課題について、説得力のある説明及び困難な調整を行うことにより、関係者との合意を形成することができる。",null,null,null,null,null,null,null,null,null,null,null,null,{"$f":"+P33","v":0},null,{"$f":"+R33","v":0},null,null,null,null,null,null,null,{"$f":"+Z33","v":0},null,null,null,null,null,null,null,null,null,null,null,null,null,null,null,null,"消防本部付"]
[null,"着眼点",null,"・論理的構成力",null,null,null,null,null,"・信頼関係の構築",null,null,null,null,null,null,null,null,null,null,null,null,null,null,null,null,null,null,null,null,null,null,null,null,null,null,null,null,null,null,null,null,"警防救急室"]
[null,null,null,"・対人折衝力",null,null,null,null,null,"・ねばり強さ",null,null,null,null,null,null,null,null,null,null,null,null,null,null,null,null,null,null,null,null,null,null,null,null,null,null,null,null,null,null,null,null,"警防・救急・啓発Ｇ"]
[null,"【業務改善】",null,null,null,null,null,null,null,null,null,null,null,null,null,"（評価点）",null,"（コメント）",null,null,null,null,null,null,null,"（評価点）",null,null,null,null,null,null,null,null,null,null,null,null,null,null,null,null,"救助第１Ｇ"]
[null,null,"担当分野の業務について、率先して業務改善に取り組むことができる。",null,null,null,null,null,null,null,null,null,null,null,null,{"$f":"+P37","v":0},null,{"$f":"+R37","v":0},null,null,null,null,null,null,null,{"$f":"+Z37","v":0},null,null,null,null,null,null,null,null,null,null,null,null,null,null,null,null,"救助第２Ｇ"]
[null,"着眼点",null,"・優先順位を見極めた計画",null,null,null,null,null,"・効果的な選択と集中",null,null,null,null,null,null,null,null,null,null,null,null,null,null,null,null,null,null,null,null,null,null,null,null,null,null,null,null,null,null,null,null,"指令情報室"]
[null,null,null,"・コスト意識",null,null,null,null,null,"・所属職員の長時間勤務の是正",null,null,null,null,null,null,null,null,null,null,null,null,null,null,null,null,null,null,null,null,null,null,null,null,null,null,null,null,null,null,null,null,"指令情報第１Ｇ"]
[null,"【組織マネジメント・人材育成】",null,null,null,null,null,null,null,null,null,null,null,null,null,"（評価点）",null,"（コメント）",null,null,null,null,null,null,null,"（評価点）",null,null,null,null,null,null,null,null,null,null,null,null,null,null,null,null,"指令情報第２Ｇ"]
[null,null,"所属職員を統率することができるとともに、部下等の指導及び育成を行うことができる。",null,null,null,null,null,null,null,null,null,null,null,null,{"$f":"+P41","v":0},null,{"$f":"+R41","v":0},null,null,null,null,null,null,null,{"$f":"+Z41","v":0},null,null,null,null,null,null,null,null,null,null,null,null,null,null,null,null,"南消防署"]
[null,"着眼点",null,"・情報共有、情報発信",null,null,null,null,null,"・部下育成力、統率力、牽引力",null,null,null,null,null,null,null,null,null,null,null,null,null,null,null,null,null,null,null,null,null,null,null,null,null,null,null,null,null,null,null,null,"南予防査察係"]
[null,null,null,"・適切な業務配分及び進捗管理",null,null,null,null,null,"・職員のワークライフバランスの視点",null,null,null,null,null,null,null,null,null,null,null,null,null,null,null,null,null,null,null,null,null,null,null,null,null,null,null,null,null,null,null,null,"南警防第１係"]
[null,null,null,null,null,null,null,null,null,null,null,null,null,null,null,null,null,null,null,null,null,null,null,null,null,null,null,null,null,null,null,null,null,null,null,null,null,null,null,null,null,null,"南警防第２係"]
["≪【能力】の評価点≫\n◆　「４（特に良好）」…求められる行動が確実にとられており、他の職員の模範となる職務遂行状況である。\n◆　「３（良好）」…求められる行動が確実にとられていた。\n◆　「２（標準）」…求められる行動が概ねとられていた。\n◆　「１（要努力）」…求められる行動がとられていることが少なく（全くなく）、改善に向け努力が必要である。",null,null,null,null,null,null,null,null,null,"≪総合評価区分と評価点との関係：基準≫\n◆　「良好」…原則、【業績】及び【能力】の評価項目の３分の２以上が「２（標準）」以上の場合に該当する。\n◆　「やや不良」…原則、【業績】及び【能力】の評価項目の３分の１超半数以下が「１（標準未満）」の場合に該当する。\n◆　「不良」…原則、【業績】及び【能力】の評価項目の半数超が「１（標準未満）」であるとともに、分限（降任・免職）処分を検討する必要があると判断する場合に該当する。",null,null,null,null,null,null,null,null,null,"【業績】及び\n【能力】の\n評価項目数の合計",null,"「4（特に良好）」\nの個数",null,null,null,{"$f":"+AA45","v":""},null,null,null,null,null,null,null,null,null,null,null,null,null,null,null,"南救急第１係"]
[null,null,null,null,null,null,null,null,null,null,null,null,null,null,null,null,null,null,null,null,null,null,"「3（良好）」\nの個数",null,null,null,{"$f":"+AA46","v":""}]
[null,null,null,null,null,null,null,null,null,null,null,null,null,null,null,null,null,null,null,null,null,null,"「２（標準）」\nの個数",null,null,null,"",null,null,null,null,null,null,null,null,null,null,null,null,null,null,null,"南救急第２係"]
[null,null,null,null,null,null,null,null,null,null,null,null,null,null,null,null,null,null,null,null,11,null,"「１（要努力）」\nの個数",null,null,null,{"$f":"+AA48","v":""},null,null,null,null,null,null,null,null,null,null,null,null,null,null,null,"正雀出張所第１係"]
[null,null,null,null,null,null,null,null,null,null,null,null,null,null,null,null,null,null,null,null,null,null,null,null,null,null,null,null,null,null,null,null,null,null,null,null,null,null,null,null,null,null,"正雀出張所第２係"]
["ピカッとポイント",null,null,null,null,null,null,null,"２次評価者所見",null,null,null,null,null,null,null,null,null,null,null,null,null,null,null,"総合評価",null,null,null,null,null,null,null,null,null,null,null,null,null,null,null,null,null,"北消防署"]
[{"$f":"+A52","v":0},null,null,null,null,null,null,null,{"$f":"+O52","v":0},null,null,null,null,null,null,null,null,null,null,null,null,null,null,null,{"$f":"+Y51","v":""},null,null,null,null,null,null,null,null,null,null,null,null,null,null,null,null,null,"北予防査察係"]
[null,null,null,null,null,null,null,null,null,null,null,null,null,null,null,null,null,null,null,null,null,null,null,null,null,null,null,null,null,null,null,null,null,null,null,null,null,null,null,null,null,null,"北警防第１係"]
["１次評価者",null,"（",{"$f":"+I53","v":0},null,null,null,"）",null,null,null,"２次評価者",null,null,"（",{"$f":"+S53","v":0},null,null,null,"）",null,null,null,null,null,null,null,null,null,null,null,null,null,null,null,null,null,null,null,null,null,null,"北警防第２係"]
[null,null,null,null,null,null,null,null,null,null,null,null,null,null,null,null,null,null,null,null,null,null,null,null,null,null,null,null,null,null,null,null,null,null,null,null,null,null,null,null,null,null,"北救急第１係"]
["給与反映区分","総合評価",null,null,"良好",null,null,null,null,"やや不良",null,null,null,null,"不良",null,null,null,null,null,"備考欄",{"$f":"V55","v":0},null,null,null,null,null,null,null,null,null,null,null,null,null,null,null,null,null,null,null,null,"北救急第２係"]
[null,"昇給号数",null,null,"４号",null,null,null,null,"２号",null,null,null,null,"昇給なし",null,null,null,null,null,null,null,null,null,null,null,null,null,null,null,null,null,null,null,null,null,null,null,null,null,null,null,"西消防署"]
[null,"勤勉手当支給割合",null,null,"吹田市期末手当及び\n勤勉手当の支給に関する\n規則で定める支給割合",null,null,null,null,"良好の１０％減として、\n同規則で定める支給割合",null,null,null,null,"良好の２０％減として、\n同規則で定める支給割合",null,null,null,null,null,null,null,null,null,null,null,null,null,null,null,null,null,null,null,null,null,null,null,null,null,null,null,"西予防査察係"]
[null,null,null,null,null,null,null,null,null,null,null,null,null,null,null,null,null,null,"※水道部は、吹田市水道部企業職員給与規程",null,null,null,null,null,null,null,null,null,null,null,null,null,null,null,null,null,null,null,null,null,null,null,"西警防第１係"]
[null,null,null,null,null,null,null,null,null,null,null,null,null,null,null,null,null,null,null,null,null,null,null,null,null,null,null,null,null,null,null,null,null,null,null,null,null,null,null,null,null,null,"西警防第２係"]
[null,null,null,null,null,null,null,null,null,null,null,null,null,null,null,null,null,null,null,null,null,null,null,null,null,null,null,null,null,null,null,null,null,null,null,null,null,null,null,null,null,null,"西救急第１係"]
["職員番号","氏名","所属名","補職級","職種","評価項目",null,null,null,null,null,null,null,null,null,null,null,null,null,null,"総合評価","2次評価者",null,null,null,null,null,null,null,null,null,null,null,null,null,null,null,null,null,null,null,null,"西救急第２係"]
[null,null,null,null,null,"【業績】","【市民視点・法令遵守】","【コミュニケーション】","【課題の解決】","【決断】","【判断】","【課題対応】","【知識・技術・経験の活用】","【知識・技術の向上】","【説明・調整】","【説明】","【業務改善】","【業務遂行】","【組織マネジメント・人材育成】","【組織貢献・チームワーク】",null,null,null,null,null,null,null,null,null,null,null,null,null,null,null,null,null,null,null,null,null,null,"千里出張所第１係"]
[{"$f":"+N4","v":0},{"$f":"+P4","v":0},{"$f":"+C4","v":0},{"$f":"+H4","v":"次長級"},{"$f":"+K4","v":0},{"$f":"+Z8","v":0},{"$f":"+Z17","v":0},{"$f":"+Z21","v":0},{"$f":"+Z25","v":0},{"$f":"+Z29","v":0},null,null,null,null,{"$f":"+Z33","v":0},null,{"$f":"+Z37","v":0},null,{"$f":"+Z41","v":0},null,{"$f":"+Y51","v":""},{"$f":"+S53","v":0},null,null,null,null,null,null,null,null,null,null,null,null,null,null,null,null,null,null,null,null,"千里出張所第２係"]
[null,null,null,null,null,null,null,null,null,null,null,null,null,null,null,null,null,null,null,null,null,null,null,null,null,null,null,null,null,null,null,null,null,null,null,null,null,null,null,null,null,null,"東消防署"]
[null,null,null,null,null,null,null,null,null,null,null,null,null,null,null,null,null,null,null,null,null,null,null,null,null,null,null,null,null,null,null,null,null,null,null,null,null,null,null,null,null,null,"東予防査察係"]
[null,null,null,null,null,null,null,null,null,null,null,null,null,null,null,null,null,null,null,null,null,null,null,null,null,null,null,null,null,null,null,null,null,null,null,null,null,null,null,null,null,null,"東警防第１係"]
[null,null,null,null,null,null,null,null,null,null,null,null,null,null,null,null,null,null,null,null,null,null,null,null,null,null,null,null,null,null,null,null,null,null,null,null,null,null,null,null,null,null,"東警防第２係"]
[null,null,null,null,null,null,null,null,null,null,null,null,null,null,null,null,null,null,null,null,null,null,null,null,null,null,null,null,null,null,null,null,null,null,null,null,null,null,null,null,null,null,"東救急第１係"]
[null,null,null,null,null,null,null,null,null,null,null,null,null,null,null,null,null,null,null,null,null,null,null,null,null,null,null,null,null,null,null,null,null,null,null,null,null,null,null,null,null,null,"東救急第２係"]
[null,null,null,null,null,null,null,null,null,null,null,null,null,null,null,null,null,null,null,null,null,null,null,null,null,null,null,null,null,null,null,null,null,null,null,null,null,null,null,null,null,null,"岸部出張所第１係"]
[null,null,null,null,null,null,null,null,null,null,null,null,null,null,null,null,null,null,null,null,null,null,null,null,null,null,null,null,null,null,null,null,null,null,null,null,null,null,null,null,null,null,"岸部出張所第２係"]
[null,null,null,null,null,null,null,null,null,null,null,null,null,null,null,null,null,null,null,null,null,null,null,null,null,null,null,null,null,null,null,null,null,null,null,null,null,null,null,null,null,null,"東救急第１係（中庁舎）"]
[null,null,null,null,null,null,null,null,null,null,null,null,null,null,null,null,null,null,null,null,null,null,null,null,null,null,null,null,null,null,null,null,null,null,null,null,null,null,null,null,null,null,"東救急第２係（中庁舎）"]
[null,null,null,null,null,null,null,null,null,null,null,null,null,null,null,null,null,null,null,null,null,null,null,null,null,null,null,null,null,null,null,null,null,null,null,null,null,null,null,null,null,null,"議会事務局"]
[null,null,null,null,null,null,null,null,null,null,null,null,null,null,null,null,null,null,null,null,null,null,null,null,null,null,null,null,null,null,null,null,null,null,null,null,null,null,null,null,null,null,"選挙管理委員会事務局"]
[null,null,null,null,null,null,null,null,null,null,null,null,null,null,null,null,null,null,null,null,null,null,null,null,null,null,null,null,null,null,null,null,null,null,null,null,null,null,null,null,null,null,"監査委員事務局"]
[null,null,null,null,null,null,null,null,null,null,null,null,null,null,null,null,null,null,null,null,null,null,null,null,null,null,null,null,null,null,null,null,null,null,null,null,null,null,null,null,null,null,"農業委員会事務局"]
[null,null,null,null,null,null,null,null,null,null,null,null,null,null,null,null,null,null,null,null,null,null,null,null,null,null,null,null,null,null,null,null,null,null,null,null,null,null,null,null,null,null,"教育総務室"]
[null,null,null,null,null,null,null,null,null,null,null,null,null,null,null,null,null,null,null,null,null,null,null,null,null,null,null,null,null,null,null,null,null,null,null,null,null,null,null,null,null,null,"学校管理課"]
[null,null,null,null,null,null,null,null,null,null,null,null,null,null,null,null,null,null,null,null,null,null,null,null,null,null,null,null,null,null,null,null,null,null,null,null,null,null,null,null,null,null,"学務課"]
[null,null,null,null,null,null,null,null,null,null,null,null,null,null,null,null,null,null,null,null,null,null,null,null,null,null,null,null,null,null,null,null,null,null,null,null,null,null,null,null,null,null,"教育未来創生室"]
[null,null,null,null,null,null,null,null,null,null,null,null,null,null,null,null,null,null,null,null,null,null,null,null,null,null,null,null,null,null,null,null,null,null,null,null,null,null,null,null,null,null,"保健給食室"]
[null,null,null,null,null,null,null,null,null,null,null,null,null,null,null,null,null,null,null,null,null,null,null,null,null,null,null,null,null,null,null,null,null,null,null,null,null,null,null,null,null,null,"学校教育室"]
[null,null,null,null,null,null,null,null,null,null,null,null,null,null,null,null,null,null,null,null,null,null,null,null,null,null,null,null,null,null,null,null,null,null,null,null,null,null,null,null,null,null,"教職員課"]
[null,null,null,null,null,null,null,null,null,null,null,null,null,null,null,null,null,null,null,null,null,null,null,null,null,null,null,null,null,null,null,null,null,null,null,null,null,null,null,null,null,null,"吹田第一幼稚園"]
[null,null,null,null,null,null,null,null,null,null,null,null,null,null,null,null,null,null,null,null,null,null,null,null,null,null,null,null,null,null,null,null,null,null,null,null,null,null,null,null,null,null,"吹田第三幼稚園"]
[null,null,null,null,null,null,null,null,null,null,null,null,null,null,null,null,null,null,null,null,null,null,null,null,null,null,null,null,null,null,null,null,null,null,null,null,null,null,null,null,null,null,"吹田南幼稚園"]
[null,null,null,null,null,null,null,null,null,null,null,null,null,null,null,null,null,null,null,null,null,null,null,null,null,null,null,null,null,null,null,null,null,null,null,null,null,null,null,null,null,null,"千里第二幼稚園"]
[null,null,null,null,null,null,null,null,null,null,null,null,null,null,null,null,null,null,null,null,null,null,null,null,null,null,null,null,null,null,null,null,null,null,null,null,null,null,null,null,null,null,"千里新田こども園"]
[null,null,null,null,null,null,null,null,null,null,null,null,null,null,null,null,null,null,null,null,null,null,null,null,null,null,null,null,null,null,null,null,null,null,null,null,null,null,null,null,null,null,"東佐井寺幼稚園"]
[null,null,null,null,null,null,null,null,null,null,null,null,null,null,null,null,null,null,null,null,null,null,null,null,null,null,null,null,null,null,null,null,null,null,null,null,null,null,null,null,null,null,"岸部第一幼稚園"]
[null,null,null,null,null,null,null,null,null,null,null,null,null,null,null,null,null,null,null,null,null,null,null,null,null,null,null,null,null,null,null,null,null,null,null,null,null,null,null,null,null,null,"豊津第一幼稚園"]
[null,null,null,null,null,null,null,null,null,null,null,null,null,null,null,null,null,null,null,null,null,null,null,null,null,null,null,null,null,null,null,null,null,null,null,null,null,null,null,null,null,null,"江坂大池こども園"]
[null,null,null,null,null,null,null,null,null,null,null,null,null,null,null,null,null,null,null,null,null,null,null,null,null,null,null,null,null,null,null,null,null,null,null,null,null,null,null,null,null,null,"片山幼稚園"]
[null,null,null,null,null,null,null,null,null,null,null,null,null,null,null,null,null,null,null,null,null,null,null,null,null,null,null,null,null,null,null,null,null,null,null,null,null,null,null,null,null,null,"山田第一幼稚園"]
[null,null,null,null,null,null,null,null,null,null,null,null,null,null,null,null,null,null,null,null,null,null,null,null,null,null,null,null,null,null,null,null,null,null,null,null,null,null,null,null,null,null,"山田第三幼稚園"]
[null,null,null,null,null,null,null,null,null,null,null,null,null,null,null,null,null,null,null,null,null,null,null,null,null,null,null,null,null,null,null,null,null,null,null,null,null,null,null,null,null,null,"東山田幼稚園"]
[null,null,null,null,null,null,null,null,null,null,null,null,null,null,null,null,null,null,null,null,null,null,null,null,null,null,null,null,null,null,null,null,null,null,null,null,null,null,null,null,null,null,"南山田幼稚園"]
[null,null,null,null,null,null,null,null,null,null,null,null,null,null,null,null,null,null,null,null,null,null,null,null,null,null,null,null,null,null,null,null,null,null,null,null,null,null,null,null,null,null,"佐竹台幼稚園"]
[null,null,null,null,null,null,null,null,null,null,null,null,null,null,null,null,null,null,null,null,null,null,null,null,null,null,null,null,null,null,null,null,null,null,null,null,null,null,null,null,null,null,"教育センター"]
[null,null,null,null,null,null,null,null,null,null,null,null,null,null,null,null,null,null,null,null,null,null,null,null,null,null,null,null,null,null,null,null,null,null,null,null,null,null,null,null,null,null,"まなびの支援課"]
[null,null,null,null,null,null,null,null,null,null,null,null,null,null,null,null,null,null,null,null,null,null,null,null,null,null,null,null,null,null,null,null,null,null,null,null,null,null,null,null,null,null,"中央図書館"]
[null,null,null,null,null,null,null,null,null,null,null,null,null,null,null,null,null,null,null,null,null,null,null,null,null,null,null,null,null,null,null,null,null,null,null,null,null,null,null,null,null,null,"千里図書館"]
[null,null,null,null,null,null,null,null,null,null,null,null,null,null,null,null,null,null,null,null,null,null,null,null,null,null,null,null,null,null,null,null,null,null,null,null,null,null,null,null,null,null,"さんくす図書館"]
[null,null,null,null,null,null,null,null,null,null,null,null,null,null,null,null,null,null,null,null,null,null,null,null,null,null,null,null,null,null,null,null,null,null,null,null,null,null,null,null,null,null,"江坂図書館"]
[null,null,null,null,null,null,null,null,null,null,null,null,null,null,null,null,null,null,null,null,null,null,null,null,null,null,null,null,null,null,null,null,null,null,null,null,null,null,null,null,null,null,"千里山・佐井寺図書館"]
[null,null,null,null,null,null,null,null,null,null,null,null,null,null,null,null,null,null,null,null,null,null,null,null,null,null,null,null,null,null,null,null,null,null,null,null,null,null,null,null,null,null,"千里丘図書館"]
[null,null,null,null,null,null,null,null,null,null,null,null,null,null,null,null,null,null,null,null,null,null,null,null,null,null,null,null,null,null,null,null,null,null,null,null,null,null,null,null,null,null,"山田駅前図書館"]
[null,null,null,null,null,null,null,null,null,null,null,null,null,null,null,null,null,null,null,null,null,null,null,null,null,null,null,null,null,null,null,null,null,null,null,null,null,null,null,null,null,null,"健都ライブラリー"]
[null,null,null,null,null,null,null,null,null,null,null,null,null,null,null,null,null,null,null,null,null,null,null,null,null,null,null,null,null,null,null,null,null,null,null,null,null,null,null,null,null,null,"北千里図書館"]
[null,null,null,null,null,null,null,null,null,null,null,null,null,null,null,null,null,null,null,null,null,null,null,null,null,null,null,null,null,null,null,null,null,null,null,null,null,null,null,null,null,null,"文化財保護課"]
[null,null,null,null,null,null,null,null,null,null,null,null,null,null,null,null,null,null,null,null,null,null,null,null,null,null,null,null,null,null,null,null,null,null,null,null,null,null,null,null,null,null,"博物館"]
[null,null,null,null,null,null,null,null,null,null,null,null,null,null,null,null,null,null,null,null,null,null,null,null,null,null,null,null,null,null,null,null,null,null,null,null,null,null,null,null,null,null,"青少年室"]
[null,null,null,null,null,null,null,null,null,null,null,null,null,null,null,null,null,null,null,null,null,null,null,null,null,null,null,null,null,null,null,null,null,null,null,null,null,null,null,null,null,null,"青少年クリエイティブセンター"]
[null,null,null,null,null,null,null,null,null,null,null,null,null,null,null,null,null,null,null,null,null,null,null,null,null,null,null,null,null,null,null,null,null,null,null,null,null,null,null,null,null,null,"放課後子ども育成室"]
[null,null,null,null,null,null,null,null,null,null,null,null,null,null,null,null,null,null,null,null,null,null,null,null,null,null,null,null,null,null,null,null,null,null,null,null,null,null,null,null,null,null,"（水）総務室"]
[null,null,null,null,null,null,null,null,null,null,null,null,null,null,null,null,null,null,null,null,null,null,null,null,null,null,null,null,null,null,null,null,null,null,null,null,null,null,null,null,null,null,"企画室"]
[null,null,null,null,null,null,null,null,null,null,null,null,null,null,null,null,null,null,null,null,null,null,null,null,null,null,null,null,null,null,null,null,null,null,null,null,null,null,null,null,null,null,"工務室"]
[null,null,null,null,null,null,null,null,null,null,null,null,null,null,null,null,null,null,null,null,null,null,null,null,null,null,null,null,null,null,null,null,null,null,null,null,null,null,null,null,null,null,"浄水室"]

{"sheet":"課長","index":2,"n_rows":178,"n_cols":44,"rows_kept":178,"cut":false,"hidden":false,"merged":[[61,0,62,0],[61,1,62,1],[61,2,61,6],[61,7,61,9],[61,10,61,12],[61,13,61,14],[61,15,61,18],[64,0,69,0],[54,1,54,3],[54,4,54,8],[54,9,54,13],[54,14,54,18],[55,1,55,3],[55,4,55,8],[55,9,55,13],[55,14,55,18],[59,9,60,18],[14,15,14,21],[14,22,14,24],[14,25,14,27],[9,2,9,3],[9,4,9,14],[10,2,10,3],[10,4,10,14],[7,22,10,24],[7,15,10,16],[8,2,8,3],[8,4,8,14],[7,17,10,21],[12,0,12,4],[12,5,12,9],[7,1,10,1],[7,2,7,3],[7,4,7,14],[12,22,12,27],[2,15,2,18],[2,19,2,27],[3,13,3,14],[3,15,3,18],[3,19,3,22],[3,24,3,27],[3,2,3,6],[5,0,10,0],[5,1,5,14],[5,15,5,21],[5,22,5,24],[5,25,5,27],[2,0,3,0],[2,1,3,1],[2,2,2,6],[2,7,2,9],[7,25,10,27],[3,7,3,9],[3,10,3,12],[2,10,2,12],[2,13,2,14],[16,15,18,16],[16,17,18,21],[16,22,18,24],[16,25,18,27],[17,1,18,2],[17,3,17,8],[14,0,42,0],[14,1,14,14],[17,9,17,14],[18,3,18,8],[18,9,18,14],[16,2,16,14],[20,2,20,14],[24,2,24,14],[28,2,28,14],[32,2,32,14],[20,15,22,16],[20,17,22,21],[20,22,22,24],[20,25,22,27],[21,1,22,2],[21,3,21,8],[21,9,21,14],[22,3,22,8],[22,9,22,14],[24,15,26,16],[24,17,26,21],[24,22,26,24],[24,25,26,27],[25,1,26,2],[25,3,25,8],[25,9,25,14],[26,3,26,8],[26,9,26,14],[28,15,30,16],[28,17,30,21],[28,22,30,24],[28,25,30,27],[29,1,30,2],[29,3,29,8],[29,9,29,14],[30,3,30,8],[30,9,30,14],[36,2,36,14],[36,15,38,16],[36,17,38,21],[32,15,34,16],[32,17,34,21],[32,22,34,24],[32,25,34,27],[33,1,34,2],[33,3,33,8],[33,9,33,14],[34,3,34,8],[34,9,34,14],[0,9,1,18],[44,0,47,8],[44,10,47,18],[44,20,46,21],[47,20,47,21],[40,2,40,14],[47,26,47,27],[46,26,46,27],[44,22,44,25],[44,26,44,27],[40,15,42,16],[40,17,42,21],[36,22,38,24],[46,22,46,25],[40,22,42,24],[40,25,42,27],[42,9,42,14],[36,25,38,27],[37,1,38,2],[37,3,37,8],[37,9,37,14],[38,3,38,8],[38,9,38,14],[41,3,41,8],[41,9,41,14],[54,21,56,27],[52,4,52,6],[52,8,52,11],[52,14,52,16],[52,18,52,21],[42,3,42,8],[47,22,47,25],[49,0,49,13],[41,1,42,2],[49,14,49,23],[49,24,49,27],[51,0,52,3],[51,4,51,13],[51,14,51,23],[56,1,56,3],[56,14,56,18],[45,22,45,25],[45,26,45,27],[50,24,52,27],[54,20,56,20],[56,4,56,8],[56,9,56,13],[54,0,56,0],[61,19,61,27],[62,2,62,6],[62,7,62,9],[62,10,62,12],[62,13,62,14],[62,15,62,18],[62,19,62,22],[62,24,62,27],[69,4,69,14],[64,1,64,14],[64,25,64,27],[66,1,69,1],[66,2,66,3],[66,4,66,14],[66,15,69,16],[66,25,69,27],[68,2,68,3],[68,4,68,14],[64,15,64,24],[66,17,69,24],[69,2,69,3],[67,2,67,3],[67,4,67,14],[71,0,71,4],[71,5,71,9],[71,22,71,27],[73,0,101,0],[73,1,73,14],[73,25,73,27],[75,2,75,14],[75,15,77,16],[75,25,77,27],[73,15,73,24],[75,17,77,24],[79,15,81,16],[79,25,81,27],[80,1,81,2],[80,3,80,8],[80,9,80,14],[81,3,81,8],[81,9,81,14],[76,1,77,2],[76,3,76,8],[76,9,76,14],[77,3,77,8],[77,9,77,14],[79,2,79,14],[79,17,81,24],[83,25,85,27],[84,1,85,2],[84,3,84,8],[84,9,84,14],[85,3,85,8],[85,9,85,14],[83,17,85,24],[83,2,83,14],[83,15,85,16],[87,15,89,16],[87,25,89,27],[88,1,89,2],[88,3,88,8],[88,9,88,14],[89,3,89,8],[89,9,89,14],[87,17,89,24],[87,2,87,14],[91,2,91,14],[91,15,93,16],[91,25,93,27],[92,1,93,2],[92,3,92,8],[92,9,92,14],[93,3,93,8],[93,9,93,14],[91,17,93,24],[95,2,95,14],[95,15,97,16],[95,25,97,27],[96,1,97,2],[96,3,96,8],[96,9,96,14],[97,3,97,8],[97,9,97,14],[95,17,97,24],[99,2,99,14],[99,15,101,16],[99,25,101,27],[100,1,101,2],[100,3,100,8],[100,9,100,14],[101,3,101,8],[101,9,101,14],[99,17,101,24],[103,0,106,8],[103,10,106,18],[103,20,105,21],[108,0,108,7],[108,8,108,23],[109,0,110,7],[111,0,111,1],[103,22,103,25],[103,26,103,27],[105,22,105,25],[105,26,105,27],[106,20,106,21],[106,22,106,25],[106,26,106,27],[111,3,111,6],[109,8,110,23],[111,11,111,13],[111,15,111,18],[104,22,104,25],[104,26,104,27],[108,24,108,27],[109,24,111,27],[113,0,115,0],[113,21,115,27],[114,1,114,3],[114,4,114,8],[114,9,114,13],[114,14,114,18],[115,1,115,3],[115,4,115,8],[115,9,115,13],[115,14,115,18],[113,1,113,3],[113,4,113,8],[113,9,113,13],[113,14,113,18],[113,20,115,20],[119,0,120,0],[119,1,120,1],[119,2,120,2],[119,3,120,3],[119,4,120,4],[119,5,119,19],[119,20,120,20],[119,21,120,21]]}
["令和",6,"年度",null,null,null,null,null,null,"勤務評価シート",null,null,null,null,null,null,null,null,null,null,null,null,null,null,null,null,null,"3"]
["事務・技術・専門　課長等"]
["基礎情報","被評価者","所属名",null,null,null,null,"補職級",null,null,"職種",null,null,"職員番号",null,"氏名",null,null,null,"評価期間",null,null,null,null,null,null,null,null,null,null,null,null,null,null,null,null,null,null,null,null,null,"危機管理室","課長級","一般事務"]
[null,null,null,null,null,null,null,"課長級",null,null,null,null,null,null,null,null,null,null,null,null,null,null,null,"～",null,null,null,null,null,null,null,null,null,null,null,null,null,null,null,null,null,"秘書課",null,"一般事務（府教委）"]
[null,null,null,null,null,null,null,null,null,null,null,null,null,null,null,null,null,null,null,null,null,null,null,null,null,null,null,null,null,null,null,null,null,null,null,null,null,null,null,null,null,"広報課",null,"一般事務（司書）"]
["【業績】","評価基準・着眼点",null,null,null,null,null,null,null,null,null,null,null,null,null,"自己評価",null,null,null,null,null,null,"１次評価",null,null,"２次評価",null,null,null,null,null,null,null,null,null,null,null,null,null,null,null,"総務室",null,"一般事務（体育）"]
[null,"【業績】",null,null,null,null,null,null,null,null,null,null,null,null,null,"（評価点）",null,"（コメント）",null,null,null,null,"（評価点）",null,null,"（評価点）",null,null,null,null,null,null,null,null,null,null,null,null,null,null,null,"法制室",null,"一般技術"]
[null,"評価点","４（特に良好）",null,"職階からみて、期待された水準をはるかに上回る業績をあげた",null,null,null,null,null,null,null,null,null,null,null,null,null,null,null,null,null,null,null,null,null,null,null,null,null,null,null,null,null,null,null,null,null,null,null,null,"人事室",null,"一般技術（電気）"]
[null,null,"３（良好）",null,"職階からみて、期待された以上の業績をあげた"]
[null,null,"２（標準）",null,"職階からみて、相応の業績である",null,null,null,null,null,null,null,null,null,null,null,null,null,null,null,null,null,null,null,null,null,null,null,null,null,null,null,null,null,null,null,null,null,null,null,null,"契約検査室",null,"一般技術（土木）"]
[null,null,"１（要努力）",null,"職階からみて、期待された水準に達しておらず、努力が必要である",null,null,null,null,null,null,null,null,null,null,null,null,null,null,null,null,null,null,null,null,null,null,null,null,null,null,null,null,null,null,null,null,null,null,null,null,"企画財政室",null,"一般技術（機械）"]
[null,null,null,null,null,null,null,null,null,null,null,null,null,null,null,null,null,null,null,null,null,null,null,null,null,null,null,null,null,null,null,null,null,null,null,null,null,null,null,null,null,"情報政策室",null,"一般技術（建築）"]
["≪【業績】の評価項目数の取扱い≫\n　・次長級以上は評価点を４倍\n　・課長級は評価点を３倍　　",null,null,null,null,"\n・課長代理級は評価点を３倍\n・主査級は評価点を２倍",null,null,null,null,null,null,null,null,null,null,null,null,null,null,null,null,"【業績】\n　　評価点が３個あるものとして取扱い",null,null,null,null,null,null,null,null,null,null,null,null,null,null,null,null,null,null,"税制課",null,"一般技術（化学）"]
[null,null,null,null,null,null,null,null,null,null,null,null,null,null,null,null,null,null,null,null,null,null,null,null,null,null,null,null,null,null,null,null,null,null,null,null,null,null,null,null,null,"資産税課",null,"保育教諭"]
["【能力】","評価項目及び行動・着眼点",null,null,null,null,null,null,null,null,null,null,null,null,null,"自己評価",null,null,null,null,null,null,"１次評価",null,null,"２次評価",null,null,null,null,null,null,null,null,null,null,null,null,null,null,null,"市民税課",null,"生活指導員"]
[null,"【市民視点・法令遵守】",null,null,null,null,null,null,null,null,null,null,null,null,null,"（評価点）",null,"（コメント）",null,null,null,null,"（評価点）",null,null,"（評価点）",null,null,null,null,null,null,null,null,null,null,null,null,null,null,null,"納税課",null,"発達指導員"]
[null,null,"丁寧な応対を心掛けるなど、全体の奉仕者として、常に市民の立場や市民協働の視点に立つことができるとともに、法令等及び服務規律を順守して、公平かつ公正に業務を遂行することができる。",null,null,null,null,null,null,null,null,null,null,null,null,null,null,null,null,null,null,null,null,null,null,null,null,null,null,null,null,null,null,null,null,null,null,null,null,null,null,"債権管理課",null,"学芸員"]
[null,"着眼点",null,"・接遇",null,null,null,null,null,"・法令順守",null,null,null,null,null,null,null,null,null,null,null,null,null,null,null,null,null,null,null,null,null,null,null,null,null,null,null,null,null,null,null,"市民総務室",null,"栄養士"]
[null,null,null,"・公平・公正な姿勢",null,null,null,null,null,"・責任感",null,null,null,null,null,null,null,null,null,null,null,null,null,null,null,null,null,null,null,null,null,null,null,null,null,null,null,null,null,null,null,"市民課",null,"診療放射線技師"]
[null,"【コミュニケーション】",null,null,null,null,null,null,null,null,null,null,null,null,null,"（評価点）",null,"（コメント）",null,null,null,null,"（評価点）",null,null,"（評価点）",null,null,null,null,null,null,null,null,null,null,null,null,null,null,null,"山田出張所",null,"言語聴覚士"]
[null,null,"様々な相手と円滑かつ適切なコミュニケーションを取ることができる。",null,null,null,null,null,null,null,null,null,null,null,null,null,null,null,null,null,null,null,null,null,null,null,null,null,null,null,null,null,null,null,null,null,null,null,null,null,null,"千里丘出張所",null,"理学療法士"]
[null,"着眼点",null,"・市民に対する傾聴と対話の姿勢",null,null,null,null,null,"・柔軟な姿勢と一貫した主張のバランス",null,null,null,null,null,null,null,null,null,null,null,null,null,null,null,null,null,null,null,null,null,null,null,null,null,null,null,null,null,null,null,"千里出張所",null,"作業療法士"]
[null,null,null,"・誠実さ",null,null,null,null,null,"・職場でのコミュニケーション促進",null,null,null,null,null,null,null,null,null,null,null,null,null,null,null,null,null,null,null,null,null,null,null,null,null,null,null,null,null,null,null,"人権政策室",null,"歯科衛生士"]
[null,"【課題の解決】",null,null,null,null,null,null,null,null,null,null,null,null,null,"（評価点）",null,"（コメント）",null,null,null,null,"（評価点）",null,null,"（評価点）",null,null,null,null,null,null,null,null,null,null,null,null,null,null,null,"交流活動館",null,"保健師"]
[null,null,"課等の課題について、周囲の状況及び将来の見通しを踏まえて、方針を示すことができる。",null,null,null,null,null,null,null,null,null,null,null,null,null,null,null,null,null,null,null,null,null,null,null,null,null,null,null,null,null,null,null,null,null,null,null,null,null,null,"男女共同参画センター",null,"看護師"]
[null,"着眼点",null,"・幅広い視野",null,null,null,null,null,"・状況の構造的把握",null,null,null,null,null,null,null,null,null,null,null,null,null,null,null,null,null,null,null,null,null,null,null,null,null,null,null,null,null,null,null,"市民自治推進室",null,"精神保健福祉士"]
[null,null,null,"・創造力、想像力",null,null,null,null,null,"・挑戦する姿勢",null,null,null,null,null,null,null,null,null,null,null,null,null,null,null,null,null,null,null,null,null,null,null,null,null,null,null,null,null,null,null,"地域経済振興室",null,"獣医師"]
[null,"【判断】",null,null,null,null,null,null,null,null,null,null,null,null,null,"（評価点）",null,"（コメント）",null,null,null,null,"（評価点）",null,null,"（評価点）",null,null,null,null,null,null,null,null,null,null,null,null,null,null,null,"シティプロモーション推進室",null,"薬剤師"]
[null,null,"課等の課題について、責任者として、知識、経験及び情報により、総合的な判断を行うことができる。",null,null,null,null,null,null,null,null,null,null,null,null,null,null,null,null,null,null,null,null,null,null,null,null,null,null,null,null,null,null,null,null,null,null,null,null,null,null,"文化スポーツ推進室",null,"管理栄養士"]
[null,"着眼点",null,"・知識、経験、情報収集",null,null,null,null,null,"・決断力",null,null,null,null,null,null,null,null,null,null,null,null,null,null,null,null,null,null,null,null,null,null,null,null,null,null,null,null,null,null,null,"子育て政策室"]
[null,null,null,"・リスク対応",null,null,null,null,null,"・適切かつスピード感ある対応",null,null,null,null,null,null,null,null,null,null,null,null,null,null,null,null,null,null,null,null,null,null,null,null,null,null,null,null,null,null,null,"子育て給付課"]
[null,"【説明・調整】",null,null,null,null,null,null,null,null,null,null,null,null,null,"（評価点）",null,"（コメント）",null,null,null,null,"（評価点）",null,null,"（評価点）",null,null,null,null,null,null,null,null,null,null,null,null,null,null,null,"家庭児童相談室"]
[null,null,"課等の課題について、説得力のある説明及び調整を行うことにより、関係者との合意を形成することができる。",null,null,null,null,null,null,null,null,null,null,null,null,null,null,null,null,null,null,null,null,null,null,null,null,null,null,null,null,null,null,null,null,null,null,null,null,null,null,"のびのび子育てプラザ"]
[null,"着眼点",null,"・論理的構成力",null,null,null,null,null,"・信頼関係の構築",null,null,null,null,null,null,null,null,null,null,null,null,null,null,null,null,null,null,null,null,null,null,null,null,null,null,null,null,null,null,null,"保育幼稚園室"]
[null,null,null,"・対人折衝力",null,null,null,null,null,"・ねばり強さ",null,null,null,null,null,null,null,null,null,null,null,null,null,null,null,null,null,null,null,null,null,null,null,null,null,null,null,null,null,null,null,"山田保育園"]
[null,"【業務改善】",null,null,null,null,null,null,null,null,null,null,null,null,null,"（評価点）",null,"（コメント）",null,null,null,null,"（評価点）",null,null,"（評価点）",null,null,null,null,null,null,null,null,null,null,null,null,null,null,null,"いずみ保育園"]
[null,null,"人員、コスト及び資産を意識して業務改善を図りながら、課等の業務を進めることができる。",null,null,null,null,null,null,null,null,null,null,null,null,null,null,null,null,null,null,null,null,null,null,null,null,null,null,null,null,null,null,null,null,null,null,null,null,null,null,"南千里保育園"]
[null,"着眼点",null,"・優先順位を見極めた計画",null,null,null,null,null,"・効果的な選択と集中",null,null,null,null,null,null,null,null,null,null,null,null,null,null,null,null,null,null,null,null,null,null,null,null,null,null,null,null,null,null,null,"ことぶき保育園"]
[null,null,null,"・コスト意識",null,null,null,null,null,"・所属職員の長時間勤務の是正",null,null,null,null,null,null,null,null,null,null,null,null,null,null,null,null,null,null,null,null,null,null,null,null,null,null,null,null,null,null,null,"岸部保育園"]
[null,"【組織マネジメント・人材育成】",null,null,null,null,null,null,null,null,null,null,null,null,null,"（評価点）",null,"（コメント）",null,null,null,null,"（評価点）",null,null,"（評価点）",null,null,null,null,null,null,null,null,null,null,null,null,null,null,null,"千里山保育園"]
[null,null,"課等の業務を適切に配分した上で、進捗管理及び指示を行うことができるとともに、部下等の指導及び育成を行うことができる。",null,null,null,null,null,null,null,null,null,null,null,null,null,null,null,null,null,null,null,null,null,null,null,null,null,null,null,null,null,null,null,null,null,null,null,null,null,null,"東保育園"]
[null,"着眼点",null,"・情報共有、情報発信",null,null,null,null,null,"・部下育成力、統率力、牽引力",null,null,null,null,null,null,null,null,null,null,null,null,null,null,null,null,null,null,null,null,null,null,null,null,null,null,null,null,null,null,null,"垂水保育園"]
[null,null,null,"・適切な業務配分及び進捗管理",null,null,null,null,null,"・職員のワークライフバランスの視点",null,null,null,null,null,null,null,null,null,null,null,null,null,null,null,null,null,null,null,null,null,null,null,null,null,null,null,null,null,null,null,"吹一保育園"]
[null,null,null,null,null,null,null,null,null,null,null,null,null,null,null,null,null,null,null,null,null,null,null,null,null,null,null,null,null,null,null,null,null,null,null,null,null,null,null,null,null,"吹六保育園"]
["≪【能力】の評価点≫\n◆　「４（特に良好）」…求められる行動が確実にとられており、他の職員の模範となる職務遂行状況である。\n◆　「３（良好）」…求められる行動が確実にとられていた。\n◆　「２（標準）」…求められる行動が概ねとられていた。\n◆　「１（要努力）」…求められる行動がとられていることが少なく（全くなく）、改善に向け努力が必要である。",null,null,null,null,null,null,null,null,null,"≪総合評価区分と評価点との関係：基準≫\n◆　「良好」…原則、【業績】及び【能力】の評価項目の３分の２以上が「２（標準）」以上の場合に該当する。\n◆　「やや不良」…原則、【業績】及び【能力】の評価項目の３分の１超半数以下が「１（標準未満）」の場合に該当する。\n◆　「不良」…原則、【業績】及び【能力】の評価項目の半数超が「１（標準未満）」であるとともに、分限（降任・免職）処分を検討する必要があると判断する場合に該当する。",null,null,null,null,null,null,null,null,null,"【業績】及び\n【能力】の\n評価項目数の合計",null,"「4（特に良好）」\nの個数",null,null,null,{"$f":"IF(Z8=\"\",\"\",IF(Z17=\"\",\"\",IF(Z21=\"\",\"\",IF(Z25=\"\",\"\",IF(Z29=\"\",\"\",IF(Z33=\"\",\"\",IF(Z37=\"\",\"\",IF(Z41=\"\",\"\",COUNTIF(Z17:AB43,4)+IF(Z8=4,3,0)))))))))","v":""},null,null,null,null,null,null,null,null,null,null,null,null,null,null,"片山保育園"]
[null,null,null,null,null,null,null,null,null,null,null,null,null,null,null,null,null,null,null,null,null,null,"「3（良好）」\nの個数",null,null,null,{"$f":"IF(Z8=\"\",\"\",IF(Z17=\"\",\"\",IF(Z21=\"\",\"\",IF(Z25=\"\",\"\",IF(Z29=\"\",\"\",IF(Z33=\"\",\"\",IF(Z37=\"\",\"\",IF(Z41=\"\",\"\",COUNTIF(Z17:AB43,3)+IF(Z8=3,3,0)))))))))","v":""}]
[null,null,null,null,null,null,null,null,null,null,null,null,null,null,null,null,null,null,null,null,null,null,"「２（標準）」\nの個数",null,null,null,{"$f":"IF(Z8=\"\",\"\",IF(Z17=\"\",\"\",IF(Z21=\"\",\"\",IF(Z25=\"\",\"\",IF(Z29=\"\",\"\",IF(Z33=\"\",\"\",IF(Z37=\"\",\"\",IF(Z41=\"\",\"\",COUNTIF(Z17:AB43,2)+IF(Z8=2,3,0)))))))))","v":""},null,null,null,null,null,null,null,null,null,null,null,null,null,null,"千三保育園"]
[null,null,null,null,null,null,null,null,null,null,null,null,null,null,null,null,null,null,null,null,10,null,"「１（要努力）」\nの個数",null,null,null,{"$f":"IF(Z8=\"\",\"\",IF(Z17=\"\",\"\",IF(Z21=\"\",\"\",IF(Z25=\"\",\"\",IF(Z29=\"\",\"\",IF(Z33=\"\",\"\",IF(Z37=\"\",\"\",IF(Z41=\"\",\"\",COUNTIF(Z17:AB43,1)+IF(Z8=1,3,0)))))))))","v":""},null,null,null,null,null,null,null,null,null,null,null,null,null,null,"山三保育園"]
[null,null,null,null,null,null,null,null,null,null,null,null,null,null,null,null,null,null,null,null,null,null,null,null,null,null,null,null,null,null,null,null,null,null,null,null,null,null,null,null,null,"はぎのきこども園"]
["１次評価者所見等",null,null,null,null,null,null,null,null,null,null,null,null,null,"２次評価者所見",null,null,null,null,null,null,null,null,null,"総合評価",null,null,null,null,null,null,null,null,null,null,null,null,null,null,null,null,"いずみ小規模園"]
["ピカッとポイント",null,null,null,"所見（「２」以外の評価点の項目に重点を置き記入すること。）",null,null,null,null,null,null,null,null,null,"所見（「２」以外の評価点の項目に重点を置き記入すること。）",null,null,null,null,null,null,null,null,null,{"$f":"IF(AA45=\"\",\"\",IF(AA46=\"\",\"\",IF(AA47=\"\",\"\",IF(AA48=\"\",\"\",IF(AA45+AA46+AA47>=7,\"良好\",IF(AND((AA45+AA46+AA47)>=5,(AA45+AA46+AA47)<=6),\"やや不良\",IF(AA45+AA46+AA47<=4,\"不良\")))))))","v":""},null,null,null,null,null,null,null,null,null,null,null,null,null,null,null,null,"こども発達支援センター"]
[null,null,null,null,null,null,null,null,null,null,null,null,null,null,null,null,null,null,null,null,null,null,null,null,null,null,null,null,null,null,null,null,null,null,null,null,null,null,null,null,null,"地域支援センター"]
[null,null,null,null,"１次評価者",null,null,"（",null,null,null,null,"）",null,"２次評価者",null,null,"（",null,null,null,null,"）","㊞　　　　",null,null,null,null,null,null,null,null,null,null,null,null,null,null,null,null,null,"杉の子学園"]
[null,null,null,null,null,null,null,null,null,null,null,null,null,null,null,null,null,null,null,null,null,null,null,null,null,null,null,null,null,null,null,null,null,null,null,null,null,null,null,null,null,"わかたけ園"]
["給与反映区分","総合評価",null,null,"良好",null,null,null,null,"やや不良",null,null,null,null,"不良",null,null,null,null,null,"備考欄",null,null,null,null,null,null,null,null,null,null,null,null,null,null,null,null,null,null,null,null,"福祉総務室"]
[null,"昇給号数",null,null,"４号",null,null,null,null,"２号",null,null,null,null,"昇給なし",null,null,null,null,null,null,null,null,null,null,null,null,null,null,null,null,null,null,null,null,null,null,null,null,null,null,"総合福祉会館"]
[null,"勤勉手当支給割合",null,null,"吹田市期末手当及び勤勉手当の支給に関する規則で定める支給割合",null,null,null,null,"良好の１０％減として、\n同規則で定める支給割合",null,null,null,null,"良好の２０％減として、\n同規則で定める支給割合",null,null,null,null,null,null,null,null,null,null,null,null,null,null,null,null,null,null,null,null,null,null,null,null,null,null,"生活福祉室"]
[null,null,null,null,null,null,null,null,null,null,null,null,null,null,null,null,null,null,"※水道部は、吹田市水道部企業職員給与規程",null,null,null,null,null,null,null,null,null,null,null,null,null,null,null,null,null,null,null,null,null,null,"福祉指導監査室"]
[null,null,null,null,null,null,null,null,null,null,null,null,null,null,null,null,null,null,null,null,null,null,null,null,null,null,null,null,null,null,null,null,null,null,null,null,null,null,null,null,null,"高齢福祉室"]
[{"$f":"A1","v":"令和"},{"$f":"B1","v":6},{"$f":"C1","v":"年度"},null,null,null,null,null,null,"勤務評価シート（開示用）",null,null,null,null,null,null,null,null,null,null,null,null,null,null,null,null,null,"3",null,null,null,null,null,null,null,null,null,null,null,null,null,"障がい福祉室"]
["事務・技術・専門　課長等",null,null,null,null,null,null,null,null,null,null,null,null,null,null,null,null,null,null,null,null,null,null,null,null,null,null,null,null,null,null,null,null,null,null,null,null,null,null,null,null,"健康まちづくり室"]
["基礎情報","被評価者","所属名",null,null,null,null,"補職級",null,null,"職種",null,null,"職員番号",null,"氏名",null,null,null,"評価期間",null,null,null,null,null,null,null,null,null,null,null,null,null,null,null,null,null,null,null,null,null,"病院総務室"]
[null,null,{"$f":"+C4","v":0},null,null,null,null,{"$f":"+H4","v":"課長級"},null,null,{"$f":"+K4","v":0},null,null,{"$f":"+N4","v":0},null,{"$f":"+P4","v":0},null,null,null,{"$f":"T4","v":"00:00:00"},null,null,null,"～",{"$f":"Y4","v":"00:00:00"},null,null,null,null,null,null,null,null,null,null,null,null,null,null,null,null,"医療事務室"]
[null,null,null,null,null,null,null,null,null,null,null,null,null,null,null,null,null,null,null,null,null,null,null,null,null,null,null,null,null,null,null,null,null,null,null,null,null,null,null,null,null,"成人保健課"]
["【業績】","評価基準・着眼点",null,null,null,null,null,null,null,null,null,null,null,null,null,"自己評価",null,null,null,null,null,null,null,null,null,"最終評価",null,null,null,null,null,null,null,null,null,null,null,null,null,null,null,"母子保健課"]
[null,"【業績】",null,null,null,null,null,null,null,null,null,null,null,null,null,"（評価点）",null,"（コメント）",null,null,null,null,null,null,null,"（評価点）",null,null,null,null,null,null,null,null,null,null,null,null,null,null,null,"（後期高齢）"]
[null,"評価点","４（特に良好）",null,"職階からみて、期待された水準をはるかに上回る業績をあげた",null,null,null,null,null,null,null,null,null,null,{"$f":"+P8","v":0},null,{"$f":"+R8","v":0},null,null,null,null,null,null,null,{"$f":"+Z8","v":0},null,null,null,null,null,null,null,null,null,null,null,null,null,null,null,"国民健康保険課"]
[null,null,"３（良好）",null,"職階からみて、期待された以上の業績をあげた"]
[null,null,"２（標準）",null,"職階からみて、相応の業績である",null,null,null,null,null,null,null,null,null,null,null,null,null,null,null,null,null,null,null,null,null,null,null,null,null,null,null,null,null,null,null,null,null,null,null,null,"保健医療総務室"]
[null,null,"１（要努力）",null,"職階からみて、期待された水準に達しておらず、努力が必要である",null,null,null,null,null,null,null,null,null,null,null,null,null,null,null,null,null,null,null,null,null,null,null,null,null,null,null,null,null,null,null,null,null,null,null,null,"衛生管理課"]
[null,null,null,null,null,null,null,null,null,null,null,null,null,null,null,null,null,null,null,null,null,null,null,null,null,null,null,null,null,null,null,null,null,null,null,null,null,null,null,null,null,"地域保健課"]
["≪【業績】の評価項目数の取扱い≫\n　・次長級以上は評価点を４倍\n　・課長級は評価点を３倍　　",null,null,null,null,"\n・課長代理級は評価点を３倍\n・主査級は評価点を２倍",null,null,null,null,null,null,null,null,null,null,null,null,null,null,null,null,"【業績】\n　　評価点が３個あるものとして取扱い",null,null,null,null,null,null,null,null,null,null,null,null,null,null,null,null,null,null,"環境政策室"]
[null,null,null,null,null,null,null,null,null,null,null,null,null,null,null,null,null,null,null,null,null,null,null,null,null,null,null,null,null,null,null,null,null,null,null,null,null,null,null,null,null,"環境保全指導課"]
["【能力】","評価項目及び行動・着眼点",null,null,null,null,null,null,null,null,null,null,null,null,null,"自己評価",null,null,null,null,null,null,null,null,null,"最終評価",null,null,null,null,null,null,null,null,null,null,null,null,null,null,null,"事業課"]
[null,"【市民視点・法令遵守】",null,null,null,null,null,null,null,null,null,null,null,null,null,"（評価点）",null,"（コメント）",null,null,null,null,null,null,null,"（評価点）",null,null,null,null,null,null,null,null,null,null,null,null,null,null,null,"資源循環エネルギーセンター"]
[null,null,"丁寧な応対を心掛けるなど、全体の奉仕者として、常に市民の立場や市民協働の視点に立つことができるとともに、法令等及び服務規律を順守して、公平かつ公正に業務を遂行することができる。",null,null,null,null,null,null,null,null,null,null,null,null,{"$f":"+P17","v":0},null,{"$f":"+R17","v":0},null,null,null,null,null,null,null,{"$f":"+Z17","v":0},null,null,null,null,null,null,null,null,null,null,null,null,null,null,null,"破砕選別工場"]
[null,"着眼点",null,"・接遇",null,null,null,null,null,"・法令順守",null,null,null,null,null,null,null,null,null,null,null,null,null,null,null,null,null,null,null,null,null,null,null,null,null,null,null,null,null,null,null,"都市計画室"]
[null,null,null,"・公平・公正な姿勢",null,null,null,null,null,"・責任感",null,null,null,null,null,null,null,null,null,null,null,null,null,null,null,null,null,null,null,null,null,null,null,null,null,null,null,null,null,null,null,"計画調整室"]
[null,"【コミュニケーション】",null,null,null,null,null,null,null,null,null,null,null,null,null,"（評価点）",null,"（コメント）",null,null,null,null,null,null,null,"（評価点）",null,null,null,null,null,null,null,null,null,null,null,null,null,null,null,"開発審査室"]
[null,null,"様々な相手と円滑かつ適切なコミュニケーションを取ることができる。",null,null,null,null,null,null,null,null,null,null,null,null,{"$f":"+P21","v":0},null,{"$f":"+R21","v":0},null,null,null,null,null,null,null,{"$f":"+Z21","v":0},null,null,null,null,null,null,null,null,null,null,null,null,null,null,null,"住宅政策室"]
[null,"着眼点",null,"・市民に対する傾聴と対話の姿勢",null,null,null,null,null,"・柔軟な姿勢と一貫した主張のバランス",null,null,null,null,null,null,null,null,null,null,null,null,null,null,null,null,null,null,null,null,null,null,null,null,null,null,null,null,null,null,null,"資産経営室"]
[null,null,null,"・誠実さ",null,null,null,null,null,"・職場でのコミュニケーション促進",null,null,null,null,null,null,null,null,null,null,null,null,null,null,null,null,null,null,null,null,null,null,null,null,null,null,null,null,null,null,null,"総務交通室"]
[null,"【課題の解決】",null,null,null,null,null,null,null,null,null,null,null,null,null,"（評価点）",null,"（コメント）",null,null,null,null,null,null,null,"（評価点）",null,null,null,null,null,null,null,null,null,null,null,null,null,null,null,"道路室"]
[null,null,"課等の課題について、周囲の状況及び将来の見通しを踏まえて、方針を示すことができる。",null,null,null,null,null,null,null,null,null,null,null,null,{"$f":"+P25","v":0},null,{"$f":"+R25","v":0},null,null,null,null,null,null,null,{"$f":"+Z25","v":0},null,null,null,null,null,null,null,null,null,null,null,null,null,null,null,"公園みどり室"]
[null,"着眼点",null,"・幅広い視野",null,null,null,null,null,"・状況の構造的把握",null,null,null,null,null,null,null,null,null,null,null,null,null,null,null,null,null,null,null,null,null,null,null,null,null,null,null,null,null,null,null,"地域整備推進室"]
[null,null,null,"・創造力、想像力",null,null,null,null,null,"・挑戦する姿勢",null,null,null,null,null,null,null,null,null,null,null,null,null,null,null,null,null,null,null,null,null,null,null,null,null,null,null,null,null,null,null,"経営室"]
[null,"【判断】",null,null,null,null,null,null,null,null,null,null,null,null,null,"（評価点）",null,"（コメント）",null,null,null,null,null,null,null,"（評価点）",null,null,null,null,null,null,null,null,null,null,null,null,null,null,null,"管路保全室"]
[null,null,"課等の課題について、責任者として、知識、経験及び情報により、総合的な判断を行うことができる。",null,null,null,null,null,null,null,null,null,null,null,null,{"$f":"+P29","v":0},null,{"$f":"+R29","v":0},null,null,null,null,null,null,null,{"$f":"+Z29","v":0},null,null,null,null,null,null,null,null,null,null,null,null,null,null,null,"水再生室"]
[null,"着眼点",null,"・知識、経験、情報収集",null,null,null,null,null,"・決断力",null,null,null,null,null,null,null,null,null,null,null,null,null,null,null,null,null,null,null,null,null,null,null,null,null,null,null,null,null,null,null,"会計室"]
[null,null,null,"・リスク対応",null,null,null,null,null,"・適切かつスピード感ある対応",null,null,null,null,null,null,null,null,null,null,null,null,null,null,null,null,null,null,null,null,null,null,null,null,null,null,null,null,null,null,null,"消防本部"]
[null,"【説明・調整】",null,null,null,null,null,null,null,null,null,null,null,null,null,"（評価点）",null,"（コメント）",null,null,null,null,null,null,null,"（評価点）",null,null,null,null,null,null,null,null,null,null,null,null,null,null,null,"総務予防室"]
[null,null,"課等の課題について、説得力のある説明及び調整を行うことにより、関係者との合意を形成することができる。",null,null,null,null,null,null,null,null,null,null,null,null,{"$f":"+P33","v":0},null,{"$f":"+R33","v":0},null,null,null,null,null,null,null,{"$f":"+Z33","v":0},null,null,null,null,null,null,null,null,null,null,null,null,null,null,null,"消防本部付"]
[null,"着眼点",null,"・論理的構成力",null,null,null,null,null,"・信頼関係の構築",null,null,null,null,null,null,null,null,null,null,null,null,null,null,null,null,null,null,null,null,null,null,null,null,null,null,null,null,null,null,null,"警防救急室"]
[null,null,null,"・対人折衝力",null,null,null,null,null,"・ねばり強さ",null,null,null,null,null,null,null,null,null,null,null,null,null,null,null,null,null,null,null,null,null,null,null,null,null,null,null,null,null,null,null,"警防・救急・啓発Ｇ"]
[null,"【業務改善】",null,null,null,null,null,null,null,null,null,null,null,null,null,"（評価点）",null,"（コメント）",null,null,null,null,null,null,null,"（評価点）",null,null,null,null,null,null,null,null,null,null,null,null,null,null,null,"救助第１Ｇ"]
[null,null,"人員、コスト及び資産を意識して業務改善を図りながら、課等の業務を進めることができる。",null,null,null,null,null,null,null,null,null,null,null,null,{"$f":"+P37","v":0},null,{"$f":"+R37","v":0},null,null,null,null,null,null,null,{"$f":"+Z37","v":0},null,null,null,null,null,null,null,null,null,null,null,null,null,null,null,"救助第２Ｇ"]
[null,"着眼点",null,"・優先順位を見極めた計画",null,null,null,null,null,"・効果的な選択と集中",null,null,null,null,null,null,null,null,null,null,null,null,null,null,null,null,null,null,null,null,null,null,null,null,null,null,null,null,null,null,null,"指令情報室"]
[null,null,null,"・コスト意識",null,null,null,null,null,"・所属職員の長時間勤務の是正",null,null,null,null,null,null,null,null,null,null,null,null,null,null,null,null,null,null,null,null,null,null,null,null,null,null,null,null,null,null,null,"指令情報第１Ｇ"]
[null,"【組織マネジメント・人材育成】",null,null,null,null,null,null,null,null,null,null,null,null,null,"（評価点）",null,"（コメント）",null,null,null,null,null,null,null,"（評価点）",null,null,null,null,null,null,null,null,null,null,null,null,null,null,null,"指令情報第２Ｇ"]
[null,null,"課等の業務を適切に配分した上で、進捗管理及び指示を行うことができるとともに、部下等の指導及び育成を行うことができる。",null,null,null,null,null,null,null,null,null,null,null,null,{"$f":"+P41","v":0},null,{"$f":"+R41","v":0},null,null,null,null,null,null,null,{"$f":"+Z41","v":0},null,null,null,null,null,null,null,null,null,null,null,null,null,null,null,"南消防署"]
[null,"着眼点",null,"・情報共有、情報発信",null,null,null,null,null,"・部下育成力、統率力、牽引力",null,null,null,null,null,null,null,null,null,null,null,null,null,null,null,null,null,null,null,null,null,null,null,null,null,null,null,null,null,null,null,"南予防査察係"]
[null,null,null,"・適切な業務配分及び進捗管理",null,null,null,null,null,"・職員のワークライフバランスの視点",null,null,null,null,null,null,null,null,null,null,null,null,null,null,null,null,null,null,null,null,null,null,null,null,null,null,null,null,null,null,null,"南警防第１係"]
[null,null,null,null,null,null,null,null,null,null,null,null,null,null,null,null,null,null,null,null,null,null,null,null,null,null,null,null,null,null,null,null,null,null,null,null,null,null,null,null,null,"南警防第２係"]
["≪【能力】の評価点≫\n◆　「４（特に良好）」…求められる行動が確実にとられており、他の職員の模範となる職務遂行状況である。\n◆　「３（良好）」…求められる行動が確実にとられていた。\n◆　「２（標準）」…求められる行動が概ねとられていた。\n◆　「１（要努力）」…求められる行動がとられていることが少なく（全くなく）、改善に向け努力が必要である。",null,null,null,null,null,null,null,null,null,"≪総合評価区分と評価点との関係：基準≫\n◆　「良好」…原則、【業績】及び【能力】の評価項目の３分の２以上が「２（標準）」以上の場合に該当する。\n◆　「やや不良」…原則、【業績】及び【能力】の評価項目の３分の１超半数以下が「１（標準未満）」の場合に該当する。\n◆　「不良」…原則、【業績】及び【能力】の評価項目の半数超が「１（標準未満）」であるとともに、分限（降任・免職）処分を検討する必要があると判断する場合に該当する。",null,null,null,null,null,null,null,null,null,"【業績】及び\n【能力】の\n評価項目数の合計",null,"「4（特に良好）」\nの個数",null,null,null,{"$f":"+AA45","v":""},null,null,null,null,null,null,null,null,null,null,null,null,null,null,"南救急第１係"]
[null,null,null,null,null,null,null,null,null,null,null,null,null,null,null,null,null,null,null,null,null,null,"「3（良好）」\nの個数",null,null,null,{"$f":"+AA46","v":""}]
[null,null,null,null,null,null,null,null,null,null,null,null,null,null,null,null,null,null,null,null,null,null,"「２（標準）」\nの個数",null,null,null,"",null,null,null,null,null,null,null,null,null,null,null,null,null,null,"南救急第２係"]
[null,null,null,null,null,null,null,null,null,null,null,null,null,null,null,null,null,null,null,null,10,null,"「１（要努力）」\nの個数",null,null,null,{"$f":"+AA48","v":""},null,null,null,null,null,null,null,null,null,null,null,null,null,null,"正雀出張所第１係"]
[null,null,null,null,null,null,null,null,null,null,null,null,null,null,null,null,null,null,null,null,null,null,null,null,null,null,null,null,null,null,null,null,null,null,null,null,null,null,null,null,null,"正雀出張所第２係"]
["ピカッとポイント",null,null,null,null,null,null,null,"２次評価者所見",null,null,null,null,null,null,null,null,null,null,null,null,null,null,null,"総合評価",null,null,null,null,null,null,null,null,null,null,null,null,null,null,null,null,"北消防署"]
[{"$f":"+A52","v":0},null,null,null,null,null,null,null,{"$f":"+O52","v":0},null,null,null,null,null,null,null,null,null,null,null,null,null,null,null,{"$f":"+Y51","v":""},null,null,null,null,null,null,null,null,null,null,null,null,null,null,null,null,"北予防査察係"]
[null,null,null,null,null,null,null,null,null,null,null,null,null,null,null,null,null,null,null,null,null,null,null,null,null,null,null,null,null,null,null,null,null,null,null,null,null,null,null,null,null,"北警防第１係"]
["１次評価者",null,"（",{"$f":"+I53","v":0},null,null,null,"）",null,null,null,"２次評価者",null,null,"（",{"$f":"+S53","v":0},null,null,null,"）",null,null,null,null,null,null,null,null,null,null,null,null,null,null,null,null,null,null,null,null,null,"北警防第２係"]
[null,null,null,null,null,null,null,null,null,null,null,null,null,null,null,null,null,null,null,null,null,null,null,null,null,null,null,null,null,null,null,null,null,null,null,null,null,null,null,null,null,"北救急第１係"]
["給与反映区分","総合評価",null,null,"良好",null,null,null,null,"やや不良",null,null,null,null,"不良",null,null,null,null,null,"備考欄",{"$f":"V55","v":0},null,null,null,null,null,null,null,null,null,null,null,null,null,null,null,null,null,null,null,"北救急第２係"]
[null,"昇給号数",null,null,"４号",null,null,null,null,"２号",null,null,null,null,"昇給なし",null,null,null,null,null,null,null,null,null,null,null,null,null,null,null,null,null,null,null,null,null,null,null,null,null,null,"西消防署"]
[null,"勤勉手当支給割合",null,null,"吹田市期末手当及び\n勤勉手当の支給に関する\n規則で定める支給割合",null,null,null,null,"良好の１０％減として、\n同規則で定める支給割合",null,null,null,null,"良好の２０％減として、\n同規則で定める支給割合",null,null,null,null,null,null,null,null,null,null,null,null,null,null,null,null,null,null,null,null,null,null,null,null,null,null,"西予防査察係"]
[null,null,null,null,null,null,null,null,null,null,null,null,null,null,null,null,null,null,"※水道部は、吹田市水道部企業職員給与規程",null,null,null,null,null,null,null,null,null,null,null,null,null,null,null,null,null,null,null,null,null,null,"西警防第１係"]
[null,null,null,null,null,null,null,null,null,null,null,null,null,null,null,null,null,null,null,null,null,null,null,null,null,null,null,null,null,null,null,null,null,null,null,null,null,null,null,null,null,"西警防第２係"]
[null,null,null,null,null,null,null,null,null,null,null,null,null,null,null,null,null,null,null,null,null,null,null,null,null,null,null,null,null,null,null,null,null,null,null,null,null,null,null,null,null,"西救急第１係"]
["職員番号","氏名","所属名","補職級","職種","評価項目",null,null,null,null,null,null,null,null,null,null,null,null,null,null,"総合評価","2次評価者",null,null,null,null,null,null,null,null,null,null,null,null,null,null,null,null,null,null,null,"西救急第２係"]
[null,null,null,null,null,"【業績】","【市民視点・法令遵守】","【コミュニケーション】","【課題の解決】","【決断】","【判断】","【課題対応】","【知識・技術・経験の活用】","【知識・技術の向上】","【説明・調整】","【説明】","【業務改善】","【業務遂行】","【組織マネジメント・人材育成】","【組織貢献・チームワーク】",null,null,null,null,null,null,null,null,null,null,null,null,null,null,null,null,null,null,null,null,null,"千里出張所第１係"]
[{"$f":"+N4","v":0},{"$f":"+P4","v":0},{"$f":"+C4","v":0},{"$f":"+H4","v":"課長級"},{"$f":"+K4","v":0},{"$f":"+Z8","v":0},{"$f":"+Z17","v":0},{"$f":"+Z21","v":0},{"$f":"+Z25","v":0},null,{"$f":"+Z29","v":0},null,null,null,{"$f":"+Z33","v":0},null,{"$f":"+Z37","v":0},null,{"$f":"+Z41","v":0},null,{"$f":"+Y51","v":""},{"$f":"+S53","v":0},null,null,null,null,null,null,null,null,null,null,null,null,null,null,null,null,null,null,null,"千里出張所第２係"]
[null,null,null,null,null,null,null,null,null,null,null,null,null,null,null,null,null,null,null,null,null,null,null,null,null,null,null,null,null,null,null,null,null,null,null,null,null,null,null,null,null,"東消防署"]
[null,null,null,null,null,null,null,null,null,null,null,null,null,null,null,null,null,null,null,null,null,null,null,null,null,null,null,null,null,null,null,null,null,null,null,null,null,null,null,null,null,"東予防査察係"]
[null,null,null,null,null,null,null,null,null,null,null,null,null,null,null,null,null,null,null,null,null,null,null,null,null,null,null,null,null,null,null,null,null,null,null,null,null,null,null,null,null,"東警防第１係"]
[null,null,null,null,null,null,null,null,null,null,null,null,null,null,null,null,null,null,null,null,null,null,null,null,null,null,null,null,null,null,null,null,null,null,null,null,null,null,null,null,null,"東警防第２係"]
[null,null,null,null,null,null,null,null,null,null,null,null,null,null,null,null,null,null,null,null,null,null,null,null,null,null,null,null,null,null,null,null,null,null,null,null,null,null,null,null,null,"東救急第１係"]
[null,null,null,null,null,null,null,null,null,null,null,null,null,null,null,null,null,null,null,null,null,null,null,null,null,null,null,null,null,null,null,null,null,null,null,null,null,null,null,null,null,"東救急第２係"]
[null,null,null,null,null,null,null,null,null,null,null,null,null,null,null,null,null,null,null,null,null,null,null,null,null,null,null,null,null,null,null,null,null,null,null,null,null,null,null,null,null,"岸部出張所第１係"]
[null,null,null,null,null,null,null,null,null,null,null,null,null,null,null,null,null,null,null,null,null,null,null,null,null,null,null,null,null,null,null,null,null,null,null,null,null,null,null,null,null,"岸部出張所第２係"]
[null,null,null,null,null,null,null,null,null,null,null,null,null,null,null,null,null,null,null,null,null,null,null,null,null,null,null,null,null,null,null,null,null,null,null,null,null,null,null,null,null,"東救急第１係（中庁舎）"]
[null,null,null,null,null,null,null,null,null,null,null,null,null,null,null,null,null,null,null,null,null,null,null,null,null,null,null,null,null,null,null,null,null,null,null,null,null,null,null,null,null,"東救急第２係（中庁舎）"]
[null,null,null,null,null,null,null,null,null,null,null,null,null,null,null,null,null,null,null,null,null,null,null,null,null,null,null,null,null,null,null,null,null,null,null,null,null,null,null,null,null,"議会事務局"]
[null,null,null,null,null,null,null,null,null,null,null,null,null,null,null,null,null,null,null,null,null,null,null,null,null,null,null,null,null,null,null,null,null,null,null,null,null,null,null,null,null,"選挙管理委員会事務局"]
[null,null,null,null,null,null,null,null,null,null,null,null,null,null,null,null,null,null,null,null,null,null,null,null,null,null,null,null,null,null,null,null,null,null,null,null,null,null,null,null,null,"監査委員事務局"]
[null,null,null,null,null,null,null,null,null,null,null,null,null,null,null,null,null,null,null,null,null,null,null,null,null,null,null,null,null,null,null,null,null,null,null,null,null,null,null,null,null,"農業委員会事務局"]
[null,null,null,null,null,null,null,null,null,null,null,null,null,null,null,null,null,null,null,null,null,null,null,null,null,null,null,null,null,null,null,null,null,null,null,null,null,null,null,null,null,"教育総務室"]
[null,null,null,null,null,null,null,null,null,null,null,null,null,null,null,null,null,null,null,null,null,null,null,null,null,null,null,null,null,null,null,null,null,null,null,null,null,null,null,null,null,"学校管理課"]
[null,null,null,null,null,null,null,null,null,null,null,null,null,null,null,null,null,null,null,null,null,null,null,null,null,null,null,null,null,null,null,null,null,null,null,null,null,null,null,null,null,"学務課"]
[null,null,null,null,null,null,null,null,null,null,null,null,null,null,null,null,null,null,null,null,null,null,null,null,null,null,null,null,null,null,null,null,null,null,null,null,null,null,null,null,null,"教育未来創生室"]
[null,null,null,null,null,null,null,null,null,null,null,null,null,null,null,null,null,null,null,null,null,null,null,null,null,null,null,null,null,null,null,null,null,null,null,null,null,null,null,null,null,"保健給食室"]
[null,null,null,null,null,null,null,null,null,null,null,null,null,null,null,null,null,null,null,null,null,null,null,null,null,null,null,null,null,null,null,null,null,null,null,null,null,null,null,null,null,"学校教育室"]
[null,null,null,null,null,null,null,null,null,null,null,null,null,null,null,null,null,null,null,null,null,null,null,null,null,null,null,null,null,null,null,null,null,null,null,null,null,null,null,null,null,"教職員課"]
[null,null,null,null,null,null,null,null,null,null,null,null,null,null,null,null,null,null,null,null,null,null,null,null,null,null,null,null,null,null,null,null,null,null,null,null,null,null,null,null,null,"吹田第一幼稚園"]
[null,null,null,null,null,null,null,null,null,null,null,null,null,null,null,null,null,null,null,null,null,null,null,null,null,null,null,null,null,null,null,null,null,null,null,null,null,null,null,null,null,"吹田第三幼稚園"]
[null,null,null,null,null,null,null,null,null,null,null,null,null,null,null,null,null,null,null,null,null,null,null,null,null,null,null,null,null,null,null,null,null,null,null,null,null,null,null,null,null,"吹田南幼稚園"]
[null,null,null,null,null,null,null,null,null,null,null,null,null,null,null,null,null,null,null,null,null,null,null,null,null,null,null,null,null,null,null,null,null,null,null,null,null,null,null,null,null,"千里第二幼稚園"]
[null,null,null,null,null,null,null,null,null,null,null,null,null,null,null,null,null,null,null,null,null,null,null,null,null,null,null,null,null,null,null,null,null,null,null,null,null,null,null,null,null,"千里新田こども園"]
[null,null,null,null,null,null,null,null,null,null,null,null,null,null,null,null,null,null,null,null,null,null,null,null,null,null,null,null,null,null,null,null,null,null,null,null,null,null,null,null,null,"東佐井寺幼稚園"]
[null,null,null,null,null,null,null,null,null,null,null,null,null,null,null,null,null,null,null,null,null,null,null,null,null,null,null,null,null,null,null,null,null,null,null,null,null,null,null,null,null,"岸部第一幼稚園"]
[null,null,null,null,null,null,null,null,null,null,null,null,null,null,null,null,null,null,null,null,null,null,null,null,null,null,null,null,null,null,null,null,null,null,null,null,null,null,null,null,null,"豊津第一幼稚園"]
[null,null,null,null,null,null,null,null,null,null,null,null,null,null,null,null,null,null,null,null,null,null,null,null,null,null,null,null,null,null,null,null,null,null,null,null,null,null,null,null,null,"江坂大池こども園"]
[null,null,null,null,null,null,null,null,null,null,null,null,null,null,null,null,null,null,null,null,null,null,null,null,null,null,null,null,null,null,null,null,null,null,null,null,null,null,null,null,null,"片山幼稚園"]
[null,null,null,null,null,null,null,null,null,null,null,null,null,null,null,null,null,null,null,null,null,null,null,null,null,null,null,null,null,null,null,null,null,null,null,null,null,null,null,null,null,"山田第一幼稚園"]
[null,null,null,null,null,null,null,null,null,null,null,null,null,null,null,null,null,null,null,null,null,null,null,null,null,null,null,null,null,null,null,null,null,null,null,null,null,null,null,null,null,"山田第三幼稚園"]
[null,null,null,null,null,null,null,null,null,null,null,null,null,null,null,null,null,null,null,null,null,null,null,null,null,null,null,null,null,null,null,null,null,null,null,null,null,null,null,null,null,"東山田幼稚園"]
[null,null,null,null,null,null,null,null,null,null,null,null,null,null,null,null,null,null,null,null,null,null,null,null,null,null,null,null,null,null,null,null,null,null,null,null,null,null,null,null,null,"南山田幼稚園"]
[null,null,null,null,null,null,null,null,null,null,null,null,null,null,null,null,null,null,null,null,null,null,null,null,null,null,null,null,null,null,null,null,null,null,null,null,null,null,null,null,null,"佐竹台幼稚園"]
[null,null,null,null,null,null,null,null,null,null,null,null,null,null,null,null,null,null,null,null,null,null,null,null,null,null,null,null,null,null,null,null,null,null,null,null,null,null,null,null,null,"教育センター"]
[null,null,null,null,null,null,null,null,null,null,null,null,null,null,null,null,null,null,null,null,null,null,null,null,null,null,null,null,null,null,null,null,null,null,null,null,null,null,null,null,null,"まなびの支援課"]
[null,null,null,null,null,null,null,null,null,null,null,null,null,null,null,null,null,null,null,null,null,null,null,null,null,null,null,null,null,null,null,null,null,null,null,null,null,null,null,null,null,"中央図書館"]
[null,null,null,null,null,null,null,null,null,null,null,null,null,null,null,null,null,null,null,null,null,null,null,null,null,null,null,null,null,null,null,null,null,null,null,null,null,null,null,null,null,"千里図書館"]
[null,null,null,null,null,null,null,null,null,null,null,null,null,null,null,null,null,null,null,null,null,null,null,null,null,null,null,null,null,null,null,null,null,null,null,null,null,null,null,null,null,"さんくす図書館"]
[null,null,null,null,null,null,null,null,null,null,null,null,null,null,null,null,null,null,null,null,null,null,null,null,null,null,null,null,null,null,null,null,null,null,null,null,null,null,null,null,null,"江坂図書館"]
[null,null,null,null,null,null,null,null,null,null,null,null,null,null,null,null,null,null,null,null,null,null,null,null,null,null,null,null,null,null,null,null,null,null,null,null,null,null,null,null,null,"千里山・佐井寺図書館"]
[null,null,null,null,null,null,null,null,null,null,null,null,null,null,null,null,null,null,null,null,null,null,null,null,null,null,null,null,null,null,null,null,null,null,null,null,null,null,null,null,null,"千里丘図書館"]
[null,null,null,null,null,null,null,null,null,null,null,null,null,null,null,null,null,null,null,null,null,null,null,null,null,null,null,null,null,null,null,null,null,null,null,null,null,null,null,null,null,"山田駅前図書館"]
[null,null,null,null,null,null,null,null,null,null,null,null,null,null,null,null,null,null,null,null,null,null,null,null,null,null,null,null,null,null,null,null,null,null,null,null,null,null,null,null,null,"健都ライブラリー"]
[null,null,null,null,null,null,null,null,null,null,null,null,null,null,null,null,null,null,null,null,null,null,null,null,null,null,null,null,null,null,null,null,null,null,null,null,null,null,null,null,null,"北千里図書館"]
[null,null,null,null,null,null,null,null,null,null,null,null,null,null,null,null,null,null,null,null,null,null,null,null,null,null,null,null,null,null,null,null,null,null,null,null,null,null,null,null,null,"文化財保護課"]
[null,null,null,null,null,null,null,null,null,null,null,null,null,null,null,null,null,null,null,null,null,null,null,null,null,null,null,null,null,null,null,null,null,null,null,null,null,null,null,null,null,"博物館"]
[null,null,null,null,null,null,null,null,null,null,null,null,null,null,null,null,null,null,null,null,null,null,null,null,null,null,null,null,null,null,null,null,null,null,null,null,null,null,null,null,null,"青少年室"]
[null,null,null,null,null,null,null,null,null,null,null,null,null,null,null,null,null,null,null,null,null,null,null,null,null,null,null,null,null,null,null,null,null,null,null,null,null,null,null,null,null,"青少年クリエイティブセンター"]
[null,null,null,null,null,null,null,null,null,null,null,null,null,null,null,null,null,null,null,null,null,null,null,null,null,null,null,null,null,null,null,null,null,null,null,null,null,null,null,null,null,"放課後子ども育成室"]
[null,null,null,null,null,null,null,null,null,null,null,null,null,null,null,null,null,null,null,null,null,null,null,null,null,null,null,null,null,null,null,null,null,null,null,null,null,null,null,null,null,"（水）総務室"]
[null,null,null,null,null,null,null,null,null,null,null,null,null,null,null,null,null,null,null,null,null,null,null,null,null,null,null,null,null,null,null,null,null,null,null,null,null,null,null,null,null,"企画室"]
[null,null,null,null,null,null,null,null,null,null,null,null,null,null,null,null,null,null,null,null,null,null,null,null,null,null,null,null,null,null,null,null,null,null,null,null,null,null,null,null,null,"工務室"]
[null,null,null,null,null,null,null,null,null,null,null,null,null,null,null,null,null,null,null,null,null,null,null,null,null,null,null,null,null,null,null,null,null,null,null,null,null,null,null,null,null,"浄水室"]

{"sheet":"課長代理","index":3,"n_rows":178,"n_cols":46,"rows_kept":178,"cut":false,"hidden":false,"merged":[[51,0,53,3],[51,14,51,23],[55,20,57,20],[55,21,57,27],[56,1,56,3],[56,4,56,8],[56,9,56,13],[56,14,56,18],[57,1,57,3],[57,4,57,8],[57,9,57,13],[57,14,57,18],[53,14,53,19],[53,20,53,22],[52,18,52,21],[51,4,52,13],[50,24,53,27],[52,14,52,16],[53,4,53,6],[53,8,53,11],[0,9,1,18],[49,0,49,13],[49,14,49,23],[46,22,46,25],[41,3,41,8],[41,9,41,14],[49,24,49,27],[44,0,47,8],[44,10,47,18],[44,20,46,21],[3,24,3,27],[8,2,8,3],[8,4,8,14],[45,22,45,25],[45,26,45,27],[44,26,44,27],[46,26,46,27],[47,20,47,21],[47,22,47,25],[47,26,47,27],[40,2,40,14],[40,15,42,16],[40,17,42,21],[40,22,42,24],[40,25,42,27],[41,1,42,2],[42,3,42,8],[42,9,42,14],[44,22,44,25],[36,2,36,14],[36,15,38,16],[36,17,38,21],[36,22,38,24],[36,25,38,27],[37,1,38,2],[37,3,37,8],[37,9,37,14],[38,3,38,8],[38,9,38,14],[32,2,32,14],[32,15,34,16],[32,17,34,21],[32,22,34,24],[32,25,34,27],[33,1,34,2],[33,3,33,8],[33,9,33,14],[34,3,34,8],[34,9,34,14],[28,2,28,14],[28,15,30,16],[28,17,30,21],[28,22,30,24],[28,25,30,27],[29,1,30,2],[29,3,29,8],[29,9,29,14],[30,3,30,8],[30,9,30,14],[22,9,22,14],[24,2,24,14],[24,15,26,16],[24,17,26,21],[24,22,26,24],[24,25,26,27],[25,1,26,2],[25,3,25,8],[25,9,25,14],[26,3,26,8],[26,9,26,14],[14,0,42,0],[14,1,14,14],[14,15,14,21],[14,22,14,24],[14,25,14,27],[16,2,16,14],[16,15,18,16],[16,17,18,21],[16,22,18,24],[16,25,18,27],[17,1,18,2],[17,3,17,8],[17,9,17,14],[18,3,18,8],[18,9,18,14],[20,2,20,14],[20,15,22,16],[20,17,22,21],[20,22,22,24],[20,25,22,27],[21,1,22,2],[21,3,21,8],[21,9,21,14],[22,3,22,8],[2,0,3,0],[2,1,3,1],[2,2,2,6],[2,7,2,9],[2,10,2,12],[2,13,2,14],[3,2,3,6],[2,15,2,18],[7,17,10,21],[2,19,2,27],[7,22,10,24],[3,7,3,9],[3,10,3,12],[3,13,3,14],[3,15,3,18],[7,25,10,27],[3,19,3,22],[9,2,9,3],[10,2,10,3],[7,1,10,1],[7,2,7,3],[12,22,12,27],[5,0,10,0],[5,1,5,14],[5,15,5,21],[5,22,5,24],[5,25,5,27],[9,4,9,14],[10,4,10,14],[7,4,7,14],[7,15,10,16],[12,0,12,4],[12,5,12,9],[61,19,61,27],[62,2,62,6],[62,7,62,9],[62,10,62,12],[62,13,62,14],[62,15,62,18],[62,19,62,22],[62,24,62,27],[59,9,60,18],[61,2,61,6],[61,7,61,9],[61,10,61,12],[61,13,61,14],[61,15,61,18],[64,25,64,27],[66,1,69,1],[66,2,66,3],[66,4,66,14],[66,15,69,16],[66,25,69,27],[68,2,68,3],[68,4,68,14],[69,2,69,3],[69,4,69,14],[66,17,69,24],[64,15,64,24],[67,2,67,3],[67,4,67,14],[73,25,73,27],[75,2,75,14],[75,15,77,16],[75,25,77,27],[76,1,77,2],[76,3,76,8],[76,9,76,14],[77,3,77,8],[71,0,71,4],[71,5,71,9],[71,22,71,27],[73,15,73,24],[73,0,101,0],[73,1,73,14],[83,25,85,27],[84,1,85,2],[84,3,84,8],[84,9,84,14],[85,3,85,8],[85,9,85,14],[77,9,77,14],[75,17,77,24],[79,2,79,14],[79,15,81,16],[79,25,81,27],[80,1,81,2],[80,3,80,8],[80,9,80,14],[81,3,81,8],[81,9,81,14],[83,17,85,24],[79,17,81,24],[83,2,83,14],[83,15,85,16],[91,25,93,27],[92,1,93,2],[92,3,92,8],[92,9,92,14],[93,3,93,8],[93,9,93,14],[87,2,87,14],[87,15,89,16],[87,25,89,27],[88,1,89,2],[88,3,88,8],[88,9,88,14],[89,3,89,8],[89,9,89,14],[91,17,93,24],[87,17,89,24],[91,2,91,14],[91,15,93,16],[99,25,101,27],[100,1,101,2],[100,3,100,8],[100,9,100,14],[101,3,101,8],[101,9,101,14],[95,2,95,14],[95,15,97,16],[95,25,97,27],[96,1,97,2],[96,3,96,8],[96,9,96,14],[97,3,97,8],[97,9,97,14],[99,17,101,24],[95,17,97,24],[99,2,99,14],[99,15,101,16],[103,20,105,21],[114,0,116,0],[114,1,114,3],[114,9,114,13],[114,20,116,20],[114,21,116,27],[115,1,115,3],[103,22,103,25],[108,0,108,7],[109,0,111,7],[112,0,112,1],[112,3,112,6],[103,26,103,27],[105,22,105,25],[105,26,105,27],[106,20,106,21],[106,22,106,25],[106,26,106,27],[112,16,112,17],[104,22,104,25],[104,26,104,27],[103,0,106,8],[103,10,106,18],[119,20,120,20],[119,0,120,0],[119,1,120,1],[119,2,120,2],[119,3,120,3],[119,4,120,4],[119,5,119,19],[108,24,108,27],[109,24,112,27],[112,19,112,22],[108,8,108,23],[109,8,111,23],[114,4,114,8],[112,11,112,14],[119,21,120,21],[115,9,115,13],[115,14,115,18],[116,1,116,3],[116,4,116,8],[116,14,116,18],[114,14,114,18],[116,9,116,13],[115,4,115,8],[64,0,69,0],[64,1,64,14],[61,0,62,0],[61,1,62,1],[55,0,57,0],[55,1,55,3],[55,4,55,8],[55,9,55,13],[55,14,55,18]]}
["令和",6,"年度",null,null,null,null,null,null,"勤務評価シート",null,null,null,null,null,null,null,null,null,null,null,null,null,null,null,null,null,"4"]
["事務・技術・専門　課長代理等"]
["基礎情報","被評価者","所属名",null,null,null,null,"補職級",null,null,"職種",null,null,"職員番号",null,"氏名",null,null,null,"評価期間",null,null,null,null,null,null,null,null,null,null,null,null,null,null,null,null,null,null,null,null,null,null,null,"危機管理室","課長代理級","一般事務"]
[null,null,null,null,null,null,null,"課長代理級",null,null,null,null,null,null,null,null,null,null,null,null,null,null,null,"～",null,null,null,null,null,null,null,null,null,null,null,null,null,null,null,null,null,null,null,"秘書課",null,"一般事務（府教委）"]
[null,null,null,null,null,null,null,null,null,null,null,null,null,null,null,null,null,null,null,null,null,null,null,null,null,null,null,null,null,null,null,null,null,null,null,null,null,null,null,null,null,null,null,"広報課",null,"一般事務（司書）"]
["【業績】","評価基準・着眼点",null,null,null,null,null,null,null,null,null,null,null,null,null,"自己評価",null,null,null,null,null,null,"１次評価",null,null,"２次評価",null,null,null,null,null,null,null,null,null,null,null,null,null,null,null,null,null,"総務室",null,"一般事務（体育）"]
[null,"【業績】",null,null,null,null,null,null,null,null,null,null,null,null,null,"（評価点）",null,"（コメント）",null,null,null,null,"（評価点）",null,null,"（評価点）",null,null,null,null,null,null,null,null,null,null,null,null,null,null,null,null,null,"法制室",null,"一般技術"]
[null,"評価点","４（特に良好）",null,"職階からみて、期待された水準をはるかに上回る業績をあげた",null,null,null,null,null,null,null,null,null,null,null,null,null,null,null,null,null,null,null,null,null,null,null,null,null,null,null,null,null,null,null,null,null,null,null,null,null,null,"人事室",null,"一般技術（電気）"]
[null,null,"３（良好）",null,"職階からみて、期待された以上の業績をあげた"]
[null,null,"２（標準）",null,"職階からみて、相応の業績である",null,null,null,null,null,null,null,null,null,null,null,null,null,null,null,null,null,null,null,null,null,null,null,null,null,null,null,null,null,null,null,null,null,null,null,null,null,null,"契約検査室",null,"一般技術（土木）"]
[null,null,"１（要努力）",null,"職階からみて、期待された水準に達しておらず、努力が必要である",null,null,null,null,null,null,null,null,null,null,null,null,null,null,null,null,null,null,null,null,null,null,null,null,null,null,null,null,null,null,null,null,null,null,null,null,null,null,"企画財政室",null,"一般技術（機械）"]
[null,null,null,null,null,null,null,null,null,null,null,null,null,null,null,null,null,null,null,null,null,null,null,null,null,null,null,null,null,null,null,null,null,null,null,null,null,null,null,null,null,null,null,"情報政策室",null,"一般技術（建築）"]
["≪【業績】の評価項目数の取扱い≫\n　・次長級以上は評価点を４倍\n　・課長級は評価点を３倍　　",null,null,null,null,"\n・課長代理級は評価点を３倍\n・主査級は評価点を２倍",null,null,null,null,null,null,null,null,null,null,null,null,null,null,null,null,"【業績】\n　　評価点が３個あるものとして取扱い",null,null,null,null,null,null,null,null,null,null,null,null,null,null,null,null,null,null,null,null,"税制課",null,"一般技術（化学）"]
[null,null,null,null,null,null,null,null,null,null,null,null,null,null,null,null,null,null,null,null,null,null,null,null,null,null,null,null,null,null,null,null,null,null,null,null,null,null,null,null,null,null,null,"資産税課",null,"保育教諭"]
["【能力】","評価項目及び行動・着眼点",null,null,null,null,null,null,null,null,null,null,null,null,null,"自己評価",null,null,null,null,null,null,"１次評価",null,null,"２次評価",null,null,null,null,null,null,null,null,null,null,null,null,null,null,null,null,null,"市民税課",null,"生活指導員"]
[null,"【市民視点・法令遵守】",null,null,null,null,null,null,null,null,null,null,null,null,null,"（評価点）",null,"（コメント）",null,null,null,null,"（評価点）",null,null,"（評価点）",null,null,null,null,null,null,null,null,null,null,null,null,null,null,null,null,null,"納税課",null,"発達指導員"]
[null,null,"丁寧な応対を心掛けるなど、全体の奉仕者として、常に市民の立場や市民協働の視点に立つことができるとともに、法令等及び服務規律を順守して、公平かつ公正に業務を遂行することができる。",null,null,null,null,null,null,null,null,null,null,null,null,null,null,null,null,null,null,null,null,null,null,null,null,null,null,null,null,null,null,null,null,null,null,null,null,null,null,null,null,"債権管理課",null,"学芸員"]
[null,"着眼点",null,"・接遇",null,null,null,null,null,"・法令順守",null,null,null,null,null,null,null,null,null,null,null,null,null,null,null,null,null,null,null,null,null,null,null,null,null,null,null,null,null,null,null,null,null,"市民総務室",null,"栄養士"]
[null,null,null,"・公平・公正な姿勢",null,null,null,null,null,"・責任感",null,null,null,null,null,null,null,null,null,null,null,null,null,null,null,null,null,null,null,null,null,null,null,null,null,null,null,null,null,null,null,null,null,"市民課",null,"診療放射線技師"]
[null,"【コミュニケーション】",null,null,null,null,null,null,null,null,null,null,null,null,null,"（評価点）",null,"（コメント）",null,null,null,null,"（評価点）",null,null,"（評価点）",null,null,null,null,null,null,null,null,null,null,null,null,null,null,null,null,null,"山田出張所",null,"言語聴覚士"]
[null,null,"様々な相手と円滑かつ適切なコミュニケーションを取ることができる。",null,null,null,null,null,null,null,null,null,null,null,null,null,null,null,null,null,null,null,null,null,null,null,null,null,null,null,null,null,null,null,null,null,null,null,null,null,null,null,null,"千里丘出張所",null,"理学療法士"]
[null,"着眼点",null,"・市民に対する傾聴と対話の姿勢",null,null,null,null,null,"・柔軟な姿勢と一貫した主張のバランス",null,null,null,null,null,null,null,null,null,null,null,null,null,null,null,null,null,null,null,null,null,null,null,null,null,null,null,null,null,null,null,null,null,"千里出張所",null,"作業療法士"]
[null,null,null,"・誠実さ",null,null,null,null,null,"・職場でのコミュニケーション促進",null,null,null,null,null,null,null,null,null,null,null,null,null,null,null,null,null,null,null,null,null,null,null,null,null,null,null,null,null,null,null,null,null,"人権政策室",null,"歯科衛生士"]
[null,"【課題の解決】",null,null,null,null,null,null,null,null,null,null,null,null,null,"（評価点）",null,"（コメント）",null,null,null,null,"（評価点）",null,null,"（評価点）",null,null,null,null,null,null,null,null,null,null,null,null,null,null,null,null,null,"交流活動館",null,"保健師"]
[null,null,"担当業務の課題について、周囲の状況を把握した上で、組織方針に基づき、解決のための施策の企画、立案及び実務の中核を担うことができる。",null,null,null,null,null,null,null,null,null,null,null,null,null,null,null,null,null,null,null,null,null,null,null,null,null,null,null,null,null,null,null,null,null,null,null,null,null,null,null,null,"男女共同参画センター",null,"看護師"]
[null,"着眼点",null,"・幅広い視野",null,null,null,null,null,"・状況の構造的把握",null,null,null,null,null,null,null,null,null,null,null,null,null,null,null,null,null,null,null,null,null,null,null,null,null,null,null,null,null,null,null,null,null,"市民自治推進室",null,"精神保健福祉士"]
[null,null,null,"・創造力、想像力",null,null,null,null,null,"・挑戦する姿勢",null,null,null,null,null,null,null,null,null,null,null,null,null,null,null,null,null,null,null,null,null,null,null,null,null,null,null,null,null,null,null,null,null,"地域経済振興室",null,"獣医師"]
[null,"【判断】",null,null,null,null,null,null,null,null,null,null,null,null,null,"（評価点）",null,"（コメント）",null,null,null,null,"（評価点）",null,null,"（評価点）",null,null,null,null,null,null,null,null,null,null,null,null,null,null,null,null,null,"シティプロモーション推進室",null,"薬剤師"]
[null,null,"担当業務の課題について、総合的な判断を行うことができる。",null,null,null,null,null,null,null,null,null,null,null,null,null,null,null,null,null,null,null,null,null,null,null,null,null,null,null,null,null,null,null,null,null,null,null,null,null,null,null,null,"文化スポーツ推進室",null,"管理栄養士"]
[null,"着眼点",null,"・知識、経験、情報収集",null,null,null,null,null,"・決断力",null,null,null,null,null,null,null,null,null,null,null,null,null,null,null,null,null,null,null,null,null,null,null,null,null,null,null,null,null,null,null,null,null,"子育て政策室"]
[null,null,null,"・リスク対応",null,null,null,null,null,"・適切かつスピード感ある対応",null,null,null,null,null,null,null,null,null,null,null,null,null,null,null,null,null,null,null,null,null,null,null,null,null,null,null,null,null,null,null,null,null,"子育て給付課"]
[null,"【説明・調整】",null,null,null,null,null,null,null,null,null,null,null,null,null,"（評価点）",null,"（コメント）",null,null,null,null,"（評価点）",null,null,"（評価点）",null,null,null,null,null,null,null,null,null,null,null,null,null,null,null,null,null,"家庭児童相談室"]
[null,null,"担当業務の課題について、関係者との合意の形成に向けて、上司を助けて、論理的な説明及び粘り強い調整を行うことができる。",null,null,null,null,null,null,null,null,null,null,null,null,null,null,null,null,null,null,null,null,null,null,null,null,null,null,null,null,null,null,null,null,null,null,null,null,null,null,null,null,"のびのび子育てプラザ"]
[null,"着眼点",null,"・論理的構成力",null,null,null,null,null,"・信頼関係の構築",null,null,null,null,null,null,null,null,null,null,null,null,null,null,null,null,null,null,null,null,null,null,null,null,null,null,null,null,null,null,null,null,null,"保育幼稚園室"]
[null,null,null,"・対人折衝力",null,null,null,null,null,"・ねばり強さ",null,null,null,null,null,null,null,null,null,null,null,null,null,null,null,null,null,null,null,null,null,null,null,null,null,null,null,null,null,null,null,null,null,"山田保育園"]
[null,"【業務改善】",null,null,null,null,null,null,null,null,null,null,null,null,null,"（評価点）",null,"（コメント）",null,null,null,null,"（評価点）",null,null,"（評価点）",null,null,null,null,null,null,null,null,null,null,null,null,null,null,null,null,null,"いずみ保育園"]
[null,null,"効率的かつ効果的に段取りや手順を組み立て、担当業務を進めることができる。",null,null,null,null,null,null,null,null,null,null,null,null,null,null,null,null,null,null,null,null,null,null,null,null,null,null,null,null,null,null,null,null,null,null,null,null,null,null,null,null,"南千里保育園"]
[null,"着眼点",null,"・優先順位を見極めた計画",null,null,null,null,null,"・効果的な選択と集中",null,null,null,null,null,null,null,null,null,null,null,null,null,null,null,null,null,null,null,null,null,null,null,null,null,null,null,null,null,null,null,null,null,"ことぶき保育園"]
[null,null,null,"・コスト意識",null,null,null,null,null,"・所属職員の長時間勤務の是正",null,null,null,null,null,null,null,null,null,null,null,null,null,null,null,null,null,null,null,null,null,null,null,null,null,null,null,null,null,null,null,null,null,"岸部保育園"]
[null,"【組織マネジメント・人材育成】",null,null,null,null,null,null,null,null,null,null,null,null,null,"（評価点）",null,"（コメント）",null,null,null,null,"（評価点）",null,null,"（評価点）",null,null,null,null,null,null,null,null,null,null,null,null,null,null,null,null,null,"千里山保育園"]
[null,null,"情報の共有を図りつつ、所属職員を指揮監督することができるとともに、部下等の指導及び育成を行うことができる。",null,null,null,null,null,null,null,null,null,null,null,null,null,null,null,null,null,null,null,null,null,null,null,null,null,null,null,null,null,null,null,null,null,null,null,null,null,null,null,null,"東保育園"]
[null,"着眼点",null,"・情報共有、情報発信",null,null,null,null,null,"・部下育成力、統率力、牽引力",null,null,null,null,null,null,null,null,null,null,null,null,null,null,null,null,null,null,null,null,null,null,null,null,null,null,null,null,null,null,null,null,null,"垂水保育園"]
[null,null,null,"・適切な業務配分及び進捗管理",null,null,null,null,null,"・職員のワークライフバランスの視点",null,null,null,null,null,null,null,null,null,null,null,null,null,null,null,null,null,null,null,null,null,null,null,null,null,null,null,null,null,null,null,null,null,"吹一保育園"]
[null,null,null,null,null,null,null,null,null,null,null,null,null,null,null,null,null,null,null,null,null,null,null,null,null,null,null,null,null,null,null,null,null,null,null,null,null,null,null,null,null,null,null,"吹六保育園"]
["≪【能力】の評価点≫\n◆　「４（特に良好）」…求められる行動が確実にとられており、他の職員の模範となる職務遂行状況である。\n◆　「３（良好）」…求められる行動が確実にとられていた。\n◆　「２（標準）」…求められる行動が概ねとられていた。\n◆　「１（要努力）」…求められる行動がとられていることが少なく（全くなく）、改善に向け努力が必要である。",null,null,null,null,null,null,null,null,null,"≪総合評価区分と評価点との関係：基準≫\n◆　「良好」…原則、【業績】及び【能力】の評価項目の３分の２以上が「２（標準）」以上の場合に該当する。\n◆　「やや不良」…原則、【業績】及び【能力】の評価項目の３分の１超半数以下が「１（標準未満）」の場合に該当する。\n◆　「不良」…原則、【業績】及び【能力】の評価項目の半数超が「１（標準未満）」であるとともに、分限（降任・免職）処分を検討する必要があると判断する場合に該当する。",null,null,null,null,null,null,null,null,null,"【業績】及び\n【能力】の\n評価項目数の合計",null,"「4（特に良好）」\nの個数",null,null,null,{"$f":"IF(Z8=\"\",\"\",IF(Z17=\"\",\"\",IF(Z21=\"\",\"\",IF(Z25=\"\",\"\",IF(Z29=\"\",\"\",IF(Z33=\"\",\"\",IF(Z37=\"\",\"\",IF(Z41=\"\",\"\",COUNTIF(Z17:AB43,4)+IF(Z8=4,3,0)))))))))","v":""},null,null,null,null,null,null,null,null,null,null,null,null,null,null,null,null,"片山保育園"]
[null,null,null,null,null,null,null,null,null,null,null,null,null,null,null,null,null,null,null,null,null,null,"「3（良好）」\nの個数",null,null,null,{"$f":"IF(Z8=\"\",\"\",IF(Z17=\"\",\"\",IF(Z21=\"\",\"\",IF(Z25=\"\",\"\",IF(Z29=\"\",\"\",IF(Z33=\"\",\"\",IF(Z37=\"\",\"\",IF(Z41=\"\",\"\",COUNTIF(Z17:AB43,3)+IF(Z8=3,3,0)))))))))","v":""}]
[null,null,null,null,null,null,null,null,null,null,null,null,null,null,null,null,null,null,null,null,null,null,"「２（標準）」\nの個数",null,null,null,{"$f":"IF(Z8=\"\",\"\",IF(Z17=\"\",\"\",IF(Z21=\"\",\"\",IF(Z25=\"\",\"\",IF(Z29=\"\",\"\",IF(Z33=\"\",\"\",IF(Z37=\"\",\"\",IF(Z41=\"\",\"\",COUNTIF(Z17:AB43,2)+IF(Z8=2,3,0)))))))))","v":""},null,null,null,null,null,null,null,null,null,null,null,null,null,null,null,null,"千三保育園"]
[null,null,null,null,null,null,null,null,null,null,null,null,null,null,null,null,null,null,null,null,10,null,"「１（要努力）」\nの個数",null,null,null,{"$f":"IF(Z8=\"\",\"\",IF(Z17=\"\",\"\",IF(Z21=\"\",\"\",IF(Z25=\"\",\"\",IF(Z29=\"\",\"\",IF(Z33=\"\",\"\",IF(Z37=\"\",\"\",IF(Z41=\"\",\"\",COUNTIF(Z17:AB43,1)+IF(Z8=1,3,0)))))))))","v":""},null,null,null,null,null,null,null,null,null,null,null,null,null,null,null,null,"山三保育園"]
[null,null,null,null,null,null,null,null,null,null,null,null,null,null,null,null,null,null,null,null,null,null,null,null,null,null,null,null,null,null,null,null,null,null,null,null,null,null,null,null,null,null,null,"はぎのきこども園"]
["１次評価者所見等",null,null,null,null,null,null,null,null,null,null,null,null,null,"２次評価者所見",null,null,null,null,null,null,null,null,null,"総合評価",null,null,null,null,null,null,null,null,null,null,null,null,null,null,null,null,null,null,"いずみ小規模園"]
["ピカッとポイント",null,null,null,"所見（「２」以外の評価点の項目に重点を置き記入すること。）",null,null,null,null,null,null,null,null,null,"所見（「２」以外の評価点の項目に重点を置き記入すること。）",null,null,null,null,null,null,null,null,null,{"$f":"IF(AA45=\"\",\"\",IF(AA46=\"\",\"\",IF(AA47=\"\",\"\",IF(AA48=\"\",\"\",IF(AA45+AA46+AA47>=7,\"良好\",IF(AND((AA45+AA46+AA47)>=5,(AA45+AA46+AA47)<=6),\"やや不良\",IF(AA45+AA46+AA47<=4,\"不良\")))))))","v":""},null,null,null,null,null,null,null,null,null,null,null,null,null,null,null,null,null,null,"こども発達支援センター"]
[null,null,null,null,null,null,null,null,null,null,null,null,null,null,null,null,null,null,null,null,null,null,null,null,null,null,null,null,null,null,null,null,null,null,null,null,null,null,null,null,null,null,null,"地域支援センター"]
[null,null,null,null,null,null,null,null,null,null,null,null,null,null,"2次評価者",null,null,"（",null,null,null,null,"）","㊞　　　　",null,null,null,null,null,null,null,null,null,null,null,null,null,null,null,null,null,null,null,"杉の子学園"]
[null,null,null,null,"１次評価者",null,null,"（",null,null,null,null,"）",null,"(設定している場合）評価事務補助者（",null,null,null,null,null,null,null,null,"）",null,null,null,null,null,null,null,null,null,null,null,null,null,null,null,null,null,null,null,"わかたけ園"]
[null,null,null,null,null,null,null,null,null,null,null,null,null,null,null,null,null,null,null,null,null,null,null,null,null,null,null,null,null,null,null,null,null,null,null,null,null,null,null,null,null,null,null,"福祉総務室"]
["給与反映区分","総合評価",null,null,"良好",null,null,null,null,"やや不良",null,null,null,null,"不良",null,null,null,null,null,"備考欄",null,null,null,null,null,null,null,null,null,null,null,null,null,null,null,null,null,null,null,null,null,null,"総合福祉会館"]
[null,"昇給号数",null,null,"４号",null,null,null,null,"２号",null,null,null,null,"昇給なし",null,null,null,null,null,null,null,null,null,null,null,null,null,null,null,null,null,null,null,null,null,null,null,null,null,null,null,null,"生活福祉室"]
[null,"勤勉手当支給割合",null,null,"吹田市期末手当及び\n勤勉手当の支給に関する\n規則で定める支給割合",null,null,null,null,"良好の１０％減として、\n同規則で定める支給割合",null,null,null,null,"良好の２０％減として、\n同規則で定める支給割合",null,null,null,null,null,null,null,null,null,null,null,null,null,null,null,null,null,null,null,null,null,null,null,null,null,null,null,null,"福祉指導監査室"]
[null,null,null,null,null,null,null,null,null,null,null,null,null,null,null,null,null,null,"※水道部は、吹田市水道部企業職員給与規程",null,null,null,null,null,null,null,null,null,null,null,null,null,null,null,null,null,null,null,null,null,null,null,null,"高齢福祉室"]
[{"$f":"A1","v":"令和"},{"$f":"B1","v":6},{"$f":"C1","v":"年度"},null,null,null,null,null,null,"勤務評価シート（開示用）",null,null,null,null,null,null,null,null,null,null,null,null,null,null,null,null,null,"4",null,null,null,null,null,null,null,null,null,null,null,null,null,null,null,"障がい福祉室"]
["事務・技術・専門　課長代理等",null,null,null,null,null,null,null,null,null,null,null,null,null,null,null,null,null,null,null,null,null,null,null,null,null,null,null,null,null,null,null,null,null,null,null,null,null,null,null,null,null,null,"健康まちづくり室"]
["基礎情報","被評価者","所属名",null,null,null,null,"補職級",null,null,"職種",null,null,"職員番号",null,"氏名",null,null,null,"評価期間",null,null,null,null,null,null,null,null,null,null,null,null,null,null,null,null,null,null,null,null,null,null,null,"病院総務室"]
[null,null,{"$f":"+C4","v":0},null,null,null,null,{"$f":"+H4","v":"課長代理級"},null,null,{"$f":"+K4","v":0},null,null,{"$f":"+N4","v":0},null,{"$f":"+P4","v":0},null,null,null,{"$f":"T4","v":"00:00:00"},null,null,null,"～",{"$f":"Y4","v":"00:00:00"},null,null,null,null,null,null,null,null,null,null,null,null,null,null,null,null,null,null,"医療事務室"]
[null,null,null,null,null,null,null,null,null,null,null,null,null,null,null,null,null,null,null,null,null,null,null,null,null,null,null,null,null,null,null,null,null,null,null,null,null,null,null,null,null,null,null,"成人保健課"]
["【業績】","評価基準・着眼点",null,null,null,null,null,null,null,null,null,null,null,null,null,"自己評価",null,null,null,null,null,null,null,null,null,"最終評価",null,null,null,null,null,null,null,null,null,null,null,null,null,null,null,null,null,"母子保健課"]
[null,"【業績】",null,null,null,null,null,null,null,null,null,null,null,null,null,"（評価点）",null,"（コメント）",null,null,null,null,null,null,null,"（評価点）",null,null,null,null,null,null,null,null,null,null,null,null,null,null,null,null,null,"（後期高齢）"]
[null,"評価点","４（特に良好）",null,"職階からみて、期待された水準をはるかに上回る業績をあげた",null,null,null,null,null,null,null,null,null,null,{"$f":"+P8","v":0},null,{"$f":"+R8","v":0},null,null,null,null,null,null,null,{"$f":"+Z8","v":0},null,null,null,null,null,null,null,null,null,null,null,null,null,null,null,null,null,"国民健康保険課"]
[null,null,"３（良好）",null,"職階からみて、期待された以上の業績をあげた"]
[null,null,"２（標準）",null,"職階からみて、相応の業績である",null,null,null,null,null,null,null,null,null,null,null,null,null,null,null,null,null,null,null,null,null,null,null,null,null,null,null,null,null,null,null,null,null,null,null,null,null,null,"保健医療総務室"]
[null,null,"１（要努力）",null,"職階からみて、期待された水準に達しておらず、努力が必要である",null,null,null,null,null,null,null,null,null,null,null,null,null,null,null,null,null,null,null,null,null,null,null,null,null,null,null,null,null,null,null,null,null,null,null,null,null,null,"衛生管理課"]
[null,null,null,null,null,null,null,null,null,null,null,null,null,null,null,null,null,null,null,null,null,null,null,null,null,null,null,null,null,null,null,null,null,null,null,null,null,null,null,null,null,null,null,"地域保健課"]
["≪【業績】の評価項目数の取扱い≫\n　・次長級以上は評価点を４倍\n　・課長級は評価点を３倍　　",null,null,null,null,"\n・課長代理級は評価点を３倍\n・主査級は評価点を２倍",null,null,null,null,null,null,null,null,null,null,null,null,null,null,null,null,"【業績】\n　　評価点が３個あるものとして取扱い",null,null,null,null,null,null,null,null,null,null,null,null,null,null,null,null,null,null,null,null,"環境政策室"]
[null,null,null,null,null,null,null,null,null,null,null,null,null,null,null,null,null,null,null,null,null,null,null,null,null,null,null,null,null,null,null,null,null,null,null,null,null,null,null,null,null,null,null,"環境保全指導課"]
["【能力】","評価項目及び行動・着眼点",null,null,null,null,null,null,null,null,null,null,null,null,null,"自己評価",null,null,null,null,null,null,null,null,null,"最終評価",null,null,null,null,null,null,null,null,null,null,null,null,null,null,null,null,null,"事業課"]
[null,"【市民視点・法令遵守】",null,null,null,null,null,null,null,null,null,null,null,null,null,"（評価点）",null,"（コメント）",null,null,null,null,null,null,null,"（評価点）",null,null,null,null,null,null,null,null,null,null,null,null,null,null,null,null,null,"資源循環エネルギーセンター"]
[null,null,"丁寧な応対を心掛けるなど、全体の奉仕者として、常に市民の立場や市民協働の視点に立つことができるとともに、法令等及び服務規律を順守して、公平かつ公正に業務を遂行することができる。",null,null,null,null,null,null,null,null,null,null,null,null,{"$f":"+P17","v":0},null,{"$f":"+R17","v":0},null,null,null,null,null,null,null,{"$f":"+Z17","v":0},null,null,null,null,null,null,null,null,null,null,null,null,null,null,null,null,null,"破砕選別工場"]
[null,"着眼点",null,"・接遇",null,null,null,null,null,"・法令順守",null,null,null,null,null,null,null,null,null,null,null,null,null,null,null,null,null,null,null,null,null,null,null,null,null,null,null,null,null,null,null,null,null,"都市計画室"]
[null,null,null,"・公平・公正な姿勢",null,null,null,null,null,"・責任感",null,null,null,null,null,null,null,null,null,null,null,null,null,null,null,null,null,null,null,null,null,null,null,null,null,null,null,null,null,null,null,null,null,"計画調整室"]
[null,"【コミュニケーション】",null,null,null,null,null,null,null,null,null,null,null,null,null,"（評価点）",null,"（コメント）",null,null,null,null,null,null,null,"（評価点）",null,null,null,null,null,null,null,null,null,null,null,null,null,null,null,null,null,"開発審査室"]
[null,null,"様々な相手と円滑かつ適切なコミュニケーションを取ることができる。",null,null,null,null,null,null,null,null,null,null,null,null,{"$f":"+P21","v":0},null,{"$f":"+R21","v":0},null,null,null,null,null,null,null,{"$f":"+Z21","v":0},null,null,null,null,null,null,null,null,null,null,null,null,null,null,null,null,null,"住宅政策室"]
[null,"着眼点",null,"・市民に対する傾聴と対話の姿勢",null,null,null,null,null,"・柔軟な姿勢と一貫した主張のバランス",null,null,null,null,null,null,null,null,null,null,null,null,null,null,null,null,null,null,null,null,null,null,null,null,null,null,null,null,null,null,null,null,null,"資産経営室"]
[null,null,null,"・誠実さ",null,null,null,null,null,"・職場でのコミュニケーション促進",null,null,null,null,null,null,null,null,null,null,null,null,null,null,null,null,null,null,null,null,null,null,null,null,null,null,null,null,null,null,null,null,null,"総務交通室"]
[null,"【課題の解決】",null,null,null,null,null,null,null,null,null,null,null,null,null,"（評価点）",null,"（コメント）",null,null,null,null,null,null,null,"（評価点）",null,null,null,null,null,null,null,null,null,null,null,null,null,null,null,null,null,"道路室"]
[null,null,"担当業務の課題について、周囲の状況を把握した上で、組織方針に基づき、解決のための施策の企画、立案及び実務の中核を担うことができる。",null,null,null,null,null,null,null,null,null,null,null,null,{"$f":"+P25","v":0},null,{"$f":"+R25","v":0},null,null,null,null,null,null,null,{"$f":"+Z25","v":0},null,null,null,null,null,null,null,null,null,null,null,null,null,null,null,null,null,"公園みどり室"]
[null,"着眼点",null,"・幅広い視野",null,null,null,null,null,"・状況の構造的把握",null,null,null,null,null,null,null,null,null,null,null,null,null,null,null,null,null,null,null,null,null,null,null,null,null,null,null,null,null,null,null,null,null,"地域整備推進室"]
[null,null,null,"・創造力、想像力",null,null,null,null,null,"・挑戦する姿勢",null,null,null,null,null,null,null,null,null,null,null,null,null,null,null,null,null,null,null,null,null,null,null,null,null,null,null,null,null,null,null,null,null,"経営室"]
[null,"【判断】",null,null,null,null,null,null,null,null,null,null,null,null,null,"（評価点）",null,"（コメント）",null,null,null,null,null,null,null,"（評価点）",null,null,null,null,null,null,null,null,null,null,null,null,null,null,null,null,null,"管路保全室"]
[null,null,"担当業務の課題について、総合的な判断を行うことができる。",null,null,null,null,null,null,null,null,null,null,null,null,{"$f":"+P29","v":0},null,{"$f":"+R29","v":0},null,null,null,null,null,null,null,{"$f":"+Z29","v":0},null,null,null,null,null,null,null,null,null,null,null,null,null,null,null,null,null,"水再生室"]
[null,"着眼点",null,"・知識、経験、情報収集",null,null,null,null,null,"・決断力",null,null,null,null,null,null,null,null,null,null,null,null,null,null,null,null,null,null,null,null,null,null,null,null,null,null,null,null,null,null,null,null,null,"会計室"]
[null,null,null,"・リスク対応",null,null,null,null,null,"・適切かつスピード感ある対応",null,null,null,null,null,null,null,null,null,null,null,null,null,null,null,null,null,null,null,null,null,null,null,null,null,null,null,null,null,null,null,null,null,"消防本部"]
[null,"【説明・調整】",null,null,null,null,null,null,null,null,null,null,null,null,null,"（評価点）",null,"（コメント）",null,null,null,null,null,null,null,"（評価点）",null,null,null,null,null,null,null,null,null,null,null,null,null,null,null,null,null,"総務予防室"]
[null,null,"担当業務の課題について、関係者との合意の形成に向けて、上司を助けて、論理的な説明及び粘り強い調整を行うことができる。",null,null,null,null,null,null,null,null,null,null,null,null,{"$f":"+P33","v":0},null,{"$f":"+R33","v":0},null,null,null,null,null,null,null,{"$f":"+Z33","v":0},null,null,null,null,null,null,null,null,null,null,null,null,null,null,null,null,null,"消防本部付"]
[null,"着眼点",null,"・論理的構成力",null,null,null,null,null,"・信頼関係の構築",null,null,null,null,null,null,null,null,null,null,null,null,null,null,null,null,null,null,null,null,null,null,null,null,null,null,null,null,null,null,null,null,null,"警防救急室"]
[null,null,null,"・対人折衝力",null,null,null,null,null,"・ねばり強さ",null,null,null,null,null,null,null,null,null,null,null,null,null,null,null,null,null,null,null,null,null,null,null,null,null,null,null,null,null,null,null,null,null,"警防・救急・啓発Ｇ"]
[null,"【業務改善】",null,null,null,null,null,null,null,null,null,null,null,null,null,"（評価点）",null,"（コメント）",null,null,null,null,null,null,null,"（評価点）",null,null,null,null,null,null,null,null,null,null,null,null,null,null,null,null,null,"救助第１Ｇ"]
[null,null,"効率的かつ効果的に段取りや手順を組み立て、担当業務を進めることができる。",null,null,null,null,null,null,null,null,null,null,null,null,{"$f":"+P37","v":0},null,{"$f":"+R37","v":0},null,null,null,null,null,null,null,{"$f":"+Z37","v":0},null,null,null,null,null,null,null,null,null,null,null,null,null,null,null,null,null,"救助第２Ｇ"]
[null,"着眼点",null,"・優先順位を見極めた計画",null,null,null,null,null,"・効果的な選択と集中",null,null,null,null,null,null,null,null,null,null,null,null,null,null,null,null,null,null,null,null,null,null,null,null,null,null,null,null,null,null,null,null,null,"指令情報室"]
[null,null,null,"・コスト意識",null,null,null,null,null,"・所属職員の長時間勤務の是正",null,null,null,null,null,null,null,null,null,null,null,null,null,null,null,null,null,null,null,null,null,null,null,null,null,null,null,null,null,null,null,null,null,"指令情報第１Ｇ"]
[null,"【組織マネジメント・人材育成】",null,null,null,null,null,null,null,null,null,null,null,null,null,"（評価点）",null,"（コメント）",null,null,null,null,null,null,null,"（評価点）",null,null,null,null,null,null,null,null,null,null,null,null,null,null,null,null,null,"指令情報第２Ｇ"]
[null,null,"情報の共有を図りつつ、所属職員を指揮監督することができるとともに、部下等の指導及び育成を行うことができる。",null,null,null,null,null,null,null,null,null,null,null,null,{"$f":"+P41","v":0},null,{"$f":"+R41","v":0},null,null,null,null,null,null,null,{"$f":"+Z41","v":0},null,null,null,null,null,null,null,null,null,null,null,null,null,null,null,null,null,"南消防署"]
[null,"着眼点",null,"・情報共有、情報発信",null,null,null,null,null,"・部下育成力、統率力、牽引力",null,null,null,null,null,null,null,null,null,null,null,null,null,null,null,null,null,null,null,null,null,null,null,null,null,null,null,null,null,null,null,null,null,"南予防査察係"]
[null,null,null,"・適切な業務配分及び進捗管理",null,null,null,null,null,"・職員のワークライフバランスの視点",null,null,null,null,null,null,null,null,null,null,null,null,null,null,null,null,null,null,null,null,null,null,null,null,null,null,null,null,null,null,null,null,null,"南警防第１係"]
[null,null,null,null,null,null,null,null,null,null,null,null,null,null,null,null,null,null,null,null,null,null,null,null,null,null,null,null,null,null,null,null,null,null,null,null,null,null,null,null,null,null,null,"南警防第２係"]
["≪【能力】の評価点≫\n◆　「４（特に良好）」…求められる行動が確実にとられており、他の職員の模範となる職務遂行状況である。\n◆　「３（良好）」…求められる行動が確実にとられていた。\n◆　「２（標準）」…求められる行動が概ねとられていた。\n◆　「１（要努力）」…求められる行動がとられていることが少なく（全くなく）、改善に向け努力が必要である。",null,null,null,null,null,null,null,null,null,"≪総合評価区分と評価点との関係：基準≫\n◆　「良好」…原則、【業績】及び【能力】の評価項目の３分の２以上が「２（標準）」以上の場合に該当する。\n◆　「やや不良」…原則、【業績】及び【能力】の評価項目の３分の１超半数以下が「１（標準未満）」の場合に該当する。\n◆　「不良」…原則、【業績】及び【能力】の評価項目の半数超が「１（標準未満）」であるとともに、分限（降任・免職）処分を検討する必要があると判断する場合に該当する。",null,null,null,null,null,null,null,null,null,"【業績】及び\n【能力】の\n評価項目数の合計",null,"「4（特に良好）」\nの個数",null,null,null,{"$f":"+AA45","v":""},null,null,null,null,null,null,null,null,null,null,null,null,null,null,null,null,"南救急第１係"]
[null,null,null,null,null,null,null,null,null,null,null,null,null,null,null,null,null,null,null,null,null,null,"「3（良好）」\nの個数",null,null,null,{"$f":"+AA46","v":""}]
[null,null,null,null,null,null,null,null,null,null,null,null,null,null,null,null,null,null,null,null,null,null,"「２（標準）」\nの個数",null,null,null,"",null,null,null,null,null,null,null,null,null,null,null,null,null,null,null,null,"南救急第２係"]
[null,null,null,null,null,null,null,null,null,null,null,null,null,null,null,null,null,null,null,null,10,null,"「１（要努力）」\nの個数",null,null,null,{"$f":"+AA48","v":""},null,null,null,null,null,null,null,null,null,null,null,null,null,null,null,null,"正雀出張所第１係"]
[null,null,null,null,null,null,null,null,null,null,null,null,null,null,null,null,null,null,null,null,null,null,null,null,null,null,null,null,null,null,null,null,null,null,null,null,null,null,null,null,null,null,null,"正雀出張所第２係"]
["ピカッとポイント",null,null,null,null,null,null,null,"２次評価者所見",null,null,null,null,null,null,null,null,null,null,null,null,null,null,null,"総合評価",null,null,null,null,null,null,null,null,null,null,null,null,null,null,null,null,null,null,"北消防署"]
[{"$f":"+A52","v":0},null,null,null,null,null,null,null,{"$f":"+O52","v":0},null,null,null,null,null,null,null,null,null,null,null,null,null,null,null,{"$f":"+Y51","v":""},null,null,null,null,null,null,null,null,null,null,null,null,null,null,null,null,null,null,"北予防査察係"]
[null,null,null,null,null,null,null,null,null,null,null,null,null,null,null,null,null,null,null,null,null,null,null,null,null,null,null,null,null,null,null,null,null,null,null,null,null,null,null,null,null,null,null,"北警防第１係"]
[null,null,null,null,null,null,null,null,null,null,null,null,null,null,null,null,null,null,null,null,null,null,null,null,null,null,null,null,null,null,null,null,null,null,null,null,null,null,null,null,null,null,null,"北警防第２係"]
["１次評価者",null,"（",{"$f":"+I54","v":0},null,null,null,"）",null,null,{"$f":"IF(U54=\"\",\"\",\"評価事務補助者(\")","v":""},{"$f":"U54","v":0},null,null,null,{"$f":"IF(U54=\"\",\"\",\"）\")","v":""},"２次評価者",null,"（",{"$f":"+S53","v":0},null,null,null,"）",null,null,null,null,null,null,null,null,null,null,null,null,null,null,null,null,null,null,null,"北救急第１係"]
[null,null,null,null,null,null,null,null,null,null,null,null,null,null,null,null,null,null,null,null,null,null,null,null,null,null,null,null,null,null,null,null,null,null,null,null,null,null,null,null,null,null,null,"北救急第２係"]
["給与反映区分","総合評価",null,null,"良好",null,null,null,null,"やや不良",null,null,null,null,"不良",null,null,null,null,null,"備考欄",{"$f":"V56","v":0},null,null,null,null,null,null,null,null,null,null,null,null,null,null,null,null,null,null,null,null,null,"西消防署"]
[null,"昇給号数",null,null,"４号",null,null,null,null,"２号",null,null,null,null,"昇給なし",null,null,null,null,null,null,null,null,null,null,null,null,null,null,null,null,null,null,null,null,null,null,null,null,null,null,null,null,"西予防査察係"]
[null,"勤勉手当支給割合",null,null,"吹田市期末手当及び\n勤勉手当の支給に関する\n規則で定める支給割合",null,null,null,null,"良好の１０％減として、\n同規則で定める支給割合",null,null,null,null,"良好の２０％減として、\n同規則で定める支給割合",null,null,null,null,null,null,null,null,null,null,null,null,null,null,null,null,null,null,null,null,null,null,null,null,null,null,null,null,"西警防第１係"]
[null,null,null,null,null,null,null,null,null,null,null,null,null,null,null,null,null,null,"※水道部は、吹田市水道部企業職員給与規程",null,null,null,null,null,null,null,null,null,null,null,null,null,null,null,null,null,null,null,null,null,null,null,null,"西警防第２係"]
[null,null,null,null,null,null,null,null,null,null,null,null,null,null,null,null,null,null,null,null,null,null,null,null,null,null,null,null,null,null,null,null,null,null,null,null,null,null,null,null,null,null,null,"西救急第１係"]
["職員番号","氏名","所属名","補職級","職種","評価項目",null,null,null,null,null,null,null,null,null,null,null,null,null,null,"総合評価","2次評価者",null,null,null,null,null,null,null,null,null,null,null,null,null,null,null,null,null,null,null,null,null,"西救急第２係"]
[null,null,null,null,null,"【業績】","【市民視点・法令遵守】","【コミュニケーション】","【課題の解決】","【決断】","【判断】","【課題対応】","【知識・技術・経験の活用】","【知識・技術の向上】","【説明・調整】","【説明】","【業務改善】","【業務遂行】","【組織マネジメント・人材育成】","【組織貢献・チームワーク】",null,null,null,null,null,null,null,null,null,null,null,null,null,null,null,null,null,null,null,null,null,null,null,"千里出張所第１係"]
[{"$f":"+N4","v":0},{"$f":"+P4","v":0},{"$f":"+C4","v":0},{"$f":"+H4","v":"課長代理級"},{"$f":"+K4","v":0},{"$f":"+Z8","v":0},{"$f":"+Z17","v":0},{"$f":"+Z80","v":0},{"$f":"+Z25","v":0},null,{"$f":"+Z29","v":0},null,null,null,{"$f":"+Z33","v":0},null,{"$f":"+Z37","v":0},null,{"$f":"+Z41","v":0},null,{"$f":"+Y51","v":""},{"$f":"+S53","v":0},null,null,null,null,null,null,null,null,null,null,null,null,null,null,null,null,null,null,null,null,null,"千里出張所第２係"]
[null,null,null,null,null,null,null,null,null,null,null,null,null,null,null,null,null,null,null,null,null,null,null,null,null,null,null,null,null,null,null,null,null,null,null,null,null,null,null,null,null,null,null,"東消防署"]
[null,null,null,null,null,null,null,null,null,null,null,null,null,null,null,null,null,null,null,null,null,null,null,null,null,null,null,null,null,null,null,null,null,null,null,null,null,null,null,null,null,null,null,"東予防査察係"]
[null,null,null,null,null,null,null,null,null,null,null,null,null,null,null,null,null,null,null,null,null,null,null,null,null,null,null,null,null,null,null,null,null,null,null,null,null,null,null,null,null,null,null,"東警防第１係"]
[null,null,null,null,null,null,null,null,null,null,null,null,null,null,null,null,null,null,null,null,null,null,null,null,null,null,null,null,null,null,null,null,null,null,null,null,null,null,null,null,null,null,null,"東警防第２係"]
[null,null,null,null,null,null,null,null,null,null,null,null,null,null,null,null,null,null,null,null,null,null,null,null,null,null,null,null,null,null,null,null,null,null,null,null,null,null,null,null,null,null,null,"東救急第１係"]
[null,null,null,null,null,null,null,null,null,null,null,null,null,null,null,null,null,null,null,null,null,null,null,null,null,null,null,null,null,null,null,null,null,null,null,null,null,null,null,null,null,null,null,"東救急第２係"]
[null,null,null,null,null,null,null,null,null,null,null,null,null,null,null,null,null,null,null,null,null,null,null,null,null,null,null,null,null,null,null,null,null,null,null,null,null,null,null,null,null,null,null,"岸部出張所第１係"]
[null,null,null,null,null,null,null,null,null,null,null,null,null,null,null,null,null,null,null,null,null,null,null,null,null,null,null,null,null,null,null,null,null,null,null,null,null,null,null,null,null,null,null,"岸部出張所第２係"]
[null,null,null,null,null,null,null,null,null,null,null,null,null,null,null,null,null,null,null,null,null,null,null,null,null,null,null,null,null,null,null,null,null,null,null,null,null,null,null,null,null,null,null,"東救急第１係（中庁舎）"]
[null,null,null,null,null,null,null,null,null,null,null,null,null,null,null,null,null,null,null,null,null,null,null,null,null,null,null,null,null,null,null,null,null,null,null,null,null,null,null,null,null,null,null,"東救急第２係（中庁舎）"]
[null,null,null,null,null,null,null,null,null,null,null,null,null,null,null,null,null,null,null,null,null,null,null,null,null,null,null,null,null,null,null,null,null,null,null,null,null,null,null,null,null,null,null,"議会事務局"]
[null,null,null,null,null,null,null,null,null,null,null,null,null,null,null,null,null,null,null,null,null,null,null,null,null,null,null,null,null,null,null,null,null,null,null,null,null,null,null,null,null,null,null,"選挙管理委員会事務局"]
[null,null,null,null,null,null,null,null,null,null,null,null,null,null,null,null,null,null,null,null,null,null,null,null,null,null,null,null,null,null,null,null,null,null,null,null,null,null,null,null,null,null,null,"監査委員事務局"]
[null,null,null,null,null,null,null,null,null,null,null,null,null,null,null,null,null,null,null,null,null,null,null,null,null,null,null,null,null,null,null,null,null,null,null,null,null,null,null,null,null,null,null,"農業委員会事務局"]
[null,null,null,null,null,null,null,null,null,null,null,null,null,null,null,null,null,null,null,null,null,null,null,null,null,null,null,null,null,null,null,null,null,null,null,null,null,null,null,null,null,null,null,"教育総務室"]
[null,null,null,null,null,null,null,null,null,null,null,null,null,null,null,null,null,null,null,null,null,null,null,null,null,null,null,null,null,null,null,null,null,null,null,null,null,null,null,null,null,null,null,"学校管理課"]
[null,null,null,null,null,null,null,null,null,null,null,null,null,null,null,null,null,null,null,null,null,null,null,null,null,null,null,null,null,null,null,null,null,null,null,null,null,null,null,null,null,null,null,"学務課"]
[null,null,null,null,null,null,null,null,null,null,null,null,null,null,null,null,null,null,null,null,null,null,null,null,null,null,null,null,null,null,null,null,null,null,null,null,null,null,null,null,null,null,null,"教育未来創生室"]
[null,null,null,null,null,null,null,null,null,null,null,null,null,null,null,null,null,null,null,null,null,null,null,null,null,null,null,null,null,null,null,null,null,null,null,null,null,null,null,null,null,null,null,"保健給食室"]
[null,null,null,null,null,null,null,null,null,null,null,null,null,null,null,null,null,null,null,null,null,null,null,null,null,null,null,null,null,null,null,null,null,null,null,null,null,null,null,null,null,null,null,"学校教育室"]
[null,null,null,null,null,null,null,null,null,null,null,null,null,null,null,null,null,null,null,null,null,null,null,null,null,null,null,null,null,null,null,null,null,null,null,null,null,null,null,null,null,null,null,"教職員課"]
[null,null,null,null,null,null,null,null,null,null,null,null,null,null,null,null,null,null,null,null,null,null,null,null,null,null,null,null,null,null,null,null,null,null,null,null,null,null,null,null,null,null,null,"吹田第一幼稚園"]
[null,null,null,null,null,null,null,null,null,null,null,null,null,null,null,null,null,null,null,null,null,null,null,null,null,null,null,null,null,null,null,null,null,null,null,null,null,null,null,null,null,null,null,"吹田第三幼稚園"]
[null,null,null,null,null,null,null,null,null,null,null,null,null,null,null,null,null,null,null,null,null,null,null,null,null,null,null,null,null,null,null,null,null,null,null,null,null,null,null,null,null,null,null,"吹田南幼稚園"]
[null,null,null,null,null,null,null,null,null,null,null,null,null,null,null,null,null,null,null,null,null,null,null,null,null,null,null,null,null,null,null,null,null,null,null,null,null,null,null,null,null,null,null,"千里第二幼稚園"]
[null,null,null,null,null,null,null,null,null,null,null,null,null,null,null,null,null,null,null,null,null,null,null,null,null,null,null,null,null,null,null,null,null,null,null,null,null,null,null,null,null,null,null,"千里新田こども園"]
[null,null,null,null,null,null,null,null,null,null,null,null,null,null,null,null,null,null,null,null,null,null,null,null,null,null,null,null,null,null,null,null,null,null,null,null,null,null,null,null,null,null,null,"東佐井寺幼稚園"]
[null,null,null,null,null,null,null,null,null,null,null,null,null,null,null,null,null,null,null,null,null,null,null,null,null,null,null,null,null,null,null,null,null,null,null,null,null,null,null,null,null,null,null,"岸部第一幼稚園"]
[null,null,null,null,null,null,null,null,null,null,null,null,null,null,null,null,null,null,null,null,null,null,null,null,null,null,null,null,null,null,null,null,null,null,null,null,null,null,null,null,null,null,null,"豊津第一幼稚園"]
[null,null,null,null,null,null,null,null,null,null,null,null,null,null,null,null,null,null,null,null,null,null,null,null,null,null,null,null,null,null,null,null,null,null,null,null,null,null,null,null,null,null,null,"江坂大池こども園"]
[null,null,null,null,null,null,null,null,null,null,null,null,null,null,null,null,null,null,null,null,null,null,null,null,null,null,null,null,null,null,null,null,null,null,null,null,null,null,null,null,null,null,null,"片山幼稚園"]
[null,null,null,null,null,null,null,null,null,null,null,null,null,null,null,null,null,null,null,null,null,null,null,null,null,null,null,null,null,null,null,null,null,null,null,null,null,null,null,null,null,null,null,"山田第一幼稚園"]
[null,null,null,null,null,null,null,null,null,null,null,null,null,null,null,null,null,null,null,null,null,null,null,null,null,null,null,null,null,null,null,null,null,null,null,null,null,null,null,null,null,null,null,"山田第三幼稚園"]
[null,null,null,null,null,null,null,null,null,null,null,null,null,null,null,null,null,null,null,null,null,null,null,null,null,null,null,null,null,null,null,null,null,null,null,null,null,null,null,null,null,null,null,"東山田幼稚園"]
[null,null,null,null,null,null,null,null,null,null,null,null,null,null,null,null,null,null,null,null,null,null,null,null,null,null,null,null,null,null,null,null,null,null,null,null,null,null,null,null,null,null,null,"南山田幼稚園"]
[null,null,null,null,null,null,null,null,null,null,null,null,null,null,null,null,null,null,null,null,null,null,null,null,null,null,null,null,null,null,null,null,null,null,null,null,null,null,null,null,null,null,null,"佐竹台幼稚園"]
[null,null,null,null,null,null,null,null,null,null,null,null,null,null,null,null,null,null,null,null,null,null,null,null,null,null,null,null,null,null,null,null,null,null,null,null,null,null,null,null,null,null,null,"教育センター"]
[null,null,null,null,null,null,null,null,null,null,null,null,null,null,null,null,null,null,null,null,null,null,null,null,null,null,null,null,null,null,null,null,null,null,null,null,null,null,null,null,null,null,null,"まなびの支援課"]
[null,null,null,null,null,null,null,null,null,null,null,null,null,null,null,null,null,null,null,null,null,null,null,null,null,null,null,null,null,null,null,null,null,null,null,null,null,null,null,null,null,null,null,"中央図書館"]
[null,null,null,null,null,null,null,null,null,null,null,null,null,null,null,null,null,null,null,null,null,null,null,null,null,null,null,null,null,null,null,null,null,null,null,null,null,null,null,null,null,null,null,"千里図書館"]
[null,null,null,null,null,null,null,null,null,null,null,null,null,null,null,null,null,null,null,null,null,null,null,null,null,null,null,null,null,null,null,null,null,null,null,null,null,null,null,null,null,null,null,"さんくす図書館"]
[null,null,null,null,null,null,null,null,null,null,null,null,null,null,null,null,null,null,null,null,null,null,null,null,null,null,null,null,null,null,null,null,null,null,null,null,null,null,null,null,null,null,null,"江坂図書館"]
[null,null,null,null,null,null,null,null,null,null,null,null,null,null,null,null,null,null,null,null,null,null,null,null,null,null,null,null,null,null,null,null,null,null,null,null,null,null,null,null,null,null,null,"千里山・佐井寺図書館"]
[null,null,null,null,null,null,null,null,null,null,null,null,null,null,null,null,null,null,null,null,null,null,null,null,null,null,null,null,null,null,null,null,null,null,null,null,null,null,null,null,null,null,null,"千里丘図書館"]
[null,null,null,null,null,null,null,null,null,null,null,null,null,null,null,null,null,null,null,null,null,null,null,null,null,null,null,null,null,null,null,null,null,null,null,null,null,null,null,null,null,null,null,"山田駅前図書館"]
[null,null,null,null,null,null,null,null,null,null,null,null,null,null,null,null,null,null,null,null,null,null,null,null,null,null,null,null,null,null,null,null,null,null,null,null,null,null,null,null,null,null,null,"健都ライブラリー"]
[null,null,null,null,null,null,null,null,null,null,null,null,null,null,null,null,null,null,null,null,null,null,null,null,null,null,null,null,null,null,null,null,null,null,null,null,null,null,null,null,null,null,null,"北千里図書館"]
[null,null,null,null,null,null,null,null,null,null,null,null,null,null,null,null,null,null,null,null,null,null,null,null,null,null,null,null,null,null,null,null,null,null,null,null,null,null,null,null,null,null,null,"文化財保護課"]
[null,null,null,null,null,null,null,null,null,null,null,null,null,null,null,null,null,null,null,null,null,null,null,null,null,null,null,null,null,null,null,null,null,null,null,null,null,null,null,null,null,null,null,"博物館"]
[null,null,null,null,null,null,null,null,null,null,null,null,null,null,null,null,null,null,null,null,null,null,null,null,null,null,null,null,null,null,null,null,null,null,null,null,null,null,null,null,null,null,null,"青少年室"]
[null,null,null,null,null,null,null,null,null,null,null,null,null,null,null,null,null,null,null,null,null,null,null,null,null,null,null,null,null,null,null,null,null,null,null,null,null,null,null,null,null,null,null,"青少年クリエイティブセンター"]
[null,null,null,null,null,null,null,null,null,null,null,null,null,null,null,null,null,null,null,null,null,null,null,null,null,null,null,null,null,null,null,null,null,null,null,null,null,null,null,null,null,null,null,"放課後子ども育成室"]
[null,null,null,null,null,null,null,null,null,null,null,null,null,null,null,null,null,null,null,null,null,null,null,null,null,null,null,null,null,null,null,null,null,null,null,null,null,null,null,null,null,null,null,"（水）総務室"]
[null,null,null,null,null,null,null,null,null,null,null,null,null,null,null,null,null,null,null,null,null,null,null,null,null,null,null,null,null,null,null,null,null,null,null,null,null,null,null,null,null,null,null,"企画室"]
[null,null,null,null,null,null,null,null,null,null,null,null,null,null,null,null,null,null,null,null,null,null,null,null,null,null,null,null,null,null,null,null,null,null,null,null,null,null,null,null,null,null,null,"工務室"]
[null,null,null,null,null,null,null,null,null,null,null,null,null,null,null,null,null,null,null,null,null,null,null,null,null,null,null,null,null,null,null,null,null,null,null,null,null,null,null,null,null,null,null,"浄水室"]

{"sheet":"主査","index":4,"n_rows":178,"n_cols":45,"rows_kept":178,"cut":false,"hidden":false,"merged":[[96,26,96,27],[91,17,93,24],[87,17,89,24],[58,10,58,12],[58,13,58,14],[58,15,58,18],[58,19,58,22],[58,24,58,27],[51,21,53,27],[69,1,69,14],[69,25,69,27],[71,2,71,14],[71,15,73,16],[71,25,73,27],[72,1,73,2],[72,3,72,8],[72,9,72,14],[73,3,73,8],[73,9,73,14],[69,15,69,24],[71,17,73,24],[75,2,75,14],[75,15,77,16],[75,25,77,27],[51,20,53,20],[41,22,41,25],[43,20,43,21],[43,22,43,25],[42,22,42,25],[46,24,49,27],[48,8,48,11],[49,4,49,9],[49,10,49,12],[40,0,43,8],[47,0,49,3],[40,20,42,21],[45,14,45,23],[45,24,45,27],[49,14,49,19],[48,18,48,21],[49,20,49,22],[52,4,52,8],[52,9,52,13],[52,14,52,18],[53,4,53,8],[53,9,53,13],[53,14,53,18],[51,14,51,18],[28,15,30,16],[36,25,38,27],[36,15,38,16],[36,22,38,24],[28,25,30,27],[32,25,34,27],[36,17,38,21],[38,9,38,14],[28,17,30,21],[29,9,29,14],[34,9,34,14],[28,22,30,24],[37,9,37,14],[32,15,34,16],[36,2,36,14],[37,1,38,2],[37,3,37,8],[33,3,33,8],[34,3,34,8],[2,19,2,27],[14,15,14,21],[21,9,21,14],[3,10,3,12],[2,13,2,14],[3,24,3,27],[7,25,10,27],[20,22,22,24],[16,17,18,21],[14,1,14,14],[10,4,10,14],[16,2,16,14],[7,22,10,24],[7,17,10,21],[9,4,9,14],[7,2,7,3],[5,15,5,21],[7,1,10,1],[5,1,5,14],[12,0,12,4],[14,0,38,0],[7,4,7,14],[22,3,22,8],[26,3,26,8],[2,0,3,0],[2,1,3,1],[2,2,2,6],[2,7,2,9],[2,10,2,12],[3,15,3,18],[2,15,2,18],[3,13,3,14],[40,26,40,27],[5,22,5,24],[5,25,5,27],[12,5,12,9],[12,22,12,27],[20,2,20,14],[21,3,21,8],[9,2,9,3],[3,19,3,22],[16,22,18,24],[16,25,18,27],[17,9,17,14],[24,25,26,27],[25,1,26,2],[24,15,26,16],[16,15,18,16],[0,9,1,18],[18,3,18,8],[17,1,18,2],[21,1,22,2],[30,9,30,14],[17,3,17,8],[10,2,10,3],[3,7,3,9],[3,2,3,6],[22,9,22,14],[18,9,18,14],[25,9,25,14],[25,3,25,8],[24,2,24,14],[30,3,30,8],[26,9,26,14],[8,2,8,3],[8,4,8,14],[7,15,10,16],[20,15,22,16],[20,17,22,21],[24,17,26,21],[29,1,30,2],[28,2,28,14],[5,0,10,0],[38,3,38,8],[32,2,32,14],[57,0,58,0],[57,1,58,1],[57,2,57,6],[57,7,57,9],[58,2,58,6],[58,7,58,9],[57,13,57,14],[29,3,29,8],[33,1,34,2],[55,9,56,18],[51,9,51,13],[57,15,57,18],[57,19,57,27],[57,10,57,12],[14,22,14,24],[14,25,14,27],[32,22,34,24],[32,17,34,21],[42,26,42,27],[20,25,22,27],[40,22,40,25],[33,9,33,14],[24,22,26,24],[43,26,43,27],[47,4,47,13],[47,14,47,23],[45,0,45,13],[51,0,53,0],[51,1,51,3],[51,4,51,8],[52,1,52,3],[48,4,48,6],[40,10,43,18],[53,1,53,3],[41,26,41,27],[48,14,48,16],[67,0,67,4],[67,5,67,9],[67,22,67,27],[60,0,65,0],[60,1,60,14],[60,25,60,27],[62,1,65,1],[62,2,62,3],[62,4,62,14],[62,15,65,16],[62,25,65,27],[64,2,64,3],[64,4,64,14],[65,2,65,3],[65,4,65,14],[62,17,65,24],[60,15,60,24],[63,2,63,3],[63,4,63,14],[76,1,77,2],[76,3,76,8],[76,9,76,14],[77,3,77,8],[77,9,77,14],[75,17,77,24],[79,2,79,14],[79,15,81,16],[79,25,81,27],[80,1,81,2],[80,3,80,8],[80,9,80,14],[81,3,81,8],[81,9,81,14],[79,17,81,24],[89,3,89,8],[89,9,89,14],[87,2,87,14],[87,15,89,16],[83,25,85,27],[84,1,85,2],[84,3,84,8],[84,9,84,14],[85,3,85,8],[85,9,85,14],[83,2,83,14],[83,17,85,24],[83,15,85,16],[95,26,95,27],[97,22,97,25],[97,26,97,27],[91,25,93,27],[111,5,111,19],[111,20,112,20],[111,21,112,21],[100,24,100,27],[101,24,104,27],[92,3,92,8],[92,9,92,14],[93,3,93,8],[93,9,93,14],[91,2,91,14],[95,20,97,21],[91,15,93,16],[92,1,93,2],[95,0,98,8],[95,10,98,18],[69,0,93,0],[87,25,89,27],[88,1,89,2],[88,3,88,8],[88,9,88,14],[98,26,98,27],[106,14,106,18],[106,21,108,27],[108,9,108,13],[108,14,108,18],[107,9,107,13],[101,8,103,23],[107,14,107,18],[98,20,98,21],[100,8,100,23],[104,19,104,22],[100,0,100,7],[95,22,95,25],[111,0,112,0],[111,1,112,1],[111,2,112,2],[111,3,112,3],[111,4,112,4],[101,0,102,7],[108,1,108,3],[108,4,108,8],[107,4,107,8],[98,22,98,25],[96,22,96,25],[106,0,108,0],[106,1,106,3],[106,4,106,8],[106,9,106,13],[106,20,108,20],[107,1,107,3],[104,0,104,1],[104,3,104,6],[103,3,103,6],[104,16,104,17],[104,11,104,14]]}
["令和",6,"年度",null,null,null,null,null,null,"勤務評価シート",null,null,null,null,null,null,null,null,null,null,null,null,null,null,null,null,null,"5"]
["事務・技術・専門　主査等"]
["基礎情報","被評価者","所属名",null,null,null,null,"補職級",null,null,"職種",null,null,"職員番号",null,"氏名",null,null,null,"評価期間",null,null,null,null,null,null,null,null,null,null,null,null,null,null,null,null,null,null,null,null,null,null,"危機管理室","主査級","一般事務"]
[null,null,null,null,null,null,null,"主査級",null,null,null,null,null,null,null,null,null,null,null,null,null,null,null,"～",null,null,null,null,null,null,null,null,null,null,null,null,null,null,null,null,null,null,"秘書課",null,"一般事務（府教委）"]
[null,null,null,null,null,null,null,null,null,null,null,null,null,null,null,null,null,null,null,null,null,null,null,null,null,null,null,null,null,null,null,null,null,null,null,null,null,null,null,null,null,null,"広報課",null,"一般事務（司書）"]
["【業績】","評価基準・着眼点",null,null,null,null,null,null,null,null,null,null,null,null,null,"自己評価",null,null,null,null,null,null,"１次評価",null,null,"２次評価",null,null,null,null,null,null,null,null,null,null,null,null,null,null,null,null,"総務室",null,"一般事務（体育）"]
[null,"【業績】",null,null,null,null,null,null,null,null,null,null,null,null,null,"（評価点）",null,"（コメント）",null,null,null,null,"（評価点）",null,null,"（評価点）",null,null,null,null,null,null,null,null,null,null,null,null,null,null,null,null,"法制室",null,"一般技術"]
[null,"評価点","４（特に良好）",null,"職階からみて、期待された水準をはるかに上回る業績をあげた",null,null,null,null,null,null,null,null,null,null,null,null,null,null,null,null,null,null,null,null,null,null,null,null,null,null,null,null,null,null,null,null,null,null,null,null,null,"人事室",null,"一般技術（電気）"]
[null,null,"３（良好）",null,"職階からみて、期待された以上の業績をあげた"]
[null,null,"２（標準）",null,"職階からみて、相応の業績である",null,null,null,null,null,null,null,null,null,null,null,null,null,null,null,null,null,null,null,null,null,null,null,null,null,null,null,null,null,null,null,null,null,null,null,null,null,"契約検査室",null,"一般技術（土木）"]
[null,null,"１（要努力）",null,"職階からみて、期待された水準に達しておらず、努力が必要である",null,null,null,null,null,null,null,null,null,null,null,null,null,null,null,null,null,null,null,null,null,null,null,null,null,null,null,null,null,null,null,null,null,null,null,null,null,"企画財政室",null,"一般技術（機械）"]
[null,null,null,null,null,null,null,null,null,null,null,null,null,null,null,null,null,null,null,null,null,null,null,null,null,null,null,null,null,null,null,null,null,null,null,null,null,null,null,null,null,null,"情報政策室",null,"一般技術（建築）"]
["≪【業績】の評価項目数の取扱い≫\n　・次長級以上は評価点を４倍\n　・課長級は評価点を３倍　　",null,null,null,null,"\n・課長代理級は評価点を３倍\n・主査級は評価点を２倍",null,null,null,null,null,null,null,null,null,null,null,null,null,null,null,null,"【業績】\n　　評価点が２個あるものとして取扱い",null,null,null,null,null,null,null,null,null,null,null,null,null,null,null,null,null,null,null,"税制課",null,"一般技術（化学）"]
[null,null,null,null,null,null,null,null,null,null,null,null,null,null,null,null,null,null,null,null,null,null,null,null,null,null,null,null,null,null,null,null,null,null,null,null,null,null,null,null,null,null,"資産税課",null,"保育教諭"]
["【能力】","評価項目及び行動・着眼点",null,null,null,null,null,null,null,null,null,null,null,null,null,"自己評価",null,null,null,null,null,null,"１次評価",null,null,"２次評価",null,null,null,null,null,null,null,null,null,null,null,null,null,null,null,null,"市民税課",null,"生活指導員"]
[null,"【市民視点・法令遵守】",null,null,null,null,null,null,null,null,null,null,null,null,null,"（評価点）",null,"（コメント）",null,null,null,null,"（評価点）",null,null,"（評価点）",null,null,null,null,null,null,null,null,null,null,null,null,null,null,null,null,"納税課",null,"発達指導員"]
[null,null,"丁寧な応対を心掛けるなど、全体の奉仕者として、常に市民の立場や市民協働の視点に立つことができるとともに、法令等及び服務規律を順守して、公平かつ公正に業務を遂行することができる。",null,null,null,null,null,null,null,null,null,null,null,null,null,null,null,null,null,null,null,null,null,null,null,null,null,null,null,null,null,null,null,null,null,null,null,null,null,null,null,"債権管理課",null,"学芸員"]
[null,"着眼点",null,"・接遇",null,null,null,null,null,"・法令順守",null,null,null,null,null,null,null,null,null,null,null,null,null,null,null,null,null,null,null,null,null,null,null,null,null,null,null,null,null,null,null,null,"市民総務室",null,"栄養士"]
[null,null,null,"・公平・公正な姿勢",null,null,null,null,null,"・責任感",null,null,null,null,null,null,null,null,null,null,null,null,null,null,null,null,null,null,null,null,null,null,null,null,null,null,null,null,null,null,null,null,"市民課",null,"診療放射線技師"]
[null,"【コミュニケーション】",null,null,null,null,null,null,null,null,null,null,null,null,null,"（評価点）",null,"（コメント）",null,null,null,null,"（評価点）",null,null,"（評価点）",null,null,null,null,null,null,null,null,null,null,null,null,null,null,null,null,"山田出張所",null,"言語聴覚士"]
[null,null,"様々な相手と円滑かつ適切なコミュニケーションを取ることができる。",null,null,null,null,null,null,null,null,null,null,null,null,null,null,null,null,null,null,null,null,null,null,null,null,null,null,null,null,null,null,null,null,null,null,null,null,null,null,null,"千里丘出張所",null,"理学療法士"]
[null,"着眼点",null,"・市民に対する傾聴と対話の姿勢",null,null,null,null,null,"・柔軟な姿勢と一貫した主張のバランス",null,null,null,null,null,null,null,null,null,null,null,null,null,null,null,null,null,null,null,null,null,null,null,null,null,null,null,null,null,null,null,null,"千里出張所",null,"作業療法士"]
[null,null,null,"・誠実さ",null,null,null,null,null,"・職場でのコミュニケーション促進",null,null,null,null,null,null,null,null,null,null,null,null,null,null,null,null,null,null,null,null,null,null,null,null,null,null,null,null,null,null,null,null,"人権政策室",null,"歯科衛生士"]
[null,"【課題対応】",null,null,null,null,null,null,null,null,null,null,null,null,null,"（評価点）",null,"（コメント）",null,null,null,null,"（評価点）",null,null,"（評価点）",null,null,null,null,null,null,null,null,null,null,null,null,null,null,null,null,"交流活動館",null,"保健師"]
[null,null,"担当業務の課題に対応するため必要な知識及び技術について、誰よりも詳しくあろうと取り組むことができる。",null,null,null,null,null,null,null,null,null,null,null,null,null,null,null,null,null,null,null,null,null,null,null,null,null,null,null,null,null,null,null,null,null,null,null,null,null,null,null,"男女共同参画センター",null,"看護師"]
[null,"着眼点",null,"・研究心",null,null,null,null,null,"・情報収集",null,null,null,null,null,null,null,null,null,null,null,null,null,null,null,null,null,null,null,null,null,null,null,null,null,null,null,null,null,null,null,null,"市民自治推進室",null,"精神保健福祉士"]
[null,null,null,"・問題点の把握",null,null,null,null,null,"・応用力",null,null,null,null,null,null,null,null,null,null,null,null,null,null,null,null,null,null,null,null,null,null,null,null,null,null,null,null,null,null,null,null,"地域経済振興室",null,"獣医師"]
[null,"【説明】",null,null,null,null,null,null,null,null,null,null,null,null,null,"（評価点）",null,"（コメント）",null,null,null,null,"（評価点）",null,null,"（評価点）",null,null,null,null,null,null,null,null,null,null,null,null,null,null,null,null,"シティプロモーション推進室",null,"薬剤師"]
[null,null,"担当業務について、論理的に分かりやすく説明することができる。",null,null,null,null,null,null,null,null,null,null,null,null,null,null,null,null,null,null,null,null,null,null,null,null,null,null,null,null,null,null,null,null,null,null,null,null,null,null,null,"文化スポーツ推進室",null,"管理栄養士"]
[null,"着眼点",null,"・論理的構成力",null,null,null,null,null,"・説得力",null,null,null,null,null,null,null,null,null,null,null,null,null,null,null,null,null,null,null,null,null,null,null,null,null,null,null,null,null,null,null,null,"子育て政策室"]
[null,null,null,"・丁寧さ",null,null,null,null,null,null,null,null,null,null,null,null,null,null,null,null,null,null,null,null,null,null,null,null,null,null,null,null,null,null,null,null,null,null,null,null,null,null,"子育て給付課"]
[null,"【業務遂行】",null,null,null,null,null,null,null,null,null,null,null,null,null,"（評価点）",null,"（コメント）",null,null,null,null,"（評価点）",null,null,"（評価点）",null,null,null,null,null,null,null,null,null,null,null,null,null,null,null,null,"家庭児童相談室"]
[null,null,"担当業務全体を把握した上で、計画的かつ正確に業務を処理することができる。\n[専門職]専門的知識、技術及び経験に基づき業務を遂行することができる。",null,null,null,null,null,null,null,null,null,null,null,null,null,null,null,null,null,null,null,null,null,null,null,null,null,null,null,null,null,null,null,null,null,null,null,null,null,null,null,"のびのび子育てプラザ"]
[null,"着眼点",null,"・優先順位を見極めた計画",null,null,null,null,null,"・正確性、情報処理能力",null,null,null,null,null,null,null,null,null,null,null,null,null,null,null,null,null,null,null,null,null,null,null,null,null,null,null,null,null,null,null,null,"保育幼稚園室"]
[null,null,null,"・ねばり強さ",null,null,null,null,null,"・［専門職］専門的知識・技術・経験",null,null,null,null,null,null,null,null,null,null,null,null,null,null,null,null,null,null,null,null,null,null,null,null,null,null,null,null,null,null,null,null,"山田保育園"]
[null,"【組織マネジメント・人材育成】",null,null,null,null,null,null,null,null,null,null,null,null,null,"（評価点）",null,"（コメント）",null,null,null,null,"（評価点）",null,null,"（評価点）",null,null,null,null,null,null,null,null,null,null,null,null,null,null,null,null,"いずみ保育園"]
[null,null,"情報の共有を図りつつ、所属職員を指揮監督することができるとともに、部下等の指導及び育成を行うことができる。",null,null,null,null,null,null,null,null,null,null,null,null,null,null,null,null,null,null,null,null,null,null,null,null,null,null,null,null,null,null,null,null,null,null,null,null,null,null,null,"南千里保育園"]
[null,"着眼点",null,"・情報共有、情報発信",null,null,null,null,null,"・協調性",null,null,null,null,null,null,null,null,null,null,null,null,null,null,null,null,null,null,null,null,null,null,null,null,null,null,null,null,null,null,null,null,"ことぶき保育園"]
[null,null,null,"・部下育成力",null,null,null,null,null,"・適切な作業割振り及び進捗管理",null,null,null,null,null,null,null,null,null,null,null,null,null,null,null,null,null,null,null,null,null,null,null,null,null,null,null,null,null,null,null,null,"岸部保育園"]
[null,null,null,null,null,null,null,null,null,null,null,null,null,null,null,null,null,null,null,null,null,null,null,null,null,null,null,null,null,null,null,null,null,null,null,null,null,null,null,null,null,null,"千里山保育園"]
["≪【能力】の評価点≫\n◆　「４（特に良好）」…求められる行動が確実にとられており、他の職員の模範となる職務遂行状況である。\n◆　「３（良好）」…求められる行動が確実にとられていた。\n◆　「２（標準）」…求められる行動が概ねとられていた。\n◆　「１（要努力）」…求められる行動がとられていることが少なく（全くなく）、改善に向け努力が必要である。",null,null,null,null,null,null,null,null,null,"≪総合評価区分と評価点との関係：基準≫\n◆　「良好」…原則、【業績】及び【能力】の評価項目の３分の２以上が「２（標準）」以上の場合に該当する。\n◆　「やや不良」…原則、【業績】及び【能力】の評価項目の３分の１超半数以下が「１（標準未満）」の場合に該当する。\n◆　「不良」…原則、【業績】及び【能力】の評価項目の半数超が「１（標準未満）」であるとともに、分限（降任・免職）処分を検討する必要があると判断する場合に該当する。",null,null,null,null,null,null,null,null,null,"【業績】及び\n【能力】の\n評価項目数の合計",null,"「4（特に良好）」\nの個数",null,null,null,{"$f":"IF(Z8=\"\",\"\",IF(Z17=\"\",\"\",IF(Z21=\"\",\"\",IF(Z25=\"\",\"\",IF(Z29=\"\",\"\",IF(Z33=\"\",\"\",IF(Z37=\"\",\"\",COUNTIF(Z17:AB39,4)+IF(Z8=4,2,0))))))))","v":""},null,null,null,null,null,null,null,null,null,null,null,null,null,null,null,"東保育園"]
[null,null,null,null,null,null,null,null,null,null,null,null,null,null,null,null,null,null,null,null,null,null,"「3（良好）」\nの個数",null,null,null,{"$f":"IF(Z8=\"\",\"\",IF(Z17=\"\",\"\",IF(Z21=\"\",\"\",IF(Z25=\"\",\"\",IF(Z29=\"\",\"\",IF(Z33=\"\",\"\",IF(Z37=\"\",\"\",COUNTIF(Z16:AB39,3)+IF(Z8=3,1,0))))))))","v":""}]
[null,null,null,null,null,null,null,null,null,null,null,null,null,null,null,null,null,null,null,null,null,null,"「２（標準）」\nの個数",null,null,null,{"$f":"IF(Z8=\"\",\"\",IF(Z17=\"\",\"\",IF(Z21=\"\",\"\",IF(Z25=\"\",\"\",IF(Z29=\"\",\"\",IF(Z33=\"\",\"\",IF(Z37=\"\",\"\",COUNTIF(Z17:AB39,2)+IF(Z8=2,2,0))))))))","v":""},null,null,null,null,null,null,null,null,null,null,null,null,null,null,null,"垂水保育園"]
[null,null,null,null,null,null,null,null,null,null,null,null,null,null,null,null,null,null,null,null,8,null,"「１（要努力）」\nの個数",null,null,null,{"$f":"IF(Z8=\"\",\"\",IF(Z17=\"\",\"\",IF(Z21=\"\",\"\",IF(Z25=\"\",\"\",IF(Z29=\"\",\"\",IF(Z33=\"\",\"\",IF(Z37=\"\",\"\",COUNTIF(Z17:AB39,1)+IF(Z8=1,2,0))))))))","v":""},null,null,null,null,null,null,null,null,null,null,null,null,null,null,null,"吹一保育園"]
[null,null,null,null,null,null,null,null,null,null,null,null,null,null,null,null,null,null,null,null,null,null,null,null,null,null,null,null,null,null,null,null,null,null,null,null,null,null,null,null,null,null,"吹六保育園"]
["１次評価者所見等",null,null,null,null,null,null,null,null,null,null,null,null,null,"２次評価者所見",null,null,null,null,null,null,null,null,null,"総合評価",null,null,null,null,null,null,null,null,null,null,null,null,null,null,null,null,null,"片山保育園"]
["ピカッとポイント",null,null,null,"所見（「２」以外の評価点の項目に重点を置き記入すること。）",null,null,null,null,null,null,null,null,null,"所見（「２」以外の評価点の項目に重点を置き記入すること。）",null,null,null,null,null,null,null,null,null,{"$f":"IF(AA41=\"\",\"\",IF(AA42=\"\",\"\",IF(AA43=\"\",\"\",IF(AA44=\"\",\"\",IF(AA41+AA42+AA43>=6,\"良好\",IF(AND((AA41+AA42+AA43)>=4,(AA41+AA42+AA43)<=5),\"やや不良\",IF(AA41+AA42+AA43<=3,\"不良\")))))))","v":""},null,null,null,null,null,null,null,null,null,null,null,null,null,null,null,null,null,"千三保育園"]
[null,null,null,null,null,null,null,null,null,null,null,null,null,null,null,null,null,null,null,null,null,null,null,null,null,null,null,null,null,null,null,null,null,null,null,null,null,null,null,null,null,null,"山三保育園"]
[null,null,null,null,"1次評価者",null,null,"（",null,null,null,null,"）",null,"2次評価者",null,null,"（",null,null,null,null,"）","㊞　　　　",null,null,null,null,null,null,null,null,null,null,null,null,null,null,null,null,null,null,"はぎのきこども園"]
[null,null,null,null,"(設定している場合）評価事務補助者（",null,null,null,null,null,null,null,null,"）","(設定している場合）評価事務補助者（",null,null,null,null,null,null,null,null,"）",null,null,null,null,null,null,null,null,null,null,null,null,null,null,null,null,null,null,"いずみ小規模園"]
[null,null,null,null,null,null,null,null,null,null,null,null,null,null,null,null,null,null,null,null,null,null,null,null,null,null,null,null,null,null,null,null,null,null,null,null,null,null,null,null,null,null,"こども発達支援センター"]
["給与反映区分","総合評価",null,null,"良好",null,null,null,null,"やや不良",null,null,null,null,"不良",null,null,null,null,null,"備考欄",null,null,null,null,null,null,null,null,null,null,null,null,null,null,null,null,null,null,null,null,null,"地域支援センター"]
[null,"昇給号数",null,null,"４号",null,null,null,null,"２号",null,null,null,null,"昇給なし",null,null,null,null,null,null,null,null,null,null,null,null,null,null,null,null,null,null,null,null,null,null,null,null,null,null,null,"杉の子学園"]
[null,"勤勉手当支給割合",null,null,"吹田市期末手当及び\n勤勉手当の支給に関する\n規則で定める支給割合",null,null,null,null,"良好の１０％減として、\n同規則で定める支給割合",null,null,null,null,"良好の２０％減として、\n同規則で定める支給割合",null,null,null,null,null,null,null,null,null,null,null,null,null,null,null,null,null,null,null,null,null,null,null,null,null,null,null,"わかたけ園"]
[null,null,null,null,null,null,null,null,null,null,null,null,null,null,null,null,null,null,"※水道部は、吹田市水道部企業職員給与規程",null,null,null,null,null,null,null,null,null,null,null,null,null,null,null,null,null,null,null,null,null,null,null,"福祉総務室"]
[{"$f":"A1","v":"令和"},{"$f":"B1","v":6},{"$f":"C1","v":"年度"},null,null,null,null,null,null,"勤務評価シート（開示用）",null,null,null,null,null,null,null,null,null,null,null,null,null,null,null,null,null,"5",null,null,null,null,null,null,null,null,null,null,null,null,null,null,"総合福祉会館"]
["事務・技術・専門　主査等",null,null,null,null,null,null,null,null,null,null,null,null,null,null,null,null,null,null,null,null,null,null,null,null,null,null,null,null,null,null,null,null,null,null,null,null,null,null,null,null,null,"生活福祉室"]
["基礎情報","被評価者","所属名",null,null,null,null,"補職級",null,null,"職種",null,null,"職員番号",null,"氏名",null,null,null,"評価期間",null,null,null,null,null,null,null,null,null,null,null,null,null,null,null,null,null,null,null,null,null,null,"福祉指導監査室"]
[null,null,{"$f":"+C4","v":0},null,null,null,null,{"$f":"+H4","v":"主査級"},null,null,{"$f":"+K4","v":0},null,null,{"$f":"+N4","v":0},null,{"$f":"+P4","v":0},null,null,null,{"$f":"T4","v":"00:00:00"},null,null,null,"～",{"$f":"Y4","v":"00:00:00"},null,null,null,null,null,null,null,null,null,null,null,null,null,null,null,null,null,"高齢福祉室"]
[null,null,null,null,null,null,null,null,null,null,null,null,null,null,null,null,null,null,null,null,null,null,null,null,null,null,null,null,null,null,null,null,null,null,null,null,null,null,null,null,null,null,"障がい福祉室"]
["【業績】","評価基準・着眼点",null,null,null,null,null,null,null,null,null,null,null,null,null,"自己評価",null,null,null,null,null,null,null,null,null,"最終評価",null,null,null,null,null,null,null,null,null,null,null,null,null,null,null,null,"健康まちづくり室"]
[null,"【業績】",null,null,null,null,null,null,null,null,null,null,null,null,null,"（評価点）",null,"（コメント）",null,null,null,null,null,null,null,"（評価点）",null,null,null,null,null,null,null,null,null,null,null,null,null,null,null,null,"病院総務室"]
[null,"評価点","４（特に良好）",null,"職階からみて、期待された水準をはるかに上回る業績をあげた",null,null,null,null,null,null,null,null,null,null,{"$f":"+P8","v":0},null,{"$f":"+R8","v":0},null,null,null,null,null,null,null,{"$f":"+Z8","v":0},null,null,null,null,null,null,null,null,null,null,null,null,null,null,null,null,"医療事務室"]
[null,null,"３（良好）",null,"職階からみて、期待された以上の業績をあげた"]
[null,null,"２（標準）",null,"職階からみて、相応の業績である",null,null,null,null,null,null,null,null,null,null,null,null,null,null,null,null,null,null,null,null,null,null,null,null,null,null,null,null,null,null,null,null,null,null,null,null,null,"成人保健課"]
[null,null,"１（要努力）",null,"職階からみて、期待された水準に達しておらず、努力が必要である",null,null,null,null,null,null,null,null,null,null,null,null,null,null,null,null,null,null,null,null,null,null,null,null,null,null,null,null,null,null,null,null,null,null,null,null,null,"母子保健課"]
[null,null,null,null,null,null,null,null,null,null,null,null,null,null,null,null,null,null,null,null,null,null,null,null,null,null,null,null,null,null,null,null,null,null,null,null,null,null,null,null,null,null,"（後期高齢）"]
["≪【業績】の評価項目数の取扱い≫\n　・次長級以上は評価点を４倍\n　・課長級は評価点を３倍　　",null,null,null,null,"\n・課長代理級は評価点を３倍\n・主査級は評価点を２倍",null,null,null,null,null,null,null,null,null,null,null,null,null,null,null,null,"【業績】\n　　評価点が２個あるものとして取扱い",null,null,null,null,null,null,null,null,null,null,null,null,null,null,null,null,null,null,null,"国民健康保険課"]
[null,null,null,null,null,null,null,null,null,null,null,null,null,null,null,null,null,null,null,null,null,null,null,null,null,null,null,null,null,null,null,null,null,null,null,null,null,null,null,null,null,null,"保健医療総務室"]
["【能力】","評価項目及び行動・着眼点",null,null,null,null,null,null,null,null,null,null,null,null,null,"自己評価",null,null,null,null,null,null,null,null,null,"最終評価",null,null,null,null,null,null,null,null,null,null,null,null,null,null,null,null,"衛生管理課"]
[null,"【市民視点・法令遵守】",null,null,null,null,null,null,null,null,null,null,null,null,null,"（評価点）",null,"（コメント）",null,null,null,null,null,null,null,"（評価点）",null,null,null,null,null,null,null,null,null,null,null,null,null,null,null,null,"地域保健課"]
[null,null,"丁寧な応対を心掛けるなど、全体の奉仕者として、常に市民の立場や市民協働の視点に立つことができるとともに、法令等及び服務規律を順守して、公平かつ公正に業務を遂行することができる。",null,null,null,null,null,null,null,null,null,null,null,null,{"$f":"+P17","v":0},null,{"$f":"+R17","v":0},null,null,null,null,null,null,null,{"$f":"+Z17","v":0},null,null,null,null,null,null,null,null,null,null,null,null,null,null,null,null,"環境政策室"]
[null,"着眼点",null,"・接遇",null,null,null,null,null,"・法令順守",null,null,null,null,null,null,null,null,null,null,null,null,null,null,null,null,null,null,null,null,null,null,null,null,null,null,null,null,null,null,null,null,"環境保全指導課"]
[null,null,null,"・公平・公正な姿勢",null,null,null,null,null,"・責任感",null,null,null,null,null,null,null,null,null,null,null,null,null,null,null,null,null,null,null,null,null,null,null,null,null,null,null,null,null,null,null,null,"事業課"]
[null,"【コミュニケーション】",null,null,null,null,null,null,null,null,null,null,null,null,null,"（評価点）",null,"（コメント）",null,null,null,null,null,null,null,"（評価点）",null,null,null,null,null,null,null,null,null,null,null,null,null,null,null,null,"資源循環エネルギーセンター"]
[null,null,"様々な相手と円滑かつ適切なコミュニケーションを取ることができる。",null,null,null,null,null,null,null,null,null,null,null,null,{"$f":"+P21","v":0},null,{"$f":"+R21","v":0},null,null,null,null,null,null,null,{"$f":"+Z21","v":0},null,null,null,null,null,null,null,null,null,null,null,null,null,null,null,null,"破砕選別工場"]
[null,"着眼点",null,"・市民に対する傾聴と対話の姿勢",null,null,null,null,null,"・柔軟な姿勢と一貫した主張のバランス",null,null,null,null,null,null,null,null,null,null,null,null,null,null,null,null,null,null,null,null,null,null,null,null,null,null,null,null,null,null,null,null,"都市計画室"]
[null,null,null,"・誠実さ",null,null,null,null,null,"・職場でのコミュニケーション促進",null,null,null,null,null,null,null,null,null,null,null,null,null,null,null,null,null,null,null,null,null,null,null,null,null,null,null,null,null,null,null,null,"計画調整室"]
[null,"【課題対応】",null,null,null,null,null,null,null,null,null,null,null,null,null,"（評価点）",null,"（コメント）",null,null,null,null,null,null,null,"（評価点）",null,null,null,null,null,null,null,null,null,null,null,null,null,null,null,null,"開発審査室"]
[null,null,"担当業務の課題に対応するため必要な知識及び技術について、誰よりも詳しくあろうと取り組むことができる。",null,null,null,null,null,null,null,null,null,null,null,null,{"$f":"+P25","v":0},null,{"$f":"+R25","v":0},null,null,null,null,null,null,null,{"$f":"+Z25","v":0},null,null,null,null,null,null,null,null,null,null,null,null,null,null,null,null,"住宅政策室"]
[null,"着眼点",null,"・研究心",null,null,null,null,null,"・情報収集",null,null,null,null,null,null,null,null,null,null,null,null,null,null,null,null,null,null,null,null,null,null,null,null,null,null,null,null,null,null,null,null,"資産経営室"]
[null,null,null,"・問題点の把握",null,null,null,null,null,"・応用力",null,null,null,null,null,null,null,null,null,null,null,null,null,null,null,null,null,null,null,null,null,null,null,null,null,null,null,null,null,null,null,null,"総務交通室"]
[null,"【説明】",null,null,null,null,null,null,null,null,null,null,null,null,null,"（評価点）",null,"（コメント）",null,null,null,null,null,null,null,"（評価点）",null,null,null,null,null,null,null,null,null,null,null,null,null,null,null,null,"道路室"]
[null,null,"担当業務について、論理的に分かりやすく説明することができる。",null,null,null,null,null,null,null,null,null,null,null,null,{"$f":"+P29","v":0},null,{"$f":"+R29","v":0},null,null,null,null,null,null,null,{"$f":"+Z29","v":0},null,null,null,null,null,null,null,null,null,null,null,null,null,null,null,null,"公園みどり室"]
[null,"着眼点",null,"・論理的構成力",null,null,null,null,null,"・説得力",null,null,null,null,null,null,null,null,null,null,null,null,null,null,null,null,null,null,null,null,null,null,null,null,null,null,null,null,null,null,null,null,"地域整備推進室"]
[null,null,null,"・丁寧さ",null,null,null,null,null,null,null,null,null,null,null,null,null,null,null,null,null,null,null,null,null,null,null,null,null,null,null,null,null,null,null,null,null,null,null,null,null,null,"経営室"]
[null,"【業務遂行】",null,null,null,null,null,null,null,null,null,null,null,null,null,"（評価点）",null,"（コメント）",null,null,null,null,null,null,null,"（評価点）",null,null,null,null,null,null,null,null,null,null,null,null,null,null,null,null,"管路保全室"]
[null,null,"担当業務全体を把握した上で、計画的かつ正確に業務を処理することができる。\n[専門職]専門的知識、技術及び経験に基づき業務を遂行することができる。",null,null,null,null,null,null,null,null,null,null,null,null,{"$f":"+P33","v":0},null,{"$f":"+R33","v":0},null,null,null,null,null,null,null,{"$f":"+Z33","v":0},null,null,null,null,null,null,null,null,null,null,null,null,null,null,null,null,"水再生室"]
[null,"着眼点",null,"・優先順位を見極めた計画",null,null,null,null,null,"・正確性、情報処理能力",null,null,null,null,null,null,null,null,null,null,null,null,null,null,null,null,null,null,null,null,null,null,null,null,null,null,null,null,null,null,null,null,"会計室"]
[null,null,null,"・ねばり強さ",null,null,null,null,null,"・［専門職］専門的知識・技術・経験",null,null,null,null,null,null,null,null,null,null,null,null,null,null,null,null,null,null,null,null,null,null,null,null,null,null,null,null,null,null,null,null,"消防本部"]
[null,"【組織マネジメント・人材育成】",null,null,null,null,null,null,null,null,null,null,null,null,null,"（評価点）",null,"（コメント）",null,null,null,null,null,null,null,"（評価点）",null,null,null,null,null,null,null,null,null,null,null,null,null,null,null,null,"総務予防室"]
[null,null,"情報の共有を図りつつ、所属職員を指揮監督することができるとともに、部下等の指導及び育成を行うことができる。",null,null,null,null,null,null,null,null,null,null,null,null,{"$f":"+P37","v":0},null,{"$f":"+R37","v":0},null,null,null,null,null,null,null,{"$f":"+Z37","v":0},null,null,null,null,null,null,null,null,null,null,null,null,null,null,null,null,"消防本部付"]
[null,"着眼点",null,"・情報共有、情報発信",null,null,null,null,null,"・協調性",null,null,null,null,null,null,null,null,null,null,null,null,null,null,null,null,null,null,null,null,null,null,null,null,null,null,null,null,null,null,null,null,"警防救急室"]
[null,null,null,"・部下育成力",null,null,null,null,null,"・適切な作業割振り及び進捗管理",null,null,null,null,null,null,null,null,null,null,null,null,null,null,null,null,null,null,null,null,null,null,null,null,null,null,null,null,null,null,null,null,"警防・救急・啓発Ｇ"]
[null,null,null,null,null,null,null,null,null,null,null,null,null,null,null,null,null,null,null,null,null,null,null,null,null,null,null,null,null,null,null,null,null,null,null,null,null,null,null,null,null,null,"救助第１Ｇ"]
["≪【能力】の評価点≫\n◆　「４（特に良好）」…求められる行動が確実にとられており、他の職員の模範となる職務遂行状況である。\n◆　「３（良好）」…求められる行動が確実にとられていた。\n◆　「２（標準）」…求められる行動が概ねとられていた。\n◆　「１（要努力）」…求められる行動がとられていることが少なく（全くなく）、改善に向け努力が必要である。",null,null,null,null,null,null,null,null,null,"≪総合評価区分と評価点との関係：基準≫\n◆　「良好」…原則、【業績】及び【能力】の評価項目の３分の２以上が「２（標準）」以上の場合に該当する。\n◆　「やや不良」…原則、【業績】及び【能力】の評価項目の３分の１超半数以下が「１（標準未満）」の場合に該当する。\n◆　「不良」…原則、【業績】及び【能力】の評価項目の半数超が「１（標準未満）」であるとともに、分限（降任・免職）処分を検討する必要があると判断する場合に該当する。",null,null,null,null,null,null,null,null,null,"【業績】及び\n【能力】の\n評価項目数の合計",null,"「4（特に良好）」\nの個数",null,null,null,{"$f":"+AA41","v":""},null,null,null,null,null,null,null,null,null,null,null,null,null,null,null,"救助第２Ｇ"]
[null,null,null,null,null,null,null,null,null,null,null,null,null,null,null,null,null,null,null,null,null,null,"「3（良好）」\nの個数",null,null,null,{"$f":"+AA42","v":""}]
[null,null,null,null,null,null,null,null,null,null,null,null,null,null,null,null,null,null,null,null,null,null,"「２（標準）」\nの個数",null,null,null,{"$f":"+AA43","v":""},null,null,null,null,null,null,null,null,null,null,null,null,null,null,null,"指令情報室"]
[null,null,null,null,null,null,null,null,null,null,null,null,null,null,null,null,null,null,null,null,8,null,"「１（要努力）」\nの個数",null,null,null,{"$f":"+AA44","v":""},null,null,null,null,null,null,null,null,null,null,null,null,null,null,null,"指令情報第１Ｇ"]
[null,null,null,null,null,null,null,null,null,null,null,null,null,null,null,null,null,null,null,null,null,null,null,null,null,null,null,null,null,null,null,null,null,null,null,null,null,null,null,null,null,null,"指令情報第２Ｇ"]
["ピカッとポイント",null,null,null,null,null,null,null,"２次評価者所見",null,null,null,null,null,null,null,null,null,null,null,null,null,null,null,"総合評価",null,null,null,null,null,null,null,null,null,null,null,null,null,null,null,null,null,"南消防署"]
[{"$f":"+A48","v":0},null,null,null,null,null,null,null,{"$f":"+O48","v":0},null,null,null,null,null,null,null,null,null,null,null,null,null,null,null,{"$f":"+Y47","v":""},null,null,null,null,null,null,null,null,null,null,null,null,null,null,null,null,null,"南予防査察係"]
[null,null,null,null,null,null,null,null,null,null,null,null,null,null,null,null,null,null,null,null,null,null,null,null,null,null,null,null,null,null,null,null,null,null,null,null,null,null,null,null,null,null,"南警防第１係"]
[{"$f":"IF(K50=\"\",\"\",\"評価事務補助者（\")","v":""},null,null,{"$f":"K50","v":0},null,null,null,{"$f":"IF(K50=\"\",\"\",\"）\")","v":""},null,null,null,null,null,null,null,null,null,null,null,null,null,null,null,null,null,null,null,null,null,null,null,null,null,null,null,null,null,null,null,null,null,null,"南警防第２係"]
["１次評価者",null,"（",{"$f":"+I49","v":0},null,null,null,"）",null,null,{"$f":"IF(U50=\"\",\"\",\"評価事務補助者(\")","v":""},{"$f":"U50","v":0},null,null,null,{"$f":"IF(U50=\"\",\"\",\"）\")","v":""},"２次評価者",null,"（",{"$f":"+S49","v":0},null,null,null,"）",null,null,null,null,null,null,null,null,null,null,null,null,null,null,null,null,null,null,"南救急第１係"]
[null,null,null,null,null,null,null,null,null,null,null,null,null,null,null,null,null,null,null,null,null,null,null,null,null,null,null,null,null,null,null,null,null,null,null,null,null,null,null,null,null,null,"南救急第２係"]
["給与反映区分","総合評価",null,null,"良好",null,null,null,null,"やや不良",null,null,null,null,"不良",null,null,null,null,null,"備考欄",{"$f":"V52","v":0},null,null,null,null,null,null,null,null,null,null,null,null,null,null,null,null,null,null,null,null,"正雀出張所第１係"]
[null,"昇給号数",null,null,"４号",null,null,null,null,"２号",null,null,null,null,"昇給なし",null,null,null,null,null,null,null,null,null,null,null,null,null,null,null,null,null,null,null,null,null,null,null,null,null,null,null,"正雀出張所第２係"]
[null,"勤勉手当支給割合",null,null,"吹田市期末手当及び\n勤勉手当の支給に関する\n規則で定める支給割合",null,null,null,null,"良好の１０％減として、\n同規則で定める支給割合",null,null,null,null,"良好の２０％減として、\n同規則で定める支給割合",null,null,null,null,null,null,null,null,null,null,null,null,null,null,null,null,null,null,null,null,null,null,null,null,null,null,null,"北消防署"]
[null,null,null,null,null,null,null,null,null,null,null,null,null,null,null,null,null,null,"※水道部は、吹田市水道部企業職員給与規程",null,null,null,null,null,null,null,null,null,null,null,null,null,null,null,null,null,null,null,null,null,null,null,"北予防査察係"]
[null,null,null,null,null,null,null,null,null,null,null,null,null,null,null,null,null,null,null,null,null,null,null,null,null,null,null,null,null,null,null,null,null,null,null,null,null,null,null,null,null,null,"北警防第１係"]
["職員番号","氏名","所属名","補職級","職種","評価項目",null,null,null,null,null,null,null,null,null,null,null,null,null,null,"総合評価","2次評価者",null,null,null,null,null,null,null,null,null,null,null,null,null,null,null,null,null,null,null,null,"北警防第２係"]
[null,null,null,null,null,"【業績】","【市民視点・法令遵守】","【コミュニケーション】","【課題の解決】","【決断】","【判断】","【課題対応】","【知識・技術・経験の活用】","【知識・技術の向上】","【説明・調整】","【説明】","【業務改善】","【業務遂行】","【組織マネジメント・人材育成】","【組織貢献・チームワーク】",null,null,null,null,null,null,null,null,null,null,null,null,null,null,null,null,null,null,null,null,null,null,"北救急第１係"]
[{"$f":"+N4","v":0},{"$f":"+P4","v":0},{"$f":"+C4","v":0},{"$f":"+H4","v":"主査級"},{"$f":"+K4","v":0},{"$f":"+Z8","v":0},{"$f":"+Z17","v":0},{"$f":"+Z21","v":0},null,null,null,{"$f":"+Z25","v":0},null,null,null,{"$f":"+Z29","v":0},null,{"$f":"+Z33","v":0},{"$f":"+Z37","v":0},null,{"$f":"+Y47","v":""},{"$f":"+S49","v":0},null,null,null,null,null,null,null,null,null,null,null,null,null,null,null,null,null,null,null,null,"北救急第２係"]
[null,null,null,null,null,null,null,null,null,null,null,null,null,null,null,null,null,null,null,null,null,null,null,null,null,null,null,null,null,null,null,null,null,null,null,null,null,null,null,null,null,null,"西消防署"]
[null,null,null,null,null,null,null,null,null,null,null,null,null,null,null,null,null,null,null,null,null,null,null,null,null,null,null,null,null,null,null,null,null,null,null,null,null,null,null,null,null,null,"西予防査察係"]
[null,null,null,null,null,null,null,null,null,null,null,null,null,null,null,null,null,null,null,null,null,null,null,null,null,null,null,null,null,null,null,null,null,null,null,null,null,null,null,null,null,null,"西警防第１係"]
[null,null,null,null,null,null,null,null,null,null,null,null,null,null,null,null,null,null,null,null,null,null,null,null,null,null,null,null,null,null,null,null,null,null,null,null,null,null,null,null,null,null,"西警防第２係"]
[null,null,null,null,null,null,null,null,null,null,null,null,null,null,null,null,null,null,null,null,null,null,null,null,null,null,null,null,null,null,null,null,null,null,null,null,null,null,null,null,null,null,"西救急第１係"]
[null,null,null,null,null,null,null,null,null,null,null,null,null,null,null,null,null,null,null,null,null,null,null,null,null,null,null,null,null,null,null,null,null,null,null,null,null,null,null,null,null,null,"西救急第２係"]
[null,null,null,null,null,null,null,null,null,null,null,null,null,null,null,null,null,null,null,null,null,null,null,null,null,null,null,null,null,null,null,null,null,null,null,null,null,null,null,null,null,null,"千里出張所第１係"]
[null,null,null,null,null,null,null,null,null,null,null,null,null,null,null,null,null,null,null,null,null,null,null,null,null,null,null,null,null,null,null,null,null,null,null,null,null,null,null,null,null,null,"千里出張所第２係"]
[null,null,null,null,null,null,null,null,null,null,null,null,null,null,null,null,null,null,null,null,null,null,null,null,null,null,null,null,null,null,null,null,null,null,null,null,null,null,null,null,null,null,"東消防署"]
[null,null,null,null,null,null,null,null,null,null,null,null,null,null,null,null,null,null,null,null,null,null,null,null,null,null,null,null,null,null,null,null,null,null,null,null,null,null,null,null,null,null,"東予防査察係"]
[null,null,null,null,null,null,null,null,null,null,null,null,null,null,null,null,null,null,null,null,null,null,null,null,null,null,null,null,null,null,null,null,null,null,null,null,null,null,null,null,null,null,"東警防第１係"]
[null,null,null,null,null,null,null,null,null,null,null,null,null,null,null,null,null,null,null,null,null,null,null,null,null,null,null,null,null,null,null,null,null,null,null,null,null,null,null,null,null,null,"東警防第２係"]
[null,null,null,null,null,null,null,null,null,null,null,null,null,null,null,null,null,null,null,null,null,null,null,null,null,null,null,null,null,null,null,null,null,null,null,null,null,null,null,null,null,null,"東救急第１係"]
[null,null,null,null,null,null,null,null,null,null,null,null,null,null,null,null,null,null,null,null,null,null,null,null,null,null,null,null,null,null,null,null,null,null,null,null,null,null,null,null,null,null,"東救急第２係"]
[null,null,null,null,null,null,null,null,null,null,null,null,null,null,null,null,null,null,null,null,null,null,null,null,null,null,null,null,null,null,null,null,null,null,null,null,null,null,null,null,null,null,"岸部出張所第１係"]
[null,null,null,null,null,null,null,null,null,null,null,null,null,null,null,null,null,null,null,null,null,null,null,null,null,null,null,null,null,null,null,null,null,null,null,null,null,null,null,null,null,null,"岸部出張所第２係"]
[null,null,null,null,null,null,null,null,null,null,null,null,null,null,null,null,null,null,null,null,null,null,null,null,null,null,null,null,null,null,null,null,null,null,null,null,null,null,null,null,null,null,"東救急第１係（中庁舎）"]
[null,null,null,null,null,null,null,null,null,null,null,null,null,null,null,null,null,null,null,null,null,null,null,null,null,null,null,null,null,null,null,null,null,null,null,null,null,null,null,null,null,null,"東救急第２係（中庁舎）"]
[null,null,null,null,null,null,null,null,null,null,null,null,null,null,null,null,null,null,null,null,null,null,null,null,null,null,null,null,null,null,null,null,null,null,null,null,null,null,null,null,null,null,"議会事務局"]
[null,null,null,null,null,null,null,null,null,null,null,null,null,null,null,null,null,null,null,null,null,null,null,null,null,null,null,null,null,null,null,null,null,null,null,null,null,null,null,null,null,null,"選挙管理委員会事務局"]
[null,null,null,null,null,null,null,null,null,null,null,null,null,null,null,null,null,null,null,null,null,null,null,null,null,null,null,null,null,null,null,null,null,null,null,null,null,null,null,null,null,null,"監査委員事務局"]
[null,null,null,null,null,null,null,null,null,null,null,null,null,null,null,null,null,null,null,null,null,null,null,null,null,null,null,null,null,null,null,null,null,null,null,null,null,null,null,null,null,null,"農業委員会事務局"]
[null,null,null,null,null,null,null,null,null,null,null,null,null,null,null,null,null,null,null,null,null,null,null,null,null,null,null,null,null,null,null,null,null,null,null,null,null,null,null,null,null,null,"教育総務室"]
[null,null,null,null,null,null,null,null,null,null,null,null,null,null,null,null,null,null,null,null,null,null,null,null,null,null,null,null,null,null,null,null,null,null,null,null,null,null,null,null,null,null,"学校管理課"]
[null,null,null,null,null,null,null,null,null,null,null,null,null,null,null,null,null,null,null,null,null,null,null,null,null,null,null,null,null,null,null,null,null,null,null,null,null,null,null,null,null,null,"学務課"]
[null,null,null,null,null,null,null,null,null,null,null,null,null,null,null,null,null,null,null,null,null,null,null,null,null,null,null,null,null,null,null,null,null,null,null,null,null,null,null,null,null,null,"教育未来創生室"]
[null,null,null,null,null,null,null,null,null,null,null,null,null,null,null,null,null,null,null,null,null,null,null,null,null,null,null,null,null,null,null,null,null,null,null,null,null,null,null,null,null,null,"保健給食室"]
[null,null,null,null,null,null,null,null,null,null,null,null,null,null,null,null,null,null,null,null,null,null,null,null,null,null,null,null,null,null,null,null,null,null,null,null,null,null,null,null,null,null,"学校教育室"]
[null,null,null,null,null,null,null,null,null,null,null,null,null,null,null,null,null,null,null,null,null,null,null,null,null,null,null,null,null,null,null,null,null,null,null,null,null,null,null,null,null,null,"教職員課"]
[null,null,null,null,null,null,null,null,null,null,null,null,null,null,null,null,null,null,null,null,null,null,null,null,null,null,null,null,null,null,null,null,null,null,null,null,null,null,null,null,null,null,"吹田第一幼稚園"]
[null,null,null,null,null,null,null,null,null,null,null,null,null,null,null,null,null,null,null,null,null,null,null,null,null,null,null,null,null,null,null,null,null,null,null,null,null,null,null,null,null,null,"吹田第三幼稚園"]
[null,null,null,null,null,null,null,null,null,null,null,null,null,null,null,null,null,null,null,null,null,null,null,null,null,null,null,null,null,null,null,null,null,null,null,null,null,null,null,null,null,null,"吹田南幼稚園"]
[null,null,null,null,null,null,null,null,null,null,null,null,null,null,null,null,null,null,null,null,null,null,null,null,null,null,null,null,null,null,null,null,null,null,null,null,null,null,null,null,null,null,"千里第二幼稚園"]
[null,null,null,null,null,null,null,null,null,null,null,null,null,null,null,null,null,null,null,null,null,null,null,null,null,null,null,null,null,null,null,null,null,null,null,null,null,null,null,null,null,null,"千里新田こども園"]
[null,null,null,null,null,null,null,null,null,null,null,null,null,null,null,null,null,null,null,null,null,null,null,null,null,null,null,null,null,null,null,null,null,null,null,null,null,null,null,null,null,null,"東佐井寺幼稚園"]
[null,null,null,null,null,null,null,null,null,null,null,null,null,null,null,null,null,null,null,null,null,null,null,null,null,null,null,null,null,null,null,null,null,null,null,null,null,null,null,null,null,null,"岸部第一幼稚園"]
[null,null,null,null,null,null,null,null,null,null,null,null,null,null,null,null,null,null,null,null,null,null,null,null,null,null,null,null,null,null,null,null,null,null,null,null,null,null,null,null,null,null,"豊津第一幼稚園"]
[null,null,null,null,null,null,null,null,null,null,null,null,null,null,null,null,null,null,null,null,null,null,null,null,null,null,null,null,null,null,null,null,null,null,null,null,null,null,null,null,null,null,"江坂大池こども園"]
[null,null,null,null,null,null,null,null,null,null,null,null,null,null,null,null,null,null,null,null,null,null,null,null,null,null,null,null,null,null,null,null,null,null,null,null,null,null,null,null,null,null,"片山幼稚園"]
[null,null,null,null,null,null,null,null,null,null,null,null,null,null,null,null,null,null,null,null,null,null,null,null,null,null,null,null,null,null,null,null,null,null,null,null,null,null,null,null,null,null,"山田第一幼稚園"]
[null,null,null,null,null,null,null,null,null,null,null,null,null,null,null,null,null,null,null,null,null,null,null,null,null,null,null,null,null,null,null,null,null,null,null,null,null,null,null,null,null,null,"山田第三幼稚園"]
[null,null,null,null,null,null,null,null,null,null,null,null,null,null,null,null,null,null,null,null,null,null,null,null,null,null,null,null,null,null,null,null,null,null,null,null,null,null,null,null,null,null,"東山田幼稚園"]
[null,null,null,null,null,null,null,null,null,null,null,null,null,null,null,null,null,null,null,null,null,null,null,null,null,null,null,null,null,null,null,null,null,null,null,null,null,null,null,null,null,null,"南山田幼稚園"]
[null,null,null,null,null,null,null,null,null,null,null,null,null,null,null,null,null,null,null,null,null,null,null,null,null,null,null,null,null,null,null,null,null,null,null,null,null,null,null,null,null,null,"佐竹台幼稚園"]
[null,null,null,null,null,null,null,null,null,null,null,null,null,null,null,null,null,null,null,null,null,null,null,null,null,null,null,null,null,null,null,null,null,null,null,null,null,null,null,null,null,null,"教育センター"]
[null,null,null,null,null,null,null,null,null,null,null,null,null,null,null,null,null,null,null,null,null,null,null,null,null,null,null,null,null,null,null,null,null,null,null,null,null,null,null,null,null,null,"まなびの支援課"]
[null,null,null,null,null,null,null,null,null,null,null,null,null,null,null,null,null,null,null,null,null,null,null,null,null,null,null,null,null,null,null,null,null,null,null,null,null,null,null,null,null,null,"中央図書館"]
[null,null,null,null,null,null,null,null,null,null,null,null,null,null,null,null,null,null,null,null,null,null,null,null,null,null,null,null,null,null,null,null,null,null,null,null,null,null,null,null,null,null,"千里図書館"]
[null,null,null,null,null,null,null,null,null,null,null,null,null,null,null,null,null,null,null,null,null,null,null,null,null,null,null,null,null,null,null,null,null,null,null,null,null,null,null,null,null,null,"さんくす図書館"]
[null,null,null,null,null,null,null,null,null,null,null,null,null,null,null,null,null,null,null,null,null,null,null,null,null,null,null,null,null,null,null,null,null,null,null,null,null,null,null,null,null,null,"江坂図書館"]
[null,null,null,null,null,null,null,null,null,null,null,null,null,null,null,null,null,null,null,null,null,null,null,null,null,null,null,null,null,null,null,null,null,null,null,null,null,null,null,null,null,null,"千里山・佐井寺図書館"]
[null,null,null,null,null,null,null,null,null,null,null,null,null,null,null,null,null,null,null,null,null,null,null,null,null,null,null,null,null,null,null,null,null,null,null,null,null,null,null,null,null,null,"千里丘図書館"]
[null,null,null,null,null,null,null,null,null,null,null,null,null,null,null,null,null,null,null,null,null,null,null,null,null,null,null,null,null,null,null,null,null,null,null,null,null,null,null,null,null,null,"山田駅前図書館"]
[null,null,null,null,null,null,null,null,null,null,null,null,null,null,null,null,null,null,null,null,null,null,null,null,null,null,null,null,null,null,null,null,null,null,null,null,null,null,null,null,null,null,"健都ライブラリー"]
[null,null,null,null,null,null,null,null,null,null,null,null,null,null,null,null,null,null,null,null,null,null,null,null,null,null,null,null,null,null,null,null,null,null,null,null,null,null,null,null,null,null,"北千里図書館"]
[null,null,null,null,null,null,null,null,null,null,null,null,null,null,null,null,null,null,null,null,null,null,null,null,null,null,null,null,null,null,null,null,null,null,null,null,null,null,null,null,null,null,"文化財保護課"]
[null,null,null,null,null,null,null,null,null,null,null,null,null,null,null,null,null,null,null,null,null,null,null,null,null,null,null,null,null,null,null,null,null,null,null,null,null,null,null,null,null,null,"博物館"]
[null,null,null,null,null,null,null,null,null,null,null,null,null,null,null,null,null,null,null,null,null,null,null,null,null,null,null,null,null,null,null,null,null,null,null,null,null,null,null,null,null,null,"青少年室"]
[null,null,null,null,null,null,null,null,null,null,null,null,null,null,null,null,null,null,null,null,null,null,null,null,null,null,null,null,null,null,null,null,null,null,null,null,null,null,null,null,null,null,"青少年クリエイティブセンター"]
[null,null,null,null,null,null,null,null,null,null,null,null,null,null,null,null,null,null,null,null,null,null,null,null,null,null,null,null,null,null,null,null,null,null,null,null,null,null,null,null,null,null,"放課後子ども育成室"]
[null,null,null,null,null,null,null,null,null,null,null,null,null,null,null,null,null,null,null,null,null,null,null,null,null,null,null,null,null,null,null,null,null,null,null,null,null,null,null,null,null,null,"（水）総務室"]
[null,null,null,null,null,null,null,null,null,null,null,null,null,null,null,null,null,null,null,null,null,null,null,null,null,null,null,null,null,null,null,null,null,null,null,null,null,null,null,null,null,null,"企画室"]
[null,null,null,null,null,null,null,null,null,null,null,null,null,null,null,null,null,null,null,null,null,null,null,null,null,null,null,null,null,null,null,null,null,null,null,null,null,null,null,null,null,null,"工務室"]
[null,null,null,null,null,null,null,null,null,null,null,null,null,null,null,null,null,null,null,null,null,null,null,null,null,null,null,null,null,null,null,null,null,null,null,null,null,null,null,null,null,null,"浄水室"]

{"sheet":"主任","index":5,"n_rows":178,"n_cols":45,"rows_kept":178,"cut":false,"hidden":false,"merged":[[104,11,104,14],[104,16,104,17],[104,19,104,22],[51,0,53,0],[51,1,51,3],[51,4,51,8],[51,9,51,13],[51,14,51,18],[51,20,53,20],[51,21,53,27],[52,1,52,3],[52,4,52,8],[52,9,52,13],[52,14,52,18],[53,1,53,3],[53,4,53,8],[53,9,53,13],[53,14,53,18],[63,2,63,3],[63,4,63,14],[96,22,96,25],[96,26,96,27],[55,9,56,18],[57,0,58,0],[5,0,10,0],[5,1,5,14],[5,15,5,21],[9,2,9,3],[10,2,10,3],[7,15,10,16],[14,0,38,0],[14,1,14,14],[60,15,60,24],[8,2,8,3],[8,4,8,14],[41,22,41,25],[7,1,10,1],[7,2,7,3],[7,4,7,14],[7,22,10,24],[5,22,5,24],[7,25,10,27],[9,4,9,14],[5,25,5,27],[20,25,22,27],[21,1,22,2],[21,3,21,8],[21,9,21,14],[2,0,3,0],[2,1,3,1],[2,2,2,6],[2,7,2,9],[2,10,2,12],[2,13,2,14],[2,15,2,18],[2,19,2,27],[3,19,3,22],[3,2,3,6],[3,7,3,9],[3,10,3,12],[3,13,3,14],[3,15,3,18],[3,24,3,27],[22,3,22,8],[22,9,22,14],[14,22,14,24],[14,25,14,27],[16,2,16,14],[16,15,18,16],[16,17,18,21],[16,22,18,24],[16,25,18,27],[17,1,18,2],[17,3,17,8],[17,9,17,14],[18,3,18,8],[18,9,18,14],[14,15,14,21],[20,2,20,14],[20,15,22,16],[20,17,22,21],[28,25,30,27],[29,1,30,2],[29,3,29,8],[29,9,29,14],[30,3,30,8],[30,9,30,14],[24,15,26,16],[24,17,26,21],[24,22,26,24],[24,25,26,27],[25,1,26,2],[25,3,25,8],[25,9,25,14],[26,3,26,8],[26,9,26,14],[24,2,24,14],[32,15,34,16],[32,17,34,21],[32,22,34,24],[32,25,34,27],[33,1,34,2],[33,3,33,8],[33,9,33,14],[34,3,34,8],[34,9,34,14],[46,24,49,27],[47,0,49,3],[47,4,47,13],[47,14,47,23],[40,0,43,8],[40,10,43,18],[40,20,42,21],[40,22,40,25],[40,26,40,27],[42,22,42,25],[42,26,42,27],[43,20,43,21],[43,22,43,25],[43,26,43,27],[48,14,48,16],[48,18,48,21],[41,26,41,27],[0,9,1,18],[45,0,45,13],[45,14,45,23],[36,2,36,14],[36,15,38,16],[36,17,38,21],[36,22,38,24],[28,2,28,14],[28,15,30,16],[28,17,30,21],[28,22,30,24],[20,22,22,24],[10,4,10,14],[7,17,10,21],[12,0,12,4],[12,5,12,9],[45,24,45,27],[36,25,38,27],[37,1,38,2],[37,3,37,8],[37,9,37,14],[38,3,38,8],[38,9,38,14],[32,2,32,14],[60,25,60,27],[62,1,65,1],[62,2,62,3],[62,4,62,14],[62,15,65,16],[62,25,65,27],[64,2,64,3],[64,4,64,14],[57,19,57,27],[58,2,58,6],[58,7,58,9],[58,10,58,12],[58,13,58,14],[58,15,58,18],[58,19,58,22],[58,24,58,27],[57,1,58,1],[57,2,57,6],[57,7,57,9],[57,10,57,12],[57,13,57,14],[57,15,57,18],[67,0,67,4],[67,5,67,9],[69,0,93,0],[69,1,69,14],[73,9,73,14],[75,2,75,14],[75,15,77,16],[60,0,65,0],[60,1,60,14],[69,15,69,24],[91,17,93,24],[87,17,89,24],[83,17,85,24],[79,17,81,24],[75,17,77,24],[71,17,73,24],[75,25,77,27],[76,1,77,2],[76,3,76,8],[76,9,76,14],[77,3,77,8],[77,9,77,14],[69,25,69,27],[71,2,71,14],[71,15,73,16],[71,25,73,27],[72,1,73,2],[72,3,72,8],[72,9,72,14],[73,3,73,8],[83,25,85,27],[84,1,85,2],[84,3,84,8],[84,9,84,14],[85,3,85,8],[85,9,85,14],[79,2,79,14],[79,15,81,16],[79,25,81,27],[80,1,81,2],[80,3,80,8],[80,9,80,14],[81,3,81,8],[81,9,81,14],[91,25,93,27],[97,22,97,25],[92,1,93,2],[93,9,93,14],[87,2,87,14],[87,15,89,16],[87,25,89,27],[88,1,89,2],[88,3,88,8],[88,9,88,14],[89,3,89,8],[89,9,89,14],[111,20,112,20],[111,21,112,21],[95,20,97,21],[95,22,95,25],[111,0,112,0],[111,1,112,1],[111,2,112,2],[111,3,112,3],[111,4,112,4],[111,5,111,19],[100,24,100,27],[101,24,104,27],[100,0,100,7],[100,8,100,23],[101,0,102,7],[101,8,103,23],[103,3,103,6],[104,0,104,1],[104,3,104,6],[95,26,95,27],[97,26,97,27],[98,20,98,21],[98,22,98,25],[98,26,98,27],[106,0,108,0],[106,1,106,3],[106,4,106,8],[106,9,106,13],[106,14,106,18],[106,20,108,20],[48,4,48,6],[48,8,48,11],[49,4,49,9],[49,10,49,12],[95,0,98,8],[95,10,98,18],[49,14,49,19],[92,3,92,8],[92,9,92,14],[93,3,93,8],[49,20,49,22],[91,2,91,14],[91,15,93,16],[83,2,83,14],[83,15,85,16],[65,2,65,3],[65,4,65,14],[62,17,65,24],[106,21,108,27],[107,1,107,3],[107,4,107,8],[107,9,107,13],[107,14,107,18],[108,1,108,3],[108,4,108,8],[108,9,108,13],[108,14,108,18]]}
["令和",6,"年度",null,null,null,null,null,null,"勤務評価シート",null,null,null,null,null,null,null,null,null,null,null,null,null,null,null,null,null,"6"]
["事務・技術・専門　主任"]
["基礎情報","被評価者","所属名",null,null,null,null,"補職級",null,null,"職種",null,null,"職員番号",null,"氏名",null,null,null,"評価期間",null,null,null,null,null,null,null,null,null,null,null,null,null,null,null,null,null,null,null,null,null,null,"危機管理室","主任級","一般事務"]
[null,null,null,null,null,null,null,"主任級",null,null,null,null,null,null,null,null,null,null,null,null,null,null,null,"～",null,null,null,null,null,null,null,null,null,null,null,null,null,null,null,null,null,null,"秘書課",null,"一般事務（府教委）"]
[null,null,null,null,null,null,null,null,null,null,null,null,null,null,null,null,null,null,null,null,null,null,null,null,null,null,null,null,null,null,null,null,null,null,null,null,null,null,null,null,null,null,"広報課",null,"一般事務（司書）"]
["【業績】","評価基準・着眼点",null,null,null,null,null,null,null,null,null,null,null,null,null,"自己評価",null,null,null,null,null,null,"１次評価",null,null,"２次評価",null,null,null,null,null,null,null,null,null,null,null,null,null,null,null,null,"総務室",null,"一般事務（体育）"]
[null,"【業績】",null,null,null,null,null,null,null,null,null,null,null,null,null,"（評価点）",null,"（コメント）",null,null,null,null,"（評価点）",null,null,"（評価点）",null,null,null,null,null,null,null,null,null,null,null,null,null,null,null,null,"法制室",null,"一般技術"]
[null,"評価点","４（特に良好）",null,"職階からみて、期待された水準をはるかに上回る業績をあげた",null,null,null,null,null,null,null,null,null,null,null,null,null,null,null,null,null,null,null,null,null,null,null,null,null,null,null,null,null,null,null,null,null,null,null,null,null,"人事室",null,"一般技術（電気）"]
[null,null,"３（良好）",null,"職階からみて、期待された以上の業績をあげた"]
[null,null,"２（標準）",null,"職階からみて、相応の業績である",null,null,null,null,null,null,null,null,null,null,null,null,null,null,null,null,null,null,null,null,null,null,null,null,null,null,null,null,null,null,null,null,null,null,null,null,null,"契約検査室",null,"一般技術（土木）"]
[null,null,"１（要努力）",null,"職階からみて、期待された水準に達しておらず、努力が必要である",null,null,null,null,null,null,null,null,null,null,null,null,null,null,null,null,null,null,null,null,null,null,null,null,null,null,null,null,null,null,null,null,null,null,null,null,null,"企画財政室",null,"一般技術（機械）"]
[null,null,null,null,null,null,null,null,null,null,null,null,null,null,null,null,null,null,null,null,null,null,null,null,null,null,null,null,null,null,null,null,null,null,null,null,null,null,null,null,null,null,"情報政策室",null,"一般技術（建築）"]
["≪【業績】の評価項目数の取扱い≫\n　・次長級以上は評価点を４倍\n　・課長級は評価点を３倍　　",null,null,null,null,"\n・課長代理級は評価点を３倍\n・主査級は評価点を２倍",null,null,null,null,null,null,null,null,null,null,null,null,null,null,null,null,null,null,null,null,null,null,null,null,null,null,null,null,null,null,null,null,null,null,null,null,"税制課",null,"一般技術（化学）"]
[null,null,null,null,null,null,null,null,null,null,null,null,null,null,null,null,null,null,null,null,null,null,null,null,null,null,null,null,null,null,null,null,null,null,null,null,null,null,null,null,null,null,"資産税課",null,"保育教諭"]
["【能力】","評価項目及び行動・着眼点",null,null,null,null,null,null,null,null,null,null,null,null,null,"自己評価",null,null,null,null,null,null,"１次評価",null,null,"２次評価",null,null,null,null,null,null,null,null,null,null,null,null,null,null,null,null,"市民税課",null,"生活指導員"]
[null,"【市民視点・法令遵守】",null,null,null,null,null,null,null,null,null,null,null,null,null,"（評価点）",null,"（コメント）",null,null,null,null,"（評価点）",null,null,"（評価点）",null,null,null,null,null,null,null,null,null,null,null,null,null,null,null,null,"納税課",null,"発達指導員"]
[null,null,"丁寧な応対を心掛けるなど、全体の奉仕者として、常に市民の立場や市民協働の視点に立つことができるとともに、法令等及び服務規律を順守して、公平かつ公正に業務を遂行することができる。",null,null,null,null,null,null,null,null,null,null,null,null,null,null,null,null,null,null,null,null,null,null,null,null,null,null,null,null,null,null,null,null,null,null,null,null,null,null,null,"債権管理課",null,"学芸員"]
[null,"着眼点",null,"・接遇",null,null,null,null,null,"・法令順守",null,null,null,null,null,null,null,null,null,null,null,null,null,null,null,null,null,null,null,null,null,null,null,null,null,null,null,null,null,null,null,null,"市民総務室",null,"栄養士"]
[null,null,null,"・公平・公正な姿勢",null,null,null,null,null,"・責任感",null,null,null,null,null,null,null,null,null,null,null,null,null,null,null,null,null,null,null,null,null,null,null,null,null,null,null,null,null,null,null,null,"市民課",null,"診療放射線技師"]
[null,"【コミュニケーション】",null,null,null,null,null,null,null,null,null,null,null,null,null,"（評価点）",null,"（コメント）",null,null,null,null,"（評価点）",null,null,"（評価点）",null,null,null,null,null,null,null,null,null,null,null,null,null,null,null,null,"山田出張所",null,"言語聴覚士"]
[null,null,"様々な相手と円滑かつ適切なコミュニケーションを取ることができる。",null,null,null,null,null,null,null,null,null,null,null,null,null,null,null,null,null,null,null,null,null,null,null,null,null,null,null,null,null,null,null,null,null,null,null,null,null,null,null,"千里丘出張所",null,"理学療法士"]
[null,"着眼点",null,"・市民に対する傾聴と対話の姿勢",null,null,null,null,null,"・柔軟な姿勢と一貫した主張のバランス",null,null,null,null,null,null,null,null,null,null,null,null,null,null,null,null,null,null,null,null,null,null,null,null,null,null,null,null,null,null,null,null,"千里出張所",null,"作業療法士"]
[null,null,null,"・誠実さ",null,null,null,null,null,null,null,null,null,null,null,null,null,null,null,null,null,null,null,null,null,null,null,null,null,null,null,null,null,null,null,null,null,null,null,null,null,null,"人権政策室",null,"歯科衛生士"]
[null,"【知識・技術・経験の活用】",null,null,null,null,null,null,null,null,null,null,null,null,null,"（評価点）",null,"（コメント）",null,null,null,null,"（評価点）",null,null,"（評価点）",null,null,null,null,null,null,null,null,null,null,null,null,null,null,null,null,"交流活動館",null,"保健師"]
[null,null,"担当業務に必要な知識、技能及び経験を業務に活用することができる。",null,null,null,null,null,null,null,null,null,null,null,null,null,null,null,null,null,null,null,null,null,null,null,null,null,null,null,null,null,null,null,null,null,null,null,null,null,null,null,"男女共同参画センター",null,"看護師"]
[null,"着眼点",null,"・研究心",null,null,null,null,null,"・情報収集",null,null,null,null,null,null,null,null,null,null,null,null,null,null,null,null,null,null,null,null,null,null,null,null,null,null,null,null,null,null,null,null,"市民自治推進室",null,"精神保健福祉士"]
[null,null,null,"・知識・技術の蓄積",null,null,null,null,null,null,null,null,null,null,null,null,null,null,null,null,null,null,null,null,null,null,null,null,null,null,null,null,null,null,null,null,null,null,null,null,null,null,"地域経済振興室",null,"獣医師"]
[null,"【説明】",null,null,null,null,null,null,null,null,null,null,null,null,null,"（評価点）",null,"（コメント）",null,null,null,null,"（評価点）",null,null,"（評価点）",null,null,null,null,null,null,null,null,null,null,null,null,null,null,null,null,"シティプロモーション推進室",null,"薬剤師"]
[null,null,"担当業務について、分かりやすく説明することができる。",null,null,null,null,null,null,null,null,null,null,null,null,null,null,null,null,null,null,null,null,null,null,null,null,null,null,null,null,null,null,null,null,null,null,null,null,null,null,null,"文化スポーツ推進室",null,"管理栄養士"]
[null,"着眼点",null,"・論理的構成力",null,null,null,null,null,"・丁寧さ",null,null,null,null,null,null,null,null,null,null,null,null,null,null,null,null,null,null,null,null,null,null,null,null,null,null,null,null,null,null,null,null,"子育て政策室"]
[null,null,null,null,null,null,null,null,null,null,null,null,null,null,null,null,null,null,null,null,null,null,null,null,null,null,null,null,null,null,null,null,null,null,null,null,null,null,null,null,null,null,"子育て給付課"]
[null,"【業務遂行】",null,null,null,null,null,null,null,null,null,null,null,null,null,"（評価点）",null,"（コメント）",null,null,null,null,"（評価点）",null,null,"（評価点）",null,null,null,null,null,null,null,null,null,null,null,null,null,null,null,null,"家庭児童相談室"]
[null,null,"意欲的かつ正確に業務に取り組むことができる。\n[専門職]専門的知識、技術及び経験に基づき業務を遂行することができる。\n",null,null,null,null,null,null,null,null,null,null,null,null,null,null,null,null,null,null,null,null,null,null,null,null,null,null,null,null,null,null,null,null,null,null,null,null,null,null,null,"のびのび子育てプラザ"]
[null,"着眼点",null,"・積極性",null,null,null,null,null,"・正確性、情報処理力",null,null,null,null,null,null,null,null,null,null,null,null,null,null,null,null,null,null,null,null,null,null,null,null,null,null,null,null,null,null,null,null,"保育幼稚園室"]
[null,null,null,"・［専門職］専門的知識・技術・経験",null,null,null,null,null,null,null,null,null,null,null,null,null,null,null,null,null,null,null,null,null,null,null,null,null,null,null,null,null,null,null,null,null,null,null,null,null,null,"山田保育園"]
[null,"【組織貢献・チームワーク】",null,null,null,null,null,null,null,null,null,null,null,null,null,"（評価点）",null,"（コメント）",null,null,null,null,"（評価点）",null,null,"（評価点）",null,null,null,null,null,null,null,null,null,null,null,null,null,null,null,null,"いずみ保育園"]
[null,null,"情報の共有を図るため上司、同僚等に報告、連絡及び相談を行うことができるとともに、上司、同僚等と協力的な関係を構築し、経験を生かして関係職員を指導教育することができる。",null,null,null,null,null,null,null,null,null,null,null,null,null,null,null,null,null,null,null,null,null,null,null,null,null,null,null,null,null,null,null,null,null,null,null,null,null,null,null,"南千里保育園"]
[null,"着眼点",null,"・情報共有",null,null,null,null,null,"・協調性",null,null,null,null,null,null,null,null,null,null,null,null,null,null,null,null,null,null,null,null,null,null,null,null,null,null,null,null,null,null,null,null,"ことぶき保育園"]
[null,null,null,"・関係職員を応援する姿勢",null,null,null,null,null,"・関係職員の指導教育",null,null,null,null,null,null,null,null,null,null,null,null,null,null,null,null,null,null,null,null,null,null,null,null,null,null,null,null,null,null,null,null,"岸部保育園"]
[null,null,null,null,null,null,null,null,null,null,null,null,null,null,null,null,null,null,null,null,null,null,null,null,null,null,null,null,null,null,null,null,null,null,null,null,null,null,null,null,null,null,"千里山保育園"]
["≪【能力】の評価点≫\n◆　「４（特に良好）」…求められる行動が確実にとられており、他の職員の模範となる職務遂行状況である。\n◆　「３（良好）」…求められる行動が確実にとられていた。\n◆　「２（標準）」…求められる行動が概ねとられていた。\n◆　「１（要努力）」…求められる行動がとられていることが少なく（全くなく）、改善に向け努力が必要である。",null,null,null,null,null,null,null,null,null,"≪総合評価区分と評価点との関係：基準≫\n◆　「良好」…原則、【業績】及び【能力】の評価項目の３分の２以上が「２（標準）」以上の場合に該当する。\n◆　「やや不良」…原則、【業績】及び【能力】の評価項目の３分の１超半数以下が「１（標準未満）」の場合に該当する。\n◆　「不良」…原則、【業績】及び【能力】の評価項目の半数超が「１（標準未満）」であるとともに、分限（降任・免職）処分を検討する必要があると判断する場合に該当する。",null,null,null,null,null,null,null,null,null,"【業績】及び\n【能力】の\n評価項目数の合計",null,"「4（特に良好）」\nの個数",null,null,null,{"$f":"IF(Z8=\"\",\"\",IF(Z17=\"\",\"\",IF(Z21=\"\",\"\",IF(Z25=\"\",\"\",IF(Z29=\"\",\"\",IF(Z33=\"\",\"\",IF(Z37=\"\",\"\",COUNTIF(Z17:AB39,4)+IF(Z8=4,1,0))))))))","v":""},null,null,null,null,null,null,null,null,null,null,null,null,null,null,null,"東保育園"]
[null,null,null,null,null,null,null,null,null,null,null,null,null,null,null,null,null,null,null,null,null,null,"「3（良好）」\nの個数",null,null,null,{"$f":"IF(Z8=\"\",\"\",IF(Z17=\"\",\"\",IF(Z21=\"\",\"\",IF(Z25=\"\",\"\",IF(Z29=\"\",\"\",IF(Z33=\"\",\"\",IF(Z37=\"\",\"\",COUNTIF(Z17:AB39,3)+IF(Z8=3,1,0))))))))","v":""}]
[null,null,null,null,null,null,null,null,null,null,null,null,null,null,null,null,null,null,null,null,null,null,"「２（標準）」\nの個数",null,null,null,{"$f":"IF(Z8=\"\",\"\",IF(Z17=\"\",\"\",IF(Z21=\"\",\"\",IF(Z25=\"\",\"\",IF(Z29=\"\",\"\",IF(Z33=\"\",\"\",IF(Z37=\"\",\"\",COUNTIF(Z17:AB39,2)+IF(Z8=2,1,0))))))))","v":""},null,null,null,null,null,null,null,null,null,null,null,null,null,null,null,"垂水保育園"]
[null,null,null,null,null,null,null,null,null,null,null,null,null,null,null,null,null,null,null,null,7,null,"「１（要努力）」\nの個数",null,null,null,{"$f":"IF(Z8=\"\",\"\",IF(Z17=\"\",\"\",IF(Z21=\"\",\"\",IF(Z25=\"\",\"\",IF(Z29=\"\",\"\",IF(Z33=\"\",\"\",IF(Z37=\"\",\"\",COUNTIF(Z16:AB39,1)+IF(Z8=1,1,0))))))))","v":""},null,null,null,null,null,null,null,null,null,null,null,null,null,null,null,"吹一保育園"]
[null,null,null,null,null,null,null,null,null,null,null,null,null,null,null,null,null,null,null,null,null,null,null,null,null,null,null,null,null,null,null,null,null,null,null,null,null,null,null,null,null,null,"吹六保育園"]
["１次評価者所見等",null,null,null,null,null,null,null,null,null,null,null,null,null,"２次評価者所見",null,null,null,null,null,null,null,null,null,"総合評価",null,null,null,null,null,null,null,null,null,null,null,null,null,null,null,null,null,"片山保育園"]
["ピカッとポイント",null,null,null,"所見（「２」以外の評価点の項目に重点を置き記入すること。）",null,null,null,null,null,null,null,null,null,"所見（「２」以外の評価点の項目に重点を置き記入すること。）",null,null,null,null,null,null,null,null,null,{"$f":"IF(AA41=\"\",\"\",IF(AA42=\"\",\"\",IF(AA43=\"\",\"\",IF(AA44=\"\",\"\",IF(AA41+AA42+AA43>=5,\"良好\",IF(AA41+AA42+AA43=4,\"やや不良\",IF(AA41+AA42+AA43<=3,\"不良\")))))))","v":""},null,null,null,null,null,null,null,null,null,null,null,null,null,null,null,null,null,"千三保育園"]
[null,null,null,null,null,null,null,null,null,null,null,null,null,null,null,null,null,null,null,null,null,null,null,null,null,null,null,null,null,null,null,null,null,null,null,null,null,null,null,null,null,null,"山三保育園"]
[null,null,null,null,"1次評価者",null,null,"（",null,null,null,null,"）",null,"2次評価者",null,null,"（",null,null,null,null,"）","㊞　　　　",null,null,null,null,null,null,null,null,null,null,null,null,null,null,null,null,null,null,"はぎのきこども園"]
[null,null,null,null,"(設定している場合）評価事務補助者（",null,null,null,null,null,null,null,null,"）","(設定している場合）評価事務補助者（",null,null,null,null,null,null,null,null,"）",null,null,null,null,null,null,null,null,null,null,null,null,null,null,null,null,null,null,"いずみ小規模園"]
[null,null,null,null,null,null,null,null,null,null,null,null,null,null,null,null,null,null,null,null,null,null,null,null,null,null,null,null,null,null,null,null,null,null,null,null,null,null,null,null,null,null,"こども発達支援センター"]
["給与反映区分","総合評価",null,null,"良好",null,null,null,null,"やや不良",null,null,null,null,"不良",null,null,null,null,null,"備考欄",null,null,null,null,null,null,null,null,null,null,null,null,null,null,null,null,null,null,null,null,null,"地域支援センター"]
[null,"昇給号数",null,null,"４号",null,null,null,null,"２号",null,null,null,null,"昇給なし",null,null,null,null,null,null,null,null,null,null,null,null,null,null,null,null,null,null,null,null,null,null,null,null,null,null,null,"杉の子学園"]
[null,"勤勉手当支給割合",null,null,"吹田市期末手当及び\n勤勉手当の支給に関する\n規則で定める支給割合",null,null,null,null,"良好の１０％減として、\n同規則で定める支給割合",null,null,null,null,"良好の２０％減として、\n同規則で定める支給割合",null,null,null,null,null,null,null,null,null,null,null,null,null,null,null,null,null,null,null,null,null,null,null,null,null,null,null,"わかたけ園"]
[null,null,null,null,null,null,null,null,null,null,null,null,null,null,null,null,null,null,"※水道部は、吹田市水道部企業職員給与規程",null,null,null,null,null,null,null,null,null,null,null,null,null,null,null,null,null,null,null,null,null,null,null,"福祉総務室"]
[{"$f":"A1","v":"令和"},{"$f":"B1","v":6},{"$f":"C1","v":"年度"},null,null,null,null,null,null,"勤務評価シート（開示用）",null,null,null,null,null,null,null,null,null,null,null,null,null,null,null,null,null,"6",null,null,null,null,null,null,null,null,null,null,null,null,null,null,"総合福祉会館"]
["事務・技術・専門　主任",null,null,null,null,null,null,null,null,null,null,null,null,null,null,null,null,null,null,null,null,null,null,null,null,null,null,null,null,null,null,null,null,null,null,null,null,null,null,null,null,null,"生活福祉室"]
["基礎情報","被評価者","所属名",null,null,null,null,"補職級",null,null,"職種",null,null,"職員番号",null,"氏名",null,null,null,"評価期間",null,null,null,null,null,null,null,null,null,null,null,null,null,null,null,null,null,null,null,null,null,null,"福祉指導監査室"]
[null,null,{"$f":"+C4","v":0},null,null,null,null,{"$f":"+H4","v":"主任級"},null,null,{"$f":"+K4","v":0},null,null,{"$f":"+N4","v":0},null,{"$f":"+P4","v":0},null,null,null,{"$f":"T4","v":"00:00:00"},null,null,null,"～",{"$f":"Y4","v":"00:00:00"},null,null,null,null,null,null,null,null,null,null,null,null,null,null,null,null,null,"高齢福祉室"]
[null,null,null,null,null,null,null,null,null,null,null,null,null,null,null,null,null,null,null,null,null,null,null,null,null,null,null,null,null,null,null,null,null,null,null,null,null,null,null,null,null,null,"障がい福祉室"]
["【業績】","評価基準・着眼点",null,null,null,null,null,null,null,null,null,null,null,null,null,"自己評価",null,null,null,null,null,null,null,null,null,"最終評価",null,null,null,null,null,null,null,null,null,null,null,null,null,null,null,null,"健康まちづくり室"]
[null,"【業績】",null,null,null,null,null,null,null,null,null,null,null,null,null,"（評価点）",null,"（コメント）",null,null,null,null,null,null,null,"（評価点）",null,null,null,null,null,null,null,null,null,null,null,null,null,null,null,null,"病院総務室"]
[null,"評価点","４（特に良好）",null,"職階からみて、期待された水準をはるかに上回る業績をあげた",null,null,null,null,null,null,null,null,null,null,{"$f":"+P8","v":0},null,{"$f":"+R8","v":0},null,null,null,null,null,null,null,{"$f":"+Z8","v":0},null,null,null,null,null,null,null,null,null,null,null,null,null,null,null,null,"医療事務室"]
[null,null,"３（良好）",null,"職階からみて、期待された以上の業績をあげた"]
[null,null,"２（標準）",null,"職階からみて、相応の業績である",null,null,null,null,null,null,null,null,null,null,null,null,null,null,null,null,null,null,null,null,null,null,null,null,null,null,null,null,null,null,null,null,null,null,null,null,null,"成人保健課"]
[null,null,"１（要努力）",null,"職階からみて、期待された水準に達しておらず、努力が必要である",null,null,null,null,null,null,null,null,null,null,null,null,null,null,null,null,null,null,null,null,null,null,null,null,null,null,null,null,null,null,null,null,null,null,null,null,null,"母子保健課"]
[null,null,null,null,null,null,null,null,null,null,null,null,null,null,null,null,null,null,null,null,null,null,null,null,null,null,null,null,null,null,null,null,null,null,null,null,null,null,null,null,null,null,"（後期高齢）"]
["≪【業績】の評価項目数の取扱い≫\n　・次長級以上は評価点を４倍\n　・課長級は評価点を３倍　　",null,null,null,null,"\n・課長代理級は評価点を３倍\n・主査級は評価点を２倍",null,null,null,null,null,null,null,null,null,null,null,null,null,null,null,null,null,null,null,null,null,null,null,null,null,null,null,null,null,null,null,null,null,null,null,null,"国民健康保険課"]
[null,null,null,null,null,null,null,null,null,null,null,null,null,null,null,null,null,null,null,null,null,null,null,null,null,null,null,null,null,null,null,null,null,null,null,null,null,null,null,null,null,null,"保健医療総務室"]
["【能力】","評価項目及び行動・着眼点",null,null,null,null,null,null,null,null,null,null,null,null,null,"自己評価",null,null,null,null,null,null,null,null,null,"最終評価",null,null,null,null,null,null,null,null,null,null,null,null,null,null,null,null,"衛生管理課"]
[null,"【市民視点・法令遵守】",null,null,null,null,null,null,null,null,null,null,null,null,null,"（評価点）",null,"（コメント）",null,null,null,null,null,null,null,"（評価点）",null,null,null,null,null,null,null,null,null,null,null,null,null,null,null,null,"地域保健課"]
[null,null,"丁寧な応対を心掛けるなど、全体の奉仕者として、常に市民の立場や市民協働の視点に立つことができるとともに、法令等及び服務規律を順守して、公平かつ公正に業務を遂行することができる。",null,null,null,null,null,null,null,null,null,null,null,null,{"$f":"+P17","v":0},null,{"$f":"+R17","v":0},null,null,null,null,null,null,null,{"$f":"+Z17","v":0},null,null,null,null,null,null,null,null,null,null,null,null,null,null,null,null,"環境政策室"]
[null,"着眼点",null,"・接遇",null,null,null,null,null,"・法令順守",null,null,null,null,null,null,null,null,null,null,null,null,null,null,null,null,null,null,null,null,null,null,null,null,null,null,null,null,null,null,null,null,"環境保全指導課"]
[null,null,null,"・公平・公正な姿勢",null,null,null,null,null,"・責任感",null,null,null,null,null,null,null,null,null,null,null,null,null,null,null,null,null,null,null,null,null,null,null,null,null,null,null,null,null,null,null,null,"事業課"]
[null,"【コミュニケーション】",null,null,null,null,null,null,null,null,null,null,null,null,null,"（評価点）",null,"（コメント）",null,null,null,null,null,null,null,"（評価点）",null,null,null,null,null,null,null,null,null,null,null,null,null,null,null,null,"資源循環エネルギーセンター"]
[null,null,"様々な相手と円滑かつ適切なコミュニケーションを取ることができる。",null,null,null,null,null,null,null,null,null,null,null,null,{"$f":"+P21","v":0},null,{"$f":"+R21","v":0},null,null,null,null,null,null,null,{"$f":"+Z21","v":0},null,null,null,null,null,null,null,null,null,null,null,null,null,null,null,null,"破砕選別工場"]
[null,"着眼点",null,"・市民に対する傾聴と対話の姿勢",null,null,null,null,null,"・柔軟な姿勢と一貫した主張のバランス",null,null,null,null,null,null,null,null,null,null,null,null,null,null,null,null,null,null,null,null,null,null,null,null,null,null,null,null,null,null,null,null,"都市計画室"]
[null,null,null,"・誠実さ",null,null,null,null,null,null,null,null,null,null,null,null,null,null,null,null,null,null,null,null,null,null,null,null,null,null,null,null,null,null,null,null,null,null,null,null,null,null,"計画調整室"]
[null,"【知識・技術・経験の活用】",null,null,null,null,null,null,null,null,null,null,null,null,null,"（評価点）",null,"（コメント）",null,null,null,null,null,null,null,"（評価点）",null,null,null,null,null,null,null,null,null,null,null,null,null,null,null,null,"開発審査室"]
[null,null,"担当業務に必要な知識、技能及び経験を業務に活用することができる。",null,null,null,null,null,null,null,null,null,null,null,null,{"$f":"+P25","v":0},null,{"$f":"+R25","v":0},null,null,null,null,null,null,null,{"$f":"+Z25","v":0},null,null,null,null,null,null,null,null,null,null,null,null,null,null,null,null,"住宅政策室"]
[null,"着眼点",null,"・研究心",null,null,null,null,null,"・情報収集",null,null,null,null,null,null,null,null,null,null,null,null,null,null,null,null,null,null,null,null,null,null,null,null,null,null,null,null,null,null,null,null,"資産経営室"]
[null,null,null,"・知識・技術の蓄積",null,null,null,null,null,null,null,null,null,null,null,null,null,null,null,null,null,null,null,null,null,null,null,null,null,null,null,null,null,null,null,null,null,null,null,null,null,null,"総務交通室"]
[null,"【説明】",null,null,null,null,null,null,null,null,null,null,null,null,null,"（評価点）",null,"（コメント）",null,null,null,null,null,null,null,"（評価点）",null,null,null,null,null,null,null,null,null,null,null,null,null,null,null,null,"道路室"]
[null,null,"担当業務について、分かりやすく説明することができる。",null,null,null,null,null,null,null,null,null,null,null,null,{"$f":"+P29","v":0},null,{"$f":"+R29","v":0},null,null,null,null,null,null,null,{"$f":"+Z29","v":0},null,null,null,null,null,null,null,null,null,null,null,null,null,null,null,null,"公園みどり室"]
[null,"着眼点",null,"・論理的構成力",null,null,null,null,null,"・丁寧さ",null,null,null,null,null,null,null,null,null,null,null,null,null,null,null,null,null,null,null,null,null,null,null,null,null,null,null,null,null,null,null,null,"地域整備推進室"]
[null,null,null,null,null,null,null,null,null,null,null,null,null,null,null,null,null,null,null,null,null,null,null,null,null,null,null,null,null,null,null,null,null,null,null,null,null,null,null,null,null,null,"経営室"]
[null,"【業務遂行】",null,null,null,null,null,null,null,null,null,null,null,null,null,"（評価点）",null,"（コメント）",null,null,null,null,null,null,null,"（評価点）",null,null,null,null,null,null,null,null,null,null,null,null,null,null,null,null,"管路保全室"]
[null,null,"意欲的かつ正確に業務に取り組むことができる。\n[専門職]専門的知識、技術及び経験に基づき業務を遂行することができる。\n",null,null,null,null,null,null,null,null,null,null,null,null,{"$f":"+P33","v":0},null,{"$f":"+R33","v":0},null,null,null,null,null,null,null,{"$f":"+Z33","v":0},null,null,null,null,null,null,null,null,null,null,null,null,null,null,null,null,"水再生室"]
[null,"着眼点",null,"・積極性",null,null,null,null,null,"・正確性、情報処理力",null,null,null,null,null,null,null,null,null,null,null,null,null,null,null,null,null,null,null,null,null,null,null,null,null,null,null,null,null,null,null,null,"会計室"]
[null,null,null,"・［専門職］専門的知識・技術・経験",null,null,null,null,null,null,null,null,null,null,null,null,null,null,null,null,null,null,null,null,null,null,null,null,null,null,null,null,null,null,null,null,null,null,null,null,null,null,"消防本部"]
[null,"【組織貢献・チームワーク】",null,null,null,null,null,null,null,null,null,null,null,null,null,"（評価点）",null,"（コメント）",null,null,null,null,null,null,null,"（評価点）",null,null,null,null,null,null,null,null,null,null,null,null,null,null,null,null,"総務予防室"]
[null,null,"情報の共有を図るため上司、同僚等に報告、連絡及び相談を行うことができるとともに、上司、同僚等と協力的な関係を構築し、経験を生かして関係職員を指導教育することができる。",null,null,null,null,null,null,null,null,null,null,null,null,{"$f":"+P37","v":0},null,{"$f":"+R37","v":0},null,null,null,null,null,null,null,{"$f":"+Z37","v":0},null,null,null,null,null,null,null,null,null,null,null,null,null,null,null,null,"消防本部付"]
[null,"着眼点",null,"・情報共有",null,null,null,null,null,"・協調性",null,null,null,null,null,null,null,null,null,null,null,null,null,null,null,null,null,null,null,null,null,null,null,null,null,null,null,null,null,null,null,null,"警防救急室"]
[null,null,null,"・関係職員を応援する姿勢",null,null,null,null,null,"・関係職員の指導教育",null,null,null,null,null,null,null,null,null,null,null,null,null,null,null,null,null,null,null,null,null,null,null,null,null,null,null,null,null,null,null,null,"警防・救急・啓発Ｇ"]
[null,null,null,null,null,null,null,null,null,null,null,null,null,null,null,null,null,null,null,null,null,null,null,null,null,null,null,null,null,null,null,null,null,null,null,null,null,null,null,null,null,null,"救助第１Ｇ"]
["≪【能力】の評価点≫\n◆　「４（特に良好）」…求められる行動が確実にとられており、他の職員の模範となる職務遂行状況である。\n◆　「３（良好）」…求められる行動が確実にとられていた。\n◆　「２（標準）」…求められる行動が概ねとられていた。\n◆　「１（要努力）」…求められる行動がとられていることが少なく（全くなく）、改善に向け努力が必要である。",null,null,null,null,null,null,null,null,null,"≪総合評価区分と評価点との関係：基準≫\n◆　「良好」…原則、【業績】及び【能力】の評価項目の３分の２以上が「２（標準）」以上の場合に該当する。\n◆　「やや不良」…原則、【業績】及び【能力】の評価項目の３分の１超半数以下が「１（標準未満）」の場合に該当する。\n◆　「不良」…原則、【業績】及び【能力】の評価項目の半数超が「１（標準未満）」であるとともに、分限（降任・免職）処分を検討する必要があると判断する場合に該当する。",null,null,null,null,null,null,null,null,null,"【業績】及び\n【能力】の\n評価項目数の合計",null,"「4（特に良好）」\nの個数",null,null,null,{"$f":"+AA41","v":""},null,null,null,null,null,null,null,null,null,null,null,null,null,null,null,"救助第２Ｇ"]
[null,null,null,null,null,null,null,null,null,null,null,null,null,null,null,null,null,null,null,null,null,null,"「3（良好）」\nの個数",null,null,null,{"$f":"+AA42","v":""}]
[null,null,null,null,null,null,null,null,null,null,null,null,null,null,null,null,null,null,null,null,null,null,"「２（標準）」\nの個数",null,null,null,{"$f":"+AA43","v":""},null,null,null,null,null,null,null,null,null,null,null,null,null,null,null,"指令情報室"]
[null,null,null,null,null,null,null,null,null,null,null,null,null,null,null,null,null,null,null,null,7,null,"「１（要努力）」\nの個数",null,null,null,{"$f":"+AA44","v":""},null,null,null,null,null,null,null,null,null,null,null,null,null,null,null,"指令情報第１Ｇ"]
[null,null,null,null,null,null,null,null,null,null,null,null,null,null,null,null,null,null,null,null,null,null,null,null,null,null,null,null,null,null,null,null,null,null,null,null,null,null,null,null,null,null,"指令情報第２Ｇ"]
["ピカッとポイント",null,null,null,null,null,null,null,"２次評価者所見",null,null,null,null,null,null,null,null,null,null,null,null,null,null,null,"総合評価",null,null,null,null,null,null,null,null,null,null,null,null,null,null,null,null,null,"南消防署"]
[{"$f":"+A48","v":0},null,null,null,null,null,null,null,{"$f":"+O48","v":0},null,null,null,null,null,null,null,null,null,null,null,null,null,null,null,{"$f":"+Y47","v":""},null,null,null,null,null,null,null,null,null,null,null,null,null,null,null,null,null,"南予防査察係"]
[null,null,null,null,null,null,null,null,null,null,null,null,null,null,null,null,null,null,null,null,null,null,null,null,null,null,null,null,null,null,null,null,null,null,null,null,null,null,null,null,null,null,"南警防第１係"]
[{"$f":"IF(K50=\"\",\"\",\"評価事務補助者（\")","v":""},null,null,{"$f":"K50","v":0},null,null,null,{"$f":"IF(K50=\"\",\"\",\"）\")","v":""},null,null,null,null,null,null,null,null,null,null,null,null,null,null,null,null,null,null,null,null,null,null,null,null,null,null,null,null,null,null,null,null,null,null,"南警防第２係"]
["１次評価者",null,"（",{"$f":"+I49","v":0},null,null,null,"）",null,null,{"$f":"IF(U50=\"\",\"\",\"評価事務補助者(\")","v":""},{"$f":"U50","v":0},null,null,null,{"$f":"IF(U50=\"\",\"\",\"）\")","v":""},"２次評価者",null,"（",{"$f":"+S49","v":0},null,null,null,"）",null,null,null,null,null,null,null,null,null,null,null,null,null,null,null,null,null,null,"南救急第１係"]
[null,null,null,null,null,null,null,null,null,null,null,null,null,null,null,null,null,null,null,null,null,null,null,null,null,null,null,null,null,null,null,null,null,null,null,null,null,null,null,null,null,null,"南救急第２係"]
["給与反映区分","総合評価",null,null,"良好",null,null,null,null,"やや不良",null,null,null,null,"不良",null,null,null,null,null,"備考欄",{"$f":"V52","v":0},null,null,null,null,null,null,null,null,null,null,null,null,null,null,null,null,null,null,null,null,"正雀出張所第１係"]
[null,"昇給号数",null,null,"４号",null,null,null,null,"２号",null,null,null,null,"昇給なし",null,null,null,null,null,null,null,null,null,null,null,null,null,null,null,null,null,null,null,null,null,null,null,null,null,null,null,"正雀出張所第２係"]
[null,"勤勉手当支給割合",null,null,"吹田市期末手当及び\n勤勉手当の支給に関する\n規則で定める支給割合",null,null,null,null,"良好の１０％減として、\n同規則で定める支給割合",null,null,null,null,"良好の２０％減として、\n同規則で定める支給割合",null,null,null,null,null,null,null,null,null,null,null,null,null,null,null,null,null,null,null,null,null,null,null,null,null,null,null,"北消防署"]
[null,null,null,null,null,null,null,null,null,null,null,null,null,null,null,null,null,null,"※水道部は、吹田市水道部企業職員給与規程",null,null,null,null,null,null,null,null,null,null,null,null,null,null,null,null,null,null,null,null,null,null,null,"北予防査察係"]
[null,null,null,null,null,null,null,null,null,null,null,null,null,null,null,null,null,null,null,null,null,null,null,null,null,null,null,null,null,null,null,null,null,null,null,null,null,null,null,null,null,null,"北警防第１係"]
["職員番号","氏名","所属名","補職級","職種","評価項目",null,null,null,null,null,null,null,null,null,null,null,null,null,null,"総合評価","2次評価者",null,null,null,null,null,null,null,null,null,null,null,null,null,null,null,null,null,null,null,null,"北警防第２係"]
[null,null,null,null,null,"【業績】","【市民視点・法令遵守】","【コミュニケーション】","【課題の解決】","【決断】","【判断】","【課題対応】","【知識・技術・経験の活用】","【知識・技術の向上】","【説明・調整】","【説明】","【業務改善】","【業務遂行】","【組織マネジメント・人材育成】","【組織貢献・チームワーク】",null,null,null,null,null,null,null,null,null,null,null,null,null,null,null,null,null,null,null,null,null,null,"北救急第１係"]
[{"$f":"+N4","v":0},{"$f":"+P4","v":0},{"$f":"+C4","v":0},{"$f":"+H4","v":"主任級"},{"$f":"+K4","v":0},{"$f":"+Z8","v":0},{"$f":"+Z17","v":0},{"$f":"+Z21","v":0},null,null,null,null,{"$f":"+Z25","v":0},null,null,{"$f":"+Z29","v":0},null,{"$f":"+Z33","v":0},null,{"$f":"+Z37","v":0},{"$f":"+Y47","v":""},{"$f":"+S49","v":0},null,null,null,null,null,null,null,null,null,null,null,null,null,null,null,null,null,null,null,null,"北救急第２係"]
[null,null,null,null,null,null,null,null,null,null,null,null,null,null,null,null,null,null,null,null,null,null,null,null,null,null,null,null,null,null,null,null,null,null,null,null,null,null,null,null,null,null,"西消防署"]
[null,null,null,null,null,null,null,null,null,null,null,null,null,null,null,null,null,null,null,null,null,null,null,null,null,null,null,null,null,null,null,null,null,null,null,null,null,null,null,null,null,null,"西予防査察係"]
[null,null,null,null,null,null,null,null,null,null,null,null,null,null,null,null,null,null,null,null,null,null,null,null,null,null,null,null,null,null,null,null,null,null,null,null,null,null,null,null,null,null,"西警防第１係"]
[null,null,null,null,null,null,null,null,null,null,null,null,null,null,null,null,null,null,null,null,null,null,null,null,null,null,null,null,null,null,null,null,null,null,null,null,null,null,null,null,null,null,"西警防第２係"]
[null,null,null,null,null,null,null,null,null,null,null,null,null,null,null,null,null,null,null,null,null,null,null,null,null,null,null,null,null,null,null,null,null,null,null,null,null,null,null,null,null,null,"西救急第１係"]
[null,null,null,null,null,null,null,null,null,null,null,null,null,null,null,null,null,null,null,null,null,null,null,null,null,null,null,null,null,null,null,null,null,null,null,null,null,null,null,null,null,null,"西救急第２係"]
[null,null,null,null,null,null,null,null,null,null,null,null,null,null,null,null,null,null,null,null,null,null,null,null,null,null,null,null,null,null,null,null,null,null,null,null,null,null,null,null,null,null,"千里出張所第１係"]
[null,null,null,null,null,null,null,null,null,null,null,null,null,null,null,null,null,null,null,null,null,null,null,null,null,null,null,null,null,null,null,null,null,null,null,null,null,null,null,null,null,null,"千里出張所第２係"]
[null,null,null,null,null,null,null,null,null,null,null,null,null,null,null,null,null,null,null,null,null,null,null,null,null,null,null,null,null,null,null,null,null,null,null,null,null,null,null,null,null,null,"東消防署"]
[null,null,null,null,null,null,null,null,null,null,null,null,null,null,null,null,null,null,null,null,null,null,null,null,null,null,null,null,null,null,null,null,null,null,null,null,null,null,null,null,null,null,"東予防査察係"]
[null,null,null,null,null,null,null,null,null,null,null,null,null,null,null,null,null,null,null,null,null,null,null,null,null,null,null,null,null,null,null,null,null,null,null,null,null,null,null,null,null,null,"東警防第１係"]
[null,null,null,null,null,null,null,null,null,null,null,null,null,null,null,null,null,null,null,null,null,null,null,null,null,null,null,null,null,null,null,null,null,null,null,null,null,null,null,null,null,null,"東警防第２係"]
[null,null,null,null,null,null,null,null,null,null,null,null,null,null,null,null,null,null,null,null,null,null,null,null,null,null,null,null,null,null,null,null,null,null,null,null,null,null,null,null,null,null,"東救急第１係"]
[null,null,null,null,null,null,null,null,null,null,null,null,null,null,null,null,null,null,null,null,null,null,null,null,null,null,null,null,null,null,null,null,null,null,null,null,null,null,null,null,null,null,"東救急第２係"]
[null,null,null,null,null,null,null,null,null,null,null,null,null,null,null,null,null,null,null,null,null,null,null,null,null,null,null,null,null,null,null,null,null,null,null,null,null,null,null,null,null,null,"岸部出張所第１係"]
[null,null,null,null,null,null,null,null,null,null,null,null,null,null,null,null,null,null,null,null,null,null,null,null,null,null,null,null,null,null,null,null,null,null,null,null,null,null,null,null,null,null,"岸部出張所第２係"]
[null,null,null,null,null,null,null,null,null,null,null,null,null,null,null,null,null,null,null,null,null,null,null,null,null,null,null,null,null,null,null,null,null,null,null,null,null,null,null,null,null,null,"東救急第１係（中庁舎）"]
[null,null,null,null,null,null,null,null,null,null,null,null,null,null,null,null,null,null,null,null,null,null,null,null,null,null,null,null,null,null,null,null,null,null,null,null,null,null,null,null,null,null,"東救急第２係（中庁舎）"]
[null,null,null,null,null,null,null,null,null,null,null,null,null,null,null,null,null,null,null,null,null,null,null,null,null,null,null,null,null,null,null,null,null,null,null,null,null,null,null,null,null,null,"議会事務局"]
[null,null,null,null,null,null,null,null,null,null,null,null,null,null,null,null,null,null,null,null,null,null,null,null,null,null,null,null,null,null,null,null,null,null,null,null,null,null,null,null,null,null,"選挙管理委員会事務局"]
[null,null,null,null,null,null,null,null,null,null,null,null,null,null,null,null,null,null,null,null,null,null,null,null,null,null,null,null,null,null,null,null,null,null,null,null,null,null,null,null,null,null,"監査委員事務局"]
[null,null,null,null,null,null,null,null,null,null,null,null,null,null,null,null,null,null,null,null,null,null,null,null,null,null,null,null,null,null,null,null,null,null,null,null,null,null,null,null,null,null,"農業委員会事務局"]
[null,null,null,null,null,null,null,null,null,null,null,null,null,null,null,null,null,null,null,null,null,null,null,null,null,null,null,null,null,null,null,null,null,null,null,null,null,null,null,null,null,null,"教育総務室"]
[null,null,null,null,null,null,null,null,null,null,null,null,null,null,null,null,null,null,null,null,null,null,null,null,null,null,null,null,null,null,null,null,null,null,null,null,null,null,null,null,null,null,"学校管理課"]
[null,null,null,null,null,null,null,null,null,null,null,null,null,null,null,null,null,null,null,null,null,null,null,null,null,null,null,null,null,null,null,null,null,null,null,null,null,null,null,null,null,null,"学務課"]
[null,null,null,null,null,null,null,null,null,null,null,null,null,null,null,null,null,null,null,null,null,null,null,null,null,null,null,null,null,null,null,null,null,null,null,null,null,null,null,null,null,null,"教育未来創生室"]
[null,null,null,null,null,null,null,null,null,null,null,null,null,null,null,null,null,null,null,null,null,null,null,null,null,null,null,null,null,null,null,null,null,null,null,null,null,null,null,null,null,null,"保健給食室"]
[null,null,null,null,null,null,null,null,null,null,null,null,null,null,null,null,null,null,null,null,null,null,null,null,null,null,null,null,null,null,null,null,null,null,null,null,null,null,null,null,null,null,"学校教育室"]
[null,null,null,null,null,null,null,null,null,null,null,null,null,null,null,null,null,null,null,null,null,null,null,null,null,null,null,null,null,null,null,null,null,null,null,null,null,null,null,null,null,null,"教職員課"]
[null,null,null,null,null,null,null,null,null,null,null,null,null,null,null,null,null,null,null,null,null,null,null,null,null,null,null,null,null,null,null,null,null,null,null,null,null,null,null,null,null,null,"吹田第一幼稚園"]
[null,null,null,null,null,null,null,null,null,null,null,null,null,null,null,null,null,null,null,null,null,null,null,null,null,null,null,null,null,null,null,null,null,null,null,null,null,null,null,null,null,null,"吹田第三幼稚園"]
[null,null,null,null,null,null,null,null,null,null,null,null,null,null,null,null,null,null,null,null,null,null,null,null,null,null,null,null,null,null,null,null,null,null,null,null,null,null,null,null,null,null,"吹田南幼稚園"]
[null,null,null,null,null,null,null,null,null,null,null,null,null,null,null,null,null,null,null,null,null,null,null,null,null,null,null,null,null,null,null,null,null,null,null,null,null,null,null,null,null,null,"千里第二幼稚園"]
[null,null,null,null,null,null,null,null,null,null,null,null,null,null,null,null,null,null,null,null,null,null,null,null,null,null,null,null,null,null,null,null,null,null,null,null,null,null,null,null,null,null,"千里新田こども園"]
[null,null,null,null,null,null,null,null,null,null,null,null,null,null,null,null,null,null,null,null,null,null,null,null,null,null,null,null,null,null,null,null,null,null,null,null,null,null,null,null,null,null,"東佐井寺幼稚園"]
[null,null,null,null,null,null,null,null,null,null,null,null,null,null,null,null,null,null,null,null,null,null,null,null,null,null,null,null,null,null,null,null,null,null,null,null,null,null,null,null,null,null,"岸部第一幼稚園"]
[null,null,null,null,null,null,null,null,null,null,null,null,null,null,null,null,null,null,null,null,null,null,null,null,null,null,null,null,null,null,null,null,null,null,null,null,null,null,null,null,null,null,"豊津第一幼稚園"]
[null,null,null,null,null,null,null,null,null,null,null,null,null,null,null,null,null,null,null,null,null,null,null,null,null,null,null,null,null,null,null,null,null,null,null,null,null,null,null,null,null,null,"江坂大池こども園"]
[null,null,null,null,null,null,null,null,null,null,null,null,null,null,null,null,null,null,null,null,null,null,null,null,null,null,null,null,null,null,null,null,null,null,null,null,null,null,null,null,null,null,"片山幼稚園"]
[null,null,null,null,null,null,null,null,null,null,null,null,null,null,null,null,null,null,null,null,null,null,null,null,null,null,null,null,null,null,null,null,null,null,null,null,null,null,null,null,null,null,"山田第一幼稚園"]
[null,null,null,null,null,null,null,null,null,null,null,null,null,null,null,null,null,null,null,null,null,null,null,null,null,null,null,null,null,null,null,null,null,null,null,null,null,null,null,null,null,null,"山田第三幼稚園"]
[null,null,null,null,null,null,null,null,null,null,null,null,null,null,null,null,null,null,null,null,null,null,null,null,null,null,null,null,null,null,null,null,null,null,null,null,null,null,null,null,null,null,"東山田幼稚園"]
[null,null,null,null,null,null,null,null,null,null,null,null,null,null,null,null,null,null,null,null,null,null,null,null,null,null,null,null,null,null,null,null,null,null,null,null,null,null,null,null,null,null,"南山田幼稚園"]
[null,null,null,null,null,null,null,null,null,null,null,null,null,null,null,null,null,null,null,null,null,null,null,null,null,null,null,null,null,null,null,null,null,null,null,null,null,null,null,null,null,null,"佐竹台幼稚園"]
[null,null,null,null,null,null,null,null,null,null,null,null,null,null,null,null,null,null,null,null,null,null,null,null,null,null,null,null,null,null,null,null,null,null,null,null,null,null,null,null,null,null,"教育センター"]
[null,null,null,null,null,null,null,null,null,null,null,null,null,null,null,null,null,null,null,null,null,null,null,null,null,null,null,null,null,null,null,null,null,null,null,null,null,null,null,null,null,null,"まなびの支援課"]
[null,null,null,null,null,null,null,null,null,null,null,null,null,null,null,null,null,null,null,null,null,null,null,null,null,null,null,null,null,null,null,null,null,null,null,null,null,null,null,null,null,null,"中央図書館"]
[null,null,null,null,null,null,null,null,null,null,null,null,null,null,null,null,null,null,null,null,null,null,null,null,null,null,null,null,null,null,null,null,null,null,null,null,null,null,null,null,null,null,"千里図書館"]
[null,null,null,null,null,null,null,null,null,null,null,null,null,null,null,null,null,null,null,null,null,null,null,null,null,null,null,null,null,null,null,null,null,null,null,null,null,null,null,null,null,null,"さんくす図書館"]
[null,null,null,null,null,null,null,null,null,null,null,null,null,null,null,null,null,null,null,null,null,null,null,null,null,null,null,null,null,null,null,null,null,null,null,null,null,null,null,null,null,null,"江坂図書館"]
[null,null,null,null,null,null,null,null,null,null,null,null,null,null,null,null,null,null,null,null,null,null,null,null,null,null,null,null,null,null,null,null,null,null,null,null,null,null,null,null,null,null,"千里山・佐井寺図書館"]
[null,null,null,null,null,null,null,null,null,null,null,null,null,null,null,null,null,null,null,null,null,null,null,null,null,null,null,null,null,null,null,null,null,null,null,null,null,null,null,null,null,null,"千里丘図書館"]
[null,null,null,null,null,null,null,null,null,null,null,null,null,null,null,null,null,null,null,null,null,null,null,null,null,null,null,null,null,null,null,null,null,null,null,null,null,null,null,null,null,null,"山田駅前図書館"]
[null,null,null,null,null,null,null,null,null,null,null,null,null,null,null,null,null,null,null,null,null,null,null,null,null,null,null,null,null,null,null,null,null,null,null,null,null,null,null,null,null,null,"健都ライブラリー"]
[null,null,null,null,null,null,null,null,null,null,null,null,null,null,null,null,null,null,null,null,null,null,null,null,null,null,null,null,null,null,null,null,null,null,null,null,null,null,null,null,null,null,"北千里図書館"]
[null,null,null,null,null,null,null,null,null,null,null,null,null,null,null,null,null,null,null,null,null,null,null,null,null,null,null,null,null,null,null,null,null,null,null,null,null,null,null,null,null,null,"文化財保護課"]
[null,null,null,null,null,null,null,null,null,null,null,null,null,null,null,null,null,null,null,null,null,null,null,null,null,null,null,null,null,null,null,null,null,null,null,null,null,null,null,null,null,null,"博物館"]
[null,null,null,null,null,null,null,null,null,null,null,null,null,null,null,null,null,null,null,null,null,null,null,null,null,null,null,null,null,null,null,null,null,null,null,null,null,null,null,null,null,null,"青少年室"]
[null,null,null,null,null,null,null,null,null,null,null,null,null,null,null,null,null,null,null,null,null,null,null,null,null,null,null,null,null,null,null,null,null,null,null,null,null,null,null,null,null,null,"青少年クリエイティブセンター"]
[null,null,null,null,null,null,null,null,null,null,null,null,null,null,null,null,null,null,null,null,null,null,null,null,null,null,null,null,null,null,null,null,null,null,null,null,null,null,null,null,null,null,"放課後子ども育成室"]
[null,null,null,null,null,null,null,null,null,null,null,null,null,null,null,null,null,null,null,null,null,null,null,null,null,null,null,null,null,null,null,null,null,null,null,null,null,null,null,null,null,null,"（水）総務室"]
[null,null,null,null,null,null,null,null,null,null,null,null,null,null,null,null,null,null,null,null,null,null,null,null,null,null,null,null,null,null,null,null,null,null,null,null,null,null,null,null,null,null,"企画室"]
[null,null,null,null,null,null,null,null,null,null,null,null,null,null,null,null,null,null,null,null,null,null,null,null,null,null,null,null,null,null,null,null,null,null,null,null,null,null,null,null,null,null,"工務室"]
[null,null,null,null,null,null,null,null,null,null,null,null,null,null,null,null,null,null,null,null,null,null,null,null,null,null,null,null,null,null,null,null,null,null,null,null,null,null,null,null,null,null,"浄水室"]

{"sheet":"係員","index":6,"n_rows":178,"n_cols":45,"rows_kept":178,"cut":false,"hidden":false,"merged":[[63,2,63,3],[63,4,63,14],[8,2,8,3],[8,4,8,14],[53,1,53,3],[53,4,53,8],[53,9,53,13],[53,14,53,18],[51,1,51,3],[51,4,51,8],[51,0,53,0],[98,22,98,25],[93,3,93,8],[3,24,3,27],[60,15,60,24],[69,15,69,24],[48,14,48,16],[48,18,48,21],[69,25,69,27],[60,1,60,14],[51,20,53,20],[51,21,53,27],[69,1,69,14],[95,10,98,18],[95,20,97,21],[95,22,95,25],[96,22,96,25],[51,9,51,13],[51,14,51,18],[52,4,52,8],[88,1,89,2],[88,3,88,8],[88,9,88,14],[89,3,89,8],[111,0,112,0],[111,1,112,1],[111,2,112,2],[111,3,112,3],[107,1,107,3],[111,4,112,4],[100,24,100,27],[101,24,104,27],[106,4,106,8],[111,21,112,21],[111,20,112,20],[111,5,111,19],[106,9,106,13],[101,0,102,7],[101,8,103,23],[100,8,100,23],[104,0,104,1],[104,3,104,6],[104,11,104,14],[104,16,104,17],[104,19,104,22],[100,0,100,7],[103,3,103,6],[76,1,77,2],[76,3,76,8],[76,9,76,14],[77,3,77,8],[77,9,77,14],[75,17,77,24],[75,2,75,14],[75,15,77,16],[106,0,108,0],[106,1,106,3],[95,0,98,8],[92,1,93,2],[92,3,92,8],[92,9,92,14],[84,1,85,2],[84,3,84,8],[84,9,84,14],[85,3,85,8],[85,9,85,14],[83,17,85,24],[83,15,85,16],[93,9,93,14],[91,17,93,24],[81,3,81,8],[81,9,81,14],[79,2,79,14],[79,17,81,24],[79,15,81,16],[89,9,89,14],[87,17,89,24],[87,15,89,16],[91,2,91,14],[91,15,93,16],[67,0,67,4],[67,5,67,9],[60,0,65,0],[60,25,60,27],[62,1,65,1],[62,2,62,3],[62,4,62,14],[62,15,65,16],[71,15,73,16],[71,25,73,27],[72,1,73,2],[72,3,72,8],[72,9,72,14],[73,3,73,8],[71,17,73,24],[73,9,73,14],[64,2,64,3],[64,4,64,14],[62,17,65,24],[69,0,93,0],[71,2,71,14],[79,25,81,27],[80,1,81,2],[80,3,80,8],[57,2,57,6],[57,7,57,9],[57,10,57,12],[57,13,57,14],[58,2,58,6],[58,7,58,9],[65,2,65,3],[65,4,65,14],[28,25,30,27],[32,15,34,16],[32,17,34,21],[32,22,34,24],[32,25,34,27],[28,15,30,16],[28,17,30,21],[40,22,40,25],[42,22,42,25],[42,26,42,27],[40,20,42,21],[33,3,33,8],[36,2,36,14],[33,1,34,2],[37,1,38,2],[37,3,37,8],[24,15,26,16],[24,17,26,21],[24,22,26,24],[24,25,26,27],[20,17,22,21],[20,15,22,16],[16,2,16,14],[36,22,38,24],[25,1,26,2],[17,9,17,14],[20,25,22,27],[16,25,18,27],[17,3,17,8],[21,9,21,14],[18,3,18,8],[20,22,22,24],[22,3,22,8],[16,15,18,16],[22,9,22,14],[30,3,30,8],[32,2,32,14],[34,9,34,14],[29,1,30,2],[29,9,29,14],[9,2,9,3],[2,15,2,18],[3,2,3,6],[3,19,3,22],[14,25,14,27],[14,1,14,14],[7,22,10,24],[2,0,3,0],[2,1,3,1],[2,2,2,6],[2,7,2,9],[5,0,10,0],[9,4,9,14],[10,2,10,3],[10,4,10,14],[7,1,10,1],[2,19,2,27],[5,25,5,27],[3,15,3,18],[3,13,3,14],[5,1,5,14],[5,22,5,24],[5,15,5,21],[2,10,2,12],[3,7,3,9],[3,10,3,12],[2,13,2,14],[25,9,25,14],[16,22,18,24],[12,0,12,4],[12,5,12,9],[14,0,38,0],[36,15,38,16],[29,3,29,8],[34,3,34,8],[20,2,20,14],[21,3,21,8],[24,2,24,14],[33,9,33,14],[28,2,28,14],[37,9,37,14],[25,3,25,8],[38,3,38,8],[26,3,26,8],[14,22,14,24],[18,9,18,14],[30,9,30,14],[38,9,38,14],[14,15,14,21],[17,1,18,2],[21,1,22,2],[0,9,1,18],[28,22,30,24],[46,24,49,27],[47,4,47,13],[47,14,47,23],[45,0,45,13],[45,14,45,23],[43,20,43,21],[7,2,7,3],[7,4,7,14],[7,15,10,16],[7,17,10,21],[43,22,43,25],[36,17,38,21],[16,17,18,21],[45,24,45,27],[41,26,41,27],[36,25,38,27],[43,26,43,27],[40,26,40,27],[40,0,43,8],[40,10,43,18],[7,25,10,27],[26,9,26,14],[107,4,107,8],[107,9,107,13],[107,14,107,18],[108,1,108,3],[108,4,108,8],[108,9,108,13],[48,4,48,6],[48,8,48,11],[49,4,49,9],[49,10,49,12],[83,2,83,14],[87,2,87,14],[49,14,49,19],[47,0,49,3],[57,0,58,0],[57,1,58,1],[57,19,57,27],[58,15,58,18],[58,10,58,12],[58,13,58,14],[58,24,58,27],[52,1,52,3],[58,19,58,22],[62,25,65,27],[108,14,108,18],[106,14,106,18],[106,20,108,20],[106,21,108,27],[49,20,49,22],[55,9,56,18],[57,15,57,18],[41,22,41,25],[75,25,77,27],[83,25,85,27],[87,25,89,27],[95,26,95,27],[97,22,97,25],[97,26,97,27],[98,20,98,21],[98,26,98,27],[91,25,93,27],[96,26,96,27],[52,9,52,13],[52,14,52,18],[80,9,80,14]]}
["令和",6,"年度",null,null,null,null,null,null,"勤務評価シート",null,null,null,null,null,null,null,null,null,null,null,null,null,null,null,null,null,"7"]
["事務・技術・専門　係員"]
["基礎情報","被評価者","所属名",null,null,null,null,"補職級",null,null,"職種",null,null,"職員番号",null,"氏名",null,null,null,"評価期間",null,null,null,null,null,null,null,null,null,null,null,null,null,null,null,null,null,null,null,null,null,null,"危機管理室","係員級","一般事務"]
[null,null,null,null,null,null,null,"係員級",null,null,null,null,null,null,null,null,null,null,null,null,null,null,null,"～",null,null,null,null,null,null,null,null,null,null,null,null,null,null,null,null,null,null,"秘書課",null,"一般事務（府教委）"]
[null,null,null,null,null,null,null,null,null,null,null,null,null,null,null,null,null,null,null,null,null,null,null,null,null,null,null,null,null,null,null,null,null,null,null,null,null,null,null,null,null,null,"広報課",null,"一般事務（司書）"]
["【業績】","評価基準・着眼点",null,null,null,null,null,null,null,null,null,null,null,null,null,"自己評価",null,null,null,null,null,null,"１次評価",null,null,"２次評価",null,null,null,null,null,null,null,null,null,null,null,null,null,null,null,null,"総務室",null,"一般事務（体育）"]
[null,"【業績】",null,null,null,null,null,null,null,null,null,null,null,null,null,"（評価点）",null,"（コメント）",null,null,null,null,"（評価点）",null,null,"（評価点）",null,null,null,null,null,null,null,null,null,null,null,null,null,null,null,null,"法制室",null,"一般技術"]
[null,"評価点","４（特に良好）",null,"職階からみて、期待された水準をはるかに上回る業績をあげた",null,null,null,null,null,null,null,null,null,null,null,null,null,null,null,null,null,null,null,null,null,null,null,null,null,null,null,null,null,null,null,null,null,null,null,null,null,"人事室",null,"一般技術（電気）"]
[null,null,"３（良好）",null,"職階からみて、期待された以上の業績をあげた"]
[null,null,"２（標準）",null,"職階からみて、相応の業績である",null,null,null,null,null,null,null,null,null,null,null,null,null,null,null,null,null,null,null,null,null,null,null,null,null,null,null,null,null,null,null,null,null,null,null,null,null,"契約検査室",null,"一般技術（土木）"]
[null,null,"１（要努力）",null,"職階からみて、期待された水準に達しておらず、努力が必要である",null,null,null,null,null,null,null,null,null,null,null,null,null,null,null,null,null,null,null,null,null,null,null,null,null,null,null,null,null,null,null,null,null,null,null,null,null,"企画財政室",null,"一般技術（機械）"]
[null,null,null,null,null,null,null,null,null,null,null,null,null,null,null,null,null,null,null,null,null,null,null,null,null,null,null,null,null,null,null,null,null,null,null,null,null,null,null,null,null,null,"情報政策室",null,"一般技術（建築）"]
["≪【業績】の評価項目数の取扱い≫\n　・次長級以上は評価点を４倍\n　・課長級は評価点を３倍　　",null,null,null,null,"\n・課長代理級は評価点を３倍\n・主査級は評価点を２倍",null,null,null,null,null,null,null,null,null,null,null,null,null,null,null,null,null,null,null,null,null,null,null,null,null,null,null,null,null,null,null,null,null,null,null,null,"税制課",null,"一般技術（化学）"]
[null,null,null,null,null,null,null,null,null,null,null,null,null,null,null,null,null,null,null,null,null,null,null,null,null,null,null,null,null,null,null,null,null,null,null,null,null,null,null,null,null,null,"資産税課",null,"保育教諭"]
["【能力】","評価項目及び行動・着眼点",null,null,null,null,null,null,null,null,null,null,null,null,null,"自己評価",null,null,null,null,null,null,"１次評価",null,null,"２次評価",null,null,null,null,null,null,null,null,null,null,null,null,null,null,null,null,"市民税課",null,"生活指導員"]
[null,"【市民視点・法令遵守】",null,null,null,null,null,null,null,null,null,null,null,null,null,"（評価点）",null,"（コメント）",null,null,null,null,"（評価点）",null,null,"（評価点）",null,null,null,null,null,null,null,null,null,null,null,null,null,null,null,null,"納税課",null,"発達指導員"]
[null,null,"丁寧な応対を心掛けるなど、全体の奉仕者として、常に市民の立場や市民協働の視点に立つことができるとともに、法令等及び服務規律を順守して、公平かつ公正に業務を遂行することができる。",null,null,null,null,null,null,null,null,null,null,null,null,null,null,null,null,null,null,null,null,null,null,null,null,null,null,null,null,null,null,null,null,null,null,null,null,null,null,null,"債権管理課",null,"学芸員"]
[null,"着眼点",null,"・接遇",null,null,null,null,null,"・法令順守",null,null,null,null,null,null,null,null,null,null,null,null,null,null,null,null,null,null,null,null,null,null,null,null,null,null,null,null,null,null,null,null,"市民総務室",null,"栄養士"]
[null,null,null,"・公平・公正な姿勢",null,null,null,null,null,"・責任感",null,null,null,null,null,null,null,null,null,null,null,null,null,null,null,null,null,null,null,null,null,null,null,null,null,null,null,null,null,null,null,null,"市民課",null,"診療放射線技師"]
[null,"【コミュニケーション】",null,null,null,null,null,null,null,null,null,null,null,null,null,"（評価点）",null,"（コメント）",null,null,null,null,"（評価点）",null,null,"（評価点）",null,null,null,null,null,null,null,null,null,null,null,null,null,null,null,null,"山田出張所",null,"言語聴覚士"]
[null,null,"様々な相手と円滑かつ適切なコミュニケーションを取ることができる。",null,null,null,null,null,null,null,null,null,null,null,null,null,null,null,null,null,null,null,null,null,null,null,null,null,null,null,null,null,null,null,null,null,null,null,null,null,null,null,"千里丘出張所",null,"理学療法士"]
[null,"着眼点",null,"・市民に対する傾聴と対話の姿勢",null,null,null,null,null,"・柔軟な姿勢と一貫した主張のバランス",null,null,null,null,null,null,null,null,null,null,null,null,null,null,null,null,null,null,null,null,null,null,null,null,null,null,null,null,null,null,null,null,"千里出張所",null,"作業療法士"]
[null,null,null,"・誠実さ",null,null,null,null,null,null,null,null,null,null,null,null,null,null,null,null,null,null,null,null,null,null,null,null,null,null,null,null,null,null,null,null,null,null,null,null,null,null,"人権政策室",null,"歯科衛生士"]
[null,"【知識・技術の向上】",null,null,null,null,null,null,null,null,null,null,null,null,null,"（評価点）",null,"（コメント）",null,null,null,null,"（評価点）",null,null,"（評価点）",null,null,null,null,null,null,null,null,null,null,null,null,null,null,null,null,"交流活動館",null,"保健師"]
[null,null,"担当業務に必要な知識及び技術を習得することができる。",null,null,null,null,null,null,null,null,null,null,null,null,null,null,null,null,null,null,null,null,null,null,null,null,null,null,null,null,null,null,null,null,null,null,null,null,null,null,null,"男女共同参画センター",null,"看護師"]
[null,"着眼点",null,"・研究心",null,null,null,null,null,"・情報収集",null,null,null,null,null,null,null,null,null,null,null,null,null,null,null,null,null,null,null,null,null,null,null,null,null,null,null,null,null,null,null,null,"市民自治推進室",null,"精神保健福祉士"]
[null,null,null,"・知識・技術の蓄積",null,null,null,null,null,null,null,null,null,null,null,null,null,null,null,null,null,null,null,null,null,null,null,null,null,null,null,null,null,null,null,null,null,null,null,null,null,null,"地域経済振興室",null,"獣医師"]
[null,"【説明】",null,null,null,null,null,null,null,null,null,null,null,null,null,"（評価点）",null,"（コメント）",null,null,null,null,"（評価点）",null,null,"（評価点）",null,null,null,null,null,null,null,null,null,null,null,null,null,null,null,null,"シティプロモーション推進室",null,"薬剤師"]
[null,null,"担当業務について、分かりやすく説明することができる。",null,null,null,null,null,null,null,null,null,null,null,null,null,null,null,null,null,null,null,null,null,null,null,null,null,null,null,null,null,null,null,null,null,null,null,null,null,null,null,"文化スポーツ推進室",null,"管理栄養士"]
[null,"着眼点",null,"・論理的構成力",null,null,null,null,null,"・丁寧さ",null,null,null,null,null,null,null,null,null,null,null,null,null,null,null,null,null,null,null,null,null,null,null,null,null,null,null,null,null,null,null,null,"子育て政策室"]
[null,null,null,null,null,null,null,null,null,null,null,null,null,null,null,null,null,null,null,null,null,null,null,null,null,null,null,null,null,null,null,null,null,null,null,null,null,null,null,null,null,null,"子育て給付課"]
[null,"【業務遂行】",null,null,null,null,null,null,null,null,null,null,null,null,null,"（評価点）",null,"（コメント）",null,null,null,null,"（評価点）",null,null,"（評価点）",null,null,null,null,null,null,null,null,null,null,null,null,null,null,null,null,"家庭児童相談室"]
[null,null,"意欲的かつ正確に業務に取り組むことができる。\n[専門職]専門的知識及び技術に基づき業務を遂行することができる。",null,null,null,null,null,null,null,null,null,null,null,null,null,null,null,null,null,null,null,null,null,null,null,null,null,null,null,null,null,null,null,null,null,null,null,null,null,null,null,"のびのび子育てプラザ"]
[null,"着眼点",null,"・積極性",null,null,null,null,null,"・正確性、情報処理力",null,null,null,null,null,null,null,null,null,null,null,null,null,null,null,null,null,null,null,null,null,null,null,null,null,null,null,null,null,null,null,null,"保育幼稚園室"]
[null,null,null,"・［専門職］専門的知識・技術",null,null,null,null,null,null,null,null,null,null,null,null,null,null,null,null,null,null,null,null,null,null,null,null,null,null,null,null,null,null,null,null,null,null,null,null,null,null,"山田保育園"]
[null,"【組織貢献・チームワーク】",null,null,null,null,null,null,null,null,null,null,null,null,null,"（評価点）",null,"（コメント）",null,null,null,null,"（評価点）",null,null,"（評価点）",null,null,null,null,null,null,null,null,null,null,null,null,null,null,null,null,"いずみ保育園"]
[null,null,"情報の共有を図るため上司、同僚等に報告、連絡及び相談を行うことができるとともに、上司、同僚等と協力的な関係を構築することができる。",null,null,null,null,null,null,null,null,null,null,null,null,null,null,null,null,null,null,null,null,null,null,null,null,null,null,null,null,null,null,null,null,null,null,null,null,null,null,null,"南千里保育園"]
[null,"着眼点",null,"・情報共有",null,null,null,null,null,"・協調性",null,null,null,null,null,null,null,null,null,null,null,null,null,null,null,null,null,null,null,null,null,null,null,null,null,null,null,null,null,null,null,null,"ことぶき保育園"]
[null,null,null,"・関係職員を応援する姿勢",null,null,null,null,null,null,null,null,null,null,null,null,null,null,null,null,null,null,null,null,null,null,null,null,null,null,null,null,null,null,null,null,null,null,null,null,null,null,"岸部保育園"]
[null,null,null,null,null,null,null,null,null,null,null,null,null,null,null,null,null,null,null,null,null,null,null,null,null,null,null,null,null,null,null,null,null,null,null,null,null,null,null,null,null,null,"千里山保育園"]
["≪【能力】の評価点≫\n◆　「４（特に良好）」…求められる行動が確実にとられており、他の職員の模範となる職務遂行状況である。\n◆　「３（良好）」…求められる行動が確実にとられていた。\n◆　「２（標準）」…求められる行動が概ねとられていた。\n◆　「１（要努力）」…求められる行動がとられていることが少なく（全くなく）、改善に向け努力が必要である。",null,null,null,null,null,null,null,null,null,"≪総合評価区分と評価点との関係：基準≫\n◆　「良好」…原則、【業績】及び【能力】の評価項目の３分の２以上が「２（標準）」以上の場合に該当する。\n◆　「やや不良」…原則、【業績】及び【能力】の評価項目の３分の１超半数以下が「１（標準未満）」の場合に該当する。\n◆　「不良」…原則、【業績】及び【能力】の評価項目の半数超が「１（標準未満）」であるとともに、分限（降任・免職）処分を検討する必要があると判断する場合に該当する。",null,null,null,null,null,null,null,null,null,"【業績】及び\n【能力】の\n評価項目数の合計",null,"「4（特に良好）」\nの個数",null,null,null,{"$f":"IF(Z8=\"\",\"\",IF(Z17=\"\",\"\",IF(Z21=\"\",\"\",IF(Z25=\"\",\"\",IF(Z29=\"\",\"\",IF(Z33=\"\",\"\",IF(Z37=\"\",\"\",COUNTIF(Z16:AB39,4)+IF(Z8=4,1,0))))))))","v":""},null,null,null,null,null,null,null,null,null,null,null,null,null,null,null,"東保育園"]
[null,null,null,null,null,null,null,null,null,null,null,null,null,null,null,null,null,null,null,null,null,null,"「3（良好）」\nの個数",null,null,null,{"$f":"IF(Z8=\"\",\"\",IF(Z17=\"\",\"\",IF(Z21=\"\",\"\",IF(Z25=\"\",\"\",IF(Z29=\"\",\"\",IF(Z33=\"\",\"\",IF(Z37=\"\",\"\",COUNTIF(Z16:AB39,3)+IF(Z8=3,1,0))))))))","v":""},null,null,null,null,null,null,null,null,null,null,null,null,null,null,null,"垂水保育園"]
[null,null,null,null,null,null,null,null,null,null,null,null,null,null,null,null,null,null,null,null,null,null,"「２（標準）」\nの個数",null,null,null,{"$f":"IF(Z8=\"\",\"\",IF(Z17=\"\",\"\",IF(Z21=\"\",\"\",IF(Z25=\"\",\"\",IF(Z29=\"\",\"\",IF(Z33=\"\",\"\",IF(Z37=\"\",\"\",COUNTIF(Z16:AB39,2)+IF(Z8=2,1,0))))))))","v":""},null,null,null,null,null,null,null,null,null,null,null,null,null,null,null,"垂水保育園"]
[null,null,null,null,null,null,null,null,null,null,null,null,null,null,null,null,null,null,null,null,7,null,"「１（要努力）」\nの個数",null,null,null,{"$f":"IF(Z8=\"\",\"\",IF(Z17=\"\",\"\",IF(Z21=\"\",\"\",IF(Z25=\"\",\"\",IF(Z29=\"\",\"\",IF(Z33=\"\",\"\",IF(Z37=\"\",\"\",COUNTIF(Z16:AB39,1)+IF(Z8=1,1,0))))))))","v":""},null,null,null,null,null,null,null,null,null,null,null,null,null,null,null,"吹一保育園"]
[null,null,null,null,null,null,null,null,null,null,null,null,null,null,null,null,null,null,null,null,null,null,null,null,null,null,null,null,null,null,null,null,null,null,null,null,null,null,null,null,null,null,"吹六保育園"]
["１次評価者所見等",null,null,null,null,null,null,null,null,null,null,null,null,null,"２次評価者所見",null,null,null,null,null,null,null,null,null,"総合評価",null,null,null,null,null,null,null,null,null,null,null,null,null,null,null,null,null,"片山保育園"]
["ピカッとポイント",null,null,null,"所見（「２」以外の評価点の項目に重点を置き記入すること。）",null,null,null,null,null,null,null,null,null,"所見（「２」以外の評価点の項目に重点を置き記入すること。）",null,null,null,null,null,null,null,null,null,{"$f":"IF(AA41=\"\",\"\",IF(AA42=\"\",\"\",IF(AA43=\"\",\"\",IF(AA44=\"\",\"\",IF(AA41+AA42+AA43>=5,\"良好\",IF(AA41+AA42+AA43=4,\"やや不良\",IF(AA41+AA42+AA43<=3,\"不良\")))))))","v":""},null,null,null,null,null,null,null,null,null,null,null,null,null,null,null,null,null,"千三保育園"]
[null,null,null,null,null,null,null,null,null,null,null,null,null,null,null,null,null,null,null,null,null,null,null,null,null,null,null,null,null,null,null,null,null,null,null,null,null,null,null,null,null,null,"山三保育園"]
[null,null,null,null,"1次評価者",null,null,"（",null,null,null,null,"）",null,"2次評価者",null,null,"（",null,null,null,null,"）","㊞　　　　",null,null,null,null,null,null,null,null,null,null,null,null,null,null,null,null,null,null,"はぎのきこども園"]
[null,null,null,null,"(設定している場合）評価事務補助者（",null,null,null,null,null,null,null,null,"）","(設定している場合）評価事務補助者（",null,null,null,null,null,null,null,null,"）",null,null,null,null,null,null,null,null,null,null,null,null,null,null,null,null,null,null,"いずみ小規模園"]
[null,null,null,null,null,null,null,null,null,null,null,null,null,null,null,null,null,null,null,null,null,null,null,null,null,null,null,null,null,null,null,null,null,null,null,null,null,null,null,null,null,null,"こども発達支援センター"]
["給与反映区分","総合評価",null,null,"良好",null,null,null,null,"やや不良",null,null,null,null,"不良",null,null,null,null,null,"備考欄",null,null,null,null,null,null,null,null,null,null,null,null,null,null,null,null,null,null,null,null,null,"地域支援センター"]
[null,"昇給号数",null,null,"４号",null,null,null,null,"２号",null,null,null,null,"昇給なし",null,null,null,null,null,null,null,null,null,null,null,null,null,null,null,null,null,null,null,null,null,null,null,null,null,null,null,"杉の子学園"]
[null,"勤勉手当支給割合",null,null,"吹田市期末手当及び\n勤勉手当の支給に関する\n規則で定める支給割合",null,null,null,null,"良好の１０％減として、\n同規則で定める支給割合",null,null,null,null,"良好の２０％減として、\n同規則で定める支給割合",null,null,null,null,null,null,null,null,null,null,null,null,null,null,null,null,null,null,null,null,null,null,null,null,null,null,null,"わかたけ園"]
[null,null,null,null,null,null,null,null,null,null,null,null,null,null,null,null,null,null,"※水道部は、吹田市水道部企業職員給与規程",null,null,null,null,null,null,null,null,null,null,null,null,null,null,null,null,null,null,null,null,null,null,null,"福祉総務室"]
[{"$f":"A1","v":"令和"},{"$f":"B1","v":6},{"$f":"C1","v":"年度"},null,null,null,null,null,null,"勤務評価シート（開示用）",null,null,null,null,null,null,null,null,null,null,null,null,null,null,null,null,null,"7",null,null,null,null,null,null,null,null,null,null,null,null,null,null,"総合福祉会館"]
["事務・技術・専門　係員",null,null,null,null,null,null,null,null,null,null,null,null,null,null,null,null,null,null,null,null,null,null,null,null,null,null,null,null,null,null,null,null,null,null,null,null,null,null,null,null,null,"生活福祉室"]
["基礎情報","被評価者","所属名",null,null,null,null,"補職級",null,null,"職種",null,null,"職員番号",null,"氏名",null,null,null,"評価期間",null,null,null,null,null,null,null,null,null,null,null,null,null,null,null,null,null,null,null,null,null,null,"福祉指導監査室"]
[null,null,{"$f":"C4","v":0},null,null,null,null,{"$f":"H4","v":"係員級"},null,null,{"$f":"K4","v":0},null,null,{"$f":"N4","v":0},null,{"$f":"P4","v":0},null,null,null,{"$f":"T4","v":"00:00:00"},null,null,null,"～",{"$f":"Y4","v":"00:00:00"},null,null,null,null,null,null,null,null,null,null,null,null,null,null,null,null,null,"高齢福祉室"]
[null,null,null,null,null,null,null,null,null,null,null,null,null,null,null,null,null,null,null,null,null,null,null,null,null,null,null,null,null,null,null,null,null,null,null,null,null,null,null,null,null,null,"障がい福祉室"]
["【業績】","評価基準・着眼点",null,null,null,null,null,null,null,null,null,null,null,null,null,"自己評価",null,null,null,null,null,null,null,null,null,"最終評価",null,null,null,null,null,null,null,null,null,null,null,null,null,null,null,null,"健康まちづくり室"]
[null,"【業績】",null,null,null,null,null,null,null,null,null,null,null,null,null,"（評価点）",null,"（コメント）",null,null,null,null,null,null,null,"（評価点）",null,null,null,null,null,null,null,null,null,null,null,null,null,null,null,null,"病院総務室"]
[null,"評価点","４（特に良好）",null,"職階からみて、期待された水準をはるかに上回る業績をあげた",null,null,null,null,null,null,null,null,null,null,{"$f":"P8","v":0},null,{"$f":"R8","v":0},null,null,null,null,null,null,null,{"$f":"Z8","v":0},null,null,null,null,null,null,null,null,null,null,null,null,null,null,null,null,"医療事務室"]
[null,null,"３（良好）",null,"職階からみて、期待された以上の業績をあげた"]
[null,null,"２（標準）",null,"職階からみて、相応の業績である",null,null,null,null,null,null,null,null,null,null,null,null,null,null,null,null,null,null,null,null,null,null,null,null,null,null,null,null,null,null,null,null,null,null,null,null,null,"成人保健課"]
[null,null,"１（要努力）",null,"職階からみて、期待された水準に達しておらず、努力が必要である",null,null,null,null,null,null,null,null,null,null,null,null,null,null,null,null,null,null,null,null,null,null,null,null,null,null,null,null,null,null,null,null,null,null,null,null,null,"母子保健課"]
[null,null,null,null,null,null,null,null,null,null,null,null,null,null,null,null,null,null,null,null,null,null,null,null,null,null,null,null,null,null,null,null,null,null,null,null,null,null,null,null,null,null,"（後期高齢）"]
["≪【業績】の評価項目数の取扱い≫\n　・次長級以上は評価点を４倍\n　・課長級は評価点を３倍　　",null,null,null,null,"\n・課長代理級は評価点を３倍\n・主査級は評価点を２倍",null,null,null,null,null,null,null,null,null,null,null,null,null,null,null,null,null,null,null,null,null,null,null,null,null,null,null,null,null,null,null,null,null,null,null,null,"国民健康保険課"]
[null,null,null,null,null,null,null,null,null,null,null,null,null,null,null,null,null,null,null,null,null,null,null,null,null,null,null,null,null,null,null,null,null,null,null,null,null,null,null,null,null,null,"保健医療総務室"]
["【能力】","評価項目及び行動・着眼点",null,null,null,null,null,null,null,null,null,null,null,null,null,"自己評価",null,null,null,null,null,null,null,null,null,"最終評価",null,null,null,null,null,null,null,null,null,null,null,null,null,null,null,null,"衛生管理課"]
[null,"【市民視点・法令遵守】",null,null,null,null,null,null,null,null,null,null,null,null,null,"（評価点）",null,"（コメント）",null,null,null,null,null,null,null,"（評価点）",null,null,null,null,null,null,null,null,null,null,null,null,null,null,null,null,"地域保健課"]
[null,null,"丁寧な応対を心掛けるなど、全体の奉仕者として、常に市民の立場や市民協働の視点に立つことができるとともに、法令等及び服務規律を順守して、公平かつ公正に業務を遂行することができる。",null,null,null,null,null,null,null,null,null,null,null,null,{"$f":"P17","v":0},null,{"$f":"R17","v":0},null,null,null,null,null,null,null,{"$f":"Z17","v":0},null,null,null,null,null,null,null,null,null,null,null,null,null,null,null,null,"環境政策室"]
[null,"着眼点",null,"・接遇",null,null,null,null,null,"・法令順守",null,null,null,null,null,null,null,null,null,null,null,null,null,null,null,null,null,null,null,null,null,null,null,null,null,null,null,null,null,null,null,null,"環境保全指導課"]
[null,null,null,"・公平・公正な姿勢",null,null,null,null,null,"・責任感",null,null,null,null,null,null,null,null,null,null,null,null,null,null,null,null,null,null,null,null,null,null,null,null,null,null,null,null,null,null,null,null,"事業課"]
[null,"【コミュニケーション】",null,null,null,null,null,null,null,null,null,null,null,null,null,"（評価点）",null,"（コメント）",null,null,null,null,null,null,null,"（評価点）",null,null,null,null,null,null,null,null,null,null,null,null,null,null,null,null,"資源循環エネルギーセンター"]
[null,null,"様々な相手と円滑かつ適切なコミュニケーションを取ることができる。",null,null,null,null,null,null,null,null,null,null,null,null,{"$f":"P21","v":0},null,{"$f":"R21","v":0},null,null,null,null,null,null,null,{"$f":"Z21","v":0},null,null,null,null,null,null,null,null,null,null,null,null,null,null,null,null,"破砕選別工場"]
[null,"着眼点",null,"・市民に対する傾聴と対話の姿勢",null,null,null,null,null,"・柔軟な姿勢と一貫した主張のバランス",null,null,null,null,null,null,null,null,null,null,null,null,null,null,null,null,null,null,null,null,null,null,null,null,null,null,null,null,null,null,null,null,"都市計画室"]
[null,null,null,"・誠実さ",null,null,null,null,null,null,null,null,null,null,null,null,null,null,null,null,null,null,null,null,null,null,null,null,null,null,null,null,null,null,null,null,null,null,null,null,null,null,"計画調整室"]
[null,"【知識・技術の向上】",null,null,null,null,null,null,null,null,null,null,null,null,null,"（評価点）",null,"（コメント）",null,null,null,null,null,null,null,"（評価点）",null,null,null,null,null,null,null,null,null,null,null,null,null,null,null,null,"開発審査室"]
[null,null,"担当業務に必要な知識及び技術を習得することができる。",null,null,null,null,null,null,null,null,null,null,null,null,{"$f":"P25","v":0},null,{"$f":"R25","v":0},null,null,null,null,null,null,null,{"$f":"Z25","v":0},null,null,null,null,null,null,null,null,null,null,null,null,null,null,null,null,"住宅政策室"]
[null,"着眼点",null,"・研究心",null,null,null,null,null,"・情報収集",null,null,null,null,null,null,null,null,null,null,null,null,null,null,null,null,null,null,null,null,null,null,null,null,null,null,null,null,null,null,null,null,"資産経営室"]
[null,null,null,"・知識・技術の蓄積",null,null,null,null,null,null,null,null,null,null,null,null,null,null,null,null,null,null,null,null,null,null,null,null,null,null,null,null,null,null,null,null,null,null,null,null,null,null,"総務交通室"]
[null,"【説明】",null,null,null,null,null,null,null,null,null,null,null,null,null,"（評価点）",null,"（コメント）",null,null,null,null,null,null,null,"（評価点）",null,null,null,null,null,null,null,null,null,null,null,null,null,null,null,null,"道路室"]
[null,null,"担当業務について、分かりやすく説明することができる。",null,null,null,null,null,null,null,null,null,null,null,null,{"$f":"P29","v":0},null,{"$f":"R29","v":0},null,null,null,null,null,null,null,{"$f":"Z29","v":0},null,null,null,null,null,null,null,null,null,null,null,null,null,null,null,null,"公園みどり室"]
[null,"着眼点",null,"・論理的構成力",null,null,null,null,null,"・丁寧さ",null,null,null,null,null,null,null,null,null,null,null,null,null,null,null,null,null,null,null,null,null,null,null,null,null,null,null,null,null,null,null,null,"地域整備推進室"]
[null,null,null,null,null,null,null,null,null,null,null,null,null,null,null,null,null,null,null,null,null,null,null,null,null,null,null,null,null,null,null,null,null,null,null,null,null,null,null,null,null,null,"経営室"]
[null,"【業務遂行】",null,null,null,null,null,null,null,null,null,null,null,null,null,"（評価点）",null,"（コメント）",null,null,null,null,null,null,null,"（評価点）",null,null,null,null,null,null,null,null,null,null,null,null,null,null,null,null,"管路保全室"]
[null,null,"意欲的かつ正確に業務に取り組むことができる。\n[専門職]専門的知識及び技術に基づき業務を遂行することができる。",null,null,null,null,null,null,null,null,null,null,null,null,{"$f":"P33","v":0},null,{"$f":"R33","v":0},null,null,null,null,null,null,null,{"$f":"Z33","v":0},null,null,null,null,null,null,null,null,null,null,null,null,null,null,null,null,"水再生室"]
[null,"着眼点",null,"・積極性",null,null,null,null,null,"・正確性、情報処理力",null,null,null,null,null,null,null,null,null,null,null,null,null,null,null,null,null,null,null,null,null,null,null,null,null,null,null,null,null,null,null,null,"会計室"]
[null,null,null,"・［専門職］専門的知識・技術",null,null,null,null,null,null,null,null,null,null,null,null,null,null,null,null,null,null,null,null,null,null,null,null,null,null,null,null,null,null,null,null,null,null,null,null,null,null,"消防本部"]
[null,"【組織貢献・チームワーク】",null,null,null,null,null,null,null,null,null,null,null,null,null,"（評価点）",null,"（コメント）",null,null,null,null,null,null,null,"（評価点）",null,null,null,null,null,null,null,null,null,null,null,null,null,null,null,null,"総務予防室"]
[null,null,"情報の共有を図るため上司、同僚等に報告、連絡及び相談を行うことができるとともに、上司、同僚等と協力的な関係を構築することができる。",null,null,null,null,null,null,null,null,null,null,null,null,{"$f":"P37","v":0},null,{"$f":"R37","v":0},null,null,null,null,null,null,null,{"$f":"Z37","v":0},null,null,null,null,null,null,null,null,null,null,null,null,null,null,null,null,"消防本部付"]
[null,"着眼点",null,"・情報共有",null,null,null,null,null,"・協調性",null,null,null,null,null,null,null,null,null,null,null,null,null,null,null,null,null,null,null,null,null,null,null,null,null,null,null,null,null,null,null,null,"警防救急室"]
[null,null,null,"・関係職員を応援する姿勢",null,null,null,null,null,null,null,null,null,null,null,null,null,null,null,null,null,null,null,null,null,null,null,null,null,null,null,null,null,null,null,null,null,null,null,null,null,null,"警防・救急・啓発Ｇ"]
[null,null,null,null,null,null,null,null,null,null,null,null,null,null,null,null,null,null,null,null,null,null,null,null,null,null,null,null,null,null,null,null,null,null,null,null,null,null,null,null,null,null,"救助第１Ｇ"]
["≪【能力】の評価点≫\n◆　「４（特に良好）」…求められる行動が確実にとられており、他の職員の模範となる職務遂行状況である。\n◆　「３（良好）」…求められる行動が確実にとられていた。\n◆　「２（標準）」…求められる行動が概ねとられていた。\n◆　「１（要努力）」…求められる行動がとられていることが少なく（全くなく）、改善に向け努力が必要である。",null,null,null,null,null,null,null,null,null,"≪総合評価区分と評価点との関係：基準≫\n◆　「良好」…原則、【業績】及び【能力】の評価項目の３分の２以上が「２（標準）」以上の場合に該当する。\n◆　「やや不良」…原則、【業績】及び【能力】の評価項目の３分の１超半数以下が「１（標準未満）」の場合に該当する。\n◆　「不良」…原則、【業績】及び【能力】の評価項目の半数超が「１（標準未満）」であるとともに、分限（降任・免職）処分を検討する必要があると判断する場合に該当する。",null,null,null,null,null,null,null,null,null,"【業績】及び\n【能力】の\n評価項目数の合計",null,"「4（特に良好）」\nの個数",null,null,null,{"$f":"+AA41","v":""},null,null,null,null,null,null,null,null,null,null,null,null,null,null,null,"救助第２Ｇ"]
[null,null,null,null,null,null,null,null,null,null,null,null,null,null,null,null,null,null,null,null,null,null,"「3（良好）」\nの個数",null,null,null,{"$f":"+AA42","v":""},null,null,null,null,null,null,null,null,null,null,null,null,null,null,null,"指令情報室"]
[null,null,null,null,null,null,null,null,null,null,null,null,null,null,null,null,null,null,null,null,null,null,"「２（標準）」\nの個数",null,null,null,{"$f":"+AA43","v":""},null,null,null,null,null,null,null,null,null,null,null,null,null,null,null,"指令情報室"]
[null,null,null,null,null,null,null,null,null,null,null,null,null,null,null,null,null,null,null,null,7,null,"「１（要努力）」\nの個数",null,null,null,{"$f":"+AA44","v":""},null,null,null,null,null,null,null,null,null,null,null,null,null,null,null,"指令情報第１Ｇ"]
[null,null,null,null,null,null,null,null,null,null,null,null,null,null,null,null,null,null,null,null,null,null,null,null,null,null,null,null,null,null,null,null,null,null,null,null,null,null,null,null,null,null,"指令情報第２Ｇ"]
["ピカッとポイント",null,null,null,null,null,null,null,"２次評価者所見",null,null,null,null,null,null,null,null,null,null,null,null,null,null,null,"総合評価",null,null,null,null,null,null,null,null,null,null,null,null,null,null,null,null,null,"南消防署"]
[{"$f":"+A48","v":0},null,null,null,null,null,null,null,{"$f":"+O48","v":0},null,null,null,null,null,null,null,null,null,null,null,null,null,null,null,{"$f":"Y47","v":""},null,null,null,null,null,null,null,null,null,null,null,null,null,null,null,null,null,"南予防査察係"]
[null,null,null,null,null,null,null,null,null,null,null,null,null,null,null,null,null,null,null,null,null,null,null,null,null,null,null,null,null,null,null,null,null,null,null,null,null,null,null,null,null,null,"南警防第１係"]
[{"$f":"IF(K50=\"\",\"\",\"評価事務補助者（\")","v":""},null,null,{"$f":"K50","v":0},null,null,null,{"$f":"IF(K50=\"\",\"\",\"）\")","v":""},null,null,null,null,null,null,null,null,null,null,null,null,null,null,null,null,null,null,null,null,null,null,null,null,null,null,null,null,null,null,null,null,null,null,"南警防第２係"]
["１次評価者",null,"（",{"$f":"+I49","v":0},null,null,null,"）",null,null,{"$f":"IF(U50=\"\",\"\",\"評価事務補助者(\")","v":""},{"$f":"U50","v":0},null,null,null,{"$f":"IF(U50=\"\",\"\",\"）\")","v":""},"２次評価者",null,"（",{"$f":"+S49","v":0},null,null,null,"）",null,null,null,null,null,null,null,null,null,null,null,null,null,null,null,null,null,null,"南救急第１係"]
[null,null,null,null,null,null,null,null,null,null,null,null,null,null,null,null,null,null,null,null,null,null,null,null,null,null,null,null,null,null,null,null,null,null,null,null,null,null,null,null,null,null,"南救急第２係"]
["給与反映区分","総合評価",null,null,"良好",null,null,null,null,"やや不良",null,null,null,null,"不良",null,null,null,null,null,"備考欄",{"$f":"V52","v":0},null,null,null,null,null,null,null,null,null,null,null,null,null,null,null,null,null,null,null,null,"正雀出張所第１係"]
[null,"昇給号数",null,null,"４号",null,null,null,null,"２号",null,null,null,null,"昇給なし",null,null,null,null,null,null,null,null,null,null,null,null,null,null,null,null,null,null,null,null,null,null,null,null,null,null,null,"正雀出張所第２係"]
[null,"勤勉手当支給割合",null,null,"吹田市期末手当及び\n勤勉手当の支給に関する\n規則で定める支給割合",null,null,null,null,"良好の１０％減として、\n同規則で定める支給割合",null,null,null,null,"良好の２０％減として、\n同規則で定める支給割合",null,null,null,null,null,null,null,null,null,null,null,null,null,null,null,null,null,null,null,null,null,null,null,null,null,null,null,"北消防署"]
[null,null,null,null,null,null,null,null,null,null,null,null,null,null,null,null,null,null,"※水道部は、吹田市水道部企業職員給与規程",null,null,null,null,null,null,null,null,null,null,null,null,null,null,null,null,null,null,null,null,null,null,null,"北予防査察係"]
[null,null,null,null,null,null,null,null,null,null,null,null,null,null,null,null,null,null,null,null,null,null,null,null,null,null,null,null,null,null,null,null,null,null,null,null,null,null,null,null,null,null,"北警防第１係"]
["職員番号","氏名","所属名","補職級","職種","評価項目",null,null,null,null,null,null,null,null,null,null,null,null,null,null,"総合評価","2次評価者",null,null,null,null,null,null,null,null,null,null,null,null,null,null,null,null,null,null,null,null,"北警防第２係"]
[null,null,null,null,null,"【業績】","【市民視点・法令遵守】","【コミュニケーション】","【課題の解決】","【決断】","【判断】","【課題対応】","【知識・技術・経験の活用】","【知識・技術の向上】","【説明・調整】","【説明】","【業務改善】","【業務遂行】","【組織マネジメント・人材育成】","【組織貢献・チームワーク】",null,null,null,null,null,null,null,null,null,null,null,null,null,null,null,null,null,null,null,null,null,null,"北救急第１係"]
[{"$f":"+N4","v":0},{"$f":"+P4","v":0},{"$f":"+C4","v":0},{"$f":"+H4","v":"係員級"},{"$f":"+K4","v":0},{"$f":"+Z8","v":0},{"$f":"+Z17","v":0},{"$f":"+Z21","v":0},null,null,null,null,null,{"$f":"+Z25","v":0},null,{"$f":"+Z29","v":0},null,{"$f":"+Z33","v":0},null,{"$f":"+Z37","v":0},{"$f":"+Y47","v":""},{"$f":"+S49","v":0},null,null,null,null,null,null,null,null,null,null,null,null,null,null,null,null,null,null,null,null,"北救急第２係"]
[null,null,null,null,null,null,null,null,null,null,null,null,null,null,null,null,null,null,null,null,null,null,null,null,null,null,null,null,null,null,null,null,null,null,null,null,null,null,null,null,null,null,"西消防署"]
[null,null,null,null,null,null,null,null,null,null,null,null,null,null,null,null,null,null,null,null,null,null,null,null,null,null,null,null,null,null,null,null,null,null,null,null,null,null,null,null,null,null,"西予防査察係"]
[null,null,null,null,null,null,null,null,null,null,null,null,null,null,null,null,null,null,null,null,null,null,null,null,null,null,null,null,null,null,null,null,null,null,null,null,null,null,null,null,null,null,"西警防第１係"]
[null,null,null,null,null,null,null,null,null,null,null,null,null,null,null,null,null,null,null,null,null,null,null,null,null,null,null,null,null,null,null,null,null,null,null,null,null,null,null,null,null,null,"西警防第２係"]
[null,null,null,null,null,null,null,null,null,null,null,null,null,null,null,null,null,null,null,null,null,null,null,null,null,null,null,null,null,null,null,null,null,null,null,null,null,null,null,null,null,null,"西救急第１係"]
[null,null,null,null,null,null,null,null,null,null,null,null,null,null,null,null,null,null,null,null,null,null,null,null,null,null,null,null,null,null,null,null,null,null,null,null,null,null,null,null,null,null,"西救急第２係"]
[null,null,null,null,null,null,null,null,null,null,null,null,null,null,null,null,null,null,null,null,null,null,null,null,null,null,null,null,null,null,null,null,null,null,null,null,null,null,null,null,null,null,"千里出張所第１係"]
[null,null,null,null,null,null,null,null,null,null,null,null,null,null,null,null,null,null,null,null,null,null,null,null,null,null,null,null,null,null,null,null,null,null,null,null,null,null,null,null,null,null,"千里出張所第２係"]
[null,null,null,null,null,null,null,null,null,null,null,null,null,null,null,null,null,null,null,null,null,null,null,null,null,null,null,null,null,null,null,null,null,null,null,null,null,null,null,null,null,null,"東消防署"]
[null,null,null,null,null,null,null,null,null,null,null,null,null,null,null,null,null,null,null,null,null,null,null,null,null,null,null,null,null,null,null,null,null,null,null,null,null,null,null,null,null,null,"東予防査察係"]
[null,null,null,null,null,null,null,null,null,null,null,null,null,null,null,null,null,null,null,null,null,null,null,null,null,null,null,null,null,null,null,null,null,null,null,null,null,null,null,null,null,null,"東警防第１係"]
[null,null,null,null,null,null,null,null,null,null,null,null,null,null,null,null,null,null,null,null,null,null,null,null,null,null,null,null,null,null,null,null,null,null,null,null,null,null,null,null,null,null,"東警防第２係"]
[null,null,null,null,null,null,null,null,null,null,null,null,null,null,null,null,null,null,null,null,null,null,null,null,null,null,null,null,null,null,null,null,null,null,null,null,null,null,null,null,null,null,"東救急第１係"]
[null,null,null,null,null,null,null,null,null,null,null,null,null,null,null,null,null,null,null,null,null,null,null,null,null,null,null,null,null,null,null,null,null,null,null,null,null,null,null,null,null,null,"東救急第２係"]
[null,null,null,null,null,null,null,null,null,null,null,null,null,null,null,null,null,null,null,null,null,null,null,null,null,null,null,null,null,null,null,null,null,null,null,null,null,null,null,null,null,null,"岸部出張所第１係"]
[null,null,null,null,null,null,null,null,null,null,null,null,null,null,null,null,null,null,null,null,null,null,null,null,null,null,null,null,null,null,null,null,null,null,null,null,null,null,null,null,null,null,"岸部出張所第２係"]
[null,null,null,null,null,null,null,null,null,null,null,null,null,null,null,null,null,null,null,null,null,null,null,null,null,null,null,null,null,null,null,null,null,null,null,null,null,null,null,null,null,null,"東救急第１係（中庁舎）"]
[null,null,null,null,null,null,null,null,null,null,null,null,null,null,null,null,null,null,null,null,null,null,null,null,null,null,null,null,null,null,null,null,null,null,null,null,null,null,null,null,null,null,"東救急第２係（中庁舎）"]
[null,null,null,null,null,null,null,null,null,null,null,null,null,null,null,null,null,null,null,null,null,null,null,null,null,null,null,null,null,null,null,null,null,null,null,null,null,null,null,null,null,null,"議会事務局"]
[null,null,null,null,null,null,null,null,null,null,null,null,null,null,null,null,null,null,null,null,null,null,null,null,null,null,null,null,null,null,null,null,null,null,null,null,null,null,null,null,null,null,"選挙管理委員会事務局"]
[null,null,null,null,null,null,null,null,null,null,null,null,null,null,null,null,null,null,null,null,null,null,null,null,null,null,null,null,null,null,null,null,null,null,null,null,null,null,null,null,null,null,"監査委員事務局"]
[null,null,null,null,null,null,null,null,null,null,null,null,null,null,null,null,null,null,null,null,null,null,null,null,null,null,null,null,null,null,null,null,null,null,null,null,null,null,null,null,null,null,"農業委員会事務局"]
[null,null,null,null,null,null,null,null,null,null,null,null,null,null,null,null,null,null,null,null,null,null,null,null,null,null,null,null,null,null,null,null,null,null,null,null,null,null,null,null,null,null,"教育総務室"]
[null,null,null,null,null,null,null,null,null,null,null,null,null,null,null,null,null,null,null,null,null,null,null,null,null,null,null,null,null,null,null,null,null,null,null,null,null,null,null,null,null,null,"学校管理課"]
[null,null,null,null,null,null,null,null,null,null,null,null,null,null,null,null,null,null,null,null,null,null,null,null,null,null,null,null,null,null,null,null,null,null,null,null,null,null,null,null,null,null,"学務課"]
[null,null,null,null,null,null,null,null,null,null,null,null,null,null,null,null,null,null,null,null,null,null,null,null,null,null,null,null,null,null,null,null,null,null,null,null,null,null,null,null,null,null,"教育未来創生室"]
[null,null,null,null,null,null,null,null,null,null,null,null,null,null,null,null,null,null,null,null,null,null,null,null,null,null,null,null,null,null,null,null,null,null,null,null,null,null,null,null,null,null,"保健給食室"]
[null,null,null,null,null,null,null,null,null,null,null,null,null,null,null,null,null,null,null,null,null,null,null,null,null,null,null,null,null,null,null,null,null,null,null,null,null,null,null,null,null,null,"学校教育室"]
[null,null,null,null,null,null,null,null,null,null,null,null,null,null,null,null,null,null,null,null,null,null,null,null,null,null,null,null,null,null,null,null,null,null,null,null,null,null,null,null,null,null,"教職員課"]
[null,null,null,null,null,null,null,null,null,null,null,null,null,null,null,null,null,null,null,null,null,null,null,null,null,null,null,null,null,null,null,null,null,null,null,null,null,null,null,null,null,null,"吹田第一幼稚園"]
[null,null,null,null,null,null,null,null,null,null,null,null,null,null,null,null,null,null,null,null,null,null,null,null,null,null,null,null,null,null,null,null,null,null,null,null,null,null,null,null,null,null,"吹田第三幼稚園"]
[null,null,null,null,null,null,null,null,null,null,null,null,null,null,null,null,null,null,null,null,null,null,null,null,null,null,null,null,null,null,null,null,null,null,null,null,null,null,null,null,null,null,"吹田南幼稚園"]
[null,null,null,null,null,null,null,null,null,null,null,null,null,null,null,null,null,null,null,null,null,null,null,null,null,null,null,null,null,null,null,null,null,null,null,null,null,null,null,null,null,null,"千里第二幼稚園"]
[null,null,null,null,null,null,null,null,null,null,null,null,null,null,null,null,null,null,null,null,null,null,null,null,null,null,null,null,null,null,null,null,null,null,null,null,null,null,null,null,null,null,"千里新田こども園"]
[null,null,null,null,null,null,null,null,null,null,null,null,null,null,null,null,null,null,null,null,null,null,null,null,null,null,null,null,null,null,null,null,null,null,null,null,null,null,null,null,null,null,"東佐井寺幼稚園"]
[null,null,null,null,null,null,null,null,null,null,null,null,null,null,null,null,null,null,null,null,null,null,null,null,null,null,null,null,null,null,null,null,null,null,null,null,null,null,null,null,null,null,"岸部第一幼稚園"]
[null,null,null,null,null,null,null,null,null,null,null,null,null,null,null,null,null,null,null,null,null,null,null,null,null,null,null,null,null,null,null,null,null,null,null,null,null,null,null,null,null,null,"豊津第一幼稚園"]
[null,null,null,null,null,null,null,null,null,null,null,null,null,null,null,null,null,null,null,null,null,null,null,null,null,null,null,null,null,null,null,null,null,null,null,null,null,null,null,null,null,null,"江坂大池こども園"]
[null,null,null,null,null,null,null,null,null,null,null,null,null,null,null,null,null,null,null,null,null,null,null,null,null,null,null,null,null,null,null,null,null,null,null,null,null,null,null,null,null,null,"片山幼稚園"]
[null,null,null,null,null,null,null,null,null,null,null,null,null,null,null,null,null,null,null,null,null,null,null,null,null,null,null,null,null,null,null,null,null,null,null,null,null,null,null,null,null,null,"山田第一幼稚園"]
[null,null,null,null,null,null,null,null,null,null,null,null,null,null,null,null,null,null,null,null,null,null,null,null,null,null,null,null,null,null,null,null,null,null,null,null,null,null,null,null,null,null,"山田第三幼稚園"]
[null,null,null,null,null,null,null,null,null,null,null,null,null,null,null,null,null,null,null,null,null,null,null,null,null,null,null,null,null,null,null,null,null,null,null,null,null,null,null,null,null,null,"東山田幼稚園"]
[null,null,null,null,null,null,null,null,null,null,null,null,null,null,null,null,null,null,null,null,null,null,null,null,null,null,null,null,null,null,null,null,null,null,null,null,null,null,null,null,null,null,"南山田幼稚園"]
[null,null,null,null,null,null,null,null,null,null,null,null,null,null,null,null,null,null,null,null,null,null,null,null,null,null,null,null,null,null,null,null,null,null,null,null,null,null,null,null,null,null,"佐竹台幼稚園"]
[null,null,null,null,null,null,null,null,null,null,null,null,null,null,null,null,null,null,null,null,null,null,null,null,null,null,null,null,null,null,null,null,null,null,null,null,null,null,null,null,null,null,"教育センター"]
[null,null,null,null,null,null,null,null,null,null,null,null,null,null,null,null,null,null,null,null,null,null,null,null,null,null,null,null,null,null,null,null,null,null,null,null,null,null,null,null,null,null,"まなびの支援課"]
[null,null,null,null,null,null,null,null,null,null,null,null,null,null,null,null,null,null,null,null,null,null,null,null,null,null,null,null,null,null,null,null,null,null,null,null,null,null,null,null,null,null,"中央図書館"]
[null,null,null,null,null,null,null,null,null,null,null,null,null,null,null,null,null,null,null,null,null,null,null,null,null,null,null,null,null,null,null,null,null,null,null,null,null,null,null,null,null,null,"千里図書館"]
[null,null,null,null,null,null,null,null,null,null,null,null,null,null,null,null,null,null,null,null,null,null,null,null,null,null,null,null,null,null,null,null,null,null,null,null,null,null,null,null,null,null,"さんくす図書館"]
[null,null,null,null,null,null,null,null,null,null,null,null,null,null,null,null,null,null,null,null,null,null,null,null,null,null,null,null,null,null,null,null,null,null,null,null,null,null,null,null,null,null,"江坂図書館"]
[null,null,null,null,null,null,null,null,null,null,null,null,null,null,null,null,null,null,null,null,null,null,null,null,null,null,null,null,null,null,null,null,null,null,null,null,null,null,null,null,null,null,"千里山・佐井寺図書館"]
[null,null,null,null,null,null,null,null,null,null,null,null,null,null,null,null,null,null,null,null,null,null,null,null,null,null,null,null,null,null,null,null,null,null,null,null,null,null,null,null,null,null,"千里丘図書館"]
[null,null,null,null,null,null,null,null,null,null,null,null,null,null,null,null,null,null,null,null,null,null,null,null,null,null,null,null,null,null,null,null,null,null,null,null,null,null,null,null,null,null,"山田駅前図書館"]
[null,null,null,null,null,null,null,null,null,null,null,null,null,null,null,null,null,null,null,null,null,null,null,null,null,null,null,null,null,null,null,null,null,null,null,null,null,null,null,null,null,null,"健都ライブラリー"]
[null,null,null,null,null,null,null,null,null,null,null,null,null,null,null,null,null,null,null,null,null,null,null,null,null,null,null,null,null,null,null,null,null,null,null,null,null,null,null,null,null,null,"北千里図書館"]
[null,null,null,null,null,null,null,null,null,null,null,null,null,null,null,null,null,null,null,null,null,null,null,null,null,null,null,null,null,null,null,null,null,null,null,null,null,null,null,null,null,null,"文化財保護課"]
[null,null,null,null,null,null,null,null,null,null,null,null,null,null,null,null,null,null,null,null,null,null,null,null,null,null,null,null,null,null,null,null,null,null,null,null,null,null,null,null,null,null,"博物館"]
[null,null,null,null,null,null,null,null,null,null,null,null,null,null,null,null,null,null,null,null,null,null,null,null,null,null,null,null,null,null,null,null,null,null,null,null,null,null,null,null,null,null,"青少年室"]
[null,null,null,null,null,null,null,null,null,null,null,null,null,null,null,null,null,null,null,null,null,null,null,null,null,null,null,null,null,null,null,null,null,null,null,null,null,null,null,null,null,null,"青少年クリエイティブセンター"]
[null,null,null,null,null,null,null,null,null,null,null,null,null,null,null,null,null,null,null,null,null,null,null,null,null,null,null,null,null,null,null,null,null,null,null,null,null,null,null,null,null,null,"放課後子ども育成室"]
[null,null,null,null,null,null,null,null,null,null,null,null,null,null,null,null,null,null,null,null,null,null,null,null,null,null,null,null,null,null,null,null,null,null,null,null,null,null,null,null,null,null,"（水）総務室"]
[null,null,null,null,null,null,null,null,null,null,null,null,null,null,null,null,null,null,null,null,null,null,null,null,null,null,null,null,null,null,null,null,null,null,null,null,null,null,null,null,null,null,"企画室"]
[null,null,null,null,null,null,null,null,null,null,null,null,null,null,null,null,null,null,null,null,null,null,null,null,null,null,null,null,null,null,null,null,null,null,null,null,null,null,null,null,null,null,"工務室"]
[null,null,null,null,null,null,null,null,null,null,null,null,null,null,null,null,null,null,null,null,null,null,null,null,null,null,null,null,null,null,null,null,null,null,null,null,null,null,null,null,null,null,"浄水室"]

{"sheet":"技労（総括主任）","index":7,"n_rows":106,"n_cols":46,"rows_kept":106,"cut":false,"hidden":false,"merged":[[47,0,49,0],[47,1,47,3],[47,4,47,8],[47,9,47,13],[47,14,47,18],[47,20,49,20],[47,21,49,27],[48,1,48,3],[48,4,48,8],[48,9,48,13],[48,14,48,18],[49,1,49,3],[49,4,49,8],[49,9,49,13],[49,14,49,18],[115,1,115,9],[44,14,44,16],[44,18,44,21],[2,0,3,0],[2,1,3,1],[2,2,2,6],[2,7,2,9],[2,10,2,12],[3,10,3,12],[2,13,2,14],[3,19,3,22],[56,15,56,24],[65,15,65,24],[83,17,85,24],[79,17,81,24],[75,17,77,24],[71,17,73,24],[67,17,69,24],[58,17,61,24],[92,0,92,7],[92,8,92,23],[93,0,94,7],[93,8,95,23],[95,3,95,6],[7,25,10,27],[9,4,9,14],[10,4,10,14],[5,1,5,14],[7,15,10,16],[7,17,10,21],[9,2,9,3],[10,2,10,3],[2,15,2,18],[2,19,2,27],[3,2,3,6],[7,22,10,24],[3,7,3,9],[5,15,5,21],[5,22,5,24],[5,25,5,27],[3,13,3,14],[3,15,3,18],[3,24,3,27],[8,2,8,3],[8,4,8,14],[14,25,14,27],[16,2,16,14],[16,15,18,16],[16,17,18,21],[16,22,18,24],[16,25,18,27],[17,1,18,2],[17,3,17,8],[17,9,17,14],[18,3,18,8],[14,22,14,24],[18,9,18,14],[14,1,14,14],[14,15,14,21],[32,2,32,14],[24,25,26,27],[25,1,26,2],[25,3,25,8],[25,9,25,14],[26,3,26,8],[26,9,26,14],[20,25,22,27],[21,1,22,2],[21,3,21,8],[21,9,21,14],[22,3,22,8],[22,9,22,14],[20,2,20,14],[20,15,22,16],[20,17,22,21],[20,22,22,24],[24,2,24,14],[24,15,26,16],[24,17,26,21],[28,25,30,27],[29,1,30,2],[29,3,29,8],[29,9,29,14],[36,22,36,25],[45,14,45,19],[45,20,45,22],[44,4,44,6],[44,8,44,11],[45,4,45,9],[36,26,36,27],[38,22,38,25],[38,26,38,27],[39,20,39,21],[39,22,39,25],[0,9,1,18],[41,0,41,13],[41,14,41,23],[32,15,34,16],[32,17,34,21],[32,22,34,24],[24,22,26,24],[14,0,34,0],[12,0,12,4],[12,5,12,9],[7,1,10,1],[7,2,7,3],[7,4,7,14],[13,0,13,3],[13,4,13,7],[5,0,10,0],[41,24,41,27],[32,25,34,27],[33,1,34,2],[33,3,33,8],[33,9,33,14],[30,3,30,8],[30,9,30,14],[28,2,28,14],[34,3,34,8],[34,9,34,14],[28,22,30,24],[54,2,54,6],[54,7,54,9],[54,10,54,12],[54,13,54,14],[54,15,54,18],[54,19,54,22],[54,24,54,27],[51,9,52,18],[39,26,39,27],[37,22,37,25],[37,26,37,27],[28,15,30,16],[28,17,30,21],[42,24,45,27],[43,0,45,3],[43,4,43,13],[45,10,45,12],[43,14,43,23],[36,0,39,8],[36,10,39,18],[36,20,38,21],[53,10,53,12],[53,13,53,14],[53,15,53,18],[53,19,53,27],[59,2,59,3],[59,4,59,14],[53,0,54,0],[53,1,54,1],[53,2,53,6],[53,7,53,9],[64,0,64,3],[64,4,64,7],[56,0,61,0],[56,1,56,14],[56,25,56,27],[58,1,61,1],[58,2,58,3],[58,4,58,14],[58,15,61,16],[58,25,61,27],[60,2,60,3],[60,4,60,14],[61,2,61,3],[61,4,61,14],[63,0,63,4],[63,5,63,9],[65,25,65,27],[67,2,67,14],[67,15,69,16],[67,25,69,27],[68,1,69,2],[68,3,68,8],[65,1,65,14],[68,9,68,14],[69,3,69,8],[69,9,69,14],[75,25,77,27],[76,1,77,2],[76,3,76,8],[76,9,76,14],[77,3,77,8],[77,9,77,14],[75,2,75,14],[71,15,73,16],[71,25,73,27],[72,1,73,2],[72,3,72,8],[72,9,72,14],[73,3,73,8],[73,9,73,14],[71,2,71,14],[83,25,85,27],[84,1,85,2],[84,3,84,8],[84,9,84,14],[85,3,85,8],[85,9,85,14],[83,2,83,14],[87,10,90,18],[79,15,81,16],[79,25,81,27],[80,1,81,2],[80,3,80,8],[80,9,80,14],[81,3,81,8],[81,9,81,14],[90,26,90,27],[83,15,85,16],[90,22,90,25],[87,0,90,8],[88,22,88,25],[88,26,88,27],[103,14,104,14],[98,4,98,8],[98,9,98,13],[98,14,98,18],[99,1,99,3],[98,20,100,20],[99,4,99,8],[99,9,99,13],[99,14,99,18],[98,21,100,27],[92,24,92,27],[93,24,96,27],[87,20,89,21],[87,22,87,25],[87,26,87,27],[89,22,89,25],[89,26,89,27],[90,20,90,21],[96,19,96,22],[96,0,96,1],[96,3,96,6],[96,11,96,14],[96,16,96,17],[100,1,100,3],[100,4,100,8],[100,9,100,13],[100,14,100,18],[79,2,79,14],[65,0,85,0],[75,15,77,16],[103,0,104,0],[103,1,104,1],[103,2,104,2],[103,3,104,3],[103,4,104,4],[103,5,103,12],[98,0,100,0],[98,1,98,3],[103,13,104,13]]}
["令和",6,"年度",null,null,null,null,null,null,"勤務評価シート",null,null,null,null,null,null,null,null,null,null,null,null,null,null,null,null,null,"11"]
["技能労務職　総括主任"]
["基礎情報","被評価者","所属名",null,null,null,null,"補職級",null,null,"職種",null,null,"職員番号",null,"氏名",null,null,null,"評価期間",null,null,null,null,null,null,null,null,null,null,null,null,null,null,null,null,null,null,null,null,null,null,null,null,"総括主任級","土木職員"]
[null,null,null,null,null,null,null,"総括主任級",null,null,null,null,null,null,null,null,null,null,null,null,null,null,null,"～",null,null,null,null,null,null,null,null,null,null,null,null,null,null,null,null,null,null,null,null,null,"機器操作員"]
[null,null,null,null,null,null,null,null,null,null,null,null,null,null,null,null,null,null,null,null,null,null,null,null,null,null,null,null,null,null,null,null,null,null,null,null,null,null,null,null,null,null,null,null,null,"自動車運転手"]
["【業績】","評価基準・着眼点",null,null,null,null,null,null,null,null,null,null,null,null,null,"自己評価",null,null,null,null,null,null,"１次評価",null,null,"２次評価",null,null,null,null,null,null,null,null,null,null,null,null,null,null,null,null,null,null,null,"自動車運転作業員"]
[null,"【業績】",null,null,null,null,null,null,null,null,null,null,null,null,null,"（評価点）",null,"（コメント）",null,null,null,null,"（評価点）",null,null,"（評価点）",null,null,null,null,null,null,null,null,null,null,null,null,null,null,null,null,null,null,null,"汽かん士"]
[null,"評価点","４（特に良好）",null,"職階からみて、期待された水準をはるかに上回る業績をあげた",null,null,null,null,null,null,null,null,null,null,null,null,null,null,null,null,null,null,null,null,null,null,null,null,null,null,null,null,null,null,null,null,null,null,null,null,null,null,null,null,"清掃職員"]
[null,null,"３（良好）",null,"職階からみて、期待された以上の業績をあげた"]
[null,null,"２（標準）",null,"職階からみて、相応の業績である",null,null,null,null,null,null,null,null,null,null,null,null,null,null,null,null,null,null,null,null,null,null,null,null,null,null,null,null,null,null,null,null,null,null,null,null,null,null,null,null,"用務員"]
[null,null,"１（要努力）",null,"職階からみて、期待された水準に達しておらず、努力が必要である",null,null,null,null,null,null,null,null,null,null,null,null,null,null,null,null,null,null,null,null,null,null,null,null,null,null,null,null,null,null,null,null,null,null,null,null,null,null,null,null,"電話交換手"]
[null,null,null,null,null,null,null,null,null,null,null,null,null,null,null,null,null,null,null,null,null,null,null,null,null,null,null,null,null,null,null,null,null,null,null,null,null,null,null,null,null,null,null,null,null,"校務員"]
["≪【業績】の評価項目数の取扱い≫\n　・次長級以上は評価点を４倍\n　・課長級は評価点を３倍　　",null,null,null,null,"\n・課長代理級は評価点を３倍\n・主査級は評価点を２倍",null,null,null,null,null,null,null,null,null,null,null,null,null,null,null,null,null,null,null,null,null,null,null,null,null,null,null,null,null,null,null,null,null,null,null,null,null,null,null,"給食調理員"]
[null,null,null,null,"\n・課長代理級は評価素点を３倍\n・主査級は評価素点を２倍"]
["【能力】","評価項目及び行動・着眼点",null,null,null,null,null,null,null,null,null,null,null,null,null,"自己評価",null,null,null,null,null,null,"１次評価",null,null,"２次評価"]
[null,"【市民視点・法令遵守】",null,null,null,null,null,null,null,null,null,null,null,null,null,"（評価点）",null,"（コメント）",null,null,null,null,"（評価点）",null,null,"（評価点）"]
[null,null,"丁寧な応対を心掛けるなど、全体の奉仕者として、常に市民の立場や市民協働の視点に立つことができるとともに、法令等及び服務規律を順守して、公平かつ公正に業務を遂行することができる。"]
[null,"着眼点",null,"・接遇",null,null,null,null,null,"・法令順守"]
[null,null,null,"・公平・公正な姿勢",null,null,null,null,null,"・責任感"]
[null,"【コミュニケーション】",null,null,null,null,null,null,null,null,null,null,null,null,null,"（評価点）",null,"（コメント）",null,null,null,null,"（評価点）",null,null,"（評価点）"]
[null,null,"様々な相手と円滑かつ適切なコミュニケーションを取ることができる。"]
[null,"着眼点",null,"・市民に対する傾聴と対話の姿勢",null,null,null,null,null,"・柔軟な姿勢と一貫した主張のバランス"]
[null,null,null,"・誠実さ"]
[null,"【知識・技能・経験の活用】",null,null,null,null,null,null,null,null,null,null,null,null,null,"（評価点）",null,"（コメント）",null,null,null,null,"（評価点）",null,null,"（評価点）"]
[null,null,"担当業務に必要な知識、技能及び経験を業務に活用することができる。"]
[null,"着眼点",null,"・積極性",null,null,null,null,null,"・正確性"]
[null,null,null,"・研究心",null,null,null,null,null,"・知識・技能の蓄積"]
[null,"【業務管理】",null,null,null,null,null,null,null,null,null,null,null,null,null,"（評価点）",null,"（コメント）",null,null,null,null,"（評価点）",null,null,"（評価点）"]
[null,null,"適切に作業の割り振りを行い、効率的に業務を進めることができる。"]
[null,"着眼点",null,"・業務量の把握",null,null,null,null,null,"・適切な作業割振り"]
[]
[null,"【組織貢献・チームワーク】",null,null,null,null,null,null,null,null,null,null,null,null,null,"（評価点）",null,"（コメント）",null,null,null,null,"（評価点）",null,null,"（評価点）"]
[null,null,"情報の共有を図るため上司、同僚等に報告、連絡及び相談を行うことができるとともに、上司、同僚等と協力的な関係を構築し、経験を生かして関係職員を指導教育することができる。"]
[null,"着眼点",null,"・情報共有",null,null,null,null,null,"・協調性"]
[null,null,null,"・関係職員を応援する姿勢",null,null,null,null,null,"・関係職員の指導教育"]
[]
["≪【能力】の評価点≫\n◆　「４（特に良好）」…求められる行動が確実にとられており、他の職員の模範となる職務遂行状況である。\n◆　「３（良好）」…求められる行動が確実にとられていた。\n◆　「２（標準）」…求められる行動が概ねとられていた。\n◆　「１（要努力）」…求められる行動がとられていることが少なく（全くなく）、改善に向け努力が必要である。",null,null,null,null,null,null,null,null,null,"≪総合評価区分と評価点との関係：基準≫\n◆　「良好」…原則、【業績】及び【能力】の評価項目の３分の２以上が「２（標準）」以上の場合に該当する。\n◆　「やや不良」…原則、【業績】及び【能力】の評価項目の３分の１超半数以下が「１（標準未満）」の場合に該当する。\n◆　「不良」…原則、【業績】及び【能力】の評価項目の半数超が「１（標準未満）」であるとともに、分限（降任・免職）処分を検討する必要があると判断する場合に該当する。",null,null,null,null,null,null,null,null,null,"【業績】及び\n【能力】の\n評価項目数の合計",null,"「4（特に良好）」\nの個数",null,null,null,{"$f":"IF(Z8=\"\",\"\",IF(Z17=\"\",\"\",IF(Z21=\"\",\"\",IF(Z25=\"\",\"\",IF(Z29=\"\",\"\",IF(Z33=\"\",\"\",COUNTIF(Z17:AB35,4)+IF(Z8=4,1,0)))))))","v":""}]
[null,null,null,null,null,null,null,null,null,null,null,null,null,null,null,null,null,null,null,null,null,null,"「3（良好）」\nの個数",null,null,null,{"$f":"IF(Z8=\"\",\"\",IF(Z17=\"\",\"\",IF(Z21=\"\",\"\",IF(Z25=\"\",\"\",IF(Z29=\"\",\"\",IF(Z33=\"\",\"\",COUNTIF(Z17:AB35,3)+IF(Z8=3,1,0)))))))","v":""}]
[null,null,null,null,null,null,null,null,null,null,null,null,null,null,null,null,null,null,null,null,null,null,"「２（標準）」\nの個数",null,null,null,{"$f":"IF(Z8=\"\",\"\",IF(Z17=\"\",\"\",IF(Z21=\"\",\"\",IF(Z25=\"\",\"\",IF(Z29=\"\",\"\",IF(Z33=\"\",\"\",COUNTIF(Z17:AB35,2)+IF(Z8=2,1,0)))))))","v":""}]
[null,null,null,null,null,null,null,null,null,null,null,null,null,null,null,null,null,null,null,null,6,null,"「１（要努力）」\nの個数",null,null,null,{"$f":"IF(Z8=\"\",\"\",IF(Z17=\"\",\"\",IF(Z21=\"\",\"\",IF(Z25=\"\",\"\",IF(Z29=\"\",\"\",IF(Z33=\"\",\"\",COUNTIF(Z17:AB35,1)+IF(Z8=1,1,0)))))))","v":""}]
[]
["１次評価者所見等",null,null,null,null,null,null,null,null,null,null,null,null,null,"２次評価者所見",null,null,null,null,null,null,null,null,null,"総合評価"]
["ピカッとポイント",null,null,null,"所見（「２」以外の評価点の項目に重点を置き記入すること。）",null,null,null,null,null,null,null,null,null,"所見（「２」以外の評価点の項目に重点を置き記入すること。）",null,null,null,null,null,null,null,null,null,{"$f":"IF(AA37=\"\",\"\",IF(AA38=\"\",\"\",IF(AA39=\"\",\"\",IF(AA40=\"\",\"\",IF(AA37+AA38+AA39>=4,\"良好\",IF(AA37+AA38+AA39=3,\"やや不良\",IF(AA37+AA38+AA39<=2,\"不良\")))))))","v":""}]
[]
[null,null,null,null,"1次評価者",null,null,"（",null,null,null,null,"）",null,"2次評価者",null,null,"（",null,null,null,null,"）","㊞　　　　"]
[null,null,null,null,"(設定している場合）評価事務補助者（",null,null,null,null,null,null,null,null,"）","(設定している場合）評価事務補助者（",null,null,null,null,null,null,null,null,"）"]
[]
["給与反映区分","総合評価",null,null,"良好",null,null,null,null,"やや不良",null,null,null,null,"不良",null,null,null,null,null,"備考欄"]
[null,"昇給号数",null,null,"４号",null,null,null,null,"２号",null,null,null,null,"昇給なし"]
[null,"勤勉手当支給割合",null,null,"吹田市期末手当及び\n勤勉手当の支給に関する\n規則で定める支給割合",null,null,null,null,"良好の１０％減として、\n同規則で定める支給割合",null,null,null,null,"良好の２０％減として、\n同規則で定める支給割合"]
[null,null,null,null,null,null,null,null,null,null,null,null,null,null,null,null,null,null,"※水道部は、吹田市水道部企業職員給与規程"]
[{"$f":"A1","v":"令和"},{"$f":"B1","v":6},{"$f":"C1","v":"年度"},null,null,null,null,null,null,"勤務評価シート（開示用）",null,null,null,null,null,null,null,null,null,null,null,null,null,null,null,null,null,"11"]
["技能労務職　総括主任"]
["基礎情報","被評価者","所属名",null,null,null,null,"補職級",null,null,"職種",null,null,"職員番号",null,"氏名",null,null,null,"評価期間"]
[null,null,{"$f":"+C4","v":0},null,null,null,null,{"$f":"+H4","v":"総括主任級"},null,null,{"$f":"+K4","v":0},null,null,{"$f":"+N4","v":0},null,{"$f":"+P4","v":0},null,null,null,{"$f":"T4","v":"00:00:00"},null,null,null,"～",{"$f":"Y4","v":"00:00:00"}]
[]
["【業績】","評価基準・着眼点",null,null,null,null,null,null,null,null,null,null,null,null,null,"自己評価",null,null,null,null,null,null,null,null,null,"最終評価"]
[null,"【業績】",null,null,null,null,null,null,null,null,null,null,null,null,null,"（評価点）",null,"（コメント）",null,null,null,null,null,null,null,"（評価点）"]
[null,"評価点","４（特に良好）",null,"職階からみて、期待された水準をはるかに上回る業績をあげた",null,null,null,null,null,null,null,null,null,null,{"$f":"+P8","v":0},null,{"$f":"+R8","v":0},null,null,null,null,null,null,null,{"$f":"+Z8","v":0}]
[null,null,"３（良好）",null,"職階からみて、期待された以上の業績をあげた"]
[null,null,"２（標準）",null,"職階からみて、相応の業績である"]
[null,null,"１（要努力）",null,"職階からみて、期待された水準に達しておらず、努力が必要である"]
[]
["≪【業績】の評価項目数の取扱い≫\n　・次長級以上は評価点を４倍\n　・課長級は評価点を３倍　　",null,null,null,null,"\n・課長代理級は評価点を３倍\n・主査級は評価点を２倍"]
[null,null,null,null,"\n・課長代理級は評価素点を３倍\n・主査級は評価素点を２倍"]
["【能力】","評価項目及び行動・着眼点",null,null,null,null,null,null,null,null,null,null,null,null,null,"自己評価",null,null,null,null,null,null,null,null,null,"最終評価"]
[null,"【市民視点・法令遵守】",null,null,null,null,null,null,null,null,null,null,null,null,null,"（評価点）",null,"（コメント）",null,null,null,null,null,null,null,"（評価点）"]
[null,null,"丁寧な応対を心掛けるなど、全体の奉仕者として、常に市民の立場や市民協働の視点に立つことができるとともに、法令等及び服務規律を順守して、公平かつ公正に業務を遂行することができる。",null,null,null,null,null,null,null,null,null,null,null,null,{"$f":"+P17","v":0},null,{"$f":"+R17","v":0},null,null,null,null,null,null,null,{"$f":"+Z17","v":0}]
[null,"着眼点",null,"・接遇",null,null,null,null,null,"・法令順守"]
[null,null,null,"・公平・公正な姿勢",null,null,null,null,null,"・責任感"]
[null,"【コミュニケーション】",null,null,null,null,null,null,null,null,null,null,null,null,null,"（評価点）",null,"（コメント）",null,null,null,null,null,null,null,"（評価点）"]
[null,null,"様々な相手と円滑かつ適切なコミュニケーションを取ることができる。",null,null,null,null,null,null,null,null,null,null,null,null,{"$f":"+P21","v":0},null,{"$f":"+R21","v":0},null,null,null,null,null,null,null,{"$f":"+Z21","v":0}]
[null,"着眼点",null,"・市民に対する傾聴と対話の姿勢",null,null,null,null,null,"・柔軟な姿勢と一貫した主張のバランス"]
[null,null,null,"・誠実さ"]
[null,"【知識・技能・経験の活用】",null,null,null,null,null,null,null,null,null,null,null,null,null,"（評価点）",null,"（コメント）",null,null,null,null,null,null,null,"（評価点）"]
[null,null,"担当業務に必要な知識、技能及び経験を業務に活用することができる。",null,null,null,null,null,null,null,null,null,null,null,null,{"$f":"+P25","v":0},null,{"$f":"+R25","v":0},null,null,null,null,null,null,null,{"$f":"+Z25","v":0}]
[null,"着眼点",null,"・積極性",null,null,null,null,null,"・正確性"]
[null,null,null,"・研究心",null,null,null,null,null,"・知識・技能の蓄積"]
[null,"【業務管理】",null,null,null,null,null,null,null,null,null,null,null,null,null,"（評価点）",null,"（コメント）",null,null,null,null,null,null,null,"（評価点）"]
[null,null,"適切に作業の割り振りを行い、効率的に業務を進めることができる。",null,null,null,null,null,null,null,null,null,null,null,null,{"$f":"+P29","v":0},null,{"$f":"+R29","v":0},null,null,null,null,null,null,null,{"$f":"+Z29","v":0}]
[null,"着眼点",null,"・業務量の把握",null,null,null,null,null,"・適切な作業割振り"]
[]
[null,"【組織貢献・チームワーク】",null,null,null,null,null,null,null,null,null,null,null,null,null,"（評価点）",null,"（コメント）",null,null,null,null,null,null,null,"（評価点）"]
[null,null,"情報の共有を図るため上司、同僚等に報告、連絡及び相談を行うことができるとともに、上司、同僚等と協力的な関係を構築し、経験を生かして関係職員を指導教育することができる。",null,null,null,null,null,null,null,null,null,null,null,null,{"$f":"+P33","v":0},null,{"$f":"+R33","v":0},null,null,null,null,null,null,null,{"$f":"+Z33","v":0}]
[null,"着眼点",null,"・情報共有",null,null,null,null,null,"・協調性"]
[null,null,null,"・関係職員を応援する姿勢",null,null,null,null,null,"・関係職員の指導教育"]
[]
["≪【能力】の評価点≫\n◆　「４（特に良好）」…求められる行動が確実にとられており、他の職員の模範となる職務遂行状況である。\n◆　「３（良好）」…求められる行動が確実にとられていた。\n◆　「２（標準）」…求められる行動が概ねとられていた。\n◆　「１（要努力）」…求められる行動がとられていることが少なく（全くなく）、改善に向け努力が必要である。",null,null,null,null,null,null,null,null,null,"≪総合評価区分と評価点との関係：基準≫\n◆　「良好」…原則、【業績】及び【能力】の評価項目の３分の２以上が「２（標準）」以上の場合に該当する。\n◆　「やや不良」…原則、【業績】及び【能力】の評価項目の３分の１超半数以下が「１（標準未満）」の場合に該当する。\n◆　「不良」…原則、【業績】及び【能力】の評価項目の半数超が「１（標準未満）」であるとともに、分限（降任・免職）処分を検討する必要があると判断する場合に該当する。",null,null,null,null,null,null,null,null,null,"【業績】及び\n【能力】の\n評価項目数の合計",null,"「4（特に良好）」\nの個数",null,null,null,{"$f":"+AA37","v":""}]
[null,null,null,null,null,null,null,null,null,null,null,null,null,null,null,null,null,null,null,null,null,null,"「3（良好）」\nの個数",null,null,null,{"$f":"+AA38","v":""}]
[null,null,null,null,null,null,null,null,null,null,null,null,null,null,null,null,null,null,null,null,null,null,"「２（標準）」\nの個数",null,null,null,{"$f":"+AA39","v":""}]
[null,null,null,null,null,null,null,null,null,null,null,null,null,null,null,null,null,null,null,null,6,null,"「１（要努力）」\nの個数",null,null,null,{"$f":"+AA40","v":""}]
[]
["ピカッとポイント",null,null,null,null,null,null,null,"２次評価者所見",null,null,null,null,null,null,null,null,null,null,null,null,null,null,null,"総合評価"]
[{"$f":"+A44","v":0},null,null,null,null,null,null,null,{"$f":"+O44","v":0},null,null,null,null,null,null,null,null,null,null,null,null,null,null,null,{"$f":"+Y43","v":""}]
[]
[{"$f":"IF(K46=\"\",\"\",\"評価事務補助者（\")","v":""},null,null,{"$f":"K46","v":0},null,null,null,{"$f":"IF(K46=\"\",\"\",\"）\")","v":""}]
["１次評価者",null,"（",{"$f":"+I45","v":0},null,null,null,"）",null,null,{"$f":"IF(U46=\"\",\"\",\"評価事務補助者(\")","v":""},{"$f":"U46","v":0},null,null,null,{"$f":"IF(U46=\"\",\"\",\"）\")","v":""},"２次評価者",null,"（",{"$f":"+S45","v":0},null,null,null,"）"]
[]
["給与反映区分","総合評価",null,null,"良好",null,null,null,null,"やや不良",null,null,null,null,"不良",null,null,null,null,null,"備考欄",{"$f":"V48","v":0}]
[null,"昇給号数",null,null,"４号",null,null,null,null,"２号",null,null,null,null,"昇給なし"]
[null,"勤勉手当支給割合",null,null,"吹田市期末手当及び\n勤勉手当の支給に関する\n規則で定める支給割合",null,null,null,null,"良好の１０％減として、\n同規則で定める支給割合",null,null,null,null,"良好の２０％減として、\n同規則で定める支給割合"]
[null,null,null,null,null,null,null,null,null,null,null,null,null,null,null,null,null,null,"※水道部は、吹田市水道部企業職員給与規程"]
[]
["職員番号","氏名","所属名","補職級","職種","評価項目",null,null,null,null,null,null,null,"総合評価","2次評価者"]
[null,null,null,null,null,"【業績】","【市民視点・法令遵守】","【コミュニケーション】","【知識・技能・経験の活用】","【知識・技能の向上】","【業務管理】","【業務遂行】","【組織貢献・チームワーク】"]
[{"$f":"+N4","v":0},{"$f":"+P4","v":0},{"$f":"+C4","v":0},{"$f":"+H4","v":"総括主任級"},{"$f":"+K4","v":0},{"$f":"+Z8","v":0},{"$f":"+Z17","v":0},{"$f":"+Z21","v":0},{"$f":"+Z25","v":0},null,{"$f":"+Z29","v":0},null,{"$f":"+Z33","v":0},{"$f":"+Y43","v":""},{"$f":"+S45","v":0}]

{"sheet":"技労（主任）","index":8,"n_rows":106,"n_cols":44,"rows_kept":106,"cut":false,"hidden":false,"merged":[[56,1,56,14],[8,2,8,3],[8,4,8,14],[37,22,37,25],[37,26,37,27],[59,2,59,3],[59,4,59,14],[43,4,43,13],[56,15,56,24],[45,20,45,22],[38,26,38,27],[53,1,54,1],[53,2,53,6],[53,7,53,9],[53,10,53,12],[53,13,53,14],[32,2,32,14],[32,15,34,16],[32,17,34,21],[32,22,34,24],[32,25,34,27],[88,26,88,27],[53,0,54,0],[54,10,54,12],[54,13,54,14],[56,25,56,27],[48,9,48,13],[48,14,48,18],[47,0,49,0],[47,1,47,3],[47,4,47,8],[47,9,47,13],[47,14,47,18],[48,1,48,3],[48,4,48,8],[49,4,49,8],[49,9,49,13],[49,14,49,18],[58,25,61,27],[60,2,60,3],[60,4,60,14],[58,17,61,24],[61,2,61,3],[61,4,61,14],[56,0,61,0],[118,0,118,8],[44,14,44,16],[44,18,44,21],[36,0,39,8],[36,10,39,18],[36,20,38,21],[39,20,39,21],[41,0,41,13],[41,14,41,23],[36,22,36,25],[41,24,41,27],[36,26,36,27],[38,22,38,25],[53,15,53,18],[47,21,49,27],[39,22,39,25],[47,20,49,20],[39,26,39,27],[96,0,96,1],[96,3,96,6],[96,11,96,14],[96,16,96,17],[96,19,96,22],[54,24,54,27],[33,1,34,2],[33,3,33,8],[33,9,33,14],[34,3,34,8],[34,9,34,14],[53,19,53,27],[51,9,52,18],[54,2,54,6],[54,7,54,9],[49,1,49,3],[54,15,54,18],[54,19,54,22],[43,14,43,23],[42,24,45,27],[28,2,28,14],[28,15,30,16],[28,17,30,21],[28,22,30,24],[28,25,30,27],[29,1,30,2],[29,3,29,8],[29,9,29,14],[30,3,30,8],[30,9,30,14],[7,25,10,27],[24,15,26,16],[24,17,26,21],[24,22,26,24],[24,25,26,27],[25,1,26,2],[25,3,25,8],[25,9,25,14],[26,3,26,8],[26,9,26,14],[24,2,24,14],[14,15,14,21],[18,9,18,14],[20,2,20,14],[14,25,14,27],[16,2,16,14],[16,15,18,16],[16,17,18,21],[16,22,18,24],[16,25,18,27],[17,1,18,2],[17,3,17,8],[17,9,17,14],[18,3,18,8],[20,25,22,27],[21,1,22,2],[21,3,21,8],[21,9,21,14],[22,3,22,8],[22,9,22,14],[20,22,22,24],[20,15,22,16],[20,17,22,21],[0,9,1,18],[2,10,2,12],[2,13,2,14],[2,15,2,18],[2,0,3,0],[2,1,3,1],[2,2,2,6],[2,7,2,9],[3,2,3,6],[3,10,3,12],[2,19,2,27],[5,22,5,24],[5,25,5,27],[3,7,3,9],[3,15,3,18],[5,15,5,21],[5,1,5,14],[3,13,3,14],[3,19,3,22],[3,24,3,27],[7,17,10,21],[7,22,10,24],[14,22,14,24],[43,0,45,3],[45,14,45,19],[14,0,34,0],[14,1,14,14],[7,1,10,1],[7,2,7,3],[9,2,9,3],[13,0,13,3],[13,4,13,7],[5,0,10,0],[10,2,10,3],[10,4,10,14],[9,4,9,14],[12,0,12,4],[44,4,44,6],[44,8,44,11],[45,4,45,9],[45,10,45,12],[12,5,12,9],[7,4,7,14],[7,15,10,16],[58,1,61,1],[58,2,58,3],[58,4,58,14],[58,15,61,16],[65,0,85,0],[65,1,65,14],[68,9,68,14],[69,3,69,8],[69,9,69,14],[71,2,71,14],[75,2,75,14],[79,2,79,14],[80,1,81,2],[80,3,80,8],[84,1,85,2],[84,3,84,8],[84,9,84,14],[85,3,85,8],[85,9,85,14],[83,2,83,14],[63,0,63,4],[63,5,63,9],[64,0,64,3],[64,4,64,7],[71,25,73,27],[72,1,73,2],[72,3,72,8],[72,9,72,14],[73,3,73,8],[73,9,73,14],[71,17,73,24],[65,25,65,27],[67,2,67,14],[67,15,69,16],[67,25,69,27],[68,1,69,2],[68,3,68,8],[67,17,69,24],[65,15,65,24],[71,15,73,16],[75,25,77,27],[76,1,77,2],[76,3,76,8],[76,9,76,14],[77,3,77,8],[77,9,77,14],[75,17,77,24],[87,22,87,25],[87,26,87,27],[75,15,77,16],[103,0,104,0],[103,1,104,1],[103,2,104,2],[103,3,104,3],[103,4,104,4],[103,5,103,12],[103,13,104,13],[103,14,104,14],[93,24,96,27],[98,21,100,27],[100,1,100,3],[100,4,100,8],[100,9,100,13],[100,14,100,18],[98,0,100,0],[98,1,98,3],[98,4,98,8],[98,9,98,13],[98,14,98,18],[98,20,100,20],[99,1,99,3],[99,4,99,8],[99,9,99,13],[99,14,99,18],[92,8,92,23],[92,24,92,27],[83,15,85,16],[83,25,85,27],[79,25,81,27],[93,0,94,7],[93,8,95,23],[92,0,92,7],[87,20,89,21],[89,22,89,25],[89,26,89,27],[90,20,90,21],[90,22,90,25],[90,26,90,27],[80,9,80,14],[81,3,81,8],[81,9,81,14],[79,17,81,24],[87,0,90,8],[87,10,90,18],[83,17,85,24],[79,15,81,16],[95,3,95,6],[88,22,88,25]]}
["令和",6,"年度",null,null,null,null,null,null,"勤務評価シート",null,null,null,null,null,null,null,null,null,null,null,null,null,null,null,null,null,"12"]
["技能労務職　主任"]
["基礎情報","被評価者","所属名",null,null,null,null,"補職級",null,null,"職種",null,null,"職員番号",null,"氏名",null,null,null,"評価期間",null,null,null,null,null,null,null,null,null,null,null,null,null,null,null,null,null,null,null,null,null,null,"主任級","土木職員"]
[null,null,null,null,null,null,null,"主任級",null,null,null,null,null,null,null,null,null,null,null,null,null,null,null,"～",null,null,null,null,null,null,null,null,null,null,null,null,null,null,null,null,null,null,null,"機器操作員"]
[null,null,null,null,null,null,null,null,null,null,null,null,null,null,null,null,null,null,null,null,null,null,null,null,null,null,null,null,null,null,null,null,null,null,null,null,null,null,null,null,null,null,null,"自動車運転手"]
["【業績】","評価基準・着眼点",null,null,null,null,null,null,null,null,null,null,null,null,null,"自己評価",null,null,null,null,null,null,"１次評価",null,null,"２次評価",null,null,null,null,null,null,null,null,null,null,null,null,null,null,null,null,null,"自動車運転作業員"]
[null,"【業績】",null,null,null,null,null,null,null,null,null,null,null,null,null,"（評価点）",null,"（コメント）",null,null,null,null,"（評価点）",null,null,"（評価点）",null,null,null,null,null,null,null,null,null,null,null,null,null,null,null,null,null,"汽かん士"]
[null,"評価点","４（特に良好）",null,"職階からみて、期待された水準をはるかに上回る業績をあげた",null,null,null,null,null,null,null,null,null,null,null,null,null,null,null,null,null,null,null,null,null,null,null,null,null,null,null,null,null,null,null,null,null,null,null,null,null,null,"清掃職員"]
[null,null,"３（良好）",null,"職階からみて、期待された以上の業績をあげた"]
[null,null,"２（標準）",null,"職階からみて、相応の業績である",null,null,null,null,null,null,null,null,null,null,null,null,null,null,null,null,null,null,null,null,null,null,null,null,null,null,null,null,null,null,null,null,null,null,null,null,null,null,"用務員"]
[null,null,"１（要努力）",null,"職階からみて、期待された水準に達しておらず、努力が必要である",null,null,null,null,null,null,null,null,null,null,null,null,null,null,null,null,null,null,null,null,null,null,null,null,null,null,null,null,null,null,null,null,null,null,null,null,null,null,"電話交換手"]
[null,null,null,null,null,null,null,null,null,null,null,null,null,null,null,null,null,null,null,null,null,null,null,null,null,null,null,null,null,null,null,null,null,null,null,null,null,null,null,null,null,null,null,"校務員"]
["≪【業績】の評価項目数の取扱い≫\n　・次長級以上は評価点を４倍\n　・課長級は評価点を３倍　　",null,null,null,null,"\n・課長代理級は評価点を３倍\n・主査級は評価点を２倍",null,null,null,null,null,null,null,null,null,null,null,null,null,null,null,null,null,null,null,null,null,null,null,null,null,null,null,null,null,null,null,null,null,null,null,null,null,"給食調理員"]
[null,null,null,null,"\n・課長代理級は評価素点を３倍\n・主査級は評価素点を２倍"]
["【能力】","評価項目及び行動・着眼点",null,null,null,null,null,null,null,null,null,null,null,null,null,"自己評価",null,null,null,null,null,null,"１次評価",null,null,"２次評価"]
[null,"【市民視点・法令遵守】",null,null,null,null,null,null,null,null,null,null,null,null,null,"（評価点）",null,"（コメント）",null,null,null,null,"（評価点）",null,null,"（評価点）"]
[null,null,"丁寧な応対を心掛けるなど、全体の奉仕者として、常に市民の立場や市民協働の視点に立つことができるとともに、法令等及び服務規律を順守して、公平かつ公正に業務を遂行することができる。"]
[null,"着眼点",null,"・接遇",null,null,null,null,null,"・法令順守"]
[null,null,null,"・公平・公正な姿勢",null,null,null,null,null,"・責任感"]
[null,"【コミュニケーション】",null,null,null,null,null,null,null,null,null,null,null,null,null,"（評価点）",null,"（コメント）",null,null,null,null,"（評価点）",null,null,"（評価点）"]
[null,null,"様々な相手と円滑かつ適切なコミュニケーションを取ることができる。"]
[null,"着眼点",null,"・市民に対する傾聴と対話の姿勢",null,null,null,null,null,"・柔軟な姿勢と一貫した主張のバランス"]
[null,null,null,"・誠実さ"]
[null,"【知識・技能・経験の活用】",null,null,null,null,null,null,null,null,null,null,null,null,null,"（評価点）",null,"（コメント）",null,null,null,null,"（評価点）",null,null,"（評価点）"]
[null,null,"担当業務に必要な知識、技能及び経験を業務に活用することができる。"]
[null,"着眼点",null,"・研究心",null,null,null,null,null,"・情報収集"]
[null,null,null,"・知識、技能の蓄積"]
[null,"【業務遂行】",null,null,null,null,null,null,null,null,null,null,null,null,null,"（評価点）",null,"（コメント）",null,null,null,null,"（評価点）",null,null,"（評価点）"]
[null,null,"意欲的かつ正確に業務に取り組むことができる。"]
[null,"着眼点",null,"・積極性",null,null,null,null,null,"・正確性"]
[]
[null,"【組織貢献・チームワーク】",null,null,null,null,null,null,null,null,null,null,null,null,null,"（評価点）",null,"（コメント）",null,null,null,null,"（評価点）",null,null,"（評価点）"]
[null,null,"情報の共有を図るため上司、同僚等に報告、連絡及び相談を行うことができるとともに、上司、同僚等と協力的な関係を構築し、経験を生かして関係職員を指導教育することができる。"]
[null,"着眼点",null,"・情報共有",null,null,null,null,null,"・協調性"]
[null,null,null,"・関係職員を応援する姿勢",null,null,null,null,null,"・関係職員の指導教育"]
[]
["≪【能力】の評価点≫\n◆　「４（特に良好）」…求められる行動が確実にとられており、他の職員の模範となる職務遂行状況である。\n◆　「３（良好）」…求められる行動が確実にとられていた。\n◆　「２（標準）」…求められる行動が概ねとられていた。\n◆　「１（要努力）」…求められる行動がとられていることが少なく（全くなく）、改善に向け努力が必要である。",null,null,null,null,null,null,null,null,null,"≪総合評価区分と評価点との関係：基準≫\n◆　「良好」…原則、【業績】及び【能力】の評価項目の３分の２以上が「２（標準）」以上の場合に該当する。\n◆　「やや不良」…原則、【業績】及び【能力】の評価項目の３分の１超半数以下が「１（標準未満）」の場合に該当する。\n◆　「不良」…原則、【業績】及び【能力】の評価項目の半数超が「１（標準未満）」であるとともに、分限（降任・免職）処分を検討する必要があると判断する場合に該当する。",null,null,null,null,null,null,null,null,null,"【業績】及び\n【能力】の\n評価項目数の合計",null,"「4（特に良好）」\nの個数",null,null,null,{"$f":"IF(Z8=\"\",\"\",IF(Z17=\"\",\"\",IF(Z21=\"\",\"\",IF(Z25=\"\",\"\",IF(Z29=\"\",\"\",IF(Z33=\"\",\"\",COUNTIF(Z17:AB35,4)+IF(Z8=4,1,0)))))))","v":""}]
[null,null,null,null,null,null,null,null,null,null,null,null,null,null,null,null,null,null,null,null,null,null,"「3（良好）」\nの個数",null,null,null,{"$f":"IF(Z8=\"\",\"\",IF(Z17=\"\",\"\",IF(Z21=\"\",\"\",IF(Z25=\"\",\"\",IF(Z29=\"\",\"\",IF(Z33=\"\",\"\",COUNTIF(Z17:AB35,3)+IF(Z8=3,1,0)))))))","v":""}]
[null,null,null,null,null,null,null,null,null,null,null,null,null,null,null,null,null,null,null,null,null,null,"「２（標準）」\nの個数",null,null,null,{"$f":"IF(Z8=\"\",\"\",IF(Z17=\"\",\"\",IF(Z21=\"\",\"\",IF(Z25=\"\",\"\",IF(Z29=\"\",\"\",IF(Z33=\"\",\"\",COUNTIF(Z17:AB35,2)+IF(Z8=2,1,0)))))))","v":""}]
[null,null,null,null,null,null,null,null,null,null,null,null,null,null,null,null,null,null,null,null,6,null,"「１（要努力）」\nの個数",null,null,null,{"$f":"IF(Z8=\"\",\"\",IF(Z17=\"\",\"\",IF(Z21=\"\",\"\",IF(Z25=\"\",\"\",IF(Z29=\"\",\"\",IF(Z33=\"\",\"\",COUNTIF(Z17:AB35,1)+IF(Z8=1,1,0)))))))","v":""}]
[]
["１次評価者所見等",null,null,null,null,null,null,null,null,null,null,null,null,null,"２次評価者所見",null,null,null,null,null,null,null,null,null,"総合評価"]
["ピカッとポイント",null,null,null,"所見（「２」以外の評価点の項目に重点を置き記入すること。）",null,null,null,null,null,null,null,null,null,"所見（「２」以外の評価点の項目に重点を置き記入すること。）",null,null,null,null,null,null,null,null,null,{"$f":"IF(AA37=\"\",\"\",IF(AA38=\"\",\"\",IF(AA39=\"\",\"\",IF(AA40=\"\",\"\",IF(AA37+AA38+AA39>=4,\"良好\",IF(AA37+AA38+AA39=3,\"やや不良\",IF(AA37+AA38+AA39<=2,\"不良\")))))))","v":""}]
[]
[null,null,null,null,"1次評価者",null,null,"（",null,null,null,null,"）",null,"2次評価者",null,null,"（",null,null,null,null,"）","㊞　　　　"]
[null,null,null,null,"(設定している場合）評価事務補助者（",null,null,null,null,null,null,null,null,"）","(設定している場合）評価事務補助者（",null,null,null,null,null,null,null,null,"）"]
[]
["給与反映区分","総合評価",null,null,"良好",null,null,null,null,"やや不良",null,null,null,null,"不良",null,null,null,null,null,"備考欄"]
[null,"昇給号数",null,null,"４号",null,null,null,null,"２号",null,null,null,null,"昇給なし"]
[null,"勤勉手当支給割合",null,null,"吹田市期末手当及び\n勤勉手当の支給に関する\n規則で定める支給割合",null,null,null,null,"良好の１０％減として、\n同規則で定める支給割合",null,null,null,null,"良好の２０％減として、\n同規則で定める支給割合"]
[null,null,null,null,null,null,null,null,null,null,null,null,null,null,null,null,null,null,"※水道部は、吹田市水道部企業職員給与規程"]
[{"$f":"A1","v":"令和"},{"$f":"B1","v":6},{"$f":"C1","v":"年度"},null,null,null,null,null,null,"勤務評価シート（開示用）",null,null,null,null,null,null,null,null,null,null,null,null,null,null,null,null,null,"12"]
["技能労務職　主任"]
["基礎情報","被評価者","所属名",null,null,null,null,"補職級",null,null,"職種",null,null,"職員番号",null,"氏名",null,null,null,"評価期間"]
[null,null,{"$f":"+C4","v":0},null,null,null,null,{"$f":"+H4","v":"主任級"},null,null,{"$f":"+K4","v":0},null,null,{"$f":"+N4","v":0},null,{"$f":"+P4","v":0},null,null,null,{"$f":"T4","v":"00:00:00"},null,null,null,"～",{"$f":"Y4","v":"00:00:00"}]
[]
["【業績】","評価基準・着眼点",null,null,null,null,null,null,null,null,null,null,null,null,null,"自己評価",null,null,null,null,null,null,null,null,null,"最終評価"]
[null,"【業績】",null,null,null,null,null,null,null,null,null,null,null,null,null,"（評価点）",null,"（コメント）",null,null,null,null,null,null,null,"（評価点）"]
[null,"評価点","４（特に良好）",null,"職階からみて、期待された水準をはるかに上回る業績をあげた",null,null,null,null,null,null,null,null,null,null,{"$f":"+P8","v":0},null,{"$f":"+R8","v":0},null,null,null,null,null,null,null,{"$f":"+Z8","v":0}]
[null,null,"３（良好）",null,"職階からみて、期待された以上の業績をあげた"]
[null,null,"２（標準）",null,"職階からみて、相応の業績である"]
[null,null,"１（要努力）",null,"職階からみて、期待された水準に達しておらず、努力が必要である"]
[]
["≪【業績】の評価項目数の取扱い≫\n　・次長級以上は評価点を４倍\n　・課長級は評価点を３倍　　",null,null,null,null,"\n・課長代理級は評価点を３倍\n・主査級は評価点を２倍"]
[null,null,null,null,"\n・課長代理級は評価素点を３倍\n・主査級は評価素点を２倍"]
["【能力】","評価項目及び行動・着眼点",null,null,null,null,null,null,null,null,null,null,null,null,null,"自己評価",null,null,null,null,null,null,null,null,null,"最終評価"]
[null,"【市民視点・法令遵守】",null,null,null,null,null,null,null,null,null,null,null,null,null,"（評価点）",null,"（コメント）",null,null,null,null,null,null,null,"（評価点）"]
[null,null,"丁寧な応対を心掛けるなど、全体の奉仕者として、常に市民の立場や市民協働の視点に立つことができるとともに、法令等及び服務規律を順守して、公平かつ公正に業務を遂行することができる。",null,null,null,null,null,null,null,null,null,null,null,null,{"$f":"+P17","v":0},null,{"$f":"+R17","v":0},null,null,null,null,null,null,null,{"$f":"+Z17","v":0}]
[null,"着眼点",null,"・接遇",null,null,null,null,null,"・法令順守"]
[null,null,null,"・公平・公正な姿勢",null,null,null,null,null,"・責任感"]
[null,"【コミュニケーション】",null,null,null,null,null,null,null,null,null,null,null,null,null,"（評価点）",null,"（コメント）",null,null,null,null,null,null,null,"（評価点）"]
[null,null,"様々な相手と円滑かつ適切なコミュニケーションを取ることができる。",null,null,null,null,null,null,null,null,null,null,null,null,{"$f":"+P21","v":0},null,{"$f":"+R21","v":0},null,null,null,null,null,null,null,{"$f":"+Z21","v":0}]
[null,"着眼点",null,"・市民に対する傾聴と対話の姿勢",null,null,null,null,null,"・柔軟な姿勢と一貫した主張のバランス"]
[null,null,null,"・誠実さ"]
[null,"【知識・技能・経験の活用】",null,null,null,null,null,null,null,null,null,null,null,null,null,"（評価点）",null,"（コメント）",null,null,null,null,null,null,null,"（評価点）"]
[null,null,"担当業務に必要な知識、技能及び経験を業務に活用することができる。",null,null,null,null,null,null,null,null,null,null,null,null,{"$f":"+P25","v":0},null,{"$f":"+R25","v":0},null,null,null,null,null,null,null,{"$f":"+Z25","v":0}]
[null,"着眼点",null,"・研究心",null,null,null,null,null,"・情報収集"]
[null,null,null,"・知識、技能の蓄積"]
[null,"【業務遂行】",null,null,null,null,null,null,null,null,null,null,null,null,null,"（評価点）",null,"（コメント）",null,null,null,null,null,null,null,"（評価点）"]
[null,null,"意欲的かつ正確に業務に取り組むことができる。",null,null,null,null,null,null,null,null,null,null,null,null,{"$f":"+P29","v":0},null,{"$f":"+R29","v":0},null,null,null,null,null,null,null,{"$f":"+Z29","v":0}]
[null,"着眼点",null,"・積極性",null,null,null,null,null,"・正確性"]
[]
[null,"【組織貢献・チームワーク】",null,null,null,null,null,null,null,null,null,null,null,null,null,"（評価点）",null,"（コメント）",null,null,null,null,null,null,null,"（評価点）"]
[null,null,"情報の共有を図るため上司、同僚等に報告、連絡及び相談を行うことができるとともに、上司、同僚等と協力的な関係を構築し、経験を生かして関係職員を指導教育することができる。",null,null,null,null,null,null,null,null,null,null,null,null,{"$f":"+P33","v":0},null,{"$f":"+R33","v":0},null,null,null,null,null,null,null,{"$f":"+Z33","v":0}]
[null,"着眼点",null,"・情報共有",null,null,null,null,null,"・協調性"]
[null,null,null,"・関係職員を応援する姿勢",null,null,null,null,null,"・関係職員の指導教育"]
[]
["≪【能力】の評価点≫\n◆　「４（特に良好）」…求められる行動が確実にとられており、他の職員の模範となる職務遂行状況である。\n◆　「３（良好）」…求められる行動が確実にとられていた。\n◆　「２（標準）」…求められる行動が概ねとられていた。\n◆　「１（要努力）」…求められる行動がとられていることが少なく（全くなく）、改善に向け努力が必要である。",null,null,null,null,null,null,null,null,null,"≪総合評価区分と評価点との関係：基準≫\n◆　「良好」…原則、【業績】及び【能力】の評価項目の３分の２以上が「２（標準）」以上の場合に該当する。\n◆　「やや不良」…原則、【業績】及び【能力】の評価項目の３分の１超半数以下が「１（標準未満）」の場合に該当する。\n◆　「不良」…原則、【業績】及び【能力】の評価項目の半数超が「１（標準未満）」であるとともに、分限（降任・免職）処分を検討する必要があると判断する場合に該当する。",null,null,null,null,null,null,null,null,null,"【業績】及び\n【能力】の\n評価項目数の合計",null,"「4（特に良好）」\nの個数",null,null,null,{"$f":"+AA37","v":""}]
[null,null,null,null,null,null,null,null,null,null,null,null,null,null,null,null,null,null,null,null,null,null,"「3（良好）」\nの個数",null,null,null,{"$f":"+AA38","v":""}]
[null,null,null,null,null,null,null,null,null,null,null,null,null,null,null,null,null,null,null,null,null,null,"「２（標準）」\nの個数",null,null,null,""]
[null,null,null,null,null,null,null,null,null,null,null,null,null,null,null,null,null,null,null,null,6,null,"「１（要努力）」\nの個数",null,null,null,{"$f":"+AA40","v":""}]
[]
["ピカッとポイント",null,null,null,null,null,null,null,"２次評価者所見",null,null,null,null,null,null,null,null,null,null,null,null,null,null,null,"総合評価"]
[{"$f":"+A44","v":0},null,null,null,null,null,null,null,{"$f":"+O44","v":0},null,null,null,null,null,null,null,null,null,null,null,null,null,null,null,{"$f":"+Y43","v":""}]
[]
[{"$f":"IF(K46=\"\",\"\",\"評価事務補助者（\")","v":""},null,null,{"$f":"K46","v":0},null,null,null,{"$f":"IF(K46=\"\",\"\",\"）\")","v":""}]
["１次評価者",null,"（",{"$f":"+I45","v":0},null,null,null,"）",null,null,{"$f":"IF(U46=\"\",\"\",\"評価事務補助者(\")","v":""},{"$f":"U46","v":0},null,null,null,{"$f":"IF(U46=\"\",\"\",\"）\")","v":""},"２次評価者",null,"（",{"$f":"+S45","v":0},null,null,null,"）"]
[]
["給与反映区分","総合評価",null,null,"良好",null,null,null,null,"やや不良",null,null,null,null,"不良",null,null,null,null,null,"備考欄",{"$f":"V48","v":0}]
[null,"昇給号数",null,null,"４号",null,null,null,null,"２号",null,null,null,null,"昇給なし"]
[null,"勤勉手当支給割合",null,null,"吹田市期末手当及び\n勤勉手当の支給に関する\n規則で定める支給割合",null,null,null,null,"良好の１０％減として、\n同規則で定める支給割合",null,null,null,null,"良好の２０％減として、\n同規則で定める支給割合"]
[null,null,null,null,null,null,null,null,null,null,null,null,null,null,null,null,null,null,"※水道部は、吹田市水道部企業職員給与規程"]
[]
["職員番号","氏名","所属名","補職級","職種","評価項目",null,null,null,null,null,null,null,"総合評価","2次評価者"]
[null,null,null,null,null,"【業績】","【市民視点・法令遵守】","【コミュニケーション】","【知識・技能・経験の活用】","【知識・技能の向上】","【業務管理】","【業務遂行】","【組織貢献・チームワーク】"]
[{"$f":"+N4","v":0},{"$f":"+P4","v":0},{"$f":"+C4","v":0},{"$f":"+H4","v":"主任級"},{"$f":"+K4","v":0},{"$f":"+Z8","v":0},{"$f":"+Z17","v":0},{"$f":"+Z21","v":0},{"$f":"+Z25","v":0},null,null,{"$f":"+Z29","v":0},{"$f":"+Z33","v":0},{"$f":"+Y43","v":""},{"$f":"+S45","v":0}]

{"sheet":"技労（係員）","index":9,"n_rows":107,"n_cols":45,"rows_kept":107,"cut":false,"hidden":false,"merged":[[37,26,37,27],[59,2,59,3],[59,4,59,14],[88,22,88,25],[88,26,88,27],[36,26,36,27],[96,0,96,1],[96,3,96,6],[96,11,96,14],[96,16,96,17],[96,19,96,22],[95,3,95,6],[53,15,53,18],[53,19,53,27],[54,2,54,6],[54,7,54,9],[38,26,38,27],[39,26,39,27],[53,10,53,12],[53,13,53,14],[49,14,49,18],[47,0,49,0],[47,1,47,3],[38,22,38,25],[47,20,49,20],[48,1,48,3],[48,4,48,8],[48,9,48,13],[48,14,48,18],[49,1,49,3],[49,4,49,8],[49,9,49,13],[39,22,39,25],[36,0,39,8],[36,10,39,18],[36,20,38,21],[39,20,39,21],[36,22,36,25],[37,22,37,25],[47,4,47,8],[47,9,47,13],[47,14,47,18],[44,4,44,6],[44,8,44,11],[45,4,45,9],[123,0,123,8],[44,14,44,16],[44,18,44,21],[41,24,41,27],[42,24,45,27],[51,9,52,18],[41,0,41,13],[41,14,41,23],[47,21,49,27],[45,14,45,19],[56,15,56,24],[65,15,65,24],[83,17,85,24],[79,17,81,24],[75,17,77,24],[71,17,73,24],[43,0,45,3],[43,4,43,13],[43,14,43,23],[45,20,45,22],[53,0,54,0],[53,1,54,1],[53,2,53,6],[53,7,53,9],[32,25,34,27],[24,25,26,27],[33,9,33,14],[28,25,30,27],[29,9,29,14],[14,15,14,21],[14,22,14,24],[18,9,18,14],[28,17,30,21],[28,22,30,24],[24,17,26,21],[24,22,26,24],[30,9,30,14],[14,25,14,27],[16,2,16,14],[16,15,18,16],[16,17,18,21],[16,22,18,24],[16,25,18,27],[17,1,18,2],[20,25,22,27],[21,1,22,2],[32,15,34,16],[32,17,34,21],[20,15,22,16],[20,17,22,21],[20,22,22,24],[14,0,34,0],[14,1,14,14],[34,3,34,8],[34,9,34,14],[32,2,32,14],[28,2,28,14],[17,3,17,8],[17,9,17,14],[18,3,18,8],[26,9,26,14],[24,2,24,14],[33,1,34,2],[33,3,33,8],[29,1,30,2],[29,3,29,8],[30,3,30,8],[28,15,30,16],[24,15,26,16],[32,22,34,24],[25,1,26,2],[25,3,25,8],[25,9,25,14],[26,3,26,8],[12,0,12,4],[12,5,12,9],[7,1,10,1],[7,4,7,14],[5,0,10,0],[7,2,7,3],[10,2,10,3],[10,4,10,14],[13,0,13,3],[13,4,13,7],[8,2,8,3],[8,4,8,14],[21,3,21,8],[21,9,21,14],[22,3,22,8],[22,9,22,14],[20,2,20,14],[2,0,3,0],[2,1,3,1],[2,2,2,6],[2,7,2,9],[7,22,10,24],[3,7,3,9],[3,10,3,12],[3,13,3,14],[3,15,3,18],[3,24,3,27],[3,19,3,22],[0,9,1,18],[2,10,2,12],[2,13,2,14],[2,15,2,18],[7,15,10,16],[7,17,10,21],[9,4,9,14],[2,19,2,27],[3,2,3,6],[5,15,5,21],[5,22,5,24],[5,25,5,27],[7,25,10,27],[5,1,5,14],[9,2,9,3],[58,15,61,16],[58,25,61,27],[60,2,60,3],[60,4,60,14],[61,2,61,3],[61,4,61,14],[54,10,54,12],[54,13,54,14],[54,15,54,18],[54,19,54,22],[54,24,54,27],[56,25,56,27],[58,17,61,24],[63,0,63,4],[63,5,63,9],[64,0,64,3],[64,4,64,7],[56,0,61,0],[56,1,56,14],[58,1,61,1],[58,2,58,3],[58,4,58,14],[65,25,65,27],[67,2,67,14],[67,15,69,16],[67,25,69,27],[68,1,69,2],[68,3,68,8],[65,1,65,14],[68,9,68,14],[69,3,69,8],[69,9,69,14],[67,17,69,24],[75,25,77,27],[76,1,77,2],[76,3,76,8],[76,9,76,14],[77,3,77,8],[77,9,77,14],[75,2,75,14],[75,15,77,16],[71,25,73,27],[72,1,73,2],[72,3,72,8],[72,9,72,14],[73,3,73,8],[73,9,73,14],[71,2,71,14],[71,15,73,16],[85,9,85,14],[83,2,83,14],[87,10,90,18],[79,25,81,27],[80,1,81,2],[80,3,80,8],[80,9,80,14],[81,3,81,8],[81,9,81,14],[79,2,79,14],[79,15,81,16],[87,20,89,21],[87,22,87,25],[87,26,87,27],[89,22,89,25],[89,26,89,27],[90,20,90,21],[90,22,90,25],[90,26,90,27],[83,15,85,16],[104,0,105,0],[104,1,105,1],[104,2,105,2],[104,3,105,3],[104,4,105,4],[104,5,104,12],[104,13,105,13],[104,14,105,14],[92,24,92,27],[93,24,96,27],[92,0,92,7],[99,9,99,13],[99,14,99,18],[45,10,45,12],[87,0,90,8],[98,0,100,0],[98,1,98,3],[98,4,98,8],[98,9,98,13],[99,1,99,3],[65,0,85,0],[92,8,92,23],[98,21,100,27],[100,1,100,3],[100,4,100,8],[100,9,100,13],[100,14,100,18],[98,14,98,18],[98,20,100,20],[99,4,99,8],[93,0,94,7],[93,8,95,23],[83,25,85,27],[84,1,85,2],[84,3,84,8],[84,9,84,14],[85,3,85,8]]}
["令和",6,"年度",null,null,null,null,null,null,"勤務評価シート",null,null,null,null,null,null,null,null,null,null,null,null,null,null,null,null,null,"13"]
["技能労務職　係員"]
["基礎情報","被評価者","所属名",null,null,null,null,"補職級",null,null,"職種",null,null,"職員番号",null,"氏名",null,null,null,"評価期間",null,null,null,null,null,null,null,null,null,null,null,null,null,null,null,null,null,null,null,null,null,null,null,"係員級","土木職員"]
[null,null,null,null,null,null,null,"係員級",null,null,null,null,null,null,null,null,null,null,null,null,null,null,null,"～",null,null,null,null,null,null,null,null,null,null,null,null,null,null,null,null,null,null,null,null,"機器操作員"]
[null,null,null,null,null,null,null,null,null,null,null,null,null,null,null,null,null,null,null,null,null,null,null,null,null,null,null,null,null,null,null,null,null,null,null,null,null,null,null,null,null,null,null,null,"自動車運転手"]
["【業績】","評価基準・着眼点",null,null,null,null,null,null,null,null,null,null,null,null,null,"自己評価",null,null,null,null,null,null,"１次評価",null,null,"２次評価",null,null,null,null,null,null,null,null,null,null,null,null,null,null,null,null,null,null,"自動車運転作業員"]
[null,"【業績】",null,null,null,null,null,null,null,null,null,null,null,null,null,"（評価点）",null,"（コメント）",null,null,null,null,"（評価点）",null,null,"（評価点）",null,null,null,null,null,null,null,null,null,null,null,null,null,null,null,null,null,null,"汽かん士"]
[null,"評価点","４（特に良好）",null,"職階からみて、期待された水準をはるかに上回る業績をあげた",null,null,null,null,null,null,null,null,null,null,null,null,null,null,null,null,null,null,null,null,null,null,null,null,null,null,null,null,null,null,null,null,null,null,null,null,null,null,null,"清掃職員"]
[null,null,"３（良好）",null,"職階からみて、期待された以上の業績をあげた"]
[null,null,"２（標準）",null,"職階からみて、相応の業績である",null,null,null,null,null,null,null,null,null,null,null,null,null,null,null,null,null,null,null,null,null,null,null,null,null,null,null,null,null,null,null,null,null,null,null,null,null,null,null,"用務員"]
[null,null,"１（要努力）",null,"職階からみて、期待された水準に達しておらず、努力が必要である",null,null,null,null,null,null,null,null,null,null,null,null,null,null,null,null,null,null,null,null,null,null,null,null,null,null,null,null,null,null,null,null,null,null,null,null,null,null,null,"電話交換手"]
[null,null,null,null,null,null,null,null,null,null,null,null,null,null,null,null,null,null,null,null,null,null,null,null,null,null,null,null,null,null,null,null,null,null,null,null,null,null,null,null,null,null,null,null,"校務員"]
["≪【業績】の評価項目数の取扱い≫\n　・次長級以上は評価点を４倍\n　・課長級は評価点を３倍　　",null,null,null,null,"\n・課長代理級は評価点を３倍\n・主査級は評価点を２倍",null,null,null,null,null,null,null,null,null,null,null,null,null,null,null,null,null,null,null,null,null,null,null,null,null,null,null,null,null,null,null,null,null,null,null,null,null,null,"給食調理員"]
[null,null,null,null,"\n・課長代理級は評価素点を３倍\n・主査級は評価素点を２倍"]
["【能力】","評価項目及び行動・着眼点",null,null,null,null,null,null,null,null,null,null,null,null,null,"自己評価",null,null,null,null,null,null,"１次評価",null,null,"２次評価"]
[null,"【市民視点・法令遵守】",null,null,null,null,null,null,null,null,null,null,null,null,null,"（評価点）",null,"（コメント）",null,null,null,null,"（評価点）",null,null,"（評価点）"]
[null,null,"丁寧な応対を心掛けるなど、全体の奉仕者として、常に市民の立場や市民協働の視点に立つことができるとともに、法令等及び服務規律を順守して、公平かつ公正に業務を遂行することができる。"]
[null,"着眼点",null,"・接遇",null,null,null,null,null,"・法令順守"]
[null,null,null,"・公平・公正な姿勢",null,null,null,null,null,"・責任感"]
[null,"【コミュニケーション】",null,null,null,null,null,null,null,null,null,null,null,null,null,"（評価点）",null,"（コメント）",null,null,null,null,"（評価点）",null,null,"（評価点）"]
[null,null,"様々な相手と円滑かつ適切なコミュニケーションを取ることができる。"]
[null,"着眼点",null,"・市民に対する傾聴と対話の姿勢",null,null,null,null,null,"・柔軟な姿勢と一貫した主張のバランス"]
[null,null,null,"・誠実さ"]
[null,"【知識・技能の向上】",null,null,null,null,null,null,null,null,null,null,null,null,null,"（評価点）",null,"（コメント）",null,null,null,null,"（評価点）",null,null,"（評価点）"]
[null,null,"担当業務に必要な知識及び技能を習得することができる。"]
[null,"着眼点",null,"・研究心",null,null,null,null,null,"・情報収集"]
[null,null,null,"・知識・技能の蓄積"]
[null,"【業務遂行】",null,null,null,null,null,null,null,null,null,null,null,null,null,"（評価点）",null,"（コメント）",null,null,null,null,"（評価点）",null,null,"（評価点）"]
[null,null,"意欲的かつ正確に業務に取り組むことができる。"]
[null,"着眼点",null,"・積極性",null,null,null,null,null,"・正確性"]
[]
[null,"【組織貢献・チームワーク】",null,null,null,null,null,null,null,null,null,null,null,null,null,"（評価点）",null,"（コメント）",null,null,null,null,"（評価点）",null,null,"（評価点）"]
[null,null,"情報の共有を図るため上司、同僚等に報告、連絡及び相談を行うことができるとともに、上司、同僚等と協力的な関係を構築することができる。"]
[null,"着眼点",null,"・情報共有",null,null,null,null,null,"・協調性"]
[null,null,null,"・関係職員を応援する姿勢"]
[]
["≪【能力】の評価点≫\n◆　「４（特に良好）」…求められる行動が確実にとられており、他の職員の模範となる職務遂行状況である。\n◆　「３（良好）」…求められる行動が確実にとられていた。\n◆　「２（標準）」…求められる行動が概ねとられていた。\n◆　「１（要努力）」…求められる行動がとられていることが少なく（全くなく）、改善に向け努力が必要である。",null,null,null,null,null,null,null,null,null,"≪総合評価区分と評価点との関係：基準≫\n◆　「良好」…原則、【業績】及び【能力】の評価項目の３分の２以上が「２（標準）」以上の場合に該当する。\n◆　「やや不良」…原則、【業績】及び【能力】の評価項目の３分の１超半数以下が「１（標準未満）」の場合に該当する。\n◆　「不良」…原則、【業績】及び【能力】の評価項目の半数超が「１（標準未満）」であるとともに、分限（降任・免職）処分を検討する必要があると判断する場合に該当する。",null,null,null,null,null,null,null,null,null,"【業績】及び\n【能力】の\n評価項目数の合計",null,"「4（特に良好）」\nの個数",null,null,null,{"$f":"IF(Z8=\"\",\"\",IF(Z17=\"\",\"\",IF(Z21=\"\",\"\",IF(Z25=\"\",\"\",IF(Z29=\"\",\"\",IF(Z33=\"\",\"\",COUNTIF(Z17:AB35,4)+IF(Z8=4,1,0)))))))","v":""}]
[null,null,null,null,null,null,null,null,null,null,null,null,null,null,null,null,null,null,null,null,null,null,"「3（良好）」\nの個数",null,null,null,{"$f":"IF(Z8=\"\",\"\",IF(Z17=\"\",\"\",IF(Z21=\"\",\"\",IF(Z25=\"\",\"\",IF(Z29=\"\",\"\",IF(Z33=\"\",\"\",COUNTIF(Z17:AB35,3)+IF(Z8=3,1,0)))))))","v":""}]
[null,null,null,null,null,null,null,null,null,null,null,null,null,null,null,null,null,null,null,null,null,null,"「２（標準）」\nの個数",null,null,null,{"$f":"IF(Z8=\"\",\"\",IF(Z17=\"\",\"\",IF(Z21=\"\",\"\",IF(Z25=\"\",\"\",IF(Z29=\"\",\"\",IF(Z33=\"\",\"\",COUNTIF(Z17:AB35,2)+IF(Z8=2,1,0)))))))","v":""}]
[null,null,null,null,null,null,null,null,null,null,null,null,null,null,null,null,null,null,null,null,6,null,"「１（要努力）」\nの個数",null,null,null,{"$f":"IF(Z8=\"\",\"\",IF(Z17=\"\",\"\",IF(Z21=\"\",\"\",IF(Z25=\"\",\"\",IF(Z29=\"\",\"\",IF(Z33=\"\",\"\",COUNTIF(Z17:AB35,1)+IF(Z8=1,1,0)))))))","v":""}]
[]
["１次評価者所見等",null,null,null,null,null,null,null,null,null,null,null,null,null,"２次評価者所見",null,null,null,null,null,null,null,null,null,"総合評価"]
["ピカッとポイント",null,null,null,"所見（「２」以外の評価点の項目に重点を置き記入すること。）",null,null,null,null,null,null,null,null,null,"所見（「２」以外の評価点の項目に重点を置き記入すること。）",null,null,null,null,null,null,null,null,null,{"$f":"IF(AA37=\"\",\"\",IF(AA38=\"\",\"\",IF(AA39=\"\",\"\",IF(AA40=\"\",\"\",IF(AA37+AA38+AA39>=4,\"良好\",IF(AA37+AA38+AA39=3,\"やや不良\",IF(AA37+AA38+AA39<=2,\"不良\")))))))","v":""}]
[]
[null,null,null,null,"1次評価者",null,null,"（",null,null,null,null,"）",null,"2次評価者",null,null,"（",null,null,null,null,"）","㊞　　　　"]
[null,null,null,null,"(設定している場合）評価事務補助者（",null,null,null,null,null,null,null,null,"）","(設定している場合）評価事務補助者（",null,null,null,null,null,null,null,null,"）"]
[]
["給与反映区分","総合評価",null,null,"良好",null,null,null,null,"やや不良",null,null,null,null,"不良",null,null,null,null,null,"備考欄"]
[null,"昇給号数",null,null,"４号",null,null,null,null,"２号",null,null,null,null,"昇給なし"]
[null,"勤勉手当支給割合",null,null,"吹田市期末手当及び\n勤勉手当の支給に関する\n規則で定める支給割合",null,null,null,null,"良好の１０％減として、\n同規則で定める支給割合",null,null,null,null,"良好の２０％減として、\n同規則で定める支給割合"]
[null,null,null,null,null,null,null,null,null,null,null,null,null,null,null,null,null,null,"※水道部は、吹田市水道部企業職員給与規程"]
[{"$f":"A1","v":"令和"},{"$f":"B1","v":6},{"$f":"C1","v":"年度"},null,null,null,null,null,null,"勤務評価シート（開示用）",null,null,null,null,null,null,null,null,null,null,null,null,null,null,null,null,null,"13"]
["技能労務職　係員"]
["基礎情報","被評価者","所属名",null,null,null,null,"補職級",null,null,"職種",null,null,"職員番号",null,"氏名",null,null,null,"評価期間"]
[null,null,{"$f":"+C4","v":0},null,null,null,null,{"$f":"+H4","v":"係員級"},null,null,{"$f":"+K4","v":0},null,null,{"$f":"+N4","v":0},null,{"$f":"+P4","v":0},null,null,null,{"$f":"T4","v":"00:00:00"},null,null,null,"～",{"$f":"Y4","v":"00:00:00"}]
[]
["【業績】","評価基準・着眼点",null,null,null,null,null,null,null,null,null,null,null,null,null,"自己評価",null,null,null,null,null,null,null,null,null,"最終評価"]
[null,"【業績】",null,null,null,null,null,null,null,null,null,null,null,null,null,"（評価点）",null,"（コメント）",null,null,null,null,null,null,null,"（評価点）"]
[null,"評価点","４（特に良好）",null,"職階からみて、期待された水準をはるかに上回る業績をあげた",null,null,null,null,null,null,null,null,null,null,{"$f":"+P8","v":0},null,{"$f":"+R8","v":0},null,null,null,null,null,null,null,{"$f":"+Z8","v":0}]
[null,null,"３（良好）",null,"職階からみて、期待された以上の業績をあげた"]
[null,null,"２（標準）",null,"職階からみて、相応の業績である"]
[null,null,"１（要努力）",null,"職階からみて、期待された水準に達しておらず、努力が必要である"]
[]
["≪【業績】の評価項目数の取扱い≫\n　・次長級以上は評価点を４倍\n　・課長級は評価点を３倍　　",null,null,null,null,"\n・課長代理級は評価点を３倍\n・主査級は評価点を２倍"]
[null,null,null,null,"\n・課長代理級は評価素点を３倍\n・主査級は評価素点を２倍"]
["【能力】","評価項目及び行動・着眼点",null,null,null,null,null,null,null,null,null,null,null,null,null,"自己評価",null,null,null,null,null,null,null,null,null,"最終評価"]
[null,"【市民視点・法令遵守】",null,null,null,null,null,null,null,null,null,null,null,null,null,"（評価点）",null,"（コメント）",null,null,null,null,null,null,null,"（評価点）"]
[null,null,"丁寧な応対を心掛けるなど、全体の奉仕者として、常に市民の立場や市民協働の視点に立つことができるとともに、法令等及び服務規律を順守して、公平かつ公正に業務を遂行することができる。",null,null,null,null,null,null,null,null,null,null,null,null,{"$f":"+P17","v":0},null,{"$f":"+R17","v":0},null,null,null,null,null,null,null,{"$f":"+Z17","v":0}]
[null,"着眼点",null,"・接遇",null,null,null,null,null,"・法令順守"]
[null,null,null,"・公平・公正な姿勢",null,null,null,null,null,"・責任感"]
[null,"【コミュニケーション】",null,null,null,null,null,null,null,null,null,null,null,null,null,"（評価点）",null,"（コメント）",null,null,null,null,null,null,null,"（評価点）"]
[null,null,"様々な相手と円滑かつ適切なコミュニケーションを取ることができる。",null,null,null,null,null,null,null,null,null,null,null,null,{"$f":"+P21","v":0},null,{"$f":"+R21","v":0},null,null,null,null,null,null,null,{"$f":"+Z21","v":0}]
[null,"着眼点",null,"・市民に対する傾聴と対話の姿勢",null,null,null,null,null,"・柔軟な姿勢と一貫した主張のバランス"]
[null,null,null,"・誠実さ"]
[null,"【知識・技能の向上】",null,null,null,null,null,null,null,null,null,null,null,null,null,"（評価点）",null,"（コメント）",null,null,null,null,null,null,null,"（評価点）"]
[null,null,"担当業務に必要な知識及び技能を習得することができる。",null,null,null,null,null,null,null,null,null,null,null,null,{"$f":"+P25","v":0},null,{"$f":"+R25","v":0},null,null,null,null,null,null,null,{"$f":"+Z25","v":0}]
[null,"着眼点",null,"・研究心",null,null,null,null,null,"・情報収集"]
[null,null,null,"・知識・技能の蓄積"]
[null,"【業務遂行】",null,null,null,null,null,null,null,null,null,null,null,null,null,"（評価点）",null,"（コメント）",null,null,null,null,null,null,null,"（評価点）"]
[null,null,"意欲的かつ正確に業務に取り組むことができる。",null,null,null,null,null,null,null,null,null,null,null,null,{"$f":"+P29","v":0},null,{"$f":"+R29","v":0},null,null,null,null,null,null,null,{"$f":"+Z29","v":0}]
[null,"着眼点",null,"・積極性",null,null,null,null,null,"・正確性"]
[]
[null,"【組織貢献・チームワーク】",null,null,null,null,null,null,null,null,null,null,null,null,null,"（評価点）",null,"（コメント）",null,null,null,null,null,null,null,"（評価点）"]
[null,null,"情報の共有を図るため上司、同僚等に報告、連絡及び相談を行うことができるとともに、上司、同僚等と協力的な関係を構築することができる。",null,null,null,null,null,null,null,null,null,null,null,null,{"$f":"+P33","v":0},null,{"$f":"+R33","v":0},null,null,null,null,null,null,null,{"$f":"+Z33","v":0}]
[null,"着眼点",null,"・情報共有",null,null,null,null,null,"・協調性"]
[null,null,null,"・関係職員を応援する姿勢"]
[]
["≪【能力】の評価点≫\n◆　「４（特に良好）」…求められる行動が確実にとられており、他の職員の模範となる職務遂行状況である。\n◆　「３（良好）」…求められる行動が確実にとられていた。\n◆　「２（標準）」…求められる行動が概ねとられていた。\n◆　「１（要努力）」…求められる行動がとられていることが少なく（全くなく）、改善に向け努力が必要である。",null,null,null,null,null,null,null,null,null,"≪総合評価区分と評価点との関係：基準≫\n◆　「良好」…原則、【業績】及び【能力】の評価項目の３分の２以上が「２（標準）」以上の場合に該当する。\n◆　「やや不良」…原則、【業績】及び【能力】の評価項目の３分の１超半数以下が「１（標準未満）」の場合に該当する。\n◆　「不良」…原則、【業績】及び【能力】の評価項目の半数超が「１（標準未満）」であるとともに、分限（降任・免職）処分を検討する必要があると判断する場合に該当する。",null,null,null,null,null,null,null,null,null,"【業績】及び\n【能力】の\n評価項目数の合計",null,"「4（特に良好）」\nの個数",null,null,null,{"$f":"+AA37","v":""}]
[null,null,null,null,null,null,null,null,null,null,null,null,null,null,null,null,null,null,null,null,null,null,"「3（良好）」\nの個数",null,null,null,{"$f":"+AA38","v":""}]
[null,null,null,null,null,null,null,null,null,null,null,null,null,null,null,null,null,null,null,null,null,null,"「２（標準）」\nの個数",null,null,null,""]
[null,null,null,null,null,null,null,null,null,null,null,null,null,null,null,null,null,null,null,null,6,null,"「１（要努力）」\nの個数",null,null,null,{"$f":"+AA40","v":""}]
[]
["ピカッとポイント",null,null,null,null,null,null,null,"２次評価者所見",null,null,null,null,null,null,null,null,null,null,null,null,null,null,null,"総合評価"]
[{"$f":"+A44","v":0},null,null,null,null,null,null,null,{"$f":"+O44","v":0},null,null,null,null,null,null,null,null,null,null,null,null,null,null,null,{"$f":"+Y43","v":""}]
[]
[{"$f":"IF(K46=\"\",\"\",\"評価事務補助者（\")","v":""},null,null,{"$f":"K46","v":0},null,null,null,{"$f":"IF(K46=\"\",\"\",\"）\")","v":""}]
["１次評価者",null,"（",{"$f":"+I45","v":0},null,null,null,"）",null,null,{"$f":"IF(U46=\"\",\"\",\"評価事務補助者(\")","v":""},{"$f":"U46","v":0},null,null,null,{"$f":"IF(U46=\"\",\"\",\"）\")","v":""},"２次評価者",null,"（",{"$f":"+S45","v":0},null,null,null,"）"]
[]
["給与反映区分","総合評価",null,null,"良好",null,null,null,null,"やや不良",null,null,null,null,"不良",null,null,null,null,null,"備考欄",{"$f":"V48","v":0}]
[null,"昇給号数",null,null,"４号",null,null,null,null,"２号",null,null,null,null,"昇給なし"]
[null,"勤勉手当支給割合",null,null,"吹田市期末手当及び\n勤勉手当の支給に関する\n規則で定める支給割合",null,null,null,null,"良好の１０％減として、\n同規則で定める支給割合",null,null,null,null,"良好の２０％減として、\n同規則で定める支給割合"]
[null,null,null,null,null,null,null,null,null,null,null,null,null,null,null,null,null,null,"※水道部は、吹田市水道部企業職員給与規程"]
[]
[]
["職員番号","氏名","所属名","補職級","職種","評価項目",null,null,null,null,null,null,null,"総合評価","2次評価者"]
[null,null,null,null,null,"【業績】","【市民視点・法令遵守】","【コミュニケーション】","【知識・技能・経験の活用】","【知識・技能の向上】","【業務管理】","【業務遂行】","【組織貢献・チームワーク】"]
[{"$f":"+N4","v":0},{"$f":"+P4","v":0},{"$f":"+C4","v":0},{"$f":"+H4","v":"係員級"},{"$f":"+K4","v":0},{"$f":"+Z8","v":0},{"$f":"+Z17","v":0},{"$f":"+Z21","v":0},null,{"$f":"+Z76","v":0},null,{"$f":"+Z29","v":0},{"$f":"+Z33","v":0},{"$f":"+Y43","v":""},{"$f":"+S45","v":0}]